Workbook

Sheet Ermittlung Schneelast
B4: Ermittlung der standortbezogenen Wind- und Schneelast | G4: Schneelast auf dem Boden
G5: Schneelastzone | H5: sk | I5: Bedingung
B6: Kunde: | G6: 1 | H6: =0.19+0.91*((D16+140)/760)^2 -> 0.281 | I6: =IF(H6<0.65,0.65,H6) -> 0.650
B7: BV: | G7: 2 | H7: =0.25+1.91*((D16+140)/760)^2 -> 0.440 | I7: =IF(H7<0.85,0.85,H7) -> 0.850
G8: 3 | H8: =0.31+2.91*((D16+140)/760)^2 -> 0.600 | I8: =IF(H8<1.1,1.1,H8) -> 1.100
B9: Windlast | G9: 1a | H9: =1.25*I6 -> 0.813 | I9: =H9 -> 0.813
G10: 2a | H10: =1.25*I7 -> 1.063 | I10: =H10 -> 1.063
B11: Windzone WZ | C11: = | D11: 1, Binnenland | G11: 3a | H11: =I8*1.25 -> 1.375 | I11: =H11 -> 1.375
H12: sk | I12: =IF(D15="1",I6,IF(D15="2",I7,IF(D15="3",I8,IF(D15="1a",I9,IF(D15="2a",I10,IF(D15="3a",I11,0)))))) -> 1.375 kN/qm
B13: Schneelast
B15: Schneelastzone | C15: = | D15: 3a
B16: Höhe des Bauortes | C16: = | D16: 100 m
B17: Norddeutsches Tiefland | C17: = | D17: nein
B18: Dachneigung des Anbaus | C18: = | D18: 10.0°
B19: Tiefe des Anbaus b2 | C19: = | D19: 3.50 m
B20: Anbaudach seitlich offen und für Räumung zugänglich | C20: = | D20: ja | G20: rechnerisch bS | H20: = | I20: =IF(OR(_x<=15,D27="vorhanden",D23="Dach an der Giebelseite",D23="Dach an ein Flachdach"),0,_bs) -> 4.50 m
B22: mittlerer Höhenversprung h | C22: = | D22: 0.30 m
B23: Anbausituation | C23: = | D23: Dach an der Traufseite
B24: Tiefe des vorh. Gebäudes (oft "Firstlänge") b1 | C24: = | D24: 9.00 m
B25: Tiefe der Dachfläche des vorh. Gebäudes bS | C25: = | D25: 4.50 m
B26: Dachneigung des vorh. Gebäudes x | C26: = | D26: 38.0°
B27: Schneefanggitter auf vorh. Gebäude | C27: = | D27: nicht vorhanden
B29: Schneelast auf dem Boden sk | C29: = | D29: =sk -> 1.375 kN/qm
B30: my1 | C30: = | D30: =IF(D18<30,0.8,IF(D18>60,0,0.8*(60-D18)/30)) -> 0.800
B31: länge Schneekeil Ls | C31: = | D31: =IF(2*_h<5,5,IF(2*_h>15,15,2*_h)) -> 5.00 m
B32: mys | C32: = | D32: =0.8*I20/ls -> 0.720
B33: myw | C33: = | D33: =IF(_h<=0.5,0,(_b1+_b2)/(2*_h)) -> 0.000
B34: my2,1 | C34: = | D34: =IF(_h<=0.5,D30+D32,D33+D32) -> 1.520
B35: my2,2 | C35: = | D35: =IF(AND(_b2<=3,D20="ja"),2,2.4) -> 2.400
B36: my2,3 | C36: = | D36: =2*_h/D29 -> 0.436
B37: my2,4 | C37: = | D37: =D30+1.6*_b1/ls -> 3.680
B38: my2,5 | C38: = | D38: =MIN(D34,D35,D36,D37) -> 0.436
B39: my2 | C39: = | D39: =IF(D33+D32=0,D30,MAX(0.8,D38)) -> 0.800
B41: Schneelasten auf dem Dach: Normal
B42: Grundschneelast auf dem Dach s1 | C42: = | D42: =D29*D30 -> 1.100 kN/qm
B43: Schneelast oben so | C43: = | D43: =D29*D39 -> 1.100 kN/qm
B44: Schneelast unten su | C44: = | D44: =MAX(D42,D42+(D43-D42)*(ls-_b2)/ls) -> 1.100 kN/qm
B45: Schneelast im Mittel sm | C45: = | D45: =IF(_b2<ls,(D43+D44)/2,D44+(D43-D44)*ls/(2*_b2)) -> 1.100 kN/qm
B47: Schneelasten auf dem Dach: Außergewöhnlich (Norddeutsches Tiefland)
B48: Grundschneelast auf dem Dach sAd,1 | C48: = | D48: =2.3*D42 -> 2.530 kN/qm
B49: Schneelast oben sAd,o | C49: = | D49: =IF((2.3*D43)<=(4*D29),2.3*D43,4*D29) -> 2.530 kN/qm
B50: Schneelast unten sAd,u | C50: = | D50: =MAX(D48,D48+(D49-D48)*(ls-_b2)/ls) -> 2.530 kN/qm
B51: Schneelast im Mittel sAd,m | C51: = | D51: =IF(_b2<=ls,(D49+D50)/2,D50+(D49-D50)*ls/(2*_b2)) -> 2.530 kN/qm
B53: normale Schneelast sDa | C53: = | D53: =IF(D56="",IF(_h>0.5,D45*0.9,D45),D56) -> 1.10 kN/qm
B54: außergewöhnliche Schneelast sa | C54: = | D54: =IF(D17="ja",D51*0.9,"nur erforderlich für Norddeutsches Tiefland") -> nur erforderlich für Norddeutsches Tiefland
B56: gewählte normale Schneelast sDa | C56: =

Sheet Bemessungstabelle isoliert
B1: Kunde: | D1: ='Ermittlung Schneelast'!D6 -> 0.00 | G1: 1a) Korrekturfaktoren Träger | J1: 1a) sDA | K1: 1a) ki | M1: Träger | N1: 0.50 m | O1: =IF(AND($D$12>0.5,$D$12<0.6),$D$12,0) -> 0.00 m | P1: 0.60 m | Q1: =IF(AND($D$12>0.6,$D$12<0.7),$D$12,0) -> 0.00 m | R1: 0.70 m | S1: =IF(AND($D$12>0.7,$D$12<0.8),$D$12,0) -> 0.73 m | T1: 0.80 m | U1: =IF(AND($D$12>0.8,$D$12<0.9),$D$12,0) -> 0.00 m | V1: 0.90 m | W1: =IF(AND($D$12>0.9,$D$12<1),$D$12,0) -> 0.00 m | X1: 1.00 m | Y1: =IF(AND($D$12>1,$D$12<1.1),$D$12,0) -> 0.00 m | Z1: 1.10 m | AH1: 1b) Korrekturfaktoren Träger | AK1: 1b) sDA | AL1: 1b) ki | AN1: Träger | AO1: 0.50 m | AP1: =IF(AND($D$12>0.5,$D$12<0.6),$D$12,0) -> 0.00 m | AQ1: 0.60 m | AR1: =IF(AND($D$12>0.6,$D$12<0.7),$D$12,0) -> 0.00 m | AS1: 0.70 m | AT1: =IF(AND($D$12>0.7,$D$12<0.8),$D$12,0) -> 0.73 m | AU1: 0.80 m | AV1: =IF(AND($D$12>0.8,$D$12<0.9),$D$12,0) -> 0.00 m | AW1: 0.90 m | AX1: =IF(AND($D$12>0.9,$D$12<1),$D$12,0) -> 0.00 m | AY1: 1.00 m | AZ1: =IF(AND($D$12>1,$D$12<1.1),$D$12,0) -> 0.00 m | BA1: 1.10 m | BI1: 1c) Korrekturfaktoren Träger | BL1: 1c) sA | BM1: 1c) ki | BO1: Träger | BP1: 0.50 m | BQ1: =IF(AND($D$12>0.5,$D$12<0.6),$D$12,0) -> 0.00 m | BR1: 0.60 m | BS1: =IF(AND($D$12>0.6,$D$12<0.7),$D$12,0) -> 0.00 m | BT1: 0.70 m | BU1: =IF(AND($D$12>0.7,$D$12<0.8),$D$12,0) -> 0.73 m | BV1: 0.80 m | BW1: =IF(AND($D$12>0.8,$D$12<0.9),$D$12,0) -> 0.00 m | BX1: 0.90 m | BY1: =IF(AND($D$12>0.9,$D$12<1),$D$12,0) -> 0.00 m | BZ1: 1.00 m | CA1: =IF(AND($D$12>1,$D$12<1.1),$D$12,0) -> 0.00 m | CB1: 1.10 m
B2: BV: | D2: ='Ermittlung Schneelast'!D7 -> 0.00 | G2: 1a) Verglasung | H2: =VLOOKUP($D$5,Daten!$A$38:$D$43,2) -> 1.000 | J2: 0.52 kN/qm | K2: 1.13 | M2: 577105 | N2: 5.96 m | O2: =N2-(N2-P2)*($O$1-$N$1)/($P$1-$N$1) -> 7.61 m | P2: 5.63 m | Q2: =P2-(P2-R2)*($Q$1-$P$1)/($R$1-$P$1) -> 7.31 m | R2: 5.35 m | S2: =R2-(R2-T2)*($S$1-$R$1)/($T$1-$R$1) -> 5.28 m | T2: 5.12 m | U2: =T2-(T2-V2)*($U$1-$T$1)/($V$1-$T$1) -> 6.64 m | V2: 4.93 m | W2: =V2-(V2-X2)*($W$1-$V$1)/($X$1-$V$1) -> 6.46 m | X2: 4.76 m | Y2: =X2-(X2-Z2)*($Y$1-$X$1)/($Z$1-$X$1) -> 6.26 m | Z2: 4.61 m | AH2: 1b) Verglasung | AI2: =VLOOKUP($D$5,Daten!$A$38:$D$43,3) -> 1.000 | AK2: 0.52 kN/qm | AL2: 1.20 | AN2: 577105 | AO2: 7.75 m | AP2: =AO2-(AO2-AQ2)*($O$1-$N$1)/($P$1-$N$1) -> 10.95 m | AQ2: 7.11 m | AR2: =AQ2-(AQ2-AS2)*($Q$1-$P$1)/($R$1-$P$1) -> 10.17 m | AS2: 6.60 m | AT2: =AS2-(AS2-AU2)*($S$1-$R$1)/($T$1-$R$1) -> 6.48 m | AU2: 6.19 m | AV2: =AU2-(AU2-AW2)*($U$1-$T$1)/($V$1-$T$1) -> 8.91 m | AW2: 5.85 m | AX2: =AW2-(AW2-AY2)*($W$1-$V$1)/($X$1-$V$1) -> 8.46 m | AY2: 5.56 m | AZ2: =AY2-(AY2-BA2)*($Y$1-$X$1)/($Z$1-$X$1) -> 8.16 m | BA2: 5.30 m | BI2: 1c) Verglasung | BJ2: =VLOOKUP($D$5,Daten!$A$38:$D$43,4) -> 1.000 | BL2: 1.196 kN/qm | BM2: 1.08 | BO2: 577105 | BP2: 8.28 m | BQ2: =BP2-(BP2-BR2)*($O$1-$N$1)/($P$1-$N$1) -> 11.73 m | BR2: 7.59 m | BS2: =BR2-(BR2-BT2)*($Q$1-$P$1)/($R$1-$P$1) -> 10.83 m | BT2: 7.05 m | BU2: =BT2-(BT2-BV2)*($S$1-$R$1)/($T$1-$R$1) -> 6.92 m | BV2: 6.61 m | BW2: =BV2-(BV2-BX2)*($U$1-$T$1)/($V$1-$T$1) -> 9.57 m | BX2: 6.24 m | BY2: =BX2-(BX2-BZ2)*($W$1-$V$1)/($X$1-$V$1) -> 9.03 m | BZ2: 5.93 m | CA2: =BZ2-(BZ2-CB2)*($Y$1-$X$1)/($Z$1-$X$1) -> 8.63 m | CB2: 5.66 m
G3: 1a) Schnee sDA | H3: =VLOOKUP($D$6,J2:K14,2) -> 0.982 | J3: =IF(AND($D$6>J2,$D$6<J4),$D$6,"nicht interpolieren") -> nicht interpolieren | K3: =K2-(K2-K4)*(J3-J2)/(J4-J2) ->  | M3: 577105+120*50*3 | N3: 7.03 m | O3: 8.83 m | P3: 6.67 m | Q3: 8.41 m | R3: 6.38 m | S3: 6.31 m | T3: 6.13 m | U3: 7.89 m | V3: 5.91 m | W3: 7.62 m | X3: 5.72 m | Y3: 7.32 m | Z3: 5.56 m | AH3: 1b) Schnee sDA | AI3: =VLOOKUP($D$6,AK2:AL14,2) -> 0.972 | AK3: =IF(AND($D$6>AK2,$D$6<AK4),$D$6,"nicht interpolieren") -> nicht interpolieren | AL3: =AL2-(AL2-AL4)*(AK3-AK2)/(AK4-AK2) ->  | AN3: 577105+120*50*3 | AO3: 9.73 m | AP3: 13.48 m | AQ3: 8.98 m | AR3: 12.52 m | AS3: 8.39 m | AT3: 8.24 m | AU3: 7.90 m | AV3: 11.26 m | AW3: 7.48 m | AX3: 10.63 m | AY3: 7.13 m | AZ3: 10.23 m | BA3: 6.82 m | BI3: 1c) Schnee sA | BJ3: =IF('Ermittlung Schneelast'!D17="nein",10000,VLOOKUP(D7,BL2:BM12,2)) -> 10000.000 | BL3: =IF(AND($D$7>BL2,$D$7<BL4),$D$7,"nicht interpolieren") -> nicht interpolieren | BM3: =BM2-(BM2-BM4)*(BL3-BL2)/(BL4-BL2) ->  | BO3: 577105+120*50*3 | BP3: 10.47 m | BQ3: 14.57 m | BR3: 9.65 m | BS3: 13.55 m | BT3: 9.00 m | BU3: 8.84 m | BV3: 8.46 m | BW3: 12.06 m | BX3: 8.01 m | BY3: 11.43 m | BZ3: 7.63 m | CA3: 11.03 m | CB3: 7.29 m
B4: Bemessungstabelle: Pos. 1.1 Mittelträger isoliert | G4: 1a) Wind | H4: =VLOOKUP($D$8,Daten!$A$50:$D$58,4) -> 1.000 | J4: 0.75 kN/qm | K4: 1.06 | M4: 577105+120*50*5 | N4: 7.51 m | O4: 9.31 m | P4: 7.15 m | Q4: 9.01 m | R4: 6.84 m | S4: 6.77 m | T4: 6.59 m | U4: 8.43 m | V4: 6.36 m | W4: 8.07 m | X4: 6.17 m | Y4: 7.97 m | Z4: 5.99 m | AH4: 1b) Wind | AI4: =VLOOKUP($D$8,Daten!$A$50:$D$58,4) -> 1.000 | AK4: 0.75 kN/qm | AL4: 1.09 | AN4: 577105+120*50*5 | AO4: 10.78 m | AP4: 14.73 m | AQ4: 9.99 m | AR4: 13.77 m | AS4: 9.36 m | AT4: 9.20 m | AU4: 8.83 m | AV4: 12.43 m | AW4: 8.38 m | AX4: 11.80 m | AY4: 8.00 m | AZ4: 11.40 m | BA4: 7.66 m | BI4: 1c) Wind | BJ4: 1.000 | BL4: 1.50 kN/qm | BM4: 1.00 | BO4: 577105+120*50*5 | BP4: 11.64 m | BQ4: 15.99 m | BR4: 10.77 m | BS4: 14.97 m | BT4: 10.07 m | BU4: 9.90 m | BV4: 9.49 m | BW4: 13.41 m | BX4: 9.00 m | BY4: 12.78 m | BZ4: 8.58 m | CA4: 12.28 m | CB4: 8.21 m
B5: Dachlast gDa | C5: = | D5: ISO-VSG (6+8), 14mm Glasdicke | G5: 1a) Dachneigung | H5: =VLOOKUP($D$9,J17:K22,2) -> 1.000 | J5: =IF(AND($D$6>J4,$D$6<J6),$D$6,"nicht interpolieren") -> nicht interpolieren | K5: =K4-(K4-K6)*(J5-J4)/(J6-J4) ->  | M5: 577105+I120 | N5: 7.82 m | O5: 9.77 m | P5: 7.43 m | Q5: 9.35 m | R5: 7.11 m | S5: 7.03 m | T5: 6.84 m | U5: 8.68 m | V5: 6.61 m | W5: 8.50 m | X5: 6.40 m | Y5: 8.20 m | Z5: 6.22 m | AH5: 1b) Dachneigung | AI5: =VLOOKUP($D$9,AK17:AL22,2) -> 1.000 | AK5: =IF(AND($D$6>AK4,$D$6<AK6),$D$6,"nicht interpolieren") -> nicht interpolieren | AL5: =AL4-(AL4-AL6)*(AK5-AK4)/(AK6-AK4) ->  | AN5: 577105+I120 | AO5: 11.45 m | AP5: 15.70 m | AQ5: 10.60 m | AR5: 14.74 m | AS5: 9.91 m | AT5: 9.74 m | AU5: 9.35 m | AV5: 13.19 m | AW5: 8.87 m | AX5: 12.56 m | AY5: 8.46 m | AZ5: 12.06 m | BA5: 8.10 m | BI5: 1c) Dachneigung | BJ5: =VLOOKUP($D$9,BL15:BM20,2) -> 1.000 | BL5: =IF(AND($D$7>BL4,$D$7<BL6),$D$7,"nicht interpolieren") -> nicht interpolieren | BM5: =BM4-(BM4-BM6)*(BL5-BL4)/(BL6-BL4) ->  | BO5: 577105+I120 | BP5: 12.35 m | BQ5: 17.05 m | BR5: 11.41 m | BS5: 15.91 m | BT5: 10.66 m | BU5: 10.47 m | BV5: 10.04 m | BW5: 14.20 m | BX5: 9.52 m | BY5: 13.57 m | BZ5: 9.07 m | CA5: 13.07 m | CB5: 8.67 m
B6: normale Schneelast sDa | C6: = | D6: ='Ermittlung Schneelast'!D53 -> 1.100 kN/qm | G6: zul. Durchbiegung | H6: =VLOOKUP($D$13,Daten!$A$44:$B$47,2) -> 1.00 | J6: 1.00 kN/qm | K6: 1.00 | M6: 577333 | N6: 2.54 m | O6: 3.39 m | P6: 2.37 m | Q6: 3.21 m | R6: 2.23 m | S6: 2.20 m | T6: 2.13 m | U6: 2.85 m | V6: 2.04 m | W6: 2.76 m | X6: 1.96 m | Y6: 2.76 m | Z6: 1.88 m | AH6: zul. Durchbiegung | AI6: =VLOOKUP($D$13,Daten!$A$44:$B$47,2) -> 1 | AK6: 1.00 kN/qm | AL6: 1.00 | AN6: 577333 | AO6: 3.47 m | AP6: 4.92 m | AQ6: 3.18 m | AR6: 4.62 m | AS6: 2.94 m | AT6: 2.88 m | AU6: 2.74 m | AV6: 4.02 m | AW6: 2.58 m | AX6: 3.84 m | AY6: 2.44 m | AZ6: 3.74 m | BA6: 2.31 m | BI6: zul. Durchbiegung | BJ6: =VLOOKUP($D$13,Daten!$A$44:$B$47,2) -> 1 | BL6: 2.00 kN/qm | BM6: 0.89 | BO6: 577333 | BP6: 3.70 m | BQ6: 5.30 m | BR6: 3.38 m | BS6: 4.82 m | BT6: 3.14 m | BU6: 3.08 m | BV6: 2.94 m | BW6: 4.38 m | BX6: 2.76 m | BY6: 4.11 m | BZ6: 2.61 m | CA6: 3.91 m | CB6: 2.48 m
B7: außergewöhnliche Schneelast sa | C7: = | D7: ='Ermittlung Schneelast'!D54 -> nur erforderlich für Norddeutsches Tiefland | J7: =IF(AND($D$6>J6,$D$6<J8),$D$6,"nicht interpolieren") -> 1.10 kN/qm | K7: =K6-(K6-K8)*(J7-J6)/(J8-J6) -> 0.98 | M7: 577333+30*30*2 | N7: 2.60 m | O7: 3.35 m | P7: 2.45 m | Q7: 3.17 m | R7: 2.33 m | S7: 2.30 m | T7: 2.23 m | U7: 2.87 m | V7: 2.15 m | W7: 2.78 m | X7: 2.08 m | Y7: 2.78 m | Z7: 2.01 m | AK7: =IF(AND($D$6>AK6,$D$6<AK8),$D$6,"nicht interpolieren") -> 1.10 kN/qm | AL7: =AL6-(AL6-AL8)*(AK7-AK6)/(AK8-AK6) -> 0.97 | AN7: 577333+30*30*2 | AO7: 3.64 m | AP7: 5.14 m | AQ7: 3.34 m | AR7: 4.78 m | AS7: 3.10 m | AT7: 3.04 m | AU7: 2.90 m | AV7: 4.18 m | AW7: 2.74 m | AX7: 3.91 m | AY7: 2.61 m | AZ7: 3.81 m | BA7: 2.49 m | BL7: =IF(AND($D$7>BL6,$D$7<BL8),$D$7,"nicht interpolieren") -> nicht interpolieren | BM7: =BM6-(BM6-BM8)*(BL7-BL6)/(BL8-BL6) ->  | BO7: 577333+30*30*2 | BP7: 3.89 m | BQ7: 5.54 m | BR7: 3.56 m | BS7: 5.06 m | BT7: 3.31 m | BU7: 3.25 m | BV7: 3.10 m | BW7: 4.46 m | BX7: 2.93 m | BY7: 4.28 m | BZ7: 2.78 m | CA7: 4.08 m | CB7: 2.65 m
B8: Windzone WZ | C8: = | D8: ='Ermittlung Schneelast'!D11:F11 -> 1, Binnenland | J8: 1.50 kN/qm | K8: 0.91 | M8: 577335 | N8: 3.69 m | O8: 4.79 m | P8: 3.47 m | Q8: 4.55 m | R8: 3.29 m | S8: 3.25 m | T8: 3.14 m | U8: 4.18 m | V8: 3.01 m | W8: 4.00 m | X8: 2.90 m | Y8: 3.90 m | Z8: 2.80 m | AK8: 1.50 kN/qm | AL8: 0.86 | AN8: 577335 | AO8: 4.76 m | AP8: 6.76 m | AQ8: 4.36 m | AR8: 6.34 m | AS8: 4.03 m | AT8: 3.95 m | AU8: 3.76 m | AV8: 5.52 m | AW8: 3.54 m | AX8: 5.16 m | AY8: 3.36 m | AZ8: 4.96 m | BA8: 3.20 m | BL8: 2.50 kN/qm | BM8: 0.81 | BO8: 577335 | BP8: 5.08 m | BQ8: 7.23 m | BR8: 4.65 m | BS8: 6.75 m | BT8: 4.30 m | BU8: 4.22 m | BV8: 4.02 m | BW8: 5.86 m | BX8: 3.79 m | BY8: 5.59 m | BZ8: 3.59 m | CA8: 5.39 m | CB8: 3.41 m
B9: Dachneigung WG | C9: = | D9: ='Ermittlung Schneelast'!D18 -> 10.0° | J9: =IF(AND(D$6>J8,$D$6<J10),$D$6,"nicht interpolieren") -> nicht interpolieren | K9: =K8-(K8-K10)*(J9-J8)/(J10-J8) ->  | M9: 577335+70*30*3 | N9: 4.27 m | O9: 5.42 m | P9: 4.04 m | Q9: 5.18 m | R9: 3.85 m | S9: 3.81 m | T9: 3.70 m | U9: 4.82 m | V9: 3.56 m | W9: 4.64 m | X9: 3.44 m | Y9: 4.44 m | Z9: 3.34 m | AK9: =IF(AND($D$6>AK8,$D$6<AK10),$D$6,"nicht interpolieren") -> nicht interpolieren | AL9: =AL8-(AL8-AL10)*(AK9-AK8)/(AK10-AK8) ->  | AN9: 577335+70*30*3 | AO9: 5.90 m | AP9: 8.25 m | AQ9: 5.43 m | AR9: 7.71 m | AS9: 5.05 m | AT9: 4.96 m | AU9: 4.74 m | AV9: 6.82 m | AW9: 4.48 m | AX9: 6.46 m | AY9: 4.26 m | AZ9: 6.16 m | BA9: 4.07 m | BL9: =IF(AND($D$7>BL8,$D$7<BL10),$D$7,"nicht interpolieren") -> nicht interpolieren | BM9: =BM8-(BM8-BM10)*(BL9-BL8)/(BL10-BL8) ->  | BO9: 577335+70*30*3 | BP9: 6.32 m | BQ9: 8.87 m | BR9: 5.81 m | BS9: 8.27 m | BT9: 5.40 m | BU9: 5.30 m | BV9: 5.07 m | BW9: 7.31 m | BX9: 4.79 m | BY9: 6.95 m | BZ9: 4.55 m | CA9: 6.55 m | CB9: 4.35 m
B10: Tiefe WG b2 | C10: = | D10: ='Ermittlung Schneelast'!_b2 -> 3.50 m | J10: 2.00 kN/qm | K10: 0.84 | M10: 577339 | N10: 4.69 m | O10: 6.04 m | P10: 4.42 m | Q10: 5.74 m | R10: 4.20 m | S10: 4.14 m | T10: 4.01 m | U10: 5.29 m | V10: 3.85 m | W10: 5.02 m | X10: 3.72 m | Y10: 4.92 m | Z10: 3.60 m | AK10: 2.00 kN/qm | AL10: 0.77 | AN10: 577339 | AO10: 7.02 m | AP10: 9.92 m | AQ10: 6.44 m | AR10: 9.20 m | AS10: 5.98 m | AT10: 5.87 m | AU10: 5.61 m | AV10: 8.09 m | AW10: 5.30 m | AX10: 7.64 m | AY10: 5.04 m | AZ10: 7.44 m | BA10: 4.80 m | BL10: 3.00 kN/qm | BM10: 0.75 | BO10: 577339 | BP10: 7.51 m | BQ10: 10.66 m | BR10: 6.88 m | BS10: 9.82 m | BT10: 6.39 m | BU10: 6.27 m | BV10: 5.99 m | BW10: 8.71 m | BX10: 5.65 m | BY10: 8.17 m | BZ10: 5.37 m | CA10: 7.77 m | CB10: 5.13 m
B11: Träger | C11: = | D11: 577339 | J11: =IF(AND($D$6>J10,$D$6<J12),$D$6,"nicht interpolieren") -> nicht interpolieren | K11: =K10-(K10-K12)*(J11-J10)/(J12-J10) ->  | M11: 577339+80*60*3 | N11: 5.43 m | O11: 6.83 m | P11: 5.15 m | Q11: 6.53 m | R11: 4.92 m | S11: 4.86 m | T11: 4.72 m | U11: 6.08 m | V11: 4.55 m | W11: 5.81 m | X11: 4.41 m | Y11: 5.71 m | Z11: 4.28 m | AK11: =IF(AND($D$6>AK10,$D$6<AK12),$D$6,"nicht interpolieren") -> nicht interpolieren | AL11: =AL10-(AL10-AL12)*(AK11-AK10)/(AK12-AK10) ->  | AN11: 577339+80*60*3 | AO11: 8.09 m | AP11: 11.19 m | AQ11: 7.47 m | AR11: 10.47 m | AS11: 6.97 m | AT11: 6.84 m | AU11: 6.55 m | AV11: 9.27 m | AW11: 6.21 m | AX11: 8.91 m | AY11: 5.91 m | AZ11: 8.51 m | BA11: 5.65 m | BL11: =IF(AND($D$7>BL10,$D$7<BL12),$D$7,"nicht interpolieren") -> nicht interpolieren | BM11: =BM10-(BM10-BM12)*(BL11-BL10)/(BL12-BL10) ->  | BO11: 577339+80*60*3 | BP11: 8.70 m | BQ11: 12.15 m | BR11: 8.01 m | BS11: 11.25 m | BT11: 7.47 m | BU11: 7.34 m | BV11: 7.02 m | BW11: 9.98 m | BX11: 6.65 m | BY11: 9.62 m | BZ11: 6.32 m | CA11: 9.02 m | CB11: 6.05 m
B12: Achsabstand | C12: = | D12: 0.73 m | E12: =IF(OR(D12<0.5,D12>1.1),"Achtung: Trägerabstand muss zwischen 0,50 m und 1,10 m betragen!","") ->  | J12: 2.50 kN/qm | K12: 0.79 | M12: 577339+80*60*5 | N12: 5.74 m | O12: 7.19 m | P12: 5.45 m | Q12: 6.83 m | R12: 5.22 m | S12: 5.16 m | T12: 5.02 m | U12: 6.46 m | V12: 4.84 m | W12: 6.19 m | X12: 4.69 m | Y12: 5.99 m | Z12: 4.56 m | AK12: 2.50 kN/qm | AL12: 0.70 | AN12: 577339+80*60*5 | AO12: 8.82 m | AP12: 12.12 m | AQ12: 8.16 m | AR12: 11.34 m | AS12: 7.63 m | AT12: 7.50 m | AU12: 7.19 m | AV12: 10.15 m | AW12: 6.82 m | AX12: 9.70 m | AY12: 6.50 m | AZ12: 9.20 m | BA12: 6.23 m | BL12: 4.00 kN/qm | BM12: 0.66 | BO12: 577339+80*60*5 | BP12: 9.51 m | BQ12: 13.16 m | BR12: 8.78 m | BS12: 12.26 m | BT12: 8.20 m | BU12: 8.06 m | BV12: 7.72 m | BW12: 10.92 m | BX12: 7.32 m | BY12: 10.47 m | BZ12: 6.97 m | CA12: 9.97 m | CB12: 6.67 m
B13: zul. Durchbiegung | C13: = | D13: l/200 | E13: Info | J13: =IF(AND($D$6>J12,$D$6<J14),$D$6,"nicht interpolieren") -> nicht interpolieren | K13: =K12-(K12-K14)*(J13-J12)/(J14-J12) ->  | M13: 579500 | N13: 5.78 m | O13: =N13-(N13-P13)*($O$1-$N$1)/($P$1-$N$1) -> 7.63 m | P13: 5.41 m | Q13: =P13-(P13-R13)*($Q$1-$P$1)/($R$1-$P$1) -> 7.15 m | R13: 5.12 m | S13: =R13-(R13-T13)*($S$1-$R$1)/($T$1-$R$1) -> 5.05 m | T13: 4.87 m | U13: =T13-(T13-V13)*($U$1-$T$1)/($V$1-$T$1) -> 6.47 m | V13: 4.67 m | W13: =V13-(V13-X13)*($W$1-$V$1)/($X$1-$V$1) -> 6.20 m | X13: 4.50 m | Y13: =X13-(X13-Z13)*($Y$1-$X$1)/($Z$1-$X$1) -> 6.10 m | Z13: 4.34 m | AK13: =IF(AND($D$6>AK12,$D$6<AK14),$D$6,"nicht interpolieren") -> nicht interpolieren | AL13: =AL12-(AL12-AL14)*(AK13-AK12)/(AK14-AK12) ->  | AN13: 579500 | AO13: 8.89 m | AP13: =AO13-(AO13-AQ13)*($O$1-$N$1)/($P$1-$N$1) -> 12.54 m | AQ13: 8.16 m | AR13: =AQ13-(AQ13-AS13)*($Q$1-$P$1)/($R$1-$P$1) -> 11.58 m | AS13: 7.59 m | AT13: =AS13-(AS13-AU13)*($S$1-$R$1)/($T$1-$R$1) -> 7.45 m | AU13: 7.12 m | AV13: =AU13-(AU13-AW13)*($U$1-$T$1)/($V$1-$T$1) -> 10.32 m | AW13: 6.72 m | AX13: =AW13-(AW13-AY13)*($W$1-$V$1)/($X$1-$V$1) -> 9.69 m | AY13: 6.39 m | AZ13: =AY13-(AY13-BA13)*($Y$1-$X$1)/($Z$1-$X$1) -> 9.29 m | BA13: 6.10 m | BO13: 579500 | BP13: 9.51 m | BQ13: =BP13-(BP13-BR13)*($O$1-$N$1)/($P$1-$N$1) -> 13.46 m | BR13: 8.72 m | BS13: =BR13-(BR13-BT13)*($Q$1-$P$1)/($R$1-$P$1) -> 12.44 m | BT13: 8.10 m | BU13: =BT13-(BT13-BV13)*($S$1-$R$1)/($T$1-$R$1) -> 7.95 m | BV13: 7.60 m | BW13: =BV13-(BV13-BX13)*($U$1-$T$1)/($V$1-$T$1) -> 10.96 m | BX13: 7.18 m | BY13: =BX13-(BX13-BZ13)*($W$1-$V$1)/($X$1-$V$1) -> 10.42 m | BZ13: 6.82 m | CA13: =BZ13-(BZ13-CB13)*($Y$1-$X$1)/($Z$1-$X$1) -> 9.92 m | CB13: 6.51 m
B14: =D10 -> 3.50 m | C14: =IF(B14<D14,"<",">") -> < | D14: =MIN(H19,AI19,BJ19) -> 4.07 m | J14: 3.00 kN/qm | K14: 0.75 | M14: 579500+100*50*4 | N14: 6.62 m | O14: =N14-(N14-P14)*($O$1-$N$1)/($P$1-$N$1) -> 8.27 m | P14: 6.29 m | Q14: =P14-(P14-R14)*($Q$1-$P$1)/($R$1-$P$1) -> 7.97 m | R14: 6.01 m | S14: =R14-(R14-T14)*($S$1-$R$1)/($T$1-$R$1) -> 5.94 m | T14: 5.78 m | U14: =T14-(T14-V14)*($U$1-$T$1)/($V$1-$T$1) -> 7.38 m | V14: 5.58 m | W14: =V14-(V14-X14)*($W$1-$V$1)/($X$1-$V$1) -> 7.11 m | X14: 5.41 m | Y14: =X14-(X14-Z14)*($Y$1-$X$1)/($Z$1-$X$1) -> 7.01 m | Z14: 5.25 m | AK14: 3.00 kN/qm | AL14: 0.65 | AN14: 579500+100*50*4 | AO14: 9.73 m | AP14: =AO14-(AO14-AQ14)*($O$1-$N$1)/($P$1-$N$1) -> 13.38 m | AQ14: 9.00 m | AR14: =AQ14-(AQ14-AS14)*($Q$1-$P$1)/($R$1-$P$1) -> 12.54 m | AS14: 8.41 m | AT14: =AS14-(AS14-AU14)*($S$1-$R$1)/($T$1-$R$1) -> 8.27 m | AU14: 7.93 m | AV14: =AU14-(AU14-AW14)*($U$1-$T$1)/($V$1-$T$1) -> 11.21 m | AW14: 7.52 m | AX14: =AW14-(AW14-AY14)*($W$1-$V$1)/($X$1-$V$1) -> 10.76 m | AY14: 7.16 m | AZ14: =AY14-(AY14-BA14)*($Y$1-$X$1)/($Z$1-$X$1) -> 10.16 m | BA14: 6.86 m | BL14: 1c) Dachneigung | BM14: 1c) k | BO14: 579500+100*50*4 | BP14: 10.49 m | BQ14: =BP14-(BP14-BR14)*($O$1-$N$1)/($P$1-$N$1) -> 14.54 m | BR14: 9.68 m | BS14: =BR14-(BR14-BT14)*($Q$1-$P$1)/($R$1-$P$1) -> 13.52 m | BT14: 9.04 m | BU14: =BT14-(BT14-BV14)*($S$1-$R$1)/($T$1-$R$1) -> 8.88 m | BV14: 8.50 m | BW14: =BV14-(BV14-BX14)*($U$1-$T$1)/($V$1-$T$1) -> 12.02 m | BX14: 8.06 m | BY14: =BX14-(BX14-BZ14)*($W$1-$V$1)/($X$1-$V$1) -> 11.57 m | BZ14: 7.67 m | CA14: =BZ14-(BZ14-CB14)*($Y$1-$X$1)/($Z$1-$X$1) -> 10.97 m | CB14: 7.34 m
D15: =IF(B14>D14,"Bedingung nicht erfüllt!","Bedingung erfüllt!") -> Bedingung erfüllt! | M15: 579500+100*50*6,3 | N15: 7.05 m | O15: =N15-(N15-P15)*($O$1-$N$1)/($P$1-$N$1) -> 8.80 m | P15: 6.70 m | Q15: =P15-(P15-R15)*($Q$1-$P$1)/($R$1-$P$1) -> 8.44 m | R15: 6.41 m | S15: =R15-(R15-T15)*($S$1-$R$1)/($T$1-$R$1) -> 6.34 m | T15: 6.17 m | U15: =T15-(T15-V15)*($U$1-$T$1)/($V$1-$T$1) -> 7.93 m | V15: 5.95 m | W15: =V15-(V15-X15)*($W$1-$V$1)/($X$1-$V$1) -> 7.66 m | X15: 5.76 m | Y15: =X15-(X15-Z15)*($Y$1-$X$1)/($Z$1-$X$1) -> 7.46 m | Z15: 5.59 m | AN15: 579500+100*50*6,3 | AO15: 10.69 m | AP15: =AO15-(AO15-AQ15)*($O$1-$N$1)/($P$1-$N$1) -> 14.69 m | AQ15: 9.89 m | AR15: =AQ15-(AQ15-AS15)*($Q$1-$P$1)/($R$1-$P$1) -> 13.79 m | AS15: 9.24 m | AT15: =AS15-(AS15-AU15)*($S$1-$R$1)/($T$1-$R$1) -> 9.08 m | AU15: 8.71 m | AV15: =AU15-(AU15-AW15)*($U$1-$T$1)/($V$1-$T$1) -> 12.31 m | AW15: 8.26 m | AX15: =AW15-(AW15-AY15)*($W$1-$V$1)/($X$1-$V$1) -> 11.77 m | AY15: 7.87 m | AZ15: =AY15-(AY15-BA15)*($Y$1-$X$1)/($Z$1-$X$1) -> 11.17 m | BA15: 7.54 m | BL15: 1.00 ° | BM15: 1.00 | BO15: 579500+100*50*6,3 | BP15: 11.52 m | BQ15: =BP15-(BP15-BR15)*($O$1-$N$1)/($P$1-$N$1) -> 15.97 m | BR15: 10.63 m | BS15: =BR15-(BR15-BT15)*($Q$1-$P$1)/($R$1-$P$1) -> 14.83 m | BT15: 9.93 m | BU15: =BT15-(BT15-BV15)*($S$1-$R$1)/($T$1-$R$1) -> 9.75 m | BV15: 9.34 m | BW15: =BV15-(BV15-BX15)*($U$1-$T$1)/($V$1-$T$1) -> 13.26 m | BX15: 8.85 m | BY15: =BX15-(BX15-BZ15)*($W$1-$V$1)/($X$1-$V$1) -> 12.63 m | BZ15: 8.43 m | CA15: =BZ15-(BZ15-CB15)*($Y$1-$X$1)/($Z$1-$X$1) -> 12.13 m | CB15: 8.06 m
B16: Durchbiegung w | C16: = | D16: =((1000/VLOOKUP('Bemessungstabelle isoliert'!D13,Daten!A22:B25,2))*D10^4/H19^3)/COS($D$9*PI()/180) -> 11 mm | J16: 1a) Dachneigung | K16: 1a) k | AK16: 1b) Dachneigung | AL16: 1b) k | BL16: 10.00 ° | BM16: 1.00
J17: 1.00 ° | K17: 1.00 | AK17: 1.00 ° | AL17: 1.00 | BL17: =IF(AND($D$9>BL16,$D$9<BL18),$D$9,"nicht interpolieren") -> nicht interpolieren | BM17: =BM16-(BM16-BM18)*(BL17-BL16)/(BL18-BL16) -> 
B18: Bemssungstabelle: Pos. 1.2 Seitenträger isoliert | G18: 1a) Tabellenwert l | H18: =O19 -> 4.14 m | J18: 10.00 ° | K18: 1.00 | M18: 1a) Träger | N18: Sparren-Achsabstand | O18: l | AH18: 1b) Tabellenwert l | AI18: =AP19 -> 5.87 m | AK18: 10.00 ° | AL18: 1.00 | AN18: 1b) Träger | AO18: Sparren-Achsabstand | AP18: l | BI18: 1c) Tabellenwert l | BJ18: =BQ19 -> 6.27 m | BL18: 20.00 ° | BM18: 0.990 | BO18: 1c) Träger | BP18: Sparren-Achsabstand | BQ18: l
B19: Seitenträger | C19: = | D19: 577337+70*30*3 | G19: 1a) Korrigierter lzul1 | H19: =H18*H2*H3*H4*H5*H6 -> 4.07 m | J19: =IF(AND($D$9>J18,$D$9<J20),$D$9,"nicht interpolieren") -> nicht interpolieren | K19: =K18-(K18-K20)*(J19-J18)/(J20-J18) ->  | M19: =IF($D$11="","",MATCH($D$11,M2:M15)) -> 9 | N19: =IF($D$12="","",MATCH($D$12,N1:Z1,0)) -> 6 | O19: =IF(OR($D$11="",$D$12=""),0,INDEX(N2:Z15,M19,N19)) -> 4.14 m | AH19: 1b) Korrigierter lzul1 | AI19: =AI18*AI2*AI3*AI4*AI5*AI6 -> 5.70 m | AK19: =IF(AND($D$9>AK18,$D$9<AK20),$D$9,"nicht interpolieren") -> nicht interpolieren | AL19: =AL18-(AL18-AL20)*(AK19-AK18)/(AK20-AK18) ->  | AN19: =IF($D$11="","",MATCH($D$11,AN2:AN15)) -> 9 | AO19: =IF($D$12="","",MATCH($D$12,AO1:BA1,0)) -> 6 | AP19: =IF(OR($D$11="",$D$12=""),0,INDEX(AO2:BA15,AN19,AO19)) -> 5.87 m | BI19: 1c) Korrigierter lzul1 | BJ19: =BJ18*BJ2*BJ3*BJ4*BJ5*BJ6 -> 62,700.00 m | BL19: =IF(AND($D$9>BL18,$D$9<BL20),$D$9,"nicht interpolieren") -> nicht interpolieren | BM19: =BM18-(BM18-BM20)*(BL19-BL18)/(BL20-BL18) ->  | BO19: =IF($D$11="","",MATCH($D$11,BO2:BO15)) -> 9 | BP19: =IF($D$12="","",MATCH($D$12,BP1:CB1,0)) -> 6 | BQ19: =IF(OR($D$11="",$D$12=""),0,INDEX(BP2:CB15,BO19,BP19)) -> 6.27 m
B20: =D10 -> 3.50 m | C20: =IF(B20<D20,"<",">") -> < | D20: =MIN(H32,AI32,BJ32) -> 4.32 m | J20: 20.00 ° | K20: 0.960 | AK20: 20.00 ° | AL20: 0.970 | BL20: 30.00 ° | BM20: 0.98
D21: =IF(B20>D20,"Bedingung nicht erfüllt!","Bedingung erfüllt!") -> Bedingung erfüllt! | J21: =IF(AND($D$9>J20,$D$9<J22),$D$9,"nicht interpolieren") -> nicht interpolieren | K21: =K20-(K20-K22)*(J21-J20)/(J22-J20) ->  | AK21: =IF(AND($D$9>AK20,$D$9<AK22),$D$9,"nicht interpolieren") -> nicht interpolieren | AL21: =AL20-(AL20-AL22)*(AK21-AK20)/(AK22-AK20) -> 
B22: Durchbiegung w | C22: = | D22: =((1000/VLOOKUP('Bemessungstabelle isoliert'!D13,Daten!A22:B25,2))*D10^4/H32^3)/COS($D$9*PI()/180) -> 9 mm | J22: 30.00 ° | K22: 0.91 | AK22: 30.00 ° | AL22: 0.93
B24: Bemessungstabelle: Pos. 2.1 Rinne/Unterzug | G24: 2a) Korrekturfaktoren Seitenträger | M24: Seitenträger | N24: 0.50 m | O24: =IF(AND($D$12>0.5,$D$12<0.6),$D$12,0) -> 0.00 m | P24: 0.60 m | Q24: =IF(AND($D$12>0.6,$D$12<0.7),$D$12,0) -> 0.00 m | R24: 0.70 m | S24: =IF(AND($D$12>0.7,$D$12<0.8),$D$12,0) -> 0.73 m | T24: 0.80 m | U24: =IF(AND($D$12>0.8,$D$12<0.9),$D$12,0) -> 0.00 m | V24: 0.90 m | W24: =IF(AND($D$12>0.9,$D$12<1),$D$12,0) -> 0.00 m | X24: 1.00 m | Y24: =IF(AND($D$12>1,$D$12<1.1),$D$12,0) -> 0.00 m | Z24: 1.10 m | AH24: 2b) Korrekturfaktoren Seitenträger | AN24: Seitenträger | AO24: 0.50 m | AP24: =IF(AND($D$12>0.5,$D$12<0.6),$D$12,0) -> 0.00 m | AQ24: 0.60 m | AR24: =IF(AND($D$12>0.6,$D$12<0.7),$D$12,0) -> 0.00 m | AS24: 0.70 m | AT24: =IF(AND($D$12>0.7,$D$12<0.8),$D$12,0) -> 0.73 m | AU24: 0.80 m | AV24: =IF(AND($D$12>0.8,$D$12<0.9),$D$12,0) -> 0.00 m | AW24: 0.90 m | AX24: =IF(AND($D$12>0.9,$D$12<1),$D$12,0) -> 0.00 m | AY24: 1.00 m | AZ24: =IF(AND($D$12>1,$D$12<1.1),$D$12,0) -> 0.00 m | BA24: 1.10 m | BI24: 2c) Korrekturfaktoren Seitenträger | BO24: Seitenträger | BP24: 0.50 m | BQ24: =IF(AND($D$12>0.5,$D$12<0.6),$D$12,0) -> 0.00 m | BR24: 0.60 m | BS24: =IF(AND($D$12>0.6,$D$12<0.7),$D$12,0) -> 0.00 m | BT24: 0.70 m | BU24: =IF(AND($D$12>0.7,$D$12<0.8),$D$12,0) -> 0.73 m | BV24: 0.80 m | BW24: =IF(AND($D$12>0.8,$D$12<0.9),$D$12,0) -> 0.00 m | BX24: 0.90 m | BY24: =IF(AND($D$12>0.9,$D$12<1),$D$12,0) -> 0.00 m | BZ24: 1.00 m | CA24: =IF(AND($D$12>1,$D$12<1.1),$D$12,0) -> 0.00 m | CB24: 1.10 m
B25: max. Stützweite b | C25: = | D25: 5.10 m | G25: 2a) Verglasung | H25: =H2 -> 1.000 | M25: 577102 | N25: 2.98 m | O25: =N25-(N25-P25)*($O$24-$N$24)/($P$24-$N$24) -> 3.78 m | P25: 2.82 m | Q25: =P25-(P25-R25)*($Q$24-$P$24)/($R$24-$P$24) -> 3.54 m | R25: 2.70 m | S25: =R25-(R25-T25)*($S$24-$R$24)/($T$24-$R$24) -> 2.67 m | T25: 2.59 m | U25: =T25-(T25-V25)*($U$24-$T$24)/($V$24-$T$24) -> 3.31 m | V25: 2.50 m | W25: =V25-(V25-X25)*($W$24-$V$24)/($X$24-$V$24) -> 3.22 m | X25: 2.42 m | Y25: =X25-(X25-Z25)*($Y$24-$X$24)/($Z$24-$X$24) -> 3.12 m | Z25: 2.35 m | AH25: 2b) Verglasung | AI25: =AI2 -> 1.000 | AN25: 577102 | AO25: 3.77 m | AP25: =AO25-(AO25-AQ25)*($O$24-$N$24)/($P$24-$N$24) -> 5.22 m | AQ25: 3.48 m | AR25: =AQ25-(AQ25-AS25)*($Q$24-$P$24)/($R$24-$P$24) -> 4.92 m | AS25: 3.24 m | AT25: =AS25-(AS25-AU25)*($S$24-$R$24)/($T$24-$R$24) -> 3.18 m | AU25: 3.05 m | AV25: =AU25-(AU25-AW25)*($U$24-$T$24)/($V$24-$T$24) -> 4.33 m | AW25: 2.89 m | AX25: =AW25-(AW25-AY25)*($W$24-$V$24)/($X$24-$V$24) -> 4.15 m | AY25: 2.75 m | AZ25: =AY25-(AY25-BA25)*($Y$24-$X$24)/($Z$24-$X$24) -> 3.95 m | BA25: 2.63 m | BI25: 2c) Verglasung | BJ25: =BJ2 -> 1.000 | BO25: 577102 | BP25: 4.01 m | BQ25: =BP25-(BP25-BR25)*($O$24-$N$24)/($P$24-$N$24) -> 5.56 m | BR25: 3.70 m | BS25: =BR25-(BR25-BT25)*($Q$24-$P$24)/($R$24-$P$24) -> 5.14 m | BT25: 3.46 m | BU25: =BT25-(BT25-BV25)*($S$24-$R$24)/($T$24-$R$24) -> 3.40 m | BV25: 3.25 m | BW25: =BV25-(BV25-BX25)*($U$24-$T$24)/($V$24-$T$24) -> 4.61 m | BX25: 3.08 m | BY25: =BX25-(BX25-BZ25)*($W$24-$V$24)/($X$24-$V$24) -> 4.43 m | BZ25: 2.93 m | CA25: =BZ25-(BZ25-CB25)*($Y$24-$X$24)/($Z$24-$X$24) -> 4.13 m | CB25: 2.81 m
B26: Rinne | C26: = | D26: 579226 | G26: 2a) Schnee | H26: =H3 -> 0.982 | M26: 577104 | N26: 3.28 m | O26: 4.23 m | P26: 3.09 m | Q26: 4.05 m | R26: 2.93 m | S26: 2.89 m | T26: 2.80 m | U26: 3.68 m | V26: 2.69 m | W26: 3.50 m | X26: 2.60 m | Y26: 3.50 m | Z26: 2.51 m | AH26: 2b) Schnee | AI26: =AI3 -> 0.972 | AN26: 577104 | AO26: 4.91 m | AP26: 6.81 m | AQ26: 4.53 m | AR26: 6.33 m | AS26: 4.23 m | AT26: 4.16 m | AU26: 3.98 m | AV26: 5.66 m | AW26: 3.77 m | AX26: 5.39 m | AY26: 3.59 m | AZ26: 5.19 m | BA26: 3.43 m | BI26: 2c) Schnee | BJ26: =BJ3 -> 10000.000 | BO26: 577104 | BP26: 5.24 m | BQ26: 7.29 m | BR26: 4.83 m | BS26: 6.75 m | BT26: 4.51 m | BU26: 4.43 m | BV26: 4.24 m | BW26: 6.08 m | BX26: 4.01 m | BY26: 5.72 m | BZ26: 3.82 m | CA26: 5.42 m | CB26: 3.66 m
B27: zul. Durchbiegung | C27: = | D27: l/300 | E27: Info | G27: 2a) Wind | H27: =H4 -> 1.000 | M27: 577337 | N27: 4.11 m | O27: 5.16 m | P27: 3.90 m | Q27: 4.92 m | R27: 3.73 m | S27: 3.69 m | T27: 3.58 m | U27: 4.62 m | V27: 3.45 m | W27: 4.44 m | X27: 3.34 m | Y27: 4.24 m | Z27: 3.25 m | AH27: 2b) Wind | AI27: =AI4 -> 1.000 | AN27: 577337 | AO27: 5.19 m | AP27: 7.19 m | AQ27: 4.79 m | AR27: 6.65 m | AS27: 4.48 m | AT27: 4.40 m | AU27: 4.21 m | AV27: 5.97 m | AW27: 3.99 m | AX27: 5.70 m | AY27: 3.80 m | AZ27: 5.40 m | BA27: 3.64 m | BI27: 2c) Wind | BJ27: =BJ4 -> 1.000 | BO27: 577337 | BP27: 5.54 m | BQ27: 7.69 m | BR27: 5.11 m | BS27: 7.15 m | BT27: 4.77 m | BU27: 4.69 m | BV27: 4.49 m | BW27: 6.33 m | BX27: 4.26 m | BY27: 6.06 m | BZ27: 4.06 m | CA27: 5.86 m | CB27: 3.88 m
B28: =D25 -> 5.10 m | C28: =IF(B28<D28,"<",">") -> > | D28: =MIN(H53,AI53,BJ53) -> 2.76 m | G28: 2a) Dachneigung | H28: =H5 -> 1.000 | M28: 577337+70*30*3 | N28: 4.87 m | O28: 6.02 m | P28: 4.64 m | Q28: 5.78 m | R28: 4.45 m | S28: 4.40 m | T28: 4.29 m | U28: 5.41 m | V28: 4.15 m | W28: 5.32 m | X28: 4.02 m | Y28: 5.12 m | Z28: 3.91 m | AH28: 2b) Dachneigung | AI28: =AI5 -> 1.000 | AN28: 577337+70*30*3 | AO28: 6.73 m | AP28: 14.08 m | AQ28: 5.26 m | AR28: 1.60 m | AS28: 5.87 m | AT28: 5.77 m | AU28: 5.55 m | AV28: 7.79 m | AW28: 5.27 m | AX28: 7.34 m | AY28: 5.04 m | AZ28: 7.14 m | BA28: 4.83 m | BI28: 2c) Dachneigung | BJ28: =BJ5 -> 1.000 | BO28: 577337+70*30*3 | BP28: 7.23 m | BQ28: 9.83 m | BR28: 6.71 m | BS28: 9.23 m | BT28: 6.29 m | BU28: 6.19 m | BV28: 5.94 m | BW28: 8.26 m | BX28: 5.65 m | BY28: 7.99 m | BZ28: 5.39 m | CA28: 7.69 m | CB28: 5.16 m
D29: =IF(B28>D28,"Bedingung nicht erfüllt!","Bedingung erfüllt!") -> Bedingung nicht erfüllt! | G29: 2a) zul. Durchbiegung | H29: =H6 -> 1.000 | M29: 579501 | N29: 5.60 m | O29: 7.05 m | P29: 5.31 m | Q29: 6.69 m | R29: 5.08 m | S29: 5.02 m | T29: 4.88 m | U29: 6.24 m | V29: 4.71 m | W29: 6.06 m | X29: 4.56 m | Y29: 5.86 m | Z29: 4.43 m | AH29: 2b) zul. Durchbiegung | AI29: =AI6 -> 1.000 | AN29: 579501 | AO29: 7.55 m | AP29: 10.40 m | AQ29: 6.98 m | AR29: 9.74 m | AS29: 6.52 m | AT29: 6.41 m | AU29: 6.15 m | AV29: 8.71 m | AW29: 5.83 m | AX29: 8.35 m | AY29: 5.55 m | AZ29: 7.95 m | BA29: 5.31 m | BI29: 2c) zul. Durchbiegung | BJ29: =BJ6 -> 1.000 | BO29: 579501 | BP29: 8.07 m | BQ29: 11.17 m | BR29: 7.45 m | BS29: 10.39 m | BT29: 6.96 m | BU29: 6.84 m | BV29: 6.56 m | BW29: 9.36 m | BX29: 6.21 m | BY29: 8.82 m | BZ29: 5.92 m | CA29: 8.52 m | CB29: 5.66 m
B30: Durchbiegung w | C30: = | D30: =(1000/VLOOKUP('Bemessungstabelle isoliert'!$D$27,Daten!$A$22:$B$25,2))*$D$25^4/$H$53^3 -> 107 mm | M30: 579501+100*50*4 | N30: 7.13 m | O30: 8.68 m | P30: 6.82 m | Q30: 8.38 m | R30: 6.56 m | S30: 6.49 m | T30: 6.34 m | U30: 7.94 m | V30: 6.14 m | W30: 7.67 m | X30: 5.97 m | Y30: 7.57 m | Z30: 5.81 m | AN30: 579501+100*50*4 | AO30: 10.89 m | AP30: 14.39 m | AQ30: 10.19 m | AR30: 13.67 m | AS30: 9.61 m | AT30: 9.46 m | AU30: 9.12 m | AV30: 12.48 m | AW30: 8.70 m | AX30: 12.03 m | AY30: 8.33 m | AZ30: 11.63 m | BA30: 8.00 m | BO30: 579501+100*50*4 | BP30: 11.78 m | BQ30: 15.68 m | BR30: 11.00 m | BS30: 14.84 m | BT30: 10.36 m | BU30: 10.20 m | BV30: 9.82 m | BW30: 13.58 m | BX30: 9.35 m | BY30: 12.95 m | BZ30: 8.95 m | CA30: 12.55 m | CB30: 8.59 m
B31: zul. Durchbiegung wzul. | C31: = | D31: =D25*1000/VLOOKUP($D$27,Daten!$A$22:$B$25,2) -> 17 mm | G31: 2a) Tabellenwert l | H31: =O35 -> 4.40 m | M31: 579501+100*50*6,3 | N31: 7.56 m | O31: =N31-(N31-P31)*($O$24-$N$24)/($P$24-$N$24) -> 9.11 m | P31: 7.25 m | Q31: =P31-(P31-R31)*($Q$24-$P$24)/($R$24-$P$24) -> 8.81 m | R31: 6.99 m | S31: =R31-(R31-T31)*($S$24-$R$24)/($T$24-$R$24) -> 6.92 m | T31: 6.75 m | U31: =T31-(T31-V31)*($U$24-$T$24)/($V$24-$T$24) -> 8.35 m | V31: 6.55 m | W31: =V31-(V31-X31)*($W$24-$V$24)/($X$24-$V$24) -> 8.17 m | X31: 6.37 m | Y31: =X31-(X31-Z31)*($Y$24-$X$24)/($Z$24-$X$24) -> 7.97 m | Z31: 6.21 m | AH31: 2b) Tabellenwert l | AI31: =AP35 -> 5.77 m | AN31: 579501+100*50*6,3 | AO31: 11.94 m | AP31: =AO31-(AO31-AQ31)*($O$24-$N$24)/($P$24-$N$24) -> 15.64 m | AQ31: 11.20 m | AR31: =AQ31-(AQ31-AS31)*($Q$24-$P$24)/($R$24-$P$24) -> 14.92 m | AS31: 10.58 m | AT31: =AS31-(AS31-AU31)*($S$24-$R$24)/($T$24-$R$24) -> 10.42 m | AU31: 10.05 m | AV31: =AU31-(AU31-AW31)*($U$24-$T$24)/($V$24-$T$24) -> 13.73 m | AW31: 9.59 m | AX31: =AW31-(AW31-AY31)*($W$24-$V$24)/($X$24-$V$24) -> 13.10 m | AY31: 9.20 m | AZ31: =AY31-(AY31-BA31)*($Y$24-$X$24)/($Z$24-$X$24) -> 12.80 m | BA31: 8.84 m | BI31: 2c) Tabellenwert l | BJ31: =BQ35 -> 6.19 m | BO31: 579501+100*50*6,3 | BP31: 12.96 m | BQ31: =BP31-(BP31-BR31)*($O$24-$N$24)/($P$24-$N$24) -> 17.16 m | BR31: 12.12 m | BS31: =BR31-(BR31-BT31)*($Q$24-$P$24)/($R$24-$P$24) -> 16.32 m | BT31: 11.42 m | BU31: =BT31-(BT31-BV31)*($S$24-$R$24)/($T$24-$R$24) -> 11.25 m | BV31: 10.84 m | BW31: =BV31-(BV31-BX31)*($U$24-$T$24)/($V$24-$T$24) -> 14.92 m | BX31: 10.33 m | BY31: =BX31-(BX31-BZ31)*($W$24-$V$24)/($X$24-$V$24) -> 14.20 m | BZ31: 9.90 m | CA31: =BZ31-(BZ31-CB31)*($Y$24-$X$24)/($Z$24-$X$24) -> 13.80 m | CB31: 9.51 m
B32: 2-Feldbalken b + b | G32: 2a) Korrigierter lzul1 | H32: =H31*H25*H26*H27*H28*H29 -> 4.32 m | AH32: 2b) Korrigierter lzul1 | AI32: =AI31*AI25*AI26*AI27*AI28*AI29 -> 5.61 m | BI32: 2c) Korrigierter lzul1 | BJ32: =BJ31*BJ25*BJ26*BJ27*BJ28*BJ29 -> 61,850.00 m
B33: Durchbiegung w | C33: = | D33: =(1000/VLOOKUP('Bemessungstabelle isoliert'!$D$27,Daten!$A$22:$B$25,2))*$D$25^4/($H$53*H49)^3 -> 45 mm
M34: Seitenträger | N34: Sparren-Achsabstand | O34: l | AN34: Seitenträger | AO34: Sparren-Achsabstand | AP34: l | BO34: Seitenträger | BP34: Sparren-Achsabstand | BQ34: l
B35: Bemessungstabelle: Pos. 1.11 Gratsparren (Typ 5) | M35: =IF($D$19="","",MATCH($D$19,M25:M31)) -> 4 | N35: =IF($D$12="","",MATCH($D$12,N24:Z24,0)) -> 6 | O35: =IF(OR($D$19="",$D$12=""),0,INDEX(N25:Z31,M35,N35)) -> 4.40 m | AN35: =IF($D$19="","",MATCH($D$19,AN25:AN31)) -> 4 | AO35: =IF($D$12="","",MATCH($D$12,AO24:BA24,0)) -> 6 | AP35: =IF(OR($D$19="",$D$12=""),0,INDEX(AO25:BA31,AN35,AO35)) -> 5.77 m | BO35: =IF($D$19="","",MATCH($D$19,BO25:BO31)) -> 4 | BP35: =IF($D$12="","",MATCH($D$12,BP24:CB24,0)) -> 6 | BQ35: =IF(OR($D$19="",$D$12=""),0,INDEX(BP25:CB31,BO35,BP35)) -> 6.19 m
B36: Tiefe Abwalumung c | C36: = | D36: 0.80 m | E36: =IF(OR(D36<0.5,D36>1.1),"Achtung: Tiefe muss zwischen 0,50 m und 1,10 m betragen!","") -> 
B37: zul. Durchbiegung | C37: = | D37: l/200
B38: Gratsparren | C38: = | D38: 579504/5 + 100x20
B39: =D10 -> 3.50 m | C39: =IF(B39<D39,"<",">") -> < | D39: =MIN(H80,AI80,BJ80) -> 6.92 m
D40: =IF(B39>D39,"Bedingung nicht erfüllt!","Bedingung erfüllt!") -> Bedingung erfüllt!
G41: 3a) Korrekturfaktoren | J41: 3a) sDA | K41: 3a) ki | M41: Rinne | N41: 1.00 m | O41: =IF(AND('Ermittlung Schneelast'!$D$19>1,'Ermittlung Schneelast'!$D$19<1.5),'Ermittlung Schneelast'!$D$19,0) -> 0.00 m | P41: 1.50 m | Q41: =IF(AND('Ermittlung Schneelast'!$D$19>1.5,'Ermittlung Schneelast'!$D$19<2),'Ermittlung Schneelast'!$D$19,0) -> 0.00 m | R41: 2.00 m | S41: =IF(AND('Ermittlung Schneelast'!$D$19>2,'Ermittlung Schneelast'!$D$19<2.5),'Ermittlung Schneelast'!$D$19,0) -> 0.00 m | T41: 2.50 m | U41: =IF(AND('Ermittlung Schneelast'!$D$19>2.5,'Ermittlung Schneelast'!$D$19<3),'Ermittlung Schneelast'!$D$19,0) -> 0.00 m | V41: 3.00 m | W41: =IF(AND('Ermittlung Schneelast'!$D$19>3,'Ermittlung Schneelast'!$D$19<3.5),'Ermittlung Schneelast'!$D$19,0) -> 0.00 m | X41: 3.50 m | Y41: =IF(AND('Ermittlung Schneelast'!$D$19>3.5,'Ermittlung Schneelast'!$D$19<4),'Ermittlung Schneelast'!$D$19,0) -> 0.00 m | Z41: 4.00 m | AA41: =IF(AND('Ermittlung Schneelast'!$D$19>4,'Ermittlung Schneelast'!$D$19<4.5),'Ermittlung Schneelast'!$D$19,0) -> 0.00 m | AB41: 4.50 m | AC41: =IF(AND('Ermittlung Schneelast'!$D$19>4.5,'Ermittlung Schneelast'!$D$19<5),'Ermittlung Schneelast'!$D$19,0) -> 0.00 m | AD41: 5.00 m | AE41: =IF(AND('Ermittlung Schneelast'!D$19>5,'Ermittlung Schneelast'!D$19<6),'Ermittlung Schneelast'!D$19,0) -> 0.00 m | AF41: 6.00 m | AH41: 3b) Korrekturfaktoren | AK41: 3b) sDA | AL41: 3b) ki | AN41: Rinne | AO41: 1.00 m | AP41: =IF(AND('Ermittlung Schneelast'!$D$19>1,'Ermittlung Schneelast'!$D$19<1.5),'Ermittlung Schneelast'!$D$19,0) -> 0.00 m | AQ41: 1.50 m | AR41: =IF(AND('Ermittlung Schneelast'!$D$19>1.5,'Ermittlung Schneelast'!$D$19<2),'Ermittlung Schneelast'!$D$19,0) -> 0.00 m | AS41: 2.00 m | AT41: =IF(AND('Ermittlung Schneelast'!$D$19>2,'Ermittlung Schneelast'!$D$19<2.5),'Ermittlung Schneelast'!$D$19,0) -> 0.00 m | AU41: 2.50 m | AV41: =IF(AND('Ermittlung Schneelast'!$D$19>2.5,'Ermittlung Schneelast'!$D$19<3),'Ermittlung Schneelast'!$D$19,0) -> 0.00 m | AW41: 3.00 m | AX41: =IF(AND('Ermittlung Schneelast'!$D$19>3,'Ermittlung Schneelast'!$D$19<3.5),'Ermittlung Schneelast'!$D$19,0) -> 0.00 m | AY41: 3.50 m | AZ41: =IF(AND('Ermittlung Schneelast'!$D$19>3.5,'Ermittlung Schneelast'!$D$19<4),'Ermittlung Schneelast'!$D$19,0) -> 0.00 m | BA41: 4.00 m | BB41: =IF(AND('Ermittlung Schneelast'!$D$19>4,'Ermittlung Schneelast'!$D$19<4.5),'Ermittlung Schneelast'!$D$19,0) -> 0.00 m | BC41: 4.50 m | BD41: =IF(AND('Ermittlung Schneelast'!$D$19>4.5,'Ermittlung Schneelast'!$D$19<5),'Ermittlung Schneelast'!$D$19,0) -> 0.00 m | BE41: 5.00 m | BF41: =IF(AND('Ermittlung Schneelast'!$D$19>5,'Ermittlung Schneelast'!$D$19<6),'Ermittlung Schneelast'!$D$19,0) -> 0.00 m | BG41: 6.00 m | BI41: 3c) Korrekturfaktoren | BO41: Rinne | BP41: 1.00 m | BQ41: =IF(AND('Ermittlung Schneelast'!$D$19>1,'Ermittlung Schneelast'!$D$19<1.5),'Ermittlung Schneelast'!$D$19,0) -> 0.00 m | BR41: 1.50 m | BS41: =IF(AND('Ermittlung Schneelast'!$D$19>1.5,'Ermittlung Schneelast'!$D$19<2),'Ermittlung Schneelast'!$D$19,0) -> 0.00 m | BT41: 2.00 m | BU41: =IF(AND('Ermittlung Schneelast'!$D$19>2,'Ermittlung Schneelast'!$D$19<2.5),'Ermittlung Schneelast'!$D$19,0) -> 0.00 m | BV41: 2.50 m | BW41: =IF(AND('Ermittlung Schneelast'!$D$19>2.5,'Ermittlung Schneelast'!$D$19<3),'Ermittlung Schneelast'!$D$19,0) -> 0.00 m | BX41: 3.00 m | BY41: =IF(AND('Ermittlung Schneelast'!$D$19>3,'Ermittlung Schneelast'!$D$19<3.5),'Ermittlung Schneelast'!$D$19,0) -> 0.00 m | BZ41: 3.50 m | CA41: =IF(AND('Ermittlung Schneelast'!$D$19>3.5,'Ermittlung Schneelast'!$D$19<4),'Ermittlung Schneelast'!$D$19,0) -> 0.00 m | CB41: 4.00 m | CC41: =IF(AND('Ermittlung Schneelast'!$D$19>4,'Ermittlung Schneelast'!$D$19<4.5),'Ermittlung Schneelast'!$D$19,0) -> 0.00 m | CD41: 4.50 m | CE41: =IF(AND('Ermittlung Schneelast'!$D$19>4.5,'Ermittlung Schneelast'!$D$19<5),'Ermittlung Schneelast'!$D$19,0) -> 0.00 m | CF41: 5.00 m | CG41: =IF(AND('Ermittlung Schneelast'!$D$19>5,'Ermittlung Schneelast'!$D$19<6),'Ermittlung Schneelast'!$D$19,0) -> 0.00 m | CH41: 6.00 m
B42: Bemessungstabelle: Pos. 1.12 Gratsparren (Typ 17) | G42: 3a) Verglasung | H42: =H2 -> 1.000 | J42: 0.52 kN/qm | K42: 1.10 | M42: 5772033 | N42: =P42+(R42-T42) -> 4.94 m | O42: =N42-(N42-P42)*(O$41-N$41)/(P$41-N$41) -> 5.50 m | P42: =R42+(R42-T42) -> 4.66 m | Q42: =P42-(P42-R42)*(Q$41-P$41)/(R$41-P$41) -> 5.50 m | R42: 4.38 m | S42: =R42-(R42-T42)*(S$41-R$41)/(T$41-R$41) -> 5.50 m | T42: 4.10 m | U42: =T42-(T42-V42)*(U$41-T$41)/(V$41-T$41) -> 5.20 m | V42: 3.88 m | W42: =V42-(V42-X42)*(W$41-V$41)/(X$41-V$41) -> 4.96 m | X42: 3.70 m | Y42: =X42-(X42-Z42)*(Y$41-X$41)/(Z$41-X$41) -> 4.75 m | Z42: 3.55 m | AA42: =Z42-(Z42-AB42)*(AA$41-Z$41)/(AB$41-Z$41) -> 4.59 m | AB42: 3.42 m | AC42: =AB42-(AB42-AD42)*(AC$41-AB$41)/(AD$41-AB$41) -> 4.41 m | AD42: 3.31 m | AE42: =AD42-(AD42-AF42)*(AE$41-AD$41)/(AF$41-AD$41) -> 4.26 m | AF42: 3.12 m | AH42: 3b) Verglasung | AI42: =AI2 -> 1.000 | AK42: 0.52 kN/qm | AL42: 1.18 | AN42: 5772033 | AO42: =AQ42+(AS42-AU42) -> 6.50 m | AP42: =AO42-(AO42-AQ42)*(AP$41-AO$41)/(AQ$41-AO$41) -> 7.50 m | AQ42: =AS42+(AS42-AU42) -> 6.00 m | AR42: =AQ42-(AQ42-AS42)*(AR$41-AQ$41)/(AS$41-AQ$41) -> 7.50 m | AS42: 5.50 m | AT42: =AS42-(AS42-AU42)*(AT$41-AS$41)/(AU$41-AS$41) -> 7.50 m | AU42: 5.00 m | AV42: =AU42-(AU42-AW42)*(AV$41-AU$41)/(AW$41-AU$41) -> 7.10 m | AW42: 4.58 m | AX42: =AW42-(AW42-AY42)*(AX$41-AW$41)/(AY$41-AW$41) -> 6.44 m | AY42: 4.27 m | AZ42: =AY42-(AY42-BA42)*(AZ$41-AY$41)/(BA$41-AY$41) -> 6.09 m | BA42: 4.01 m | BB42: =BA42-(BA42-BC42)*(BB$41-BA$41)/(BC$41-BA$41) -> 5.77 m | BC42: 3.79 m | BD42: =BC42-(BC42-BE42)*(BD$41-BC$41)/(BE$41-BC$41) -> 5.41 m | BE42: 3.61 m | BF42: =BE42-(BE42-BG42)*(BF$41-BE$41)/(BG$41-BE$41) -> 5.11 m | BG42: 3.31 m | BI42: 3c) Verglasung | BJ42: =BJ2 -> 1.000 | BO42: 5772033 | BP42: =BR42+(BT42-BV42) -> 7.36 m | BQ42: =BP42-(BP42-BR42)*(BQ$41-BP$41)/(BR$41-BP$41) -> 8.60 m | BR42: =BT42+(BT42-BV42) -> 6.74 m | BS42: =BR42-(BR42-BT42)*(BS$41-BR$41)/(BT$41-BR$41) -> 8.60 m | BT42: 6.12 m | BU42: =BT42-(BT42-BV42)*(BU$41-BT$41)/(BV$41-BT$41) -> 8.60 m | BV42: 5.50 m | BW42: =BV42-(BV42-BX42)*(BW$41-BV$41)/(BX$41-BV$41) -> 7.85 m | BX42: 5.03 m | BY42: =BX42-(BX42-BZ42)*(BY$41-BX$41)/(BZ$41-BX$41) -> 7.19 m | BZ42: 4.67 m | CA42: =BZ42-(BZ42-CB42)*(CA$41-BZ$41)/(CB$41-BZ$41) -> 6.77 m | CB42: 4.37 m | CC42: =CB42-(CB42-CD42)*(CC$41-CB$41)/(CD$41-CB$41) -> 6.29 m | CD42: 4.13 m | CE42: =CD42-(CD42-CF42)*(CE$41-CD$41)/(CF$41-CD$41) -> 6.02 m | CF42: 3.92 m | CG42: =CF42-(CF42-CH42)*(CG$41-CF$41)/(CH$41-CF$41) -> 5.62 m | CH42: 3.58 m
B43: max. Trägerlänge la | D43: 3.10 m | G43: 3a) Schnee | H43: =VLOOKUP($D$6,J42:K54,2) -> 0.982 | J43: =IF(AND($D$6>J42,$D$6<J44),$D$6,"nicht interpolieren") -> nicht interpolieren | K43: =K42-(K42-K44)*(J43-J42)/(J44-J42) ->  | M43: 5772033+100*20*3 | N43: =P43+(R43-T43) -> 5.43 m | O43: 6.03 m | P43: =R43+(R43-T43) -> 5.13 m | Q43: 6.03 m | R43: 4.83 m | S43: 6.03 m | T43: 4.53 m | U43: 5.73 m | V43: 4.29 m | W43: 5.43 m | X43: 4.10 m | Y43: 5.29 m | Z43: 3.93 m | AA43: 5.05 m | AB43: 3.79 m | AC43: 4.87 m | AD43: 3.67 m | AE43: 4.67 m | AF43: 3.47 m | AH43: 3b) Schnee | AI43: =VLOOKUP($D$6,AK42:AL54,2) -> 0.974 | AK43: =IF(AND($D$6>AK42,$D$6<AK44),$D$6,"nicht interpolieren") -> nicht interpolieren | AL43: =AL42-(AL42-AL44)*(AK43-AK42)/(AK44-AK42) ->  | AN43: 5772033+100*20*3 | AO43: =AQ43+(AS43-AU43) -> 7.14 m | AP43: 8.26 m | AQ43: =AS43+(AS43-AU43) -> 6.58 m | AR43: 8.26 m | AS43: 6.02 m | AT43: 8.26 m | AU43: 5.46 m | AV43: 7.61 m | AW43: 5.03 m | AX43: 7.01 m | AY43: 4.70 m | AZ43: 6.66 m | BA43: 4.42 m | BB43: 6.34 m | BC43: 4.18 m | BD43: 5.98 m | BE43: 3.98 m | BF43: 5.63 m | BG43: 3.65 m | BI43: 3c) Schnee | BJ43: =BJ3 -> 10000.000 | BO43: 5772033+100*20*3 | BP43: =BR43+(BT43-BV43) -> 8.04 m | BQ43: 9.38 m | BR43: =BT43+(BT43-BV43) -> 7.37 m | BS43: 9.38 m | BT43: 6.70 m | BU43: 9.38 m | BV43: 6.03 m | BW43: 8.53 m | BX43: 5.53 m | BY43: 7.87 m | BZ43: 5.14 m | CA43: 7.38 m | CB43: 4.82 m | CC43: 6.98 m | CD43: 4.55 m | CE43: 6.53 m | CF43: 4.33 m | CG43: 6.18 m | CH43: 3.96 m
B44: max. Trägerlänge l | D44: 3.10 m | E44: =IF(D44<D43,"Achtung: l >= la sein","") ->  | G44: 3a) Wind | H44: =VLOOKUP($D$8,Daten!$A$50:$E$58,5) -> 1.000 | J44: 0.75 kN/qm | K44: 1.05 | M44: 5772033+100*20*3+120*10 | N44: 6.20 m | O44: 6.86 m | P44: 5.87 m | Q44: 6.86 m | R44: 5.54 m | S44: 6.86 m | T44: 5.21 m | U44: 6.56 m | V44: 4.94 m | W44: 6.26 m | X44: 4.72 m | Y44: 5.98 m | Z44: 4.54 m | AA44: 5.82 m | AB44: 4.38 m | AC44: 5.64 m | AD44: 4.24 m | AE44: 5.34 m | AF44: 4.02 m | AH44: 3b) Wind | AI44: =VLOOKUP($D$8,Daten!$A$50:$F$58,6) -> 1.000 | AK44: 0.75 kN/qm | AL44: 1.08 | AN44: 5772033+100*20*3+120*10 | AO44: 8.21 m | AP44: 9.45 m | AQ44: 7.59 m | AR44: 9.45 m | AS44: 6.97 m | AT44: 9.45 m | AU44: 6.35 m | AV44: 8.75 m | AW44: 5.87 m | AX44: 8.15 m | AY44: 5.49 m | AZ44: 7.73 m | BA44: 5.17 m | BB44: 7.33 m | BC44: 4.90 m | BD44: 6.97 m | BE44: 4.67 m | BF44: 6.57 m | BG44: 4.29 m | BI44: 3c) Wind | BJ44: =BJ4 -> 1.000 | BO44: 5772033+100*20*3+120*10 | BP44: 9.28 m | BQ44: 10.78 m | BR44: 8.53 m | BS44: 10.78 m | BT44: 7.78 m | BU44: 10.78 m | BV44: 7.03 m | BW44: 9.83 m | BX44: 6.47 m | BY44: 9.17 m | BZ44: 6.02 m | CA44: 8.61 m | CB44: 5.65 m | CC44: 8.13 m | CD44: 5.34 m | CE44: 7.68 m | CF44: 5.08 m | CG44: 7.18 m | CH44: 4.66 m
B45: Gratsparren | C45: = | D45: 579504/5 + 100x20 | G45: 3a) Dachneigung | H45: =VLOOKUP($D$9,J57:K62,2) -> 1.000 | J45: =IF(AND($D$6>J44,$D$6<J46),$D$6,"nicht interpolieren") -> nicht interpolieren | K45: =K44-(K44-K46)*(J45-J44)/(J46-J44) ->  | M45: 577207 | N45: 4.56 m | O45: 5.08 m | P45: 4.30 m | Q45: 5.08 m | R45: 4.04 m | S45: 5.08 m | T45: 3.78 m | U45: 4.78 m | V45: 3.58 m | W45: 4.60 m | X45: 3.41 m | Y45: 4.39 m | Z45: 3.27 m | AA45: 4.23 m | AB45: 3.15 m | AC45: 4.05 m | AD45: 3.05 m | AE45: 3.90 m | AF45: 2.88 m | AH45: 3b) Dachneigung | AI45: =VLOOKUP($D$9,AH57:AI62,2) -> 1.000 | AK45: =IF(AND($D$6>AK44,$D$6<AK46),$D$6,"nicht interpolieren") -> nicht interpolieren | AL45: =AL44-(AL44-AL46)*(AK45-AK44)/(AK46-AK44) ->  | AN45: 577207 | AO45: 5.68 m | AP45: 6.58 m | AQ45: 5.23 m | AR45: 6.58 m | AS45: 4.78 m | AT45: 6.58 m | AU45: 4.33 m | AV45: 6.08 m | AW45: 3.98 m | AX45: 5.60 m | AY45: 3.71 m | AZ45: 5.32 m | BA45: 3.48 m | BB45: 5.00 m | BC45: 3.29 m | BD45: 4.73 m | BE45: 3.13 m | BF45: 4.43 m | BG45: 2.87 m | BI45: 3c) Dachneigung | BJ45: =BJ5 -> 1.000 | BO45: 577207 | BP45: 6.42 m | BQ45: 7.52 m | BR45: 5.87 m | BS45: 7.52 m | BT45: 5.32 m | BU45: 7.52 m | BV45: 4.77 m | BW45: 6.77 m | BX45: 4.37 m | BY45: 6.29 m | BZ45: 4.05 m | CA45: 5.80 m | CB45: 3.80 m | CC45: 5.56 m | CD45: 3.58 m | CE45: 5.20 m | CF45: 3.40 m | CG45: 4.85 m | CH45: 3.11 m
B46: =D44 -> 3.10 m | C46: =IF(B46<D46,"<",">") -> < | D46: =MIN(H99,AI99,BK97) -> 3.85 m | G46: 3a) Faktor Trägergewicht | H46: =IF(AND($D$12<0.8,OR($D$11=$M$2,$D$11=$M$6,$D$11=$M$8,$D$11=$M$10,$D$11=$M$13)),0.99,IF(AND($D$12>=0.8,OR($D$11=$M$3,$D$11=$M$4,$D$11=$M$5,$D$11=$M$7,$D$11=$M$9,$D$11=$M$11,$D$11=$M$12,$D$11=$M$14)),0.97,IF(AND($D$12<0.8,OR($D$11=$M$3,$D$11=$M$4,$D$11=$M$5,$D$11=$M$7,$D$11=$M$9,$D$11=$M$11,$D$11=$M$12,$D$11=$M$14)),0.95,1))) -> 0.990 | J46: 1.00 kN/qm | K46: 1.00 | M46: 577207+110*15 | N46: 5.74 m | O46: 6.36 m | P46: 5.43 m | Q46: 6.36 m | R46: 5.12 m | S46: 6.36 m | T46: 4.81 m | U46: 6.06 m | V46: 4.56 m | W46: 5.76 m | X46: 4.36 m | Y46: 5.55 m | Z46: 4.19 m | AA46: 5.39 m | AB46: 4.04 m | AC46: 5.12 m | AD46: 3.92 m | AE46: 5.02 m | AF46: 3.70 m | AH46: 3b) Faktor Trägergewicht | AI46: =IF(AND($D$12<0.8,OR($D$11=$M$2,$D$11=$M$6,$D$11=$M$8,$D$11=$M$10,$D$11=$M$13)),0.98,IF(AND($D$12>=0.8,OR($D$11=$M$3,$D$11=$M$4,$D$11=$M$5,$D$11=$M$7,$D$11=$M$9,$D$11=$M$11,$D$11=$M$12,$D$11=$M$14)),0.96,IF(AND($D$12<0.8,OR($D$11=$M$3,$D$11=$M$4,$D$11=$M$5,$D$11=$M$7,$D$11=$M$9,$D$11=$M$11,$D$11=$M$12,$D$11=$M$14)),0.93,1))) -> 0.980 | AK46: 1.00 kN/qm | AL46: 1.00 | AN46: 577207+110*15 | AO46: 7.39 m | AP46: 8.51 m | AQ46: 6.83 m | AR46: 8.51 m | AS46: 6.27 m | AT46: 8.51 m | AU46: 5.71 m | AV46: 7.91 m | AW46: 5.27 m | AX46: 7.31 m | AY46: 4.93 m | AZ46: 6.96 m | BA46: 4.64 m | BB46: 6.56 m | BC46: 4.40 m | BD46: 6.29 m | BE46: 4.19 m | BF46: 5.89 m | BG46: 3.85 m | BI46: 3c) Faktor Trägergewicht | BJ46: =IF(AND($D$12<0.8,OR($D$11=$M$2,$D$11=$M$6,$D$11=$M$8,$D$11=$M$10,$D$11=$M$13)),0.99,IF(AND($D$12>=0.8,OR($D$11=$M$3,$D$11=$M$4,$D$11=$M$5,$D$11=$M$7,$D$11=$M$9,$D$11=$M$11,$D$11=$M$12,$D$11=$M$14)),0.97,IF(AND($D$12<0.8,OR($D$11=$M$3,$D$11=$M$4,$D$11=$M$5,$D$11=$M$7,$D$11=$M$9,$D$11=$M$11,$D$11=$M$12,$D$11=$M$14)),0.94,1))) -> 0.990 | BO46: 577207+110*15 | BP46: 8.36 m | BQ46: 9.72 m | BR46: 7.68 m | BS46: 9.72 m | BT46: 7.00 m | BU46: 9.72 m | BV46: 6.32 m | BW46: 8.92 m | BX46: 5.80 m | BY46: 8.20 m | BZ46: 5.40 m | CA46: 7.71 m | CB46: 5.07 m | CC46: 7.31 m | CD46: 4.79 m | CE46: 6.86 m | CF46: 4.56 m | CG46: 6.51 m | CH46: 4.17 m
D47: =IF(B46>D46,"Bedingung nicht erfüllt!","Bedingung erfüllt!") -> Bedingung erfüllt! | G47: 3a) zul. Durchbiegung | H47: =VLOOKUP($D$27,Daten!$A$44:$B$47,2) -> 0.873 | J47: =IF(AND($D$6>J46,$D$6<J48),$D$6,"nicht interpolieren") -> 1.10 kN/qm | K47: =K46-(K46-K48)*(J47-J46)/(J48-J46) -> 0.98 | M47: 577276 | N47: 6.58 m | O47: 7.34 m | P47: 6.20 m | Q47: 7.34 m | R47: 5.82 m | S47: 7.34 m | T47: 5.44 m | U47: 6.89 m | V47: 5.15 m | W47: 6.59 m | X47: 4.91 m | Y47: 6.31 m | Z47: 4.71 m | AA47: 6.07 m | AB47: 4.54 m | AC47: 5.89 m | AD47: 4.39 m | AE47: 5.64 m | AF47: 4.14 m | AH47: 3b) zul. Durchbiegung | AI47: =VLOOKUP($D$27,Daten!$A$44:$B$47,2) -> 0.873 | AK47: =IF(AND($D$6>AK46,$D$6<AK48),$D$6,"nicht interpolieren") -> 1.10 kN/qm | AL47: =AL46-(AL46-AL48)*(AK47-AK46)/(AK48-AK46) -> 0.97 | AN47: 577276 | AO47: 8.20 m | AP47: 9.50 m | AQ47: 7.55 m | AR47: 9.50 m | AS47: 6.90 m | AT47: 9.50 m | AU47: 6.25 m | AV47: 8.75 m | AW47: 5.75 m | AX47: 8.15 m | AY47: 5.35 m | AZ47: 7.59 m | BA47: 5.03 m | BB47: 7.19 m | BC47: 4.76 m | BD47: 6.83 m | BE47: 4.53 m | BF47: 6.43 m | BG47: 4.15 m | BI47: 3c) zul. Durchbiegung | BJ47: =VLOOKUP($D$27,Daten!$A$44:$B$47,2) -> 0.873 | BO47: 577276 | BP47: 9.26 m | BQ47: 10.84 m | BR47: 8.47 m | BS47: 10.84 m | BT47: 7.68 m | BU47: 10.84 m | BV47: 6.89 m | BW47: 9.79 m | BX47: 6.31 m | BY47: 9.07 m | BZ47: 5.85 m | CA47: 8.44 m | CB47: 5.48 m | CC47: 7.88 m | CD47: 5.18 m | CE47: 7.61 m | CF47: 4.91 m | CG47: 7.01 m | CH47: 4.49 m
J48: 1.50 kN/qm | K48: 0.91 | M48: 577276+140*40*3 | N48: 7.47 m | O48: 8.29 m | P48: 7.06 m | Q48: 8.29 m | R48: 6.65 m | S48: 8.29 m | T48: 6.24 m | U48: 7.89 m | V48: 5.91 m | W48: 7.47 m | X48: 5.65 m | Y48: 7.26 m | Z48: 5.42 m | AA48: 6.94 m | AB48: 5.23 m | AC48: 6.76 m | AD48: 5.06 m | AE48: 6.46 m | AF48: 4.78 m | AK48: 1.50 kN/qm | AL48: 0.87 | AN48: 577276+140*40*3 | AO48: 9.72 m | AP48: 11.22 m | AQ48: 8.97 m | AR48: 11.22 m | AS48: 8.22 m | AT48: 11.22 m | AU48: 7.47 m | AV48: 10.37 m | AW48: 6.89 m | AX48: 9.65 m | AY48: 6.43 m | AZ48: 9.09 m | BA48: 6.05 m | BB48: 8.61 m | BC48: 5.73 m | BD48: 8.25 m | BE48: 5.45 m | BF48: 7.65 m | BG48: 5.01 m | BO48: 577276+140*40*3 | BP48: 10.95 m | BQ48: 12.75 m | BR48: 10.05 m | BS48: 12.75 m | BT48: 9.15 m | BU48: 12.75 m | BV48: 8.25 m | BW48: 11.65 m | BX48: 7.57 m | BY48: 10.75 m | BZ48: 7.04 m | CA48: 10.12 m | CB48: 6.60 m | CC48: 9.48 m | CD48: 6.24 m | CE48: 9.03 m | CF48: 5.93 m | CG48: 8.43 m | CH48: 5.43 m
G49: 3a) Erhöhungsfaktor ke aufgrund x-Feldbalken | H49: =VLOOKUP($B$32,Daten!$A$104:$B$110,2) -> 1.34 | J49: =IF(AND(D$6>J48,$D$6<J50),$D$6,"nicht interpolieren") -> nicht interpolieren | K49: =K48-(K48-K50)*(J49-J48)/(J50-J48) ->  | M49: 577276+140*40*5 | N49: 7.77 m | O49: 8.61 m | P49: 7.35 m | Q49: 8.61 m | R49: 6.93 m | S49: 8.61 m | T49: 6.51 m | U49: 8.16 m | V49: 6.18 m | W49: 7.86 m | X49: 5.90 m | Y49: 7.51 m | Z49: 5.67 m | AA49: 7.27 m | AB49: 5.47 m | AC49: 7.00 m | AD49: 5.30 m | AE49: 6.75 m | AF49: 5.01 m | AK49: =IF(AND(AA$9>AK48,$D$6<AK50),$D$6,"nicht interpolieren") -> nicht interpolieren | AL49: =AL48-(AL48-AL50)*(AK49-AK48)/(AK50-AK48) ->  | AN49: 577276+140*40*5 | AO49: 10.33 m | AP49: 11.91 m | AQ49: 9.54 m | AR49: 11.91 m | AS49: 8.75 m | AT49: 11.91 m | AU49: 7.96 m | AV49: 11.01 m | AW49: 7.35 m | AX49: 10.23 m | AY49: 6.87 m | AZ49: 9.67 m | BA49: 6.47 m | BB49: 9.19 m | BC49: 6.13 m | BD49: 8.74 m | BE49: 5.84 m | BF49: 8.24 m | BG49: 5.36 m | BO49: 577276+140*40*5 | BP49: 11.63 m | BQ49: 13.51 m | BR49: 10.69 m | BS49: 13.51 m | BT49: 9.75 m | BU49: 13.51 m | BV49: 8.81 m | BW49: 12.41 m | BX49: 8.09 m | BY49: 11.51 m | BZ49: 7.52 m | CA49: 10.74 m | CB49: 7.06 m | CC49: 10.10 m | CD49: 6.68 m | CE49: 9.65 m | CF49: 6.35 m | CG49: 9.00 m | CH49: 5.82 m
J50: 2.00 kN/qm | K50: 0.85 | M50: 579226 | N50: =P50+(R50-T50) -> 4.33 m | O50: 4.81 m | P50: 4.09 m | Q50: 4.81 m | R50: 3.85 m | S50: 4.81 m | T50: 3.61 m | U50: 4.61 m | V50: 3.41 m | W50: 4.37 m | X50: 3.25 m | Y50: 4.16 m | Z50: 3.12 m | AA50: 4.00 m | AB50: 3.01 m | AC50: 3.91 m | AD50: 2.91 m | AE50: 3.71 m | AF50: 2.75 m | AK50: 2.00 kN/qm | AL50: 0.78 | AN50: 579226 | AO50: 5.20 m | AP50: 6.04 m | AQ50: 4.78 m | AR50: 6.04 m | AS50: 4.36 m | AT50: 6.04 m | AU50: 3.94 m | AV50: 5.49 m | AW50: 3.63 m | AX50: 5.13 m | AY50: 3.38 m | AZ50: 4.85 m | BA50: 3.17 m | BB50: 4.53 m | BC50: 3.00 m | BD50: 4.26 m | BE50: 2.86 m | BF50: 4.06 m | BG50: 2.62 m | BO50: 579226 | BP50: 5.82 m | BQ50: 6.80 m | BR50: 5.33 m | BS50: 6.80 m | BT50: 4.84 m | BU50: 6.80 m | BV50: 4.35 m | BW50: 6.20 m | BX50: 3.98 m | BY50: 5.72 m | BZ50: 3.69 m | CA50: 5.30 m | CB50: 3.46 m | CC50: 4.98 m | CD50: 3.27 m | CE50: 4.80 m | CF50: 3.10 m | CG50: 4.45 m | CH50: 2.83 m
J51: =IF(AND($D$6>J50,$D$6<J52),$D$6,"nicht interpolieren") -> nicht interpolieren | K51: =K50-(K50-K52)*(J51-J50)/(J52-J50) ->  | M51: 579226+100*50*4 | N51: 5.46 m | O51: =N51-(N51-P51)*(O$41-N$41)/(P$41-N$41) -> 6.04 m | P51: =R51+(R51-T51) -> 5.17 m | Q51: =P51-(P51-R51)*(Q$41-P$41)/(R$41-P$41) -> 6.04 m | R51: 4.88 m | S51: =R51-(R51-T51)*(S$41-R$41)/(T$41-R$41) -> 6.04 m | T51: 4.59 m | U51: =T51-(T51-V51)*(U$41-T$41)/(V$41-T$41) -> 5.79 m | V51: 4.35 m | W51: =V51-(V51-X51)*(W$41-V$41)/(X$41-V$41) -> 5.55 m | X51: 4.15 m | Y51: =X51-(X51-Z51)*(Y$41-X$41)/(Z$41-X$41) -> 5.27 m | Z51: 3.99 m | AA51: =Z51-(Z51-AB51)*(AA$41-Z$41)/(AB$41-Z$41) -> 5.11 m | AB51: 3.85 m | AC51: =AB51-(AB51-AD51)*(AC$41-AB$41)/(AD$41-AB$41) -> 4.93 m | AD51: 3.73 m | AE51: =AD51-(AD51-AF51)*(AE$41-AD$41)/(AF$41-AD$41) -> 4.78 m | AF51: 3.52 m | AK51: =IF(AND($D$6>AK50,$D$6<AK52),$D$6,"nicht interpolieren") -> nicht interpolieren | AL51: =AL50-(AL50-AL52)*(AK51-AK50)/(AK52-AK50) ->  | AN51: 579226+100*50*4 | AO51: 7.21 m | AP51: 8.31 m | AQ51: =AS51+(AS51-AU51) -> 6.66 m | AR51: 8.31 m | AS51: 6.11 m | AT51: 8.31 m | AU51: 5.56 m | AV51: 7.71 m | AW51: 5.13 m | AX51: 7.17 m | AY51: 4.79 m | AZ51: 6.75 m | BA51: 4.51 m | BB51: 6.43 m | BC51: 4.27 m | BD51: 6.07 m | BE51: 4.07 m | BF51: 5.72 m | BG51: 3.74 m | BO51: 579226+100*50*4 | BP51: 8.13 m | BQ51: 9.45 m | BR51: =BT51+(BT51-BV51) -> 7.47 m | BS51: 9.45 m | BT51: 6.81 m | BU51: 9.45 m | BV51: 6.15 m | BW51: 8.70 m | BX51: 5.64 m | BY51: 7.98 m | BZ51: 5.25 m | CA51: 7.56 m | CB51: 4.92 m | CC51: 7.08 m | CD51: 4.65 m | CE51: 6.72 m | CF51: 4.42 m | CG51: 6.27 m | CH51: 4.05 m
G52: 3a) Tabellenwert l | H52: =O59 -> 3.25 m | J52: 2.50 kN/qm | K52: 0.80 | M52: 579226+100*50*6,3 | N52: 5.80 m | O52: 6.42 m | P52: =R52+(R52-T52) -> 5.49 m | Q52: =P52-(P52-R52)*(Q$41-P$41)/(R$41-P$41) -> 6.42 m | R52: 5.18 m | S52: =R52-(R52-T52)*(S$41-R$41)/(T$41-R$41) -> 6.42 m | T52: 4.87 m | U52: =T52-(T52-V52)*(U$41-T$41)/(V$41-T$41) -> 6.12 m | V52: 4.62 m | W52: =V52-(V52-X52)*(W$41-V$41)/(X$41-V$41) -> 5.82 m | X52: 4.42 m | Y52: =X52-(X52-Z52)*(Y$41-X$41)/(Z$41-X$41) -> 5.68 m | Z52: 4.24 m | AA52: =Z52-(Z52-AB52)*(AA$41-Z$41)/(AB$41-Z$41) -> 5.36 m | AB52: 4.10 m | AC52: =AB52-(AB52-AD52)*(AC$41-AB$41)/(AD$41-AB$41) -> 5.27 m | AD52: 3.97 m | AE52: =AD52-(AD52-AF52)*(AE$41-AD$41)/(AF$41-AD$41) -> 5.07 m | AF52: 3.75 m | AH52: 3b) Tabellenwert l | AI52: =AP59 -> 3.38 m | AK52: 2.50 kN/qm | AL52: 0.72 | AN52: 579226+100*50*6,3 | AO52: =AQ52+(AS52-AU52) -> 7.89 m | AP52: =AO52-(AO52-AQ52)*(AP$41-AO$41)/(AQ$41-AO$41) -> 9.09 m | AQ52: =AS52+(AS52-AU52) -> 7.29 m | AR52: =AQ52-(AQ52-AS52)*(AR$41-AQ$41)/(AS$41-AQ$41) -> 9.09 m | AS52: 6.69 m | AT52: =AS52-(AS52-AU52)*(AT$41-AS$41)/(AU$41-AS$41) -> 9.09 m | AU52: 6.09 m | AV52: =AU52-(AU52-AW52)*(AV$41-AU$41)/(AW$41-AU$41) -> 8.39 m | AW52: 5.63 m | AX52: =AW52-(AW52-AY52)*(AX$41-AW$41)/(AY$41-AW$41) -> 7.85 m | AY52: 5.26 m | AZ52: =AY52-(AY52-BA52)*(AZ$41-AY$41)/(BA$41-AY$41) -> 7.36 m | BA52: 4.96 m | BB52: =BA52-(BA52-BC52)*(BB$41-BA$41)/(BC$41-BA$41) -> 7.04 m | BC52: 4.70 m | BD52: =BC52-(BC52-BE52)*(BD$41-BC$41)/(BE$41-BC$41) -> 6.68 m | BE52: 4.48 m | BF52: =BE52-(BE52-BG52)*(BF$41-BE$41)/(BG$41-BE$41) -> 6.33 m | BG52: 4.11 m | BI52: 3c) Tabellenwert l | BJ52: =BQ59 -> 3.69 m | BO52: 579226+100*50*6,3 | BP52: =BR52+(BT52-BV52) -> 8.90 m | BQ52: =BP52-(BP52-BR52)*(BQ$41-BP$41)/(BR$41-BP$41) -> 10.34 m | BR52: =BT52+(BT52-BV52) -> 8.18 m | BS52: =BR52-(BR52-BT52)*(BS$41-BR$41)/(BT$41-BR$41) -> 10.34 m | BT52: 7.46 m | BU52: =BT52-(BT52-BV52)*(BU$41-BT$41)/(BV$41-BT$41) -> 10.34 m | BV52: 6.74 m | BW52: =BV52-(BV52-BX52)*(BW$41-BV$41)/(BX$41-BV$41) -> 9.44 m | BX52: 6.20 m | BY52: =BX52-(BX52-BZ52)*(BY$41-BX$41)/(BZ$41-BX$41) -> 8.78 m | BZ52: 5.77 m | CA52: =BZ52-(BZ52-CB52)*(CA$41-BZ$41)/(CB$41-BZ$41) -> 8.22 m | CB52: 5.42 m | CC52: =CB52-(CB52-CD52)*(CC$41-CB$41)/(CD$41-CB$41) -> 7.82 m | CD52: 5.12 m | CE52: =CD52-(CD52-CF52)*(CE$41-CD$41)/(CF$41-CD$41) -> 7.37 m | CF52: 4.87 m | CG52: =CF52-(CF52-CH52)*(CG$41-CF$41)/(CH$41-CF$41) -> 6.92 m | CH52: 4.46 m
G53: 3a) Korrigierter lzul1 | H53: =H52*H42*H43*H44*H45*H46*H47 -> 2.76 m | J53: =IF(AND($D$6>J52,$D$6<J54),$D$6,"nicht interpolieren") -> nicht interpolieren | K53: =K52-(K52-K54)*(J53-J52)/(J54-J52) ->  | M53: 579227 | N53: 3.40 m | O53: 3.80 m | P53: =R53+(R53-T53) -> 3.20 m | Q53: =P53-(P53-R53)*(Q$41-P$41)/(R$41-P$41) -> 3.80 m | R53: 3.00 m | S53: =R53-(R53-T53)*(S$41-R$41)/(T$41-R$41) -> 3.80 m | T53: 2.80 m | U53: =T53-(T53-V53)*(U$41-T$41)/(V$41-T$41) -> 3.55 m | V53: 2.65 m | W53: =V53-(V53-X53)*(W$41-V$41)/(X$41-V$41) -> 3.37 m | X53: 2.53 m | Y53: =X53-(X53-Z53)*(Y$41-X$41)/(Z$41-X$41) -> 3.30 m | Z53: 2.42 m | AA53: =Z53-(Z53-AB53)*(AA$41-Z$41)/(AB$41-Z$41) -> 3.06 m | AB53: 2.34 m | AC53: =AB53-(AB53-AD53)*(AC$41-AB$41)/(AD$41-AB$41) -> 3.06 m | AD53: 2.26 m | AE53: =AD53-(AD53-AF53)*(AE$41-AD$41)/(AF$41-AD$41) -> 2.91 m | AF53: 2.13 m | AH53: 3b) Korrigierter lzul1 | AI53: =AI52*AI42*AI43*AI44*AI45*AI46*AI47 -> 2.82 m | AK53: =IF(AND($D$6>AK52,$D$6<AK54),$D$6,"nicht interpolieren") -> nicht interpolieren | AL53: =AL52-(AL52-AL54)*(AK53-AK52)/(AK54-AK52) ->  | AN53: 579227 | AO53: =AQ53+(AS53-AU53) -> 3.98 m | AP53: =AO53-(AO53-AQ53)*(AP$41-AO$41)/(AQ$41-AO$41) -> 4.62 m | AQ53: =AS53+(AS53-AU53) -> 3.66 m | AR53: =AQ53-(AQ53-AS53)*(AR$41-AQ$41)/(AS$41-AQ$41) -> 4.62 m | AS53: 3.34 m | AT53: =AS53-(AS53-AU53)*(AT$41-AS$41)/(AU$41-AS$41) -> 4.62 m | AU53: 3.02 m | AV53: =AU53-(AU53-AW53)*(AV$41-AU$41)/(AW$41-AU$41) -> 4.22 m | AW53: 2.78 m | AX53: =AW53-(AW53-AY53)*(AX$41-AW$41)/(AY$41-AW$41) -> 3.92 m | AY53: 2.59 m | AZ53: =AY53-(AY53-BA53)*(AZ$41-AY$41)/(BA$41-AY$41) -> 3.71 m | BA53: 2.43 m | BB53: =BA53-(BA53-BC53)*(BB$41-BA$41)/(BC$41-BA$41) -> 3.47 m | BC53: 2.30 m | BD53: =BC53-(BC53-BE53)*(BD$41-BC$41)/(BE$41-BC$41) -> 3.38 m | BE53: 2.18 m | BF53: =BE53-(BE53-BG53)*(BF$41-BE$41)/(BG$41-BE$41) -> 3.08 m | BG53: 2.00 m | BI53: 3c) Korrigierter lzul1 | BJ53: =BJ52*BJ42*BJ43*BJ44*BJ45*BJ46*BJ47 -> 31,891.56 m | BO53: 579227 | BP53: =BR53+(BT53-BV53) -> 4.47 m | BQ53: =BP53-(BP53-BR53)*(BQ$41-BP$41)/(BR$41-BP$41) -> 5.23 m | BR53: =BT53+(BT53-BV53) -> 4.09 m | BS53: =BR53-(BR53-BT53)*(BS$41-BR$41)/(BT$41-BR$41) -> 5.23 m | BT53: 3.71 m | BU53: =BT53-(BT53-BV53)*(BU$41-BT$41)/(BV$41-BT$41) -> 5.23 m | BV53: 3.33 m | BW53: =BV53-(BV53-BX53)*(BW$41-BV$41)/(BX$41-BV$41) -> 4.73 m | BX53: 3.05 m | BY53: =BX53-(BX53-BZ53)*(BY$41-BX$41)/(BZ$41-BX$41) -> 4.37 m | BZ53: 2.83 m | CA53: =BZ53-(BZ53-CB53)*(CA$41-BZ$41)/(CB$41-BZ$41) -> 4.09 m | CB53: 2.65 m | CC53: =CB53-(CB53-CD53)*(CC$41-CB$41)/(CD$41-CB$41) -> 3.85 m | CD53: 2.50 m | CE53: =CD53-(CD53-CF53)*(CE$41-CD$41)/(CF$41-CD$41) -> 3.67 m | CF53: 2.37 m | CG53: =CF53-(CF53-CH53)*(CG$41-CF$41)/(CH$41-CF$41) -> 3.37 m | CH53: 2.17 m
J54: 3.00 kN/qm | K54: 0.76 | M54: 579227+70*50*5 | N54: 4.27 m | O54: 4.75 m | P54: =R54+(R54-T54) -> 4.03 m | Q54: =P54-(P54-R54)*(Q$41-P$41)/(R$41-P$41) -> 4.75 m | R54: 3.79 m | S54: =R54-(R54-T54)*(S$41-R$41)/(T$41-R$41) -> 4.75 m | T54: 3.55 m | U54: =T54-(T54-V54)*(U$41-T$41)/(V$41-T$41) -> 4.45 m | V54: 3.37 m | W54: =V54-(V54-X54)*(W$41-V$41)/(X$41-V$41) -> 4.27 m | X54: 3.22 m | Y54: =X54-(X54-Z54)*(Y$41-X$41)/(Z$41-X$41) -> 4.13 m | Z54: 3.09 m | AA54: =Z54-(Z54-AB54)*(AA$41-Z$41)/(AB$41-Z$41) -> 3.97 m | AB54: 2.98 m | AC54: =AB54-(AB54-AD54)*(AC$41-AB$41)/(AD$41-AB$41) -> 3.88 m | AD54: 2.88 m | AE54: =AD54-(AD54-AF54)*(AE$41-AD$41)/(AF$41-AD$41) -> 3.68 m | AF54: 2.72 m | AK54: 3.00 kN/qm | AL54: 0.67 | AN54: 579227+70*50*5 | AO54: 5.64 m | AP54: 6.52 m | AQ54: =AS54+(AS54-AU54) -> 5.20 m | AR54: 6.52 m | AS54: 4.76 m | AT54: 6.52 m | AU54: 4.32 m | AV54: 6.02 m | AW54: 3.98 m | AX54: 5.54 m | AY54: 3.72 m | AZ54: 5.26 m | BA54: 3.50 m | BB54: 5.02 m | BC54: 3.31 m | BD54: 4.75 m | BE54: 3.15 m | BF54: 4.45 m | BG54: 2.89 m | BO54: 579227+70*50*5 | BP54: 6.36 m | BQ54: 7.42 m | BR54: =BT54+(BT54-BV54) -> 5.83 m | BS54: 7.42 m | BT54: 5.30 m | BU54: 7.42 m | BV54: 4.77 m | BW54: 6.72 m | BX54: 4.38 m | BY54: 6.24 m | BZ54: 4.07 m | CA54: 5.82 m | CB54: 3.82 m | CC54: 5.50 m | CD54: 3.61 m | CE54: 5.23 m | CF54: 3.43 m | CG54: 4.88 m | CH54: 3.14 m
M55: 579300 | N55: 4.49 m | O55: 5.03 m | P55: =R55+(R55-T55) -> 4.22 m | Q55: =P55-(P55-R55)*(Q$41-P$41)/(R$41-P$41) -> 5.03 m | R55: 3.95 m | S55: =R55-(R55-T55)*(S$41-R$41)/(T$41-R$41) -> 5.03 m | T55: 3.68 m | U55: =T55-(T55-V55)*(U$41-T$41)/(V$41-T$41) -> 4.63 m | V55: 3.49 m | W55: =V55-(V55-X55)*(W$41-V$41)/(X$41-V$41) -> 4.45 m | X55: 3.33 m | Y55: =X55-(X55-Z55)*(Y$41-X$41)/(Z$41-X$41) -> 4.24 m | Z55: 3.20 m | AA55: =Z55-(Z55-AB55)*(AA$41-Z$41)/(AB$41-Z$41) -> 4.24 m | AB55: 3.07 m | AC55: =AB55-(AB55-AD55)*(AC$41-AB$41)/(AD$41-AB$41) -> 3.97 m | AD55: 2.97 m | AE55: =AD55-(AD55-AF55)*(AE$41-AD$41)/(AF$41-AD$41) -> 3.82 m | AF55: 2.80 m | AN55: 579300 | AO55: =AQ55+(AS55-AU55) -> 5.50 m | AP55: =AO55-(AO55-AQ55)*(AP$41-AO$41)/(AQ$41-AO$41) -> 6.40 m | AQ55: =AS55+(AS55-AU55) -> 5.05 m | AR55: =AQ55-(AQ55-AS55)*(AR$41-AQ$41)/(AS$41-AQ$41) -> 6.40 m | AS55: 4.60 m | AT55: =AS55-(AS55-AU55)*(AT$41-AS$41)/(AU$41-AS$41) -> 6.40 m | AU55: 4.15 m | AV55: =AU55-(AU55-AW55)*(AV$41-AU$41)/(AW$41-AU$41) -> 5.80 m | AW55: 3.82 m | AX55: =AW55-(AW55-AY55)*(AX$41-AW$41)/(AY$41-AW$41) -> 5.44 m | AY55: 3.55 m | AZ55: =AY55-(AY55-BA55)*(AZ$41-AY$41)/(BA$41-AY$41) -> 5.02 m | BA55: 3.34 m | BB55: =BA55-(BA55-BC55)*(BB$41-BA$41)/(BC$41-BA$41) -> 4.78 m | BC55: 3.16 m | BD55: =BC55-(BC55-BE55)*(BD$41-BC$41)/(BE$41-BC$41) -> 4.60 m | BE55: 3.00 m | BF55: =BE55-(BE55-BG55)*(BF$41-BE$41)/(BG$41-BE$41) -> 4.20 m | BG55: 2.76 m | BO55: 579300 | BP55: =BR55+(BT55-BV55) -> 6.15 m | BQ55: =BP55-(BP55-BR55)*(BQ$41-BP$41)/(BR$41-BP$41) -> 7.19 m | BR55: =BT55+(BT55-BV55) -> 5.63 m | BS55: =BR55-(BR55-BT55)*(BS$41-BR$41)/(BT$41-BR$41) -> 7.19 m | BT55: 5.11 m | BU55: =BT55-(BT55-BV55)*(BU$41-BT$41)/(BV$41-BT$41) -> 7.19 m | BV55: 4.59 m | BW55: =BV55-(BV55-BX55)*(BW$41-BV$41)/(BX$41-BV$41) -> 6.59 m | BX55: 4.19 m | BY55: =BX55-(BX55-BZ55)*(BY$41-BX$41)/(BZ$41-BX$41) -> 6.05 m | BZ55: 3.88 m | CA55: =BZ55-(BZ55-CB55)*(CA$41-BZ$41)/(CB$41-BZ$41) -> 5.56 m | CB55: 3.64 m | CC55: =CB55-(CB55-CD55)*(CC$41-CB$41)/(CD$41-CB$41) -> 5.24 m | CD55: 3.44 m | CE55: =CD55-(CD55-CF55)*(CE$41-CD$41)/(CF$41-CD$41) -> 4.97 m | CF55: 3.27 m | CG55: =CF55-(CF55-CH55)*(CG$41-CF$41)/(CH$41-CF$41) -> 4.67 m | CH55: 2.99 m
J56: 3a) Dachneigung | K56: 3a) k | M56: 579300+100*50*4 | N56: 5.54 m | O56: 6.14 m | P56: =R56+(R56-T56) -> 5.24 m | Q56: =P56-(P56-R56)*(Q$41-P$41)/(R$41-P$41) -> 6.14 m | R56: 4.94 m | S56: =R56-(R56-T56)*(S$41-R$41)/(T$41-R$41) -> 6.14 m | T56: 4.64 m | U56: =T56-(T56-V56)*(U$41-T$41)/(V$41-T$41) -> 5.84 m | V56: 4.40 m | W56: =V56-(V56-X56)*(W$41-V$41)/(X$41-V$41) -> 5.60 m | X56: 4.20 m | Y56: =X56-(X56-Z56)*(Y$41-X$41)/(Z$41-X$41) -> 5.39 m | Z56: 4.03 m | AA56: =Z56-(Z56-AB56)*(AA$41-Z$41)/(AB$41-Z$41) -> 5.15 m | AB56: 3.89 m | AC56: =AB56-(AB56-AD56)*(AC$41-AB$41)/(AD$41-AB$41) -> 4.97 m | AD56: 3.77 m | AE56: =AD56-(AD56-AF56)*(AE$41-AD$41)/(AF$41-AD$41) -> 4.82 m | AF56: 3.56 m | AH56: 3b) Dachneigung | AI56: 3b) k | AN56: 579300+100*50*4 | AO56: =AQ56+(AS56-AU56) -> 7.34 m | AP56: =AO56-(AO56-AQ56)*(AP$41-AO$41)/(AQ$41-AO$41) -> 8.46 m | AQ56: =AS56+(AS56-AU56) -> 6.78 m | AR56: =AQ56-(AQ56-AS56)*(AR$41-AQ$41)/(AS$41-AQ$41) -> 8.46 m | AS56: 6.22 m | AT56: =AS56-(AS56-AU56)*(AT$41-AS$41)/(AU$41-AS$41) -> 8.46 m | AU56: 5.66 m | AV56: =AU56-(AU56-AW56)*(AV$41-AU$41)/(AW$41-AU$41) -> 7.86 m | AW56: 5.22 m | AX56: =AW56-(AW56-AY56)*(AX$41-AW$41)/(AY$41-AW$41) -> 7.32 m | AY56: 4.87 m | AZ56: =AY56-(AY56-BA56)*(AZ$41-AY$41)/(BA$41-AY$41) -> 6.83 m | BA56: 4.59 m | BB56: =BA56-(BA56-BC56)*(BB$41-BA$41)/(BC$41-BA$41) -> 6.59 m | BC56: 4.34 m | BD56: =BC56-(BC56-BE56)*(BD$41-BC$41)/(BE$41-BC$41) -> 6.14 m | BE56: 4.14 m | BF56: =BE56-(BE56-BG56)*(BF$41-BE$41)/(BG$41-BE$41) -> 5.84 m | BG56: 3.80 m | BO56: 579300+100*50*4 | BP56: =BR56+(BT56-BV56) -> 8.30 m | BQ56: =BP56-(BP56-BR56)*(BQ$41-BP$41)/(BR$41-BP$41) -> 9.66 m | BR56: =BT56+(BT56-BV56) -> 7.62 m | BS56: =BR56-(BR56-BT56)*(BS$41-BR$41)/(BT$41-BR$41) -> 9.66 m | BT56: 6.94 m | BU56: =BT56-(BT56-BV56)*(BU$41-BT$41)/(BV$41-BT$41) -> 9.66 m | BV56: 6.26 m | BW56: =BV56-(BV56-BX56)*(BW$41-BV$41)/(BX$41-BV$41) -> 8.81 m | BX56: 5.75 m | BY56: =BX56-(BX56-BZ56)*(BY$41-BX$41)/(BZ$41-BX$41) -> 8.21 m | BZ56: 5.34 m | CA56: =BZ56-(BZ56-CB56)*(CA$41-BZ$41)/(CB$41-BZ$41) -> 7.65 m | CB56: 5.01 m | CC56: =CB56-(CB56-CD56)*(CC$41-CB$41)/(CD$41-CB$41) -> 7.25 m | CD56: 4.73 m | CE56: =CD56-(CD56-CF56)*(CE$41-CD$41)/(CF$41-CD$41) -> 6.80 m | CF56: 4.50 m | CG56: =CF56-(CF56-CH56)*(CG$41-CF$41)/(CH$41-CF$41) -> 6.40 m | CH56: 4.12 m
J57: 1.00 ° | K57: 1.00 | M57: 579300+100*50*6,3 | N57: 5.91 m | O57: 6.55 m | P57: =R57+(R57-T57) -> 5.59 m | Q57: =P57-(P57-R57)*(Q$41-P$41)/(R$41-P$41) -> 6.55 m | R57: 5.27 m | S57: =R57-(R57-T57)*(S$41-R$41)/(T$41-R$41) -> 6.55 m | T57: 4.95 m | U57: =T57-(T57-V57)*(U$41-T$41)/(V$41-T$41) -> 6.25 m | V57: 4.69 m | W57: =V57-(V57-X57)*(W$41-V$41)/(X$41-V$41) -> 5.95 m | X57: 4.48 m | Y57: =X57-(X57-Z57)*(Y$41-X$41)/(Z$41-X$41) -> 5.74 m | Z57: 4.30 m | AA57: =Z57-(Z57-AB57)*(AA$41-Z$41)/(AB$41-Z$41) -> 5.50 m | AB57: 4.15 m | AC57: =AB57-(AB57-AD57)*(AC$41-AB$41)/(AD$41-AB$41) -> 5.32 m | AD57: 4.02 m | AE57: =AD57-(AD57-AF57)*(AE$41-AD$41)/(AF$41-AD$41) -> 5.17 m | AF57: 3.79 m | AH57: 1.00 ° | AI57: 1.00 | AN57: 579300+100*50*6,3 | AO57: =AQ57+(AS57-AU57) -> 8.09 m | AP57: =AO57-(AO57-AQ57)*(AP$41-AO$41)/(AQ$41-AO$41) -> 9.33 m | AQ57: =AS57+(AS57-AU57) -> 7.47 m | AR57: =AQ57-(AQ57-AS57)*(AR$41-AQ$41)/(AS$41-AQ$41) -> 9.33 m | AS57: 6.85 m | AT57: =AS57-(AS57-AU57)*(AT$41-AS$41)/(AU$41-AS$41) -> 9.33 m | AU57: 6.23 m | AV57: =AU57-(AU57-AW57)*(AV$41-AU$41)/(AW$41-AU$41) -> 8.63 m | AW57: 5.75 m | AX57: =AW57-(AW57-AY57)*(AX$41-AW$41)/(AY$41-AW$41) -> 8.03 m | AY57: 5.37 m | AZ57: =AY57-(AY57-BA57)*(AZ$41-AY$41)/(BA$41-AY$41) -> 7.61 m | BA57: 5.05 m | BB57: =BA57-(BA57-BC57)*(BB$41-BA$41)/(BC$41-BA$41) -> 7.21 m | BC57: 4.78 m | BD57: =BC57-(BC57-BE57)*(BD$41-BC$41)/(BE$41-BC$41) -> 6.76 m | BE57: 4.56 m | BF57: =BE57-(BE57-BG57)*(BF$41-BE$41)/(BG$41-BE$41) -> 6.41 m | BG57: 4.19 m | BO57: 579300+100*50*6,3 | BP57: =BR57+(BT57-BV57) -> 9.16 m | BQ57: =BP57-(BP57-BR57)*(BQ$41-BP$41)/(BR$41-BP$41) -> 10.68 m | BR57: =BT57+(BT57-BV57) -> 8.40 m | BS57: =BR57-(BR57-BT57)*(BS$41-BR$41)/(BT$41-BR$41) -> 10.68 m | BT57: 7.64 m | BU57: =BT57-(BT57-BV57)*(BU$41-BT$41)/(BV$41-BT$41) -> 10.68 m | BV57: 6.88 m | BW57: =BV57-(BV57-BX57)*(BW$41-BV$41)/(BX$41-BV$41) -> 9.63 m | BX57: 6.33 m | BY57: =BX57-(BX57-BZ57)*(BY$41-BX$41)/(BZ$41-BX$41) -> 9.03 m | BZ57: 5.88 m | CA57: =BZ57-(BZ57-CB57)*(CA$41-BZ$41)/(CB$41-BZ$41) -> 8.40 m | CB57: 5.52 m | CC57: =CB57-(CB57-CD57)*(CC$41-CB$41)/(CD$41-CB$41) -> 8.00 m | CD57: 5.21 m | CE57: =CD57-(CD57-CF57)*(CE$41-CD$41)/(CF$41-CD$41) -> 7.46 m | CF57: 4.96 m | CG57: =CF57-(CF57-CH57)*(CG$41-CF$41)/(CH$41-CF$41) -> 7.06 m | CH57: 4.54 m
J58: 10.00 ° | K58: 1.00 | M58: Rinne | N58: Tiefe | O58: b | AH58: 10.00 ° | AI58: 1.00 | AN58: Rinne | AO58: Tiefe | AP58: b | BO58: Rinne | BP58: Tiefe | BQ58: b
J59: =IF(AND($D$9>J58,$D$9<J60),$D$9,"nicht interpolieren") -> nicht interpolieren | K59: =K58-(K58-K60)*(J59-J58)/(J60-J58) ->  | M59: =IF($D$26="","",MATCH($D$26,M42:M57)) -> 9 | N59: =IF($D$10="","",MATCH('Ermittlung Schneelast'!$D$19,N41:AF41,0)) -> 11 | O59: =IF(OR($D$26="",$D$25=""),0,INDEX(N42:AF57,M59,N59)) -> 3.25 m | AH59: =IF(AND($D$9>AH58,$D$9<AH60),$D$9,"nicht interpolieren") -> nicht interpolieren | AI59: =AI58-(AI58-AI60)*(AH59-AH58)/(AH60-AH58) ->  | AN59: =IF($D$26="","",MATCH($D$26,AN42:AN57)) -> 9 | AO59: =IF($D$10="","",MATCH('Ermittlung Schneelast'!$D$19,AO41:BG41,0)) -> 11 | AP59: =IF(OR($D$26="",$D$25=""),0,INDEX(AO42:BG57,AN59,AO59)) -> 3.38 m | BO59: =IF($D$26="","",MATCH($D$26,BO42:BO57)) -> 9 | BP59: =IF($D$10="","",MATCH('Ermittlung Schneelast'!$D$19,BP41:CH41,0)) -> 11 | BQ59: =IF(OR($D$26="",$D$25=""),0,INDEX(BP42:CH57,BO59,BP59)) -> 3.69 m
J60: 20.00 ° | K60: 0.970 | AH60: 20.00 ° | AI60: 0.950
J61: =IF(AND($D$9>J60,$D$9<J62),$D$9,"nicht interpolieren") -> nicht interpolieren | K61: =K60-(K60-K62)*(J61-J60)/(J62-J60) ->  | AH61: =IF(AND($D$9>AH60,$D$9<AH62),$D$9,"nicht interpolieren") -> nicht interpolieren | AI61: =AI60-(AI60-AI62)*(AH61-AH60)/(AH62-AH60) -> 
J62: 30.00 ° | K62: 0.94 | AH62: 30.00 ° | AI62: 0.91
BO64: Gratsparren | BP64: 0.50 m | BQ64: =IF(AND($D$36>0.5,$D$36<0.6),$D$36,0) -> 0.00 m | BR64: 0.60 m | BS64: =IF(AND($D$36>0.6,$D$36<0.7),$D$36,0) -> 0.00 m | BT64: 0.70 m | BU64: =IF(AND($D$36>0.7,$D$36<0.8),$D$36,0) -> 0.00 m | BV64: 0.80 m | BW64: =IF(AND($D$36>0.8,$D$36<0.9),$D$36,0) -> 0.00 m | BX64: 0.90 m | BY64: =IF(AND($D$36>0.9,$D$36<1),$D$36,0) -> 0.00 m | BZ64: 1.00 m | CA64: =IF(AND($D$36>1,$D$36<1.1),$D$36,0) -> 0.00 m | CB64: 1.10 m
G65: 4a) Korrekturfaktoren | J65: 4a) Dachneigung | K65: 4a) k | M65: Gratsparren | N65: 0.50 m | O65: =IF(AND($D$36>0.5,$D$36<0.6),$D$36,0) -> 0.00 m | P65: 0.60 m | Q65: =IF(AND($D$36>0.6,$D$36<0.7),$D$36,0) -> 0.00 m | R65: 0.70 m | S65: =IF(AND($D$36>0.7,$D$36<0.8),$D$36,0) -> 0.00 m | T65: 0.80 m | U65: =IF(AND($D$36>0.8,$D$36<0.9),$D$36,0) -> 0.00 m | V65: 0.90 m | W65: =IF(AND($D$36>0.9,$D$36<1),$D$36,0) -> 0.00 m | X65: 1.00 m | Y65: =IF(AND($D$36>1,$D$36<1.1),$D$36,0) -> 0.00 m | Z65: 1.10 m | AH65: 4b) Korrekturfaktoren | AN65: Gratsparren | AO65: 0.50 m | AP65: =IF(AND($D$36>0.5,$D$36<0.6),$D$36,0) -> 0.00 m | AQ65: 0.60 m | AR65: =IF(AND($D$36>0.6,$D$36<0.7),$D$36,0) -> 0.00 m | AS65: 0.70 m | AT65: =IF(AND($D$36>0.7,$D$36<0.8),$D$36,0) -> 0.00 m | AU65: 0.80 m | AV65: =IF(AND($D$36>0.8,$D$36<0.9),$D$36,0) -> 0.00 m | AW65: 0.90 m | AX65: =IF(AND($D$36>0.9,$D$36<1),$D$36,0) -> 0.00 m | AY65: 1.00 m | AZ65: =IF(AND($D$36>1,$D$36<1.1),$D$36,0) -> 0.00 m | BA65: 1.10 m | BI65: 4c) Korrekturfaktoren | BO65: 577291/2 | BP65: 8.41 m | BQ65: =BP65-(BP65-BR65)*(BQ$64-BP$64)/(BR$64-BP$64) -> 11.11 m | BR65: 7.87 m | BS65: =BR65-(BR65-BT65)*(BS$64-BR$64)/(BT$64-BR$64) -> 10.57 m | BT65: 7.42 m | BU65: =BT65-(BT65-BV65)*(BU$64-BT$64)/(BV$64-BT$64) -> 10.15 m | BV65: 7.03 m | BW65: =BV65-(BV65-BX65)*(BW$64-BV$64)/(BX$64-BV$64) -> 9.67 m | BX65: 6.70 m | BY65: =BX65-(BX65-BZ65)*(BY$64-BX$64)/(BZ$64-BX$64) -> 9.31 m | BZ65: 6.41 m | CA65: =BZ65-(BZ65-CB65)*(CA$64-BZ$64)/(CB$64-BZ$64) -> 9.11 m | CB65: 6.14 m
G66: 4a) Verglasung | H66: =H2 -> 1.000 | J66: 1.00 ° | K66: 1.00 | M66: 577291/2 | N66: 4.92 m | O66: =N66-(N66-P66)*(O$65-N$65)/(P$65-N$65) -> 6.07 m | P66: 4.69 m | Q66: =P66-(P66-R66)*(Q$65-P$65)/(R$65-P$65) -> 5.83 m | R66: 4.50 m | S66: =R66-(R66-T66)*(S$65-R$65)/(T$65-R$65) -> 5.69 m | T66: 4.33 m | U66: =T66-(T66-V66)*(U$65-T$65)/(V$65-T$65) -> 5.61 m | V66: 4.17 m | W66: =V66-(V66-X66)*(W$65-V$65)/(X$65-V$65) -> 5.43 m | X66: 4.03 m | Y66: =X66-(X66-Z66)*(Y$65-X$65)/(Z$65-X$65) -> 5.33 m | Z66: 3.90 m | AH66: 4b) Verglasung | AI66: =AI2 -> 1.000 | AN66: 577291/2 | AO66: 7.63 m | AP66: =AO66-(AO66-AQ66)*(AP$65-AO$65)/(AQ$65-AO$65) -> 10.08 m | AQ66: 7.14 m | AR66: =AQ66-(AQ66-AS66)*(AR$65-AQ$65)/(AS$65-AQ$65) -> 9.60 m | AS66: 6.73 m | AT66: =AS66-(AS66-AU66)*(AT$65-AS$65)/(AU$65-AS$65) -> 9.18 m | AU66: 6.38 m | AV66: =AU66-(AU66-AW66)*(AV$65-AU$65)/(AW$65-AU$65) -> 8.86 m | AW66: 6.07 m | AX66: =AW66-(AW66-AY66)*(AX$65-AW$65)/(AY$65-AW$65) -> 8.50 m | AY66: 5.80 m | AZ66: =AY66-(AY66-BA66)*(AZ$65-AY$65)/(BA$65-AY$65) -> 8.10 m | BA66: 5.57 m | BI66: 4c) Verglasung | BJ66: =BJ2 -> 1.000 | BO66: 577293/4 | BP66: 8.63 m | BQ66: =BP66-(BP66-BR66)*(BQ$64-BP$64)/(BR$64-BP$64) -> 11.38 m | BR66: 8.08 m | BS66: =BR66-(BR66-BT66)*(BS$64-BR$64)/(BT$64-BR$64) -> 10.84 m | BT66: 7.62 m | BU66: =BT66-(BT66-BV66)*(BU$64-BT$64)/(BV$64-BT$64) -> 10.35 m | BV66: 7.23 m | BW66: =BV66-(BV66-BX66)*(BW$64-BV$64)/(BX$64-BV$64) -> 9.95 m | BX66: 6.89 m | BY66: =BX66-(BX66-BZ66)*(BY$64-BX$64)/(BZ$64-BX$64) -> 9.59 m | BZ66: 6.59 m | CA66: =BZ66-(BZ66-CB66)*(CA$64-BZ$64)/(CB$64-BZ$64) -> 9.29 m | CB66: 6.32 m
G67: 4a) Schnee | H67: =H3 -> 0.982 | J67: 10.00 ° | K67: 1.00 | M67: 577293/4 | N67: 5.15 m | O67: =N67-(N67-P67)*(O$65-N$65)/(P$65-N$65) -> 6.25 m | P67: 4.93 m | Q67: =P67-(P67-R67)*(Q$65-P$65)/(R$65-P$65) -> 6.13 m | R67: 4.73 m | S67: =R67-(R67-T67)*(S$65-R$65)/(T$65-R$65) -> 5.92 m | T67: 4.56 m | U67: =T67-(T67-V67)*(U$65-T$65)/(V$65-T$65) -> 5.76 m | V67: 4.41 m | W67: =V67-(V67-X67)*(W$65-V$65)/(X$65-V$65) -> 5.76 m | X67: 4.26 m | Y67: =X67-(X67-Z67)*(Y$65-X$65)/(Z$65-X$65) -> 5.56 m | Z67: 4.13 m | AH67: 4b) Schnee | AI67: =AI3 -> 0.972 | AN67: 577293/4 | AO67: 7.83 m | AP67: =AO67-(AO67-AQ67)*(AP$65-AO$65)/(AQ$65-AO$65) -> 10.33 m | AQ67: 7.33 m | AR67: =AQ67-(AQ67-AS67)*(AR$65-AQ$65)/(AS$65-AQ$65) -> 9.85 m | AS67: 6.91 m | AT67: =AS67-(AS67-AU67)*(AT$65-AS$65)/(AU$65-AS$65) -> 9.43 m | AU67: 6.55 m | AV67: =AU67-(AU67-AW67)*(AV$65-AU$65)/(AW$65-AU$65) -> 9.03 m | AW67: 6.24 m | AX67: =AW67-(AW67-AY67)*(AX$65-AW$65)/(AY$65-AW$65) -> 8.67 m | AY67: 5.97 m | AZ67: =AY67-(AY67-BA67)*(AZ$65-AY$65)/(BA$65-AY$65) -> 8.37 m | BA67: 5.73 m | BI67: 4c) Schnee | BJ67: =BJ3 -> 10000.000 | BO67: 577293/4 + 70x30x3 | BP67: 10.33 m | BQ67: =BP67-(BP67-BR67)*(BQ$64-BP$64)/(BR$64-BP$64) -> 13.33 m | BR67: 9.73 m | BS67: =BR67-(BR67-BT67)*(BS$64-BR$64)/(BT$64-BR$64) -> 12.73 m | BT67: 9.23 m | BU67: =BT67-(BT67-BV67)*(BU$64-BT$64)/(BV$64-BT$64) -> 12.24 m | BV67: 8.80 m | BW67: =BV67-(BV67-BX67)*(BW$64-BV$64)/(BX$64-BV$64) -> 11.84 m | BX67: 8.42 m | BY67: =BX67-(BX67-BZ67)*(BY$64-BX$64)/(BZ$64-BX$64) -> 11.48 m | BZ67: 8.08 m | CA67: =BZ67-(BZ67-CB67)*(CA$64-BZ$64)/(CB$64-BZ$64) -> 11.08 m | CB67: 7.78 m
G68: 4a) Wind | H68: =H4 -> 1.000 | J68: =IF(AND($D$9>J67,$D$9<J69),$D$9,"nicht interpolieren") -> nicht interpolieren | K68: =K67-(K67-K69)*(J68-J67)/(J69-J67) ->  | M68: 577293/4 + 70x30x3 | N68: 5.75 m | O68: =N68-(N68-P68)*(O$65-N$65)/(P$65-N$65) -> 6.85 m | P68: 5.53 m | Q68: =P68-(P68-R68)*(Q$65-P$65)/(R$65-P$65) -> 6.73 m | R68: 5.33 m | S68: =R68-(R68-T68)*(S$65-R$65)/(T$65-R$65) -> 6.52 m | T68: 5.16 m | U68: =T68-(T68-V68)*(U$65-T$65)/(V$65-T$65) -> 6.44 m | V68: 5.00 m | W68: =V68-(V68-X68)*(W$65-V$65)/(X$65-V$65) -> 6.26 m | X68: 4.86 m | Y68: =X68-(X68-Z68)*(Y$65-X$65)/(Z$65-X$65) -> 6.26 m | Z68: 4.72 m | AH68: 4b) Wind | AI68: =AI4 -> 1.000 | AN68: 577293/4 + 70x30x3 | AO68: 9.30 m | AP68: =AO68-(AO68-AQ68)*(AP$65-AO$65)/(AQ$65-AO$65) -> 11.90 m | AQ68: 8.78 m | AR68: =AQ68-(AQ68-AS68)*(AR$65-AQ$65)/(AS$65-AQ$65) -> 11.48 m | AS68: 8.33 m | AT68: =AS68-(AS68-AU68)*(AT$65-AS$65)/(AU$65-AS$65) -> 11.06 m | AU68: 7.94 m | AV68: =AU68-(AU68-AW68)*(AV$65-AU$65)/(AW$65-AU$65) -> 10.66 m | AW68: 7.60 m | AX68: =AW68-(AW68-AY68)*(AX$65-AW$65)/(AY$65-AW$65) -> 10.39 m | AY68: 7.29 m | AZ68: =AY68-(AY68-BA68)*(AZ$65-AY$65)/(BA$65-AY$65) -> 9.99 m | BA68: 7.02 m | BI68: 4c) Wind | BJ68: =BJ4 -> 1.000 | BO68: 577297/8 | BP68: 6.25 m | BQ68: =BP68-(BP68-BR68)*(BQ$64-BP$64)/(BR$64-BP$64) -> 8.30 m | BR68: 5.84 m | BS68: =BR68-(BR68-BT68)*(BS$64-BR$64)/(BT$64-BR$64) -> 7.88 m | BT68: 5.50 m | BU68: =BT68-(BT68-BV68)*(BU$64-BT$64)/(BV$64-BT$64) -> 7.53 m | BV68: 5.21 m | BW68: =BV68-(BV68-BX68)*(BW$64-BV$64)/(BX$64-BV$64) -> 7.21 m | BX68: 4.96 m | BY68: =BX68-(BX68-BZ68)*(BY$64-BX$64)/(BZ$64-BX$64) -> 7.03 m | BZ68: 4.73 m | CA68: =BZ68-(BZ68-CB68)*(CA$64-BZ$64)/(CB$64-BZ$64) -> 6.73 m | CB68: 4.53 m
G69: 4a) Dachneigung | H69: =VLOOKUP($D$9,J66:K71,2) -> 1.000 | J69: 20.00 ° | K69: 0.980 | M69: 577297/8 | N69: 3.55 m | O69: =N69-(N69-P69)*(O$65-N$65)/(P$65-N$65) -> 4.45 m | P69: 3.37 m | Q69: =P69-(P69-R69)*(Q$65-P$65)/(R$65-P$65) -> 4.27 m | R69: 3.22 m | S69: =R69-(R69-T69)*(S$65-R$65)/(T$65-R$65) -> 4.20 m | T69: 3.08 m | U69: =T69-(T69-V69)*(U$65-T$65)/(V$65-T$65) -> 4.12 m | V69: 2.95 m | W69: =V69-(V69-X69)*(W$65-V$65)/(X$65-V$65) -> 4.03 m | X69: 2.83 m | Y69: =X69-(X69-Z69)*(Y$65-X$65)/(Z$65-X$65) -> 3.93 m | Z69: 2.72 m | AH69: 4b) Dachneigung | AI69: 1.000 | AN69: 577297/8 | AO69: 5.65 m | AP69: =AO69-(AO69-AQ69)*(AP$65-AO$65)/(AQ$65-AO$65) -> 7.50 m | AQ69: 5.28 m | AR69: =AQ69-(AQ69-AS69)*(AR$65-AQ$65)/(AS$65-AQ$65) -> 7.08 m | AS69: 4.98 m | AT69: =AS69-(AS69-AU69)*(AT$65-AS$65)/(AU$65-AS$65) -> 6.87 m | AU69: 4.71 m | AV69: =AU69-(AU69-AW69)*(AV$65-AU$65)/(AW$65-AU$65) -> 6.55 m | AW69: 4.48 m | AX69: =AW69-(AW69-AY69)*(AX$65-AW$65)/(AY$65-AW$65) -> 6.37 m | AY69: 4.27 m | AZ69: =AY69-(AY69-BA69)*(AZ$65-AY$65)/(BA$65-AY$65) -> 6.17 m | BA69: 4.08 m | BI69: 4c) Dachneigung | BJ69: 1.000 | BO69: 577297/8 + 30x30x2 | BP69: 6.52 m | BQ69: =BP69-(BP69-BR69)*(BQ$64-BP$64)/(BR$64-BP$64) -> 8.62 m | BR69: 6.10 m | BS69: =BR69-(BR69-BT69)*(BS$64-BR$64)/(BT$64-BR$64) -> 8.20 m | BT69: 5.75 m | BU69: =BT69-(BT69-BV69)*(BU$64-BT$64)/(BV$64-BT$64) -> 7.85 m | BV69: 5.45 m | BW69: =BV69-(BV69-BX69)*(BW$64-BV$64)/(BX$64-BV$64) -> 7.53 m | BX69: 5.19 m | BY69: =BX69-(BX69-BZ69)*(BY$64-BX$64)/(BZ$64-BX$64) -> 7.26 m | BZ69: 4.96 m | CA69: =BZ69-(BZ69-CB69)*(CA$64-BZ$64)/(CB$64-BZ$64) -> 7.06 m | CB69: 4.75 m
G70: 4a) zul. Durchbiegung | H70: =VLOOKUP($D$37,Daten!$A$44:$B$47,2) -> 1.000 | J70: =IF(AND($D$9>J69,$D$9<J71),$D$9,"nicht interpolieren") -> nicht interpolieren | K70: =K69-(K69-K71)*(J70-J69)/(J71-J69) ->  | M70: 577297/8 + 30x30x2 | N70: 3.75 m | O70: =N70-(N70-P70)*(O$65-N$65)/(P$65-N$65) -> 4.65 m | P70: 3.57 m | Q70: =P70-(P70-R70)*(Q$65-P$65)/(R$65-P$65) -> 4.53 m | R70: 3.41 m | S70: =R70-(R70-T70)*(S$65-R$65)/(T$65-R$65) -> 4.39 m | T70: 3.27 m | U70: =T70-(T70-V70)*(U$65-T$65)/(V$65-T$65) -> 4.31 m | V70: 3.14 m | W70: =V70-(V70-X70)*(W$65-V$65)/(X$65-V$65) -> 4.22 m | X70: 3.02 m | Y70: =X70-(X70-Z70)*(Y$65-X$65)/(Z$65-X$65) -> 4.22 m | Z70: 2.90 m | AH70: 4b) zul. Durchbiegung | AI70: =VLOOKUP($D$37,Daten!$A$44:$B$47,2) -> 1.000 | AN70: 577297/8 + 30x30x2 | AO70: 5.90 m | AP70: =AO70-(AO70-AQ70)*(AP$65-AO$65)/(AQ$65-AO$65) -> 7.75 m | AQ70: 5.53 m | AR70: =AQ70-(AQ70-AS70)*(AR$65-AQ$65)/(AS$65-AQ$65) -> 7.45 m | AS70: 5.21 m | AT70: =AS70-(AS70-AU70)*(AT$65-AS$65)/(AU$65-AS$65) -> 7.10 m | AU70: 4.94 m | AV70: =AU70-(AU70-AW70)*(AV$65-AU$65)/(AW$65-AU$65) -> 6.86 m | AW70: 4.70 m | AX70: =AW70-(AW70-AY70)*(AX$65-AW$65)/(AY$65-AW$65) -> 6.59 m | AY70: 4.49 m | AZ70: =AY70-(AY70-BA70)*(AZ$65-AY$65)/(BA$65-AY$65) -> 6.39 m | BA70: 4.30 m | BI70: 4c) zul. Durchbiegung | BJ70: =VLOOKUP($D$37,Daten!$A$44:$B$47,2) -> 1.000 | BO70: 577339/9 | BP70: 12.54 m | BQ70: =BP70-(BP70-BR70)*(BQ$64-BP$64)/(BR$64-BP$64) -> 16.34 m | BR70: 11.78 m | BS70: =BR70-(BR70-BT70)*(BS$64-BR$64)/(BT$64-BR$64) -> 15.62 m | BT70: 11.14 m | BU70: =BT70-(BT70-BV70)*(BU$64-BT$64)/(BV$64-BT$64) -> 14.92 m | BV70: 10.60 m | BW70: =BV70-(BV70-BX70)*(BW$64-BV$64)/(BX$64-BV$64) -> 14.44 m | BX70: 10.12 m | BY70: =BX70-(BX70-BZ70)*(BY$64-BX$64)/(BZ$64-BX$64) -> 13.90 m | BZ70: 9.70 m | CA70: =BZ70-(BZ70-CB70)*(CA$64-BZ$64)/(CB$64-BZ$64) -> 13.40 m | CB70: 9.33 m
J71: 30.00 ° | K71: 0.96 | M71: 577339/9 | N71: 6.50 m | O71: =N71-(N71-P71)*(O$65-N$65)/(P$65-N$65) -> 7.85 m | P71: 6.23 m | Q71: =P71-(P71-R71)*(Q$65-P$65)/(R$65-P$65) -> 7.61 m | R71: 6.00 m | S71: =R71-(R71-T71)*(S$65-R$65)/(T$65-R$65) -> 7.40 m | T71: 5.80 m | U71: =T71-(T71-V71)*(U$65-T$65)/(V$65-T$65) -> 7.32 m | V71: 5.61 m | W71: =V71-(V71-X71)*(W$65-V$65)/(X$65-V$65) -> 7.05 m | X71: 5.45 m | Y71: =X71-(X71-Z71)*(Y$65-X$65)/(Z$65-X$65) -> 6.95 m | Z71: 5.30 m | AN71: 577339/9 | AO71: 11.34 m | AP71: =AO71-(AO71-AQ71)*(AP$65-AO$65)/(AQ$65-AO$65) -> 14.79 m | AQ71: 10.65 m | AR71: =AQ71-(AQ71-AS71)*(AR$65-AQ$65)/(AS$65-AQ$65) -> 14.07 m | AS71: 10.08 m | AT71: =AS71-(AS71-AU71)*(AT$65-AS$65)/(AU$65-AS$65) -> 13.51 m | AU71: 9.59 m | AV71: =AU71-(AU71-AW71)*(AV$65-AU$65)/(AW$65-AU$65) -> 13.03 m | AW71: 9.16 m | AX71: =AW71-(AW71-AY71)*(AX$65-AW$65)/(AY$65-AW$65) -> 12.58 m | AY71: 8.78 m | AZ71: =AY71-(AY71-BA71)*(AZ$65-AY$65)/(BA$65-AY$65) -> 12.18 m | BA71: 8.44 m | BO71: 577339/9 + 80x60x3 | BP71: 13.87 m | BQ71: 17.47 m | BR71: 13.15 m | BS71: 16.93 m | BT71: 12.52 m | BU71: 16.30 m | BV71: 11.98 m | BW71: 15.82 m | BX71: 11.50 m | BY71: 15.37 m | BZ71: 11.07 m | CA71: 14.87 m | CB71: 10.69 m
M72: 577339/9 + 80x60x3 | N72: 7.19 m | O72: 8.39 m | P72: 6.95 m | Q72: 8.27 m | R72: 6.73 m | S72: 8.13 m | T72: 6.53 m | U72: 7.97 m | V72: 6.35 m | W72: 7.79 m | X72: 6.19 m | Y72: 7.79 m | Z72: 6.03 m | AN72: 577339/9 + 80x60x3 | AO72: 12.44 m | AP72: 15.59 m | AQ72: 11.81 m | AR72: 15.11 m | AS72: 11.26 m | AT72: 14.62 m | AU72: 10.78 m | AV72: 14.22 m | AW72: 10.35 m | AX72: 13.77 m | AY72: 9.97 m | AZ72: 13.27 m | BA72: 9.64 m | BO72: 577339/9 + 80x60x5 | BP72: 14.67 m | BQ72: 18.22 m | BR72: 13.96 m | BS72: 17.62 m | BT72: 13.35 m | BU72: 17.13 m | BV72: 12.81 m | BW72: 16.65 m | BX72: 12.33 m | BY72: 16.29 m | BZ72: 11.89 m | CA72: 15.79 m | CB72: 11.50 m
M73: 577339/9 + 80x60x5 | N73: 7.43 m | O73: 8.58 m | P73: 7.20 m | Q73: 8.46 m | R73: 6.99 m | S73: 8.32 m | T73: 6.80 m | U73: 8.16 m | V73: 6.63 m | W73: 8.07 m | X73: 6.47 m | Y73: 7.97 m | Z73: 6.32 m | AN73: 577339/9 + 80x60x5 | AO73: 13.11 m | AP73: 16.16 m | AQ73: 12.50 m | AR73: 15.74 m | AS73: 11.96 m | AT73: 15.32 m | AU73: 11.48 m | AV73: 14.84 m | AW73: 11.06 m | AX73: 14.48 m | AY73: 10.68 m | AZ73: 14.08 m | BA73: 10.34 m | BO73: 579504/5 | BP73: 10.42 m | BQ73: 13.72 m | BR73: 9.76 m | BS73: 13.06 m | BT73: 9.21 m | BU73: 12.50 m | BV73: 8.74 m | BW73: 12.02 m | BX73: 8.33 m | BY73: 11.57 m | BZ73: 7.97 m | CA73: 11.07 m | CB73: 7.66 m
M74: 579504/5 | N74: 6.25 m | O74: 7.60 m | P74: 5.98 m | Q74: 7.48 m | R74: 5.73 m | S74: 7.20 m | T74: 5.52 m | U74: 7.12 m | V74: 5.32 m | W74: 6.85 m | X74: 5.15 m | Y74: 6.75 m | Z74: 4.99 m | AN74: 579504/5 | AO74: 9.44 m | AP74: 12.44 m | AQ74: 8.84 m | AR74: 11.84 m | AS74: 8.34 m | AT74: 11.28 m | AU74: 7.92 m | AV74: 10.88 m | AW74: 7.55 m | AX74: 10.43 m | AY74: 7.23 m | AZ74: 10.13 m | BA74: 6.94 m | BO74: 579504/5 + 100x20 | BP74: 13.76 m | BQ74: =BP74-(BP74-BR74)*(BQ$64-BP$64)/(BR$64-BP$64) -> 16.81 m | BR74: 13.15 m | BS74: 16.39 m | BT74: 12.61 m | BU74: 15.90 m | BV74: 12.14 m | BW74: 15.58 m | BX74: 11.71 m | BY74: 15.22 m | BZ74: 11.32 m | CA74: 14.82 m | CB74: 10.97 m
M75: 579504/5 + 100x20 | N75: 7.65 m | O75: =N75-(N75-P75)*(O$65-N$65)/(P$65-N$65) -> 8.75 m | P75: 7.43 m | Q75: =P75-(P75-R75)*(Q$65-P$65)/(R$65-P$65) -> 8.63 m | R75: 7.23 m | S75: =R75-(R75-T75)*(S$65-R$65)/(T$65-R$65) -> 8.49 m | T75: 7.05 m | U75: =T75-(T75-V75)*(U$65-T$65)/(V$65-T$65) -> 8.33 m | V75: 6.89 m | W75: =V75-(V75-X75)*(W$65-V$65)/(X$65-V$65) -> 8.33 m | X75: 6.73 m | Y75: =X75-(X75-Z75)*(Y$65-X$65)/(Z$65-X$65) -> 8.13 m | Z75: 6.59 m | AN75: 579504/5 + 100x20 | AO75: 12.23 m | AP75: =AO75-(AO75-AQ75)*(AP$65-AO$65)/(AQ$65-AO$65) -> 14.73 m | AQ75: 11.73 m | AR75: =AQ75-(AQ75-AS75)*(AR$65-AQ$65)/(AS$65-AQ$65) -> 14.49 m | AS75: 11.27 m | AT75: =AS75-(AS75-AU75)*(AT$65-AS$65)/(AU$65-AS$65) -> 14.21 m | AU75: 10.85 m | AV75: =AU75-(AU75-AW75)*(AV$65-AU$65)/(AW$65-AU$65) -> 13.81 m | AW75: 10.48 m | AX75: =AW75-(AW75-AY75)*(AX$65-AW$65)/(AY$65-AW$65) -> 13.54 m | AY75: 10.14 m | AZ75: =AY75-(AY75-BA75)*(AZ$65-AY$65)/(BA$65-AY$65) -> 13.24 m | BA75: 9.83 m | BO75: 579504/5 + 100x20x3 | BP75: 12.14 m | BQ75: =BP75-(BP75-BR75)*(BQ$64-BP$64)/(BR$64-BP$64) -> 15.44 m | BR75: 11.48 m | BS75: =BR75-(BR75-BT75)*(BS$64-BR$64)/(BT$64-BR$64) -> 14.90 m | BT75: 10.91 m | BU75: =BT75-(BT75-BV75)*(BU$64-BT$64)/(BV$64-BT$64) -> 14.34 m | BV75: 10.42 m | BW75: =BV75-(BV75-BX75)*(BW$64-BV$64)/(BX$64-BV$64) -> 13.86 m | BX75: 9.99 m | BY75: =BX75-(BX75-BZ75)*(BY$64-BX$64)/(BZ$64-BX$64) -> 13.50 m | BZ75: 9.60 m | CA75: =BZ75-(BZ75-CB75)*(CA$64-BZ$64)/(CB$64-BZ$64) -> 13.00 m | CB75: 9.26 m
M76: 579504/5 + 100x20x3 | N76: 7.11 m | O76: 8.41 m | P76: 6.85 m | Q76: 8.23 m | R76: 6.62 m | S76: 8.02 m | T76: 6.42 m | U76: 7.86 m | V76: 6.24 m | W76: 7.77 m | X76: 6.07 m | Y76: 7.67 m | Z76: 5.91 m | AN76: 579504/5 + 100x20x3 | AO76: 10.92 m | AP76: 13.87 m | AQ76: 10.33 m | AR76: 13.33 m | AS76: 9.83 m | AT76: 12.91 m | AU76: 9.39 m | AV76: 12.51 m | AW76: 9.00 m | AX76: 12.06 m | AY76: 8.66 m | AZ76: 11.76 m | BA76: 8.35 m
BO77: l zul
M78: l zul | AN78: l zul | BO78: Gratsparren | BP78: c | BQ78: l zul
G79: 4a) Tabellenwert l | H79: =O80 -> 7.05 m | M79: Gratsparren | N79: c | O79: l zul | AH79: 4b) Tabellenwert l | AI79: =AP80 -> 10.85 m | AN79: Gratsparren | AO79: c | AP79: l zul | BI79: 4c) Tabellenwert l | BJ79: =BQ79 -> 12.14 m | BO79: =IF($D$38="","",MATCH($D$38,BO65:BO75)) -> 10 | BP79: =IF($D$36>1.1,"",MATCH($D$36,BP64:CB64,0)) -> 7 | BQ79: =IF(OR($D$10="",$D$36=""),0,INDEX(BP65:CB75,BO79,BP79)) -> 12.14 m
G80: 4a) Korrigierter lzul1 | H80: =H79*H66*H67*H68*H69*H70 -> 6.92 m | M80: =IF($D$38="","",MATCH($D$38,M66:M76)) -> 10 | N80: =IF($D$36>1.1,"",MATCH($D$36,N65:Z65,0)) -> 7 | O80: =IF(OR($D$10="",$D$36=""),0,INDEX(N66:Z76,M80,N80)) -> 7.05 m | AH80: 4b) Korrigierter lzul1 | AI80: =AI79*AI66*AI67*AI68*AI69*AI70 -> 10.55 m | AN80: =IF($D$38="","",MATCH($D$38,AN66:AN76)) -> 10 | AO80: =IF($D$36>1.1,"",MATCH($D$36,AO65:BA65,0)) -> 7 | AP80: =IF(OR($D$10="",$D$36=""),0,INDEX(AO66:BA76,AN80,AO80)) -> 10.85 m | BI80: 4c) Korrigierter lzul1 | BJ80: =BJ79*BJ66*BJ67*BJ68*BJ69*BJ70 -> 121,400.00 m
AN82: Gratsparren | AO82: 1.00 m | AP82: =IF(AND($D$43>1,$D$43<1.5),$D$43,0) -> 0.00 m | AQ82: 1.50 m | AR82: =IF(AND($D$43>1.5,$D$43<2),$D$43,0) -> 0.00 m | AS82: 2.00 m | AT82: =IF(AND($D$43>2,$D$43<2.5),$D$43,0) -> 0.00 m | AU82: 2.50 m | AV82: =IF(AND($D$43>2.5,$D$43<3),$D$43,0) -> 0.00 m | AW82: 3.00 m | AX82: =IF(AND($D$43>3,$D$43<3.5),$D$43,0) -> 3.10 m | AY82: 3.50 m | AZ82: la=l | BI82: 5c) Korrekturfaktoren | BO82: Gratsparren | BP82: 1.00 m | BQ82: =IF(AND($D$43>1,$D$43<1.5),$D$43,0) -> 0.00 m | BR82: 1.50 m | BS82: =IF(AND($D$43>1.5,$D$43<2),$D$43,0) -> 0.00 m | BT82: 2.00 m | BU82: =IF(AND($D$43>2,$D$43<2.5),$D$43,0) -> 0.00 m | BV82: 2.50 m | BW82: =IF(AND($D$43>2.5,$D$43<3),$D$43,0) -> 0.00 m | BX82: 3.00 m | BY82: =IF(AND($D$43>3,$D$43<3.5),$D$43,0) -> 3.10 m | BZ82: 3.50 m | CA82: la=l
AN83: 577291/2 | AO83: 6.46 m | AP83: =AO83-(AO83-AQ83)*(AP$82-AO$82)/(AQ$82-AO$82) -> 8.86 m | AQ83: 5.26 m | AR83: =AQ83-(AQ83-AS83)*(AR$82-AQ$82)/(AS$82-AQ$82) -> 7.69 m | AS83: 4.45 m | AT83: =AS83-(AS83-AU83)*(AT$82-AS$82)/(AU$82-AS$82) -> 6.97 m | AU83: 3.82 m | AV83: =AU83-(AU83-AW83)*(AV$82-AU$82)/(AW$82-AU$82) -> 6.57 m | AW83: 3.27 m | AZ83: 3.13 m | BI83: 5c) Verglasung | BJ83: =BJ2 -> 1.000 | BO83: 577291/2 | BP83: 6.93 m | BQ83: =BP83-(BP83-BR83)*(BQ$82-BP$82)/(BR$82-BP$82) -> 9.49 m | BR83: 5.65 m | BS83: =BR83-(BR83-BT83)*(BS$82-BR$82)/(BT$82-BR$82) -> 8.23 m | BT83: 4.79 m | BU83: =BT83-(BT83-BV83)*(BU$82-BT$82)/(BV$82-BT$82) -> 7.43 m | BV83: 4.13 m | CA83: 3.28 m
G84: 5a) Korrekturfaktoren | M84: Gratsparren | N84: 1.00 m | O84: =IF(AND($D$43>1,$D$43<1.5),$D$43,0) -> 0.00 m | P84: 1.50 m | Q84: =IF(AND($D$43>1.5,$D$43<2),$D$43,0) -> 0.00 m | R84: 2.00 m | S84: =IF(AND($D$43>2,$D$43<2.5),$D$43,0) -> 0.00 m | T84: 2.50 m | U84: =IF(AND($D$43>2.5,$D$43<3),$D$43,0) -> 0.00 m | V84: 3.00 m | W84: =IF(AND($D$43>3,$D$43<3.5),$D$43,0) -> 3.10 m | X84: 3.50 m | Y84: la=l | AH84: 5b) Korrekturfaktoren | AN84: 577293/4 | AO84: 6.47 m | AP84: =AO84-(AO84-AQ84)*(AP$82-AO$82)/(AQ$82-AO$82) -> 8.87 m | AQ84: 5.27 m | AR84: =AQ84-(AQ84-AS84)*(AR$82-AQ$82)/(AS$82-AQ$82) -> 7.70 m | AS84: 4.46 m | AT84: =AS84-(AS84-AU84)*(AT$82-AS$82)/(AU$82-AS$82) -> 7.02 m | AU84: 3.82 m | AV84: =AU84-(AU84-AW84)*(AV$82-AU$82)/(AW$82-AU$82) -> 6.52 m | AW84: 3.28 m | AZ84: 3.14 m | BI84: 5c) Schnee | BJ84: =BJ3 -> 10000.000 | BO84: 577293/4 | BP84: 6.95 m | BQ84: =BP84-(BP84-BR84)*(BQ$82-BP$82)/(BR$82-BP$82) -> 9.53 m | BR84: 5.66 m | BS84: =BR84-(BR84-BT84)*(BS$82-BR$82)/(BT$82-BR$82) -> 8.24 m | BT84: 4.80 m | BU84: =BT84-(BT84-BV84)*(BU$82-BT$82)/(BV$82-BT$82) -> 7.40 m | BV84: 4.15 m | BW84: =BV84-(BV84-BX84)*(BW$82-BV$82)/(BX$82-BV$82) -> 7.00 m | BX84: 3.58 m | CA84: 3.28 m
G85: 5a) Verglasung | H85: =H2 -> 1.000 | M85: 577291/2 | N85: 4.34 m | O85: =N85-(N85-P85)*(O$84-N$84)/(P$84-N$84) -> 5.66 m | P85: 3.68 m | Q85: =P85-(P85-R85)*(Q$84-P$84)/(R$84-P$84) -> 5.30 m | R85: 3.14 m | S85: =R85-(R85-T85)*(S$84-R$84)/(T$84-R$84) -> 5.18 m | T85: 2.63 m | Y85: 2.56 m | AH85: 5b) Verglasung | AI85: =AI2 -> 1.000 | AN85: 577293/4 + 70x30x3 | AO85: 7.87 m | AP85: =AO85-(AO85-AQ85)*(AP$82-AO$82)/(AQ$82-AO$82) -> 10.55 m | AQ85: 6.53 m | AR85: =AQ85-(AQ85-AS85)*(AR$82-AQ$82)/(AS$82-AQ$82) -> 9.23 m | AS85: 5.63 m | AT85: =AS85-(AS85-AU85)*(AT$82-AS$82)/(AU$82-AS$82) -> 8.43 m | AU85: 4.93 m | AV85: =AU85-(AU85-AW85)*(AV$82-AU$82)/(AW$82-AU$82) -> 7.88 m | AW85: 4.34 m | AX85: =AW85-(AW85-AY85)*(AX$82-AW$82)/(AY$82-AW$82) -> 4.23 m | AY85: 3.81 m | AZ85: 3.68 m | BI85: 5c) Wind | BJ85: =BJ4 -> 1.000 | BO85: 577293/4 + 70x30x3 | BP85: 8.51 m | BQ85: =BP85-(BP85-BR85)*(BQ$82-BP$82)/(BR$82-BP$82) -> 11.45 m | BR85: 7.04 m | BS85: =BR85-(BR85-BT85)*(BS$82-BR$82)/(BT$82-BR$82) -> 9.95 m | BT85: 6.07 m | BU85: =BT85-(BT85-BV85)*(BU$82-BT$82)/(BV$82-BT$82) -> 8.99 m | BV85: 5.34 m | BW85: =BV85-(BV85-BX85)*(BW$82-BV$82)/(BX$82-BV$82) -> 8.44 m | BX85: 4.72 m | BY85: =BX85-(BX85-BZ85)*(BY$82-BX$82)/(BZ$82-BX$82) -> 4.61 m | BZ85: 4.17 m | CA85: 3.83 m
G86: 5a) Schnee | H86: =H3 -> 0.982 | M86: 577293/4 | N86: 4.52 m | O86: =N86-(N86-P86)*(O$84-N$84)/(P$84-N$84) -> 5.88 m | P86: 3.84 m | Q86: =P86-(P86-R86)*(Q$84-P$84)/(R$84-P$84) -> 5.49 m | R86: 3.29 m | S86: =R86-(R86-T86)*(S$84-R$84)/(T$84-R$84) -> 5.33 m | T86: 2.78 m | Y86: 2.64 m | AH86: 5b) Schnee | AI86: =AI3 -> 0.972 | AN86: 577297/8 | AO86: 4.73 m | AP86: =AO86-(AO86-AQ86)*(AP$82-AO$82)/(AQ$82-AO$82) -> 6.61 m | AQ86: 3.79 m | AR86: =AQ86-(AQ86-AS86)*(AR$82-AQ$82)/(AS$82-AQ$82) -> 5.77 m | AS86: 3.13 m | AT86: =AS86-(AS86-AU86)*(AT$82-AS$82)/(AU$82-AS$82) -> 5.33 m | AU86: 2.58 m | AZ86: 2.54 m | BI86: 5c) Dachneigung | BJ86: =BJ5 -> 1.000 | BO86: 577297/8 | BP86: 5.09 m | BQ86: =BP86-(BP86-BR86)*(BQ$82-BP$82)/(BR$82-BP$82) -> 7.09 m | BR86: 4.09 m | BS86: =BR86-(BR86-BT86)*(BS$82-BR$82)/(BT$82-BR$82) -> 6.19 m | BT86: 3.39 m | BU86: =BT86-(BT86-BV86)*(BU$82-BT$82)/(BV$82-BT$82) -> 5.63 m | BV86: 2.83 m | CA86: 2.66 m
G87: 5a) Wind | H87: =H4 -> 1.000 | M87: 577293/4 + 70x30x3 | N87: 5.18 m | O87: =N87-(N87-P87)*(O$84-N$84)/(P$84-N$84) -> 6.56 m | P87: 4.49 m | Q87: =P87-(P87-R87)*(Q$84-P$84)/(R$84-P$84) -> 6.14 m | R87: 3.94 m | S87: =R87-(R87-T87)*(S$84-R$84)/(T$84-R$84) -> 5.98 m | T87: 3.43 m | Y87: 2.96 m | AH87: 5b) Wind | AI87: =AI4 -> 1.000 | AN87: 577297/8 + 30x30x2 | AO87: 5.05 m | AP87: =AO87-(AO87-AQ87)*(AP$82-AO$82)/(AQ$82-AO$82) -> 6.99 m | AQ87: 4.08 m | AR87: =AQ87-(AQ87-AS87)*(AR$82-AQ$82)/(AS$82-AQ$82) -> 6.12 m | AS87: 3.40 m | AT87: =AS87-(AS87-AU87)*(AT$82-AS$82)/(AU$82-AS$82) -> 5.60 m | AU87: 2.85 m | AZ87: 2.67 m | BO87: 577297/8 + 30x30x2 | BP87: 5.44 m | BQ87: =BP87-(BP87-BR87)*(BQ$82-BP$82)/(BR$82-BP$82) -> 7.52 m | BR87: 4.40 m | BS87: =BR87-(BR87-BT87)*(BS$82-BR$82)/(BT$82-BR$82) -> 6.53 m | BT87: 3.69 m | BU87: =BT87-(BT87-BV87)*(BU$82-BT$82)/(BV$82-BT$82) -> 6.01 m | BV87: 3.11 m | CA87: 2.80 m
G88: 5a) Dachneigung | H88: =H5 -> 1.000 | M88: 577297/8 | N88: 3.09 m | O88: =N88-(N88-P88)*(O$84-N$84)/(P$84-N$84) -> 4.25 m | P88: 2.51 m | Y88: 2.00 m | AH88: 5b) Dachneigung | AI88: =AI5 -> 1.000 | AN88: 577339/9 | AO88: 9.38 m | AP88: =AO88-(AO88-AQ88)*(AP$82-AO$82)/(AQ$82-AO$82) -> 12.64 m | AQ88: 7.75 m | AR88: =AQ88-(AQ88-AS88)*(AR$82-AQ$82)/(AS$82-AQ$82) -> 10.93 m | AS88: 6.69 m | AT88: =AS88-(AS88-AU88)*(AT$82-AS$82)/(AU$82-AS$82) -> 9.85 m | AU88: 5.90 m | AV88: =AU88-(AU88-AW88)*(AV$82-AU$82)/(AW$82-AU$82) -> 9.20 m | AW88: 5.24 m | AX88: =AW88-(AW88-AY88)*(AX$82-AW$82)/(AY$82-AW$82) -> 5.12 m | AY88: 4.66 m | AZ88: 4.06 m | BI88: Korrekturwert für Fall la= l | BJ88: =IF($D$43=$D$44,(BJ83^0.5)*(BJ84^0.5)*(BJ85^0.5)*(BJ86^0.5),0) -> 100.000 | BO88: 577339/9 | BP88: 10.10 m | BQ88: =BP88-(BP88-BR88)*(BQ$82-BP$82)/(BR$82-BP$82) -> 13.64 m | BR88: 8.33 m | BS88: =BR88-(BR88-BT88)*(BS$82-BR$82)/(BT$82-BR$82) -> 11.75 m | BT88: 7.19 m | BU88: =BT88-(BT88-BV88)*(BU$82-BT$82)/(BV$82-BT$82) -> 10.55 m | BV88: 6.35 m | BW88: =BV88-(BV88-BX88)*(BW$82-BV$82)/(BX$82-BV$82) -> 9.80 m | BX88: 5.66 m | BY88: =BX88-(BX88-BZ88)*(BY$82-BX$82)/(BZ$82-BX$82) -> 5.54 m | BZ88: 5.07 m | CA88: 4.26 m
M89: 577297/8 + 30x30x2 | N89: 3.24 m | O89: =N89-(N89-P89)*(O$84-N$84)/(P$84-N$84) -> 4.38 m | P89: 2.67 m | Q89: =P89-(P89-R89)*(Q$84-P$84)/(R$84-P$84) -> 4.20 m | R89: 2.16 m | Y89: 2.08 m | AN89: 577339/9 + 80x60x3 | AO89: 10.60 m | AP89: 13.92 m | AQ89: 8.94 m | AR89: 12.30 m | AS89: 7.82 m | AT89: 11.22 m | AU89: 6.97 m | AV89: 10.47 m | AW89: 6.27 m | AX89: 6.15 m | AY89: 5.66 m | AZ89: 4.54 m | BO89: 577339/9 + 80x60x3 | BP89: 11.51 m | BQ89: 15.21 m | BR89: 9.66 m | BS89: 13.32 m | BT89: 8.44 m | BU89: 12.08 m | BV89: 7.53 m | BW89: 11.23 m | BX89: 6.79 m | BY89: 6.66 m | BZ89: 6.15 m | CA89: 4.77 m
G90: Korrekturwert für Fall la= l | H90: =IF($D$43=$D$44,($H$85^0.5)*($H$86^0.5)*($H$87^0.5)*($H$88^0.5),0) -> 0.991 | M90: 577339/9 | N90: 5.62 m | O90: =N90-(N90-P90)*(O$84-N$84)/(P$84-N$84) -> 7.18 m | P90: 4.84 m | Q90: =P90-(P90-R90)*(Q$84-P$84)/(R$84-P$84) -> 6.64 m | R90: 4.24 m | S90: =R90-(R90-T90)*(S$84-R$84)/(T$84-R$84) -> 6.36 m | T90: 3.71 m | U90: =T90-(T90-V90)*(U$84-T$84)/(V$84-T$84) -> 6.21 m | V90: 3.21 m | Y90: 3.10 m | AH90: Korrekturwert für Fall la= l | AI90: =IF($D$43=$D$44,(AI85^0.5)*(AI86^0.5)*(AI87^0.5)*(AI88^0.5),0) -> 0.986 | AN90: 577339/9 + 80x60x5 | AO90: 11.33 m | AP90: 14.67 m | AQ90: 9.66 m | AR90: 13.11 m | AS90: 8.51 m | AT90: 12.03 m | AU90: 7.63 m | AV90: 11.23 m | AW90: 6.91 m | AX90: 6.78 m | AY90: 6.28 m | AZ90: 4.83 m | BO90: 577339/9 + 80x60x5 | BP90: 12.36 m | BQ90: 16.12 m | BR90: 10.48 m | BS90: 14.26 m | BT90: 9.22 m | BU90: 13.06 m | BV90: 8.26 m | BW90: 12.11 m | BX90: 7.49 m | BY90: 7.36 m | BZ90: 6.83 m | CA90: 5.08 m
M91: 577339/9 + 80x60x3 | N91: 6.46 m | O91: 7.96 m | P91: 5.71 m | Q91: 7.51 m | R91: 5.11 m | S91: 7.23 m | T91: 4.58 m | U91: 7.08 m | V91: 4.08 m | W91: =V91-(V91-X91)*(W$84-V$84)/(X$84-V$84) -> 3.98 m | X91: 3.58 m | Y91: 3.54 m | AN91: 579504/5 | AO91: 7.98 m | AP91: 10.88 m | AQ91: 6.53 m | AR91: 9.35 m | AS91: 5.59 m | AT91: 8.47 m | AU91: 4.87 m | AV91: 7.87 m | AW91: 4.27 m | AX91: 4.16 m | AY91: 3.74 m | AZ91: 3.62 m | BO91: 579504/5 | BP91: 8.56 m | BQ91: 11.68 m | BR91: 7.00 m | BS91: 10.00 m | BT91: 6.00 m | BU91: 9.00 m | BV91: 5.25 m | BW91: 8.35 m | BX91: 4.63 m | BY91: 4.52 m | BZ91: 4.07 m | CA91: 3.78 m
M92: 577339/9 + 80x60x5 | N92: 6.74 m | O92: 8.20 m | P92: 6.01 m | Q92: 7.78 m | R92: 5.42 m | S92: 7.50 m | T92: 4.90 m | U92: 7.40 m | V92: 4.40 m | W92: =V92-(V92-X92)*(W$84-V$84)/(X$84-V$84) -> 4.30 m | X92: 3.91 m | Y92: 3.70 m | AN92: 579504/5 + 100x20 | AO92: 10.91 m | AP92: =AO92-(AO92-AQ92)*(AP$82-AO$82)/(AQ$82-AO$82) -> 13.97 m | AQ92: 9.38 m | AR92: =AQ92-(AQ92-AS92)*(AR$82-AQ$82)/(AS$82-AQ$82) -> 12.59 m | AS92: 8.31 m | AT92: =AS92-(AS92-AU92)*(AT$82-AS$82)/(AU$82-AS$82) -> 11.67 m | AU92: 7.47 m | AV92: =AU92-(AU92-AW92)*(AV$82-AU$82)/(AW$82-AU$82) -> 10.97 m | AW92: 6.77 m | AX92: =AW92-(AW92-AY92)*(AX$82-AW$82)/(AY$82-AW$82) -> 6.65 m | AY92: 6.16 m | AZ92: 4.78 m | BO92: 579504/5 + 100x20 | BP92: 11.95 m | BQ92: =BP92-(BP92-BR92)*(BQ$82-BP$82)/(BR$82-BP$82) -> 15.41 m | BR92: 10.22 m | BS92: =BR92-(BR92-BT92)*(BS$82-BR$82)/(BT$82-BR$82) -> 13.82 m | BT92: 9.02 m | BU92: =BT92-(BT92-BV92)*(BU$82-BT$82)/(BV$82-BT$82) -> 12.66 m | BV92: 8.11 m | BW92: =BV92-(BV92-BX92)*(BW$82-BV$82)/(BX$82-BV$82) -> 11.86 m | BX92: 7.36 m | BY92: =BX92-(BX92-BZ92)*(BY$82-BX$82)/(BZ$82-BX$82) -> 7.23 m | BZ92: 6.72 m | CA92: 5.03 m
M93: 579504/5 | N93: 5.55 m | O93: 7.15 m | P93: 4.75 m | Q93: 6.58 m | R93: 4.14 m | S93: 6.26 m | T93: 3.61 m | U93: 6.21 m | V93: 3.09 m | Y93: 3.05 m | AN93: 579504/5 + 100x20x3 | AO93: 9.44 m | AP93: =AO93-(AO93-AQ93)*(AP$82-AO$82)/(AQ$82-AO$82) -> 12.50 m | AQ93: 7.91 m | AR93: =AQ93-(AQ93-AS93)*(AR$82-AQ$82)/(AS$82-AQ$82) -> 11.00 m | AS93: 6.88 m | AT93: =AS93-(AS93-AU93)*(AT$82-AS$82)/(AU$82-AS$82) -> 10.04 m | AU93: 6.09 m | AV93: =AU93-(AU93-AW93)*(AV$82-AU$82)/(AW$82-AU$82) -> 9.34 m | AW93: 5.44 m | AX93: =AW93-(AW93-AY93)*(AX$82-AW$82)/(AY$82-AW$82) -> 5.32 m | AY93: 4.86 m | AZ93: 4.16 m | BO93: 579504/5 + 100x20x3 | BP93: 10.23 m | BQ93: =BP93-(BP93-BR93)*(BQ$82-BP$82)/(BR$82-BP$82) -> 13.63 m | BR93: 8.53 m | BS93: =BR93-(BR93-BT93)*(BS$82-BR$82)/(BT$82-BR$82) -> 11.86 m | BT93: 7.42 m | BU93: =BT93-(BT93-BV93)*(BU$82-BT$82)/(BV$82-BT$82) -> 10.78 m | BV93: 6.58 m | BW93: =BV93-(BV93-BX93)*(BW$82-BV$82)/(BX$82-BV$82) -> 10.03 m | BX93: 5.89 m | BY93: =BX93-(BX93-BZ93)*(BY$82-BX$82)/(BZ$82-BX$82) -> 5.77 m | BZ93: 5.29 m | CA93: 4.37 m
M94: 579504/5 + 100x20 | N94: 7.09 m | O94: =N94-(N94-P94)*(O$84-N$84)/(P$84-N$84) -> 8.55 m | P94: 6.36 m | Q94: =P94-(P94-R94)*(Q$84-P$84)/(R$84-P$84) -> 8.10 m | R94: 5.78 m | S94: =R94-(R94-T94)*(S$84-R$84)/(T$84-R$84) -> 7.82 m | T94: 5.27 m | U94: 7.72 m | V94: 4.78 m | W94: =V94-(V94-X94)*(W$84-V$84)/(X$84-V$84) -> 4.68 m | X94: 4.29 m | Y94: 3.89 m
M95: 579504/5 + 100x20x3 | N95: 6.46 m | O95: =N95-(N95-P95)*(O$84-N$84)/(P$84-N$84) -> 8.04 m | P95: 5.67 m | Q95: 7.50 m | R95: 5.06 m | S95: 7.18 m | T95: 4.53 m | U95: 7.08 m | V95: 4.02 m | W95: =V95-(V95-X95)*(W$84-V$84)/(X$84-V$84) -> 3.92 m | X95: 3.52 m | Y95: 3.51 m | AN95: la zul | BO95: la zul
AN96: Gratsparren | AO96: l | AP96: la zul | BJ96: 5c) Tabellenwert l | BK96: =BQ97 -> 7.23 m | BO96: Gratsparren | BP96: l | BQ96: la zul
M97: la zul | AN97: =IF($D$45="","",MATCH($D$45,AN83:AN93)) -> 10 | AO97: =IF($D$43>3.5,"",MATCH($D$43,AO82:AY82,0)) -> 10 | AP97: =IF(OR($D$43="",$D$44=""),0,INDEX(AO83:AY93,AN97,AO97)) -> 6.65 m | BJ97: 5c) Korrigierter lzul1 | BK97: =IF($D$43=$D$44,BQ100*BJ88,BQ97*BJ83*BJ84*BJ85*BJ86) -> 503.00 m | BO97: =IF($D$45="","",MATCH($D$45,BO83:BO93)) -> 10 | BP97: =IF($D$43>3.5,"",MATCH($D$43,BP82:BZ82,0)) -> 10 | BQ97: =IF(OR($D$43="",$D$44=""),0,INDEX(BP83:BZ93,BO97,BP97)) -> 7.23 m
G98: 5a) Tabellenwert l | H98: =O99 -> 4.68 m | M98: Gratsparren | N98: l | O98: la zul | AH98: 5b) Tabellenwert l | AI98: =AP97 -> 6.65 m
G99: 5a) Korrigierter lzul1 | H99: =IF($D$43=$D$44,O102*H90,O99*H85*H86*H87*H88) -> 3.85 m | M99: =IF($D$45="","",MATCH($D$45,M85:M95)) -> 10 | N99: =IF($D$43>3.5,"",MATCH($D$43,N84:X84,0)) -> 10 | O99: =IF(OR($D$43="",$D$44=""),0,INDEX(N85:X95,M99,N99)) -> 4.68 m | AH99: 5b) Korrigierter lzul1 | AI99: =IF($D$43=$D$44,AP100*AI90,AP97*AI85*AI86*AI87*AI88) -> 4.71 m | AP99: l max | BQ99: l max
AP100: =VLOOKUP($D$45,AN83:AZ93,13) -> 4.78 | BQ100: =VLOOKUP($D$45,BO83:CA93,13) -> 5.03
O101: l max
O102: =VLOOKUP($D$45,M85:Y95,13) -> 3.89

Sheet Satteldach isoliert
B1: Kunde: | D1: ='Ermittlung Schneelast'!D6 -> 0.00
B2: BV: | D2: ='Ermittlung Schneelast'!D7 -> 0.00
A4: Satteldach isoliert, ohne Firstpfette, ohne Zuganker
A6: Nachweis Träger: vereinfachte, überschlägliche Bemessung
A7: lvorh | B7: = | C7: ='Ermittlung Schneelast'!_b2 -> 3.50 m
A8: l1, zul | B8: = | C8: ='Bemessungstabelle isoliert'!H19 -> 4.07 m
A9: l2, zul | B9: = | C9: ='Bemessungstabelle isoliert'!AI19 -> 5.70 m
A10: l3, zul | B10: = | C10: ='Bemessungstabelle isoliert'!BJ19 -> 62,700.00 m
A11: Durchbiegung w | B11: = | C11: ='Bemessungstabelle isoliert'!D16 -> 11.3 mm
A12: Dachneigung WG | B12: = | C12: ='Ermittlung Schneelast'!D18 -> 10.0°
A14: Nachweis der vertikalen Durchbiegung
A15: lvorh | B15: <= | C15: l1, zul
A16: =C7 -> 3.50 m | B16: =IF(A16<=C16,"<=",">") -> <= | C16: =C8 -> 4.07 m | D16: =IF(A16<=C16,"Bedingung erfüllt","Bedingung nicht erfüllt!!") -> Bedingung erfüllt
A18: Nachweis der Spannung im Firstpunkt
A19: Profil und Stahleinschub im Firstbereich | B19: = | C19: 579500+100*50*4 auf ganzer Länge +90*40*5 im First
A20: Korrekturfaktor k | B20: = | C20: =VLOOKUP(C19,Daten!A63:B73,2) -> 0.9
A22: lvorh | B22: <= | C22: l2, zul * k
A23: =C7 -> 3.50 m | B23: =IF(A23<=C23,"<=",">") -> <= | C23: =C9*C20 -> 5.13 m | D23: =IF(A23<=C23,"Bedingung erfüllt","Bedingung nicht erfüllt!!") -> Bedingung erfüllt
A25: lvorh | B25: <= | C25: l3, zul * k
A26: =C7 -> 3.50 m | B26: =IF(A26<=C26,"<=",">") -> <= | C26: =C10*C20 -> 56,430.00 m | D26: =IF(A26<=C26,"Bedingung erfüllt","Bedingung nicht erfüllt!!") -> Bedingung erfüllt
A28: Nachweis der horizontalen Rinnenverschiebung u
A29: Rinnenlänge b | B29: = | C29: 5.20 m
A30: Anzahl Rinnen, die verschiebbar sind | B30: = | C30: 2 Rinne(n)
A32: u | B32: <= | C32: 8 mm oder b/500
A33: =IF(C30=2,C11*TAN(C12*PI()/180)*1,IF(C30=1,C11*TAN(C12*PI()/180)*2,"nicht möglich")) -> 2.0 mm | B33: =IF(A33<=C33,"<=",">") -> <= | C33: =IF(8<C29*1000/500,8,C29*1000/500) -> 8.0 mm | D33: =IF(A33<=C33,"Bedingung erfüllt","Bedingung nicht erfüllt!!") -> Bedingung erfüllt
A35: Nachweis Rinne: vereinfachte, überschlägliche Bemessung der Durchbiegung
A37: ='Bemessungstabelle isoliert'!B28 -> 5.10 m | B37: =IF(A37<=C37,"<=",">") -> > | C37: ='Bemessungstabelle isoliert'!D28*0.9 -> 2.48 m | D37: =IF(A37<=C37,"Bedingung erfüllt","Bedingung nicht erfüllt!!") -> Bedingung nicht erfüllt!!
A39: Berechnungsgrundlage: Skribt "Schulung am 28.11.2012 bei TS-Aluminium in Großefehn", Autor Herr Meier-Hedde

Sheet Bemessungstabelle unisoliert
B1: Kunde: | D1: ='Ermittlung Schneelast'!D6 -> 0 | G1: 1a) Korrekturfaktoren Träger | J1: 1a) sDA | K1: 1a) ki | M1: 1a) Träger | N1: 0.50 m | O1: =IF(AND($D$12>0.5,$D$12<0.6),$D$12,0) -> 0.00 m | P1: 0.60 m | Q1: =IF(AND($D$12>0.6,$D$12<0.7),$D$12,0) -> 0.00 m | R1: 0.70 m | S1: =IF(AND($D$12>0.7,$D$12<0.8),$D$12,0) -> 0.00 m | T1: 0.80 m | U1: =IF(AND($D$12>0.8,$D$12<0.9),$D$12,0) -> 0.85 m | V1: 0.90 m | W1: =IF(AND($D$12>0.9,$D$12<1),$D$12,0) -> 0.00 m | X1: 1.00 m | Y1: =IF(AND($D$12>1,$D$12<1.1),$D$12,0) -> 0.00 m | Z1: 1.10 m | AJ1: 1b) Korrekturfaktoren | AM1: 1b) sDA | AN1: 1b) ki | AP1: 1b) Träger | AQ1: 0.50 m | AR1: =IF(AND($D$12>0.5,$D$12<0.6),$D$12,0) -> 0.00 m | AS1: 0.60 m | AT1: =IF(AND($D$12>0.6,$D$12<0.7),$D$12,0) -> 0.00 m | AU1: 0.70 m | AV1: =IF(AND($D$12>0.7,$D$12<0.8),$D$12,0) -> 0.00 m | AW1: 0.80 m | AX1: =IF(AND($D$12>0.8,$D$12<0.9),$D$12,0) -> 0.85 m | AY1: 0.90 m | AZ1: =IF(AND($D$12>0.9,$D$12<1),$D$12,0) -> 0.00 m | BA1: 1.00 m | BB1: =IF(AND($D$12>1,$D$12<1.1),$D$12,0) -> 0.00 m | BC1: 1.10 m | BM1: 1c) Korrekturfaktoren | BP1: 1c) sa | BQ1: 1c) ki | BS1: 1c) Träger | BT1: 0.50 m | BU1: =IF(AND($D$12>0.5,$D$12<0.6),$D$12,0) -> 0.00 m | BV1: 0.60 m | BW1: =IF(AND($D$12>0.6,$D$12<0.7),$D$12,0) -> 0.00 m | BX1: 0.70 m | BY1: =IF(AND($D$12>0.7,$D$12<0.8),$D$12,0) -> 0.00 m | BZ1: 0.80 m | CA1: =IF(AND($D$12>0.8,$D$12<0.9),$D$12,0) -> 0.85 m | CB1: 0.90 m | CC1: =IF(AND($D$12>0.9,$D$12<1),$D$12,0) -> 0.00 m | CD1: 1.00 m | CE1: =IF(AND($D$12>1,$D$12<1.1),$D$12,0) -> 0.00 m | CF1: 1.10 m
B2: BV: | D2: ='Ermittlung Schneelast'!D7 -> 0 | G2: 1a) Verglasung | H2: =VLOOKUP($D$5,Daten!$F$38:$G$43,2) -> 1.000 | J2: 0.52 kN/qm | K2: 1.12 | M2: 261051 | N2: 3.45 m | O2: =N2-(N2-P2)*($O$1-$N$1)/($P$1-$N$1) -> 4.45 m | P2: 3.25 m | Q2: =P2-(P2-R2)*($Q$1-$P$1)/($R$1-$P$1) -> 4.15 m | R2: 3.10 m | S2: =R2-(R2-T2)*($S$1-$R$1)/($T$1-$R$1) -> 4.08 m | T2: 2.96 m | U2: =T2-(T2-V2)*($U$1-$T$1)/($V$1-$T$1) -> 2.91 m | V2: 2.85 m | W2: =V2-(V2-X2)*($W$1-$V$1)/($X$1-$V$1) -> 3.75 m | X2: 2.75 m | Y2: =X2-(X2-Z2)*($Y$1-$X$1)/($Z$1-$X$1) -> 3.55 m | Z2: 2.67 m | AJ2: 1b) Verglasung | AK2: =VLOOKUP($D$5,Daten!$F$38:$G$43,2) -> 1.000 | AM2: 0.52 kN/qm | AN2: 1.20 | AP2: 261051 | AQ2: 3.90 m | AR2: =AQ2-(AQ2-AS2)*($O$1-$N$1)/($P$1-$N$1) -> 5.50 m | AS2: 3.58 m | AT2: =AS2-(AS2-AU2)*($Q$1-$P$1)/($R$1-$P$1) -> 5.14 m | AU2: 3.32 m | AV2: =AU2-(AU2-AW2)*($S$1-$R$1)/($T$1-$R$1) -> 4.79 m | AW2: 3.11 m | AX2: =AW2-(AW2-AY2)*($U$1-$T$1)/($V$1-$T$1) -> 3.02 m | AY2: 2.93 m | AZ2: =AY2-(AY2-BA2)*($W$1-$V$1)/($X$1-$V$1) -> 4.28 m | BA2: 2.78 m | BB2: =BA2-(BA2-BC2)*($Y$1-$X$1)/($Z$1-$X$1) -> 4.08 m | BC2: 2.65 m | BM2: 1c) Verglasung | BN2: =VLOOKUP($D$5,Daten!$F$38:$G$43,2) -> 1.000 | BP2: 1.196 kN/qm | BQ2: 1.09 | BS2: 261051 | BT2: 4.44 m | BU2: =BT2-(BT2-BV2)*($O$1-$N$1)/($P$1-$N$1) -> 6.29 m | BV2: 4.07 m | BW2: =BV2-(BV2-BX2)*($Q$1-$P$1)/($R$1-$P$1) -> 5.87 m | BX2: 3.77 m | BY2: =BX2-(BX2-BZ2)*($S$1-$R$1)/($T$1-$R$1) -> 5.45 m | BZ2: 3.53 m | CA2: =BZ2-(BZ2-CB2)*($U$1-$T$1)/($V$1-$T$1) -> 3.43 m | CB2: 3.33 m | CC2: =CB2-(CB2-CD2)*($W$1-$V$1)/($X$1-$V$1) -> 4.86 m | CD2: 3.16 m | CE2: =CD2-(CD2-CF2)*($Y$1-$X$1)/($Z$1-$X$1) -> 4.56 m | CF2: 3.02 m
G3: 1a) Schnee sDA | H3: =VLOOKUP(D6,J2:K14,2) -> 0.982 | J3: =IF(AND($D$6>J2,$D$6<J4),$D$6,"nicht interpolieren") -> nicht interpolieren | K3: =K2-(K2-K4)*(J3-J2)/(J4-J2) ->  | M3: 261051+100x10 | N3: 4.84 m | O3: 6.14 m | P3: 4.58 m | Q3: 5.78 m | R3: 4.38 m | S3: 5.64 m | T3: 4.20 m | U3: 4.13 m | V3: 4.05 m | W3: 5.22 m | X3: 3.92 m | Y3: 5.02 m | Z3: 3.81 m | AJ3: 1b) Schnee sDA | AK3: =VLOOKUP(D6,AM2:AN17,2) -> 0.974 | AM3: =IF(AND($D$6>AM2,$D$6<AM4),$D$6,"nicht interpolieren") -> nicht interpolieren | AN3: =AN2-(AN2-AN4)*(AM3-AM2)/(AM4-AM2) ->  | AP3: 261051+100x10 | AQ3: 6.06 m | AR3: 8.46 m | AS3: 5.58 m | AT3: 7.86 m | AU3: 5.20 m | AV3: 7.37 m | AW3: 4.89 m | AX3: 4.76 m | AY3: 4.63 m | AZ3: 6.61 m | BA3: 4.41 m | BB3: =BA3-(BA3-BC3)*($Y$1-$X$1)/($Z$1-$X$1) -> 6.41 m | BC3: 4.21 m | BM3: 1c) außergewöhnliche Schneelast sa | BN3: =IF('Ermittlung Schneelast'!D17="nein",10000,VLOOKUP(D7,BP2:BQ15,2)) -> 10000.000 | BP3: =IF(AND($D$7>BP2,$D$7<BP4),$D$7,"nicht interpolieren") -> nicht interpolieren | BQ3: =BQ2-(BQ2-BQ4)*(BP3-BP2)/(BP4-BP2) ->  | BS3: 261051+100x10 | BT3: 6.87 m | BU3: 9.42 m | BV3: 6.36 m | BW3: 9.00 m | BX3: 5.92 m | BY3: 8.37 m | BZ3: 5.57 m | CA3: 5.42 m | CB3: 5.27 m | CC3: 7.61 m | CD3: 5.01 m | CE3: 7.21 m | CF3: 4.79 m
B4: Bemessungstabelle: Pos. 1.1 Mittelträger unisoliert | G4: 1a) Wind | H4: =VLOOKUP($D$8,Daten!$A$50:$B$57,2) -> 1.000 | J4: 0.75 kN/qm | K4: 1.06 | M4: 261052 | N4: 4.08 m | O4: 5.23 m | P4: 3.85 m | Q4: 4.93 m | R4: 3.67 m | S4: 4.79 m | T4: 3.51 m | U4: 3.45 m | V4: 3.38 m | W4: 4.46 m | X4: 3.26 m | Y4: 4.26 m | Z4: 3.16 m | AJ4: 1b) Wind | AK4: =VLOOKUP($D$8,Daten!$A$50:$C$57,3) -> 1.000 | AM4: 0.75 kN/qm | AN4: 1.09 | AP4: 261052 | AQ4: 5.37 m | AR4: 7.62 m | AS4: 4.92 m | AT4: 7.08 m | AU4: 4.56 m | AV4: 6.52 m | AW4: 4.28 m | AX4: 4.16 m | AY4: 4.04 m | AZ4: 5.93 m | BA4: 3.83 m | BB4: 5.53 m | BC4: 3.66 m | BM4: 1c) Wind | BN4: 1.000 | BP4: 1.50 kN/qm | BQ4: 1.00 | BS4: 261052 | BT4: 6.11 m | BU4: 8.71 m | BV4: 5.59 m | BW4: 7.99 m | BX4: 5.19 m | BY4: 7.50 m | BZ4: 4.86 m | CA4: 4.73 m | CB4: 4.59 m | CC4: 6.66 m | CD4: 4.36 m | CE4: 6.36 m | CF4: 4.16 m
B5: Dachlast gDa | C5: = | D5: 10mm VSG | G5: 1a) Dachneigung | H5: =VLOOKUP($D$9,J17:K22,2) -> 1.000 | J5: =IF(AND($D$6>J4,$D$6<J6),$D$6,"nicht interpolieren") -> nicht interpolieren | K5: =K4-(K4-K6)*(J5-J4)/(J6-J4) ->  | M5: 261052+80x10 | N5: 4.68 m | O5: 5.93 m | P5: 4.43 m | Q5: 5.63 m | R5: 4.23 m | S5: 5.42 m | T5: 4.06 m | U5: 3.99 m | V5: 3.91 m | W5: 5.08 m | X5: 3.78 m | Y5: 4.88 m | Z5: 3.67 m | AJ5: 1b) Dachneigung | AK5: =VLOOKUP($D$9,AM20:AN25,2) -> 1.000 | AM5: =IF(AND($D$6>AM4,$D$6<AM6),$D$6,"nicht interpolieren") -> nicht interpolieren | AN5: =AN4-(AN4-AN6)*(AM5-AM4)/(AM6-AM4) ->  | AP5: 261052+80x10 | AQ5: 6.43 m | AR5: 8.98 m | AS5: 5.92 m | AT5: 8.32 m | AU5: 5.52 m | AV5: 7.83 m | AW5: 5.19 m | AX5: 5.05 m | AY5: 4.91 m | AZ5: 7.07 m | BA5: 4.67 m | BB5: 6.77 m | BC5: 4.46 m | BM5: 1c) Dachneigung | BN5: =VLOOKUP($D$9,BP18:BQ23,2) -> 1.000 | BP5: =IF(AND($D$7>BP4,$D$7<BP6),$D$7,"nicht interpolieren") -> nicht interpolieren | BQ5: =BQ4-(BQ4-BQ6)*(BP5-BP4)/(BP6-BP4) ->  | BS5: 261052+80x10 | BT5: 7.33 m | BU5: 10.28 m | BV5: 6.74 m | BW5: 9.50 m | BX5: 6.28 m | BY5: 8.94 m | BZ5: 5.90 m | CA5: 5.75 m | CB5: 5.59 m | CC5: 8.11 m | CD5: 5.31 m | CE5: 7.61 m | CF5: 5.08 m
B6: normale Schneelast sDa | C6: = | D6: ='Ermittlung Schneelast'!D53 -> 1.100 kN/qm | G6: zul. Durchbiegung | H6: =VLOOKUP($D$13,Daten!$A$44:$B$47,2) -> 1.000 | J6: 1.00 kN/qm | K6: 1.00 | M6: 261071 | N6: 4.62 m | O6: 5.92 m | P6: 4.36 m | Q6: 5.62 m | R6: 4.15 m | S6: 5.41 m | T6: 3.97 m | U6: 3.90 m | V6: 3.82 m | W6: 4.99 m | X6: 3.69 m | Y6: 4.79 m | Z6: 3.58 m | AJ6: zul. Durchbiegung | AK6: =VLOOKUP($D$13,Daten!$A$44:$B$47,2) -> 1.000 | AM6: 1.00 kN/qm | AN6: 1.00 | AP6: 261071 | AQ6: 5.42 m | AR6: 7.67 m | AS6: 4.97 m | AT6: 7.13 m | AU6: 4.61 m | AV6: 6.64 m | AW6: 4.32 m | AX6: 4.20 m | AY6: 4.08 m | AZ6: 5.97 m | BA6: 3.87 m | BB6: 5.67 m | BC6: 3.69 m | BM6: zul. Durchbiegung | BN6: =VLOOKUP($D$13,Daten!$A$44:$B$47,2) -> 1.000 | BP6: 2.00 kN/qm | BQ6: 0.88 | BS6: 261071 | BT6: 6.17 m | BU6: 8.77 m | BV6: 5.65 m | BW6: 8.11 m | BX6: 5.24 m | BY6: 7.55 m | BZ6: 4.91 m | CA6: 4.77 m | CB6: 4.63 m | CC6: 6.70 m | CD6: 4.40 m | CE6: 6.40 m | CF6: 4.20 m
B7: außergewöhnliche Schneelast sa | C7: = | D7: ='Ermittlung Schneelast'!D54 -> nur erforderlich für Norddeutsches Tiefland | J7: =IF(AND($D$6>J6,$D$6<J8),$D$6,"nicht interpolieren") -> 1.10 kN/qm | K7: =K6-(K6-K8)*(J7-J6)/(J8-J6) -> 0.98 | M7: 261071+100x10 | N7: 5.48 m | O7: 6.88 m | P7: 5.20 m | Q7: 6.64 m | R7: 4.96 m | S7: 6.29 m | T7: 4.77 m | U7: 4.69 m | V7: 4.60 m | W7: 5.95 m | X7: 4.45 m | Y7: 5.75 m | Z7: 4.32 m | AM7: =IF(AND($D$6>AM6,$D$6<AM8),$D$6,"nicht interpolieren") -> 1.10 kN/qm | AN7: =AN6-(AN6-AN8)*(AM7-AM6)/(AM8-AM6) -> 0.97 | AP7: 261071+100x10 | AQ7: 7.04 m | AR7: 9.79 m | AS7: 6.49 m | AT7: 9.07 m | AU7: 6.06 m | AV7: 8.58 m | AW7: 5.70 m | AX7: 5.55 m | AY7: 5.39 m | AZ7: 7.73 m | BA7: 5.13 m | BB7: 7.33 m | BC7: 4.91 m | BP7: =IF(AND($D$7>BP6,$D$7<BP8),$D$7,"nicht interpolieren") -> nicht interpolieren | BQ7: =BQ6-(BQ6-BQ8)*(BP7-BP6)/(BP8-BP6) ->  | BS7: 261071+100x10 | BT7: 8.02 m | BU7: 11.12 m | BV7: 7.40 m | BW7: 10.46 m | BX7: 6.89 m | BY7: 9.76 m | BZ7: 6.48 m | CA7: 6.31 m | CB7: 6.14 m | CC7: 8.84 m | CD7: 5.84 m | CE7: 8.34 m | CF7: 5.59 m
B8: Windzone WZ | C8: = | D8: ='Ermittlung Schneelast'!D11:F11 -> 1, Binnenland | J8: 1.50 kN/qm | K8: 0.91 | M8: 261072 | N8: 5.32 m | O8: 6.82 m | P8: 5.02 m | Q8: 6.46 m | R8: 4.78 m | S8: 6.18 m | T8: 4.58 m | U8: 4.50 m | V8: 4.41 m | W8: 5.76 m | X8: 4.26 m | Y8: 5.56 m | Z8: 4.13 m | AM8: 1.50 kN/qm | AN8: 0.87 | AP8: 261072 | AQ8: 7.31 m | AR8: 10.31 m | AS8: 6.71 m | AT8: 9.59 m | AU8: 6.23 m | AV8: 8.96 m | AW8: 5.84 m | AX8: 5.68 m | AY8: 5.51 m | AZ8: 7.94 m | BA8: 5.24 m | BB8: 7.64 m | BC8: 5.00 m | BP8: 2.50 kN/qm | BQ8: 0.80 | BS8: 261072 | BT8: 8.32 m | BU8: 11.77 m | BV8: 7.63 m | BW8: 10.93 m | BX8: 7.08 m | BY8: 10.16 m | BZ8: 6.64 m | CA8: 6.46 m | CB8: 6.27 m | CC8: 9.06 m | CD8: 5.96 m | CE8: 8.66 m | CF8: 5.69 m
B9: Dachneigung WG | C9: = | D9: ='Ermittlung Schneelast'!D18 -> 10.0° | J9: =IF(AND($D$6>J8,$D$6<J10),$D$6,"nicht interpolieren") -> nicht interpolieren | K9: =K8-(K8-K10)*(J9-J8)/(J10-J8) ->  | M9: 261072+100x10 | N9: 5.96 m | O9: 7.51 m | P9: 5.65 m | Q9: 7.15 m | R9: 5.40 m | S9: 6.94 m | T9: 5.18 m | U9: 5.09 m | V9: 5.00 m | W9: 6.44 m | X9: 4.84 m | Y9: 6.24 m | Z9: 4.70 m | AM9: =IF(AND($D$6>AM8,$D$6<AM13),$D$6,"nicht interpolieren") -> nicht interpolieren | AN9: =AN8-(AN8-AN13)*(AM9-AM8)/(AM13-AM8) ->  | AP9: 261072+100x10 | AQ9: 8.28 m | AR9: 11.48 m | AS9: 7.64 m | AT9: 10.70 m | AU9: 7.13 m | AV9: 10.07 m | AW9: 6.71 m | AX9: 6.54 m | AY9: 6.36 m | AZ9: 9.06 m | BA9: 6.06 m | BB9: 8.76 m | BC9: 5.79 m | BP9: =IF(AND($D$7>BP8,$D$7<BP13),$D$7,"nicht interpolieren") -> nicht interpolieren | BQ9: =BQ8-(BQ8-BQ13)*(BP9-BP8)/(BP13-BP8) ->  | BS9: 261072+100x10 | BT9: 9.44 m | BU9: 13.09 m | BV9: 8.71 m | BW9: 12.25 m | BX9: 8.12 m | BY9: 11.48 m | BZ9: 7.64 m | CA9: 7.44 m | CB9: 7.24 m | CC9: 10.39 m | CD9: 6.89 m | CE9: 9.89 m | CF9: 6.59 m
B10: Tiefe WG b2 | C10: = | D10: ='Ermittlung Schneelast'!_b2 -> 3.50 m | J10: 2.00 kN/qm | K10: 0.84 | M10: 5415140 | N10: 3.89 m | O10: =N10-(N10-P10)*($O$1-$N$1)/($P$1-$N$1) -> 4.99 m | P10: 3.67 m | Q10: =P10-(P10-R10)*($Q$1-$P$1)/($R$1-$P$1) -> 4.75 m | R10: 3.49 m | S10: =R10-(R10-T10)*($S$1-$R$1)/($T$1-$R$1) -> 4.54 m | T10: 3.34 m | U10: =T10-(T10-V10)*($U$1-$T$1)/($V$1-$T$1) -> 3.28 m | V10: 3.22 m | W10: =V10-(V10-X10)*($W$1-$V$1)/($X$1-$V$1) -> 4.21 m | X10: 3.11 m | Y10: =X10-(X10-Z10)*($Y$1-$X$1)/($Z$1-$X$1) -> 4.11 m | Z10: 3.01 m | AP10: 5415140 | AQ10: 5.23 m | AR10: =AQ10-(AQ10-AS10)*($O$1-$N$1)/($P$1-$N$1) -> 7.43 m | AS10: 4.79 m | AT10: =AS10-(AS10-AU10)*($Q$1-$P$1)/($R$1-$P$1) -> 6.89 m | AU10: 4.44 m | AV10: =AU10-(AU10-AW10)*($S$1-$R$1)/($T$1-$R$1) -> 6.40 m | AW10: 4.16 m | AX10: =AW10-(AW10-AY10)*($U$1-$T$1)/($V$1-$T$1) -> 4.04 m | AY10: 3.92 m | AZ10: =AY10-(AY10-BA10)*($W$1-$V$1)/($X$1-$V$1) -> 5.63 m | BA10: 3.73 m | BB10: =BA10-(BA10-BC10)*($Y$1-$X$1)/($Z$1-$X$1) -> 5.43 m | BC10: 3.56 m | BS10: 5415140 | BT10: 5.95 m | BU10: =BT10-(BT10-BV10)*($O$1-$N$1)/($P$1-$N$1) -> 8.50 m | BV10: 5.44 m | BW10: =BV10-(BV10-BX10)*($Q$1-$P$1)/($R$1-$P$1) -> 7.78 m | BX10: 5.05 m | BY10: =BX10-(BX10-BZ10)*($S$1-$R$1)/($T$1-$R$1) -> 7.29 m | BZ10: 4.73 m | CA10: =BZ10-(BZ10-CB10)*($U$1-$T$1)/($V$1-$T$1) -> 4.60 m | CB10: 4.46 m | CC10: =CB10-(CB10-CD10)*($W$1-$V$1)/($X$1-$V$1) -> 6.44 m | CD10: 4.24 m | CE10: =CD10-(CD10-CF10)*($Y$1-$X$1)/($Z$1-$X$1) -> 6.24 m | CF10: 4.04 m
B11: Träger | C11: = | D11: 5415140 | J11: =IF(AND($D$6>J10,$D$6<J12),$D$6,"nicht interpolieren") -> nicht interpolieren | K11: =K10-(K10-K12)*(J11-J10)/(J12-J10) ->  | M11: 5415140+70x30x3 | N11: 4.40 m | O11: =N11-(N11-P11)*($O$1-$N$1)/($P$1-$N$1) -> 5.60 m | P11: 4.16 m | Q11: =P11-(P11-R11)*($Q$1-$P$1)/($R$1-$P$1) -> 5.36 m | R11: 3.96 m | S11: =R11-(R11-T11)*($S$1-$R$1)/($T$1-$R$1) -> 5.08 m | T11: 3.80 m | U11: =T11-(T11-V11)*($U$1-$T$1)/($V$1-$T$1) -> 3.73 m | V11: 3.66 m | W11: =V11-(V11-X11)*($W$1-$V$1)/($X$1-$V$1) -> 4.74 m | X11: 3.54 m | Y11: =X11-(X11-Z11)*($Y$1-$X$1)/($Z$1-$X$1) -> 4.64 m | Z11: 3.43 m | AP11: 5415140+70x30x3 | AQ11: 6.26 m | AR11: =AQ11-(AQ11-AS11)*($O$1-$N$1)/($P$1-$N$1) -> 8.81 m | AS11: 5.75 m | AT11: =AS11-(AS11-AU11)*($Q$1-$P$1)/($R$1-$P$1) -> 8.15 m | AU11: 5.35 m | AV11: =AU11-(AU11-AW11)*($S$1-$R$1)/($T$1-$R$1) -> 7.66 m | AW11: 5.02 m | AX11: =AW11-(AW11-AY11)*($U$1-$T$1)/($V$1-$T$1) -> 4.89 m | AY11: 4.75 m | AZ11: =AY11-(AY11-BA11)*($W$1-$V$1)/($X$1-$V$1) -> 6.82 m | BA11: 4.52 m | BB11: =BA11-(BA11-BC11)*($Y$1-$X$1)/($Z$1-$X$1) -> 6.62 m | BC11: 4.31 m | BS11: 5415140+70x30x3 | BT11: 7.13 m | BU11: =BT11-(BT11-BV11)*($O$1-$N$1)/($P$1-$N$1) -> 10.03 m | BV11: 6.55 m | BW11: =BV11-(BV11-BX11)*($Q$1-$P$1)/($R$1-$P$1) -> 9.31 m | BX11: 6.09 m | BY11: =BX11-(BX11-BZ11)*($S$1-$R$1)/($T$1-$R$1) -> 8.68 m | BZ11: 5.72 m | CA11: =BZ11-(BZ11-CB11)*($U$1-$T$1)/($V$1-$T$1) -> 5.56 m | CB11: 5.40 m | CC11: =CB11-(CB11-CD11)*($W$1-$V$1)/($X$1-$V$1) -> 7.74 m | CD11: 5.14 m | CE11: =CD11-(CD11-CF11)*($Y$1-$X$1)/($Z$1-$X$1) -> 7.44 m | CF11: 4.91 m
B12: Achsabstand | C12: = | D12: 0.85 m | E12: =IF(OR(D12<0.5,D12>1.1),"Achtung: Trägerabstand muss zwischen 0,50 m und 1,10 m betragen!","") ->  | J12: 2.50 kN/qm | K12: 0.80 | M12: 5415140+Z-Profil | N12: 5.19 m | O12: 6.59 m | P12: 4.91 m | Q12: 6.29 m | R12: 4.68 m | S12: 6.01 m | T12: 4.49 m | U12: 4.41 m | V12: 4.33 m | W12: 5.68 m | X12: 4.18 m | Y12: 5.38 m | Z12: 4.06 m | AP12: 5415140+Z-Profil | AQ12: 6.42 m | AR12: 9.02 m | AS12: 5.90 m | AT12: 8.36 m | AU12: 5.49 m | AV12: 7.87 m | AW12: 5.15 m | AX12: 5.01 m | AY12: 4.87 m | AZ12: 7.03 m | BA12: 4.63 m | BB12: 6.73 m | BC12: 4.42 m | BS12: 5415140+Z-Profil | BT12: 7.31 m | BU12: 10.31 m | BV12: 6.71 m | BW12: 9.53 m | BX12: 6.24 m | BY12: 8.90 m | BZ12: 5.86 m | CA12: 5.70 m | CB12: 5.54 m | CC12: 7.97 m | CD12: 5.27 m | CE12: 7.67 m | CF12: 5.03 m
B13: zul. Durchbiegung | C13: = | D13: l/200 | E13: Info | J13: =IF(AND($D$6>J12,$D$6<J14),$D$6,"nicht interpolieren") -> nicht interpolieren | K13: =K12-(K12-K14)*(J13-J12)/(J14-J12) ->  | M13: 5415141 | N13: 3.59 m | O13: =N13-(N13-P13)*($O$1-$N$1)/($P$1-$N$1) -> 4.64 m | P13: 3.38 m | Q13: =P13-(P13-R13)*($Q$1-$P$1)/($R$1-$P$1) -> 4.34 m | R13: 3.22 m | S13: =R13-(R13-T13)*($S$1-$R$1)/($T$1-$R$1) -> 4.20 m | T13: 3.08 m | U13: =T13-(T13-V13)*($U$1-$T$1)/($V$1-$T$1) -> 3.02 m | V13: 2.96 m | W13: =V13-(V13-X13)*($W$1-$V$1)/($X$1-$V$1) -> 3.86 m | X13: 2.86 m | Y13: =X13-(X13-Z13)*($Y$1-$X$1)/($Z$1-$X$1) -> 3.76 m | Z13: 2.77 m | AM13: 2.00 kN/qm | AN13: 0.78 | AP13: 5415141 | AQ13: 4.38 m | AR13: =AQ13-(AQ13-AS13)*($O$1-$N$1)/($P$1-$N$1) -> 6.23 m | AS13: 4.01 m | AT13: =AS13-(AS13-AU13)*($Q$1-$P$1)/($R$1-$P$1) -> 5.75 m | AU13: 3.72 m | AV13: =AU13-(AU13-AW13)*($S$1-$R$1)/($T$1-$R$1) -> 5.40 m | AW13: 3.48 m | AX13: =AW13-(AW13-AY13)*($U$1-$T$1)/($V$1-$T$1) -> 3.39 m | AY13: 3.29 m | AZ13: =AY13-(AY13-BA13)*($W$1-$V$1)/($X$1-$V$1) -> 4.82 m | BA13: 3.12 m | BB13: =BA13-(BA13-BC13)*($Y$1-$X$1)/($Z$1-$X$1) -> 4.52 m | BC13: 2.98 m | BP13: 3.00 kN/qm | BQ13: 0.74 | BS13: 5415141 | BT13: 4.98 m | BU13: =BT13-(BT13-BV13)*($O$1-$N$1)/($P$1-$N$1) -> 7.08 m | BV13: 4.56 m | BW13: =BV13-(BV13-BX13)*($Q$1-$P$1)/($R$1-$P$1) -> 6.54 m | BX13: 4.23 m | BY13: =BX13-(BX13-BZ13)*($S$1-$R$1)/($T$1-$R$1) -> 6.12 m | BZ13: 3.96 m | CA13: =BZ13-(BZ13-CB13)*($U$1-$T$1)/($V$1-$T$1) -> 3.85 m | CB13: 3.74 m | CC13: =CB13-(CB13-CD13)*($W$1-$V$1)/($X$1-$V$1) -> 5.45 m | CD13: 3.55 m | CE13: =CD13-(CD13-CF13)*($Y$1-$X$1)/($Z$1-$X$1) -> 5.25 m | CF13: 3.38 m
B14: =D10 -> 3.50 m | C14: =IF(B14<D14,"<",">") -> > | D14: =MIN(H15,AK22,BN22) -> 3.22 m | G14: 1a) Tabellenwert l | H14: =O28 -> 3.28 m | J14: 3.00 kN/qm | K14: 0.76 | M14: 5415141+110x15 | N14: 5.67 m | O14: 7.07 m | P14: 5.39 m | Q14: 6.77 m | R14: 5.16 m | S14: 6.56 m | T14: 4.96 m | U14: 4.88 m | V14: 4.79 m | W14: 6.14 m | X14: 4.64 m | Y14: 6.04 m | Z14: 4.50 m | AM14: =IF(AND($D$6>AM13,$D$6<AM15),$D$6,"nicht interpolieren") -> nicht interpolieren | AN14: =AN13-(AN13-AN15)*(AM14-AM13)/(AM15-AM13) ->  | AP14: 5415141+110x15 | AQ14: 7.34 m | AR14: 10.09 m | AS14: 6.79 m | AT14: 9.43 m | AU14: 6.35 m | AV14: 8.94 m | AW14: 5.98 m | AX14: 5.83 m | AY14: 5.67 m | AZ14: 8.01 m | BA14: 5.41 m | BB14: =BA14-(BA14-BC14)*($Y$1-$X$1)/($Z$1-$X$1) -> 7.71 m | BC14: 5.18 m | BP14: =IF(AND($D$7>BP13,$D$7<BP15),$D$7,"nicht interpolieren") -> nicht interpolieren | BQ14: =BQ13-(BQ13-BQ15)*(BP14-BP13)/(BP15-BP13) ->  | BS14: 5415141+110x15 | BT14: 8.37 m | BU14: 11.52 m | BV14: 7.74 m | BW14: 10.80 m | BX14: 7.23 m | BY14: 10.10 m | BZ14: 6.82 m | CA14: 6.64 m | CB14: 6.46 m | CC14: 9.16 m | CD14: 6.16 m | CE14: 8.86 m | CF14: 5.89 m
D15: =IF(B14>D14,"Bedingung nicht erfüllt!","Bedingung erfüllt!") -> Bedingung nicht erfüllt! | G15: 1a) Korrigierter lzul1 | H15: =H14*H2*H3*H4*H5*H6 -> 3.22 m | M15: 5415141+Z-Profil | N15: 5.05 m | O15: 6.45 m | P15: 4.77 m | Q15: 6.09 m | R15: 4.55 m | S15: 5.88 m | T15: 4.36 m | U15: 4.28 m | V15: 4.20 m | W15: 5.46 m | X15: 4.06 m | Y15: 5.26 m | Z15: 3.94 m | AM15: 2.50 kN/qm | AN15: 0.71 | AP15: 5415141+Z-Profil | AQ15: 6.14 m | AR15: 8.64 m | AS15: 5.64 m | AT15: 7.98 m | AU15: 5.25 m | AV15: 7.49 m | AW15: 4.93 m | AX15: 4.80 m | AY15: 4.66 m | AZ15: 6.73 m | BA15: 4.43 m | BB15: =BA15-(BA15-BC15)*($Y$1-$X$1)/($Z$1-$X$1) -> 6.43 m | BC15: 4.23 m | BP15: 4.00 kN/qm | BQ15: 0.64 | BS15: 5415141+Z-Profil | BT15: 6.99 m | BU15: 9.84 m | BV15: 6.42 m | BW15: 9.12 m | BX15: 5.97 m | BY15: 8.56 m | BZ15: 5.60 m | CA15: 5.45 m | CB15: 5.30 m | CC15: 7.73 m | CD15: 5.03 m | CE15: 7.23 m | CF15: 4.81 m
B16: Durchbiegung w | C16: = | D16: =((1000/VLOOKUP('Bemessungstabelle unisoliert'!D13,Daten!A22:B25,2))*D10^4/H15^3)/COS($D$9*PI()/180) -> 23 mm | J16: 1a) Dachneigung | K16: 1a) k | M16: 5415142 | N16: 5.05 m | O16: 6.45 m | P16: 4.77 m | Q16: 6.21 m | R16: 4.53 m | S16: 5.86 m | T16: 4.34 m | U16: 4.26 m | V16: 4.18 m | W16: 5.44 m | X16: 4.04 m | Y16: 5.24 m | Z16: 3.92 m | AM16: =IF(AND($D$6>AM15,$D$6<AM17),$D$6,"nicht interpolieren") -> nicht interpolieren | AN16: =AN15-(AN15-AN17)*(AM16-AM15)/(AM17-AM15) ->  | AP16: 5415142 | AQ16: 6.50 m | AR16: 9.25 m | AS16: 5.95 m | AT16: 8.53 m | AU16: 5.52 m | AV16: 7.90 m | AW16: 5.18 m | AX16: 5.04 m | AY16: 4.89 m | AZ16: 7.14 m | BA16: 4.64 m | BB16: =BA16-(BA16-BC16)*($Y$1-$X$1)/($Z$1-$X$1) -> 6.74 m | BC16: 4.43 m | BS16: 5415142 | BT16: 7.39 m | BU16: 10.49 m | BV16: 6.77 m | BW16: 9.71 m | BX16: 6.28 m | BY16: 9.01 m | BZ16: 5.89 m | CA16: 5.73 m | CB16: 5.56 m | CC16: 8.08 m | CD16: 5.28 m | CE16: 7.68 m | CF16: 5.04 m
J17: 1.00 ° | K17: 1.00 | M17: 5415142+140x15 | N17: 7.29 m | O17: 9.04 m | P17: 6.94 m | Q17: 8.68 m | R17: 6.65 m | S17: 8.40 m | T17: 6.40 m | U17: 6.30 m | V17: 6.19 m | W17: 7.90 m | X17: 6.00 m | Y17: 7.60 m | Z17: 5.84 m | AM17: 3.00 kN/qm | AN17: 0.66 | AP17: 5415142+140x15 | AQ17: 9.50 m | AR17: 12.90 m | AS17: 8.82 m | AT17: 12.18 m | AU17: 8.26 m | AV17: 11.48 m | AW17: 7.80 m | AX17: 7.61 m | AY17: 7.41 m | AZ17: 10.47 m | BA17: 7.07 m | BB17: =BA17-(BA17-BC17)*($Y$1-$X$1)/($Z$1-$X$1) -> 9.97 m | BC17: 6.78 m | BP17: 1c) Dachneigung | BQ17: 1c) k | BS17: 5415142+140x15 | BT17: 10.84 m | BU17: 14.74 m | BV17: 10.06 m | BW17: 13.90 m | BX17: 9.42 m | BY17: 13.13 m | BZ17: 8.89 m | CA17: 8.67 m | CB17: 8.44 m | CC17: 11.86 m | CD17: 8.06 m | CE17: 11.46 m | CF17: 7.72 m
B18: Bemssungstabelle: Pos. 2.1 Seitenträger unisoliert | J18: 10.00 ° | K18: 1.00 | M18: 5415142+70x30x3 | N18: 5.33 m | O18: 6.78 m | P18: 5.04 m | Q18: 6.48 m | R18: 4.80 m | S18: 6.13 m | T18: 4.61 m | U18: 4.53 m | V18: 4.44 m | W18: 5.70 m | X18: 4.30 m | Y18: 5.60 m | Z18: 4.17 m | AP18: 5415142+70x30x3 | AQ18: 7.05 m | AR18: 9.90 m | AS18: 6.48 m | AT18: 9.18 m | AU18: 6.03 m | AV18: 8.62 m | AW18: 5.66 m | AX18: 5.51 m | AY18: 5.36 m | AZ18: 7.79 m | BA18: 5.09 m | BB18: =BA18-(BA18-BC18)*($Y$1-$X$1)/($Z$1-$X$1) -> 7.29 m | BC18: 4.87 m | BP18: 1.00 ° | BQ18: 1.00 | BS18: 5415142+70x30x3 | BT18: 8.03 m | BU18: 11.28 m | BV18: 7.38 m | BW18: 10.50 m | BX18: 6.86 m | BY18: 9.80 m | BZ18: 6.44 m | CA18: 6.27 m | CB18: 6.09 m | CC18: 8.70 m | CD18: 5.80 m | CE18: 8.40 m | CF18: 5.54 m
B19: Seitenträger | C19: = | D19: 5415151 | J19: =IF(AND($D$9>J18,$D$9<J20),$D$9,"nicht interpolieren") -> nicht interpolieren | K19: =K18-(K18-K20)*(J19-J18)/(J20-J18) ->  | M19: 5415142+Z-Profil | N19: 5.91 m | O19: 7.51 m | P19: 5.59 m | Q19: 7.15 m | R19: 5.33 m | S19: 6.87 m | T19: 5.11 m | U19: 5.02 m | V19: 4.92 m | W19: 6.36 m | X19: 4.76 m | Y19: 6.16 m | Z19: 4.62 m | AM19: 1b) Dachneigung | AN19: 1b) k | AP19: 5415142+Z-Profil | AQ19: 7.79 m | AR19: =AQ19-(AQ19-AS19)*($O$1-$N$1)/($P$1-$N$1) -> 10.94 m | AS19: 7.16 m | AT19: 10.16 m | AU19: 6.66 m | AV19: 9.53 m | AW19: 6.25 m | AX19: 6.08 m | AY19: 5.91 m | AZ19: 8.52 m | BA19: 5.62 m | BB19: 8.12 m | BC19: 5.37 m | BP19: 10.00 ° | BQ19: 1.00 | BS19: 5415142+Z-Profil | BT19: 8.86 m | BU19: 12.41 m | BV19: 8.15 m | BW19: 11.57 m | BX19: 7.58 m | BY19: 10.80 m | BZ19: 7.12 m | CA19: 6.93 m | CB19: 6.73 m | CC19: 9.70 m | CD19: 6.40 m | CE19: =CD19-(CD19-CF19)*($Y$1-$X$1)/($Z$1-$X$1) -> 9.30 m | CF19: 6.11 m
B20: =D10 -> 3.50 m | C20: =IF(B20<D20,"<",">") -> > | D20: =MIN(H47,AK53,BN53) -> 3.47 m | J20: 20.00 ° | K20: 0.970 | M20: 543001 | N20: 1.68 m | O20: =N20-(N20-P20)*($O$1-$N$1)/($P$1-$N$1) -> 2.13 m | P20: 1.59 m | Q20: 2.07 m | R20: 1.51 m | S20: 2.00 m | T20: 1.44 m | U20: 1.42 m | V20: 1.39 m | W20: 1.84 m | X20: 1.34 m | Y20: 1.74 m | Z20: 1.30 m | AM20: 1.00 ° | AN20: 1.00 | AP20: 543001 | AQ20: 2.04 m | AR20: 2.89 m | AS20: 1.87 m | AT20: 2.71 m | AU20: 1.73 m | AV20: 2.50 m | AW20: 1.62 m | AX20: 1.58 m | AY20: 1.53 m | AZ20: 2.25 m | BA20: 1.45 m | BB20: 2.15 m | BC20: 1.38 m | BP20: =IF(AND($D$9>BP19,$D$9<BP21),$D$9,"nicht interpolieren") -> nicht interpolieren | BQ20: =BQ19-(BQ19-BQ21)*(BP20-BP19)/(BP21-BP19) ->  | BS20: 543001 | BT20: 2.32 m | BU20: 3.32 m | BV20: 2.12 m | BW20: 3.02 m | BX20: 1.97 m | BY20: 2.88 m | BZ20: 1.84 m | CA20: 1.79 m | CB20: 1.74 m | CC20: 2.55 m | CD20: 1.65 m | CE20: 2.45 m | CF20: 1.57 m
D21: =IF(B20>D20,"Bedingung nicht erfüllt!","Bedingung erfüllt!") -> Bedingung nicht erfüllt! | J21: =IF(AND($D$9>J20,$D$9<J22),$D$9,"nicht interpolieren") -> nicht interpolieren | K21: =K20-(K20-K22)*(J21-J20)/(J22-J20) ->  | M21: 543002 | N21: 5.19 m | O21: 6.64 m | P21: 4.90 m | Q21: 6.28 m | R21: 4.67 m | S21: 6.07 m | T21: 4.47 m | U21: 4.39 m | V21: 4.31 m | W21: 5.66 m | X21: 4.16 m | Y21: 5.36 m | Z21: 4.04 m | AJ21: 1b) Tabellenwert l | AK21: =AR28 -> 4.04 m | AM21: 10.00 ° | AN21: 1.00 | AP21: 543002 | AQ21: 7.38 m | AR21: 10.43 m | AS21: 6.77 m | AT21: 9.65 m | AU21: 6.29 m | AV21: 9.02 m | AW21: 5.90 m | AX21: 5.74 m | AY21: 5.57 m | AZ21: 8.00 m | BA21: 5.30 m | BB21: 7.70 m | BC21: 5.06 m | BM21: 1c) Tabellenwert l | BN21: =BU28 -> 4.60 m | BP21: 20.00 ° | BQ21: 0.990 | BS21: 543002 | BT21: 8.39 m | BU21: 11.84 m | BV21: 7.70 m | BW21: 11.00 m | BX21: 7.15 m | BY21: 10.23 m | BZ21: 6.71 m | CA21: 6.53 m | CB21: 6.34 m | CC21: 9.22 m | CD21: 6.02 m | CE21: 8.72 m | CF21: 5.75 m
B22: Durchbiegung w | C22: = | D22: =((1000/VLOOKUP('Bemessungstabelle unisoliert'!D13,Daten!A22:B25,2))*D10^4/H47^3)/COS($D$9*PI()/180) -> 18 mm | J22: 30.00 ° | K22: 0.93 | M22: 543002+70x30x3 | N22: 5.44 m | O22: =N22-(N22-P22)*($O$1-$N$1)/($P$1-$N$1) -> 6.89 m | P22: 5.15 m | Q22: 6.59 m | R22: 4.91 m | S22: 6.24 m | T22: 4.72 m | U22: 4.64 m | V22: 4.55 m | W22: 5.90 m | X22: 4.40 m | Y22: 5.70 m | Z22: 4.27 m | AJ22: 1b) Korrigierter lzul2 | AK22: =AK21*AK2*AK3*AK4*AK5*AK6 -> 3.93 m | AM22: =IF(AND($D$9>AM21,$D$9<AM23),$D$9,"nicht interpolieren") -> nicht interpolieren | AN22: =AN21-(AN21-AN23)*(AM22-AM21)/(AM23-AM21) ->  | AP22: 543002+70x30x3 | AQ22: 7.93 m | AR22: =AQ22-(AQ22-AS22)*($O$1-$N$1)/($P$1-$N$1) -> 11.08 m | AS22: 7.30 m | AT22: 10.30 m | AU22: 6.80 m | AV22: 9.67 m | AW22: 6.39 m | AX22: 6.22 m | AY22: 6.05 m | AZ22: 8.66 m | BA22: 5.76 m | BB22: =BA22-(BA22-BC22)*($Y$1-$X$1)/($Z$1-$X$1) -> 8.36 m | BC22: 5.50 m | BM22: 1c) Korrigierter lzul3 | BN22: =BN21*BN2*BN3*BN4*BN5*BN6 -> 45,950.00 m | BP22: =IF(AND($D$9>BP21,$D$9<BP23),$D$9,"nicht interpolieren") -> nicht interpolieren | BQ22: =BQ21-(BQ21-BQ23)*(BP22-BP21)/(BP23-BP21) ->  | BS22: 543002+70x30x3 | BT22: 9.03 m | BU22: 12.63 m | BV22: 8.31 m | BW22: 11.73 m | BX22: 7.74 m | BY22: 10.96 m | BZ22: 7.28 m | CA22: 7.09 m | CB22: 6.89 m | CC22: 9.95 m | CD22: 6.55 m | CE22: =CD22-(CD22-CF22)*($Y$1-$X$1)/($Z$1-$X$1) -> 9.45 m | CF22: 6.26 m
M23: 543004 | N23: 4.33 m | O23: 5.53 m | P23: 4.09 m | Q23: 5.29 m | R23: 3.89 m | S23: 5.01 m | T23: 3.73 m | U23: 3.66 m | V23: 3.59 m | W23: 4.67 m | X23: 3.47 m | Y23: 4.47 m | Z23: 3.37 m | AM23: 20.00 ° | AN23: 0.980 | AP23: 543004 | AQ23: 6.29 m | AR23: =AQ23-(AQ23-AS23)*($O$1-$N$1)/($P$1-$N$1) -> 8.89 m | AS23: 5.77 m | AT23: 8.23 m | AU23: 5.36 m | AV23: 7.67 m | AW23: 5.03 m | AX23: 4.89 m | AY23: 4.75 m | AZ23: 6.91 m | BA23: 4.51 m | BB23: 6.51 m | BC23: 4.31 m | BP23: 30.00 ° | BQ23: 0.98 | BS23: 543004 | BT23: 7.16 m | BU23: 10.16 m | BV23: 6.56 m | BW23: 9.38 m | BX23: 6.09 m | BY23: 8.61 m | BZ23: 5.73 m | CA23: 5.57 m | CB23: 5.40 m | CC23: 7.83 m | CD23: 5.13 m | CE23: 7.43 m | CF23: 4.90 m
B24: Bemessungstabelle: Pos. 3.1 Rinne unisoliert | M24: 543004+70x30x3 | N24: 4.73 m | O24: 6.03 m | P24: 4.47 m | Q24: 5.67 m | R24: 4.27 m | S24: 5.46 m | T24: 4.10 m | U24: 4.03 m | V24: 3.95 m | W24: 5.12 m | X24: 3.82 m | Y24: 4.92 m | Z24: 3.71 m | AM24: =IF(AND($D$9>AM23,$D$9<AM25),$D$9,"nicht interpolieren") -> nicht interpolieren | AN24: =AN23-(AN23-AN25)*(AM24-AM23)/(AM25-AM23) ->  | AP24: 543004+70x30x3 | AQ24: 6.99 m | AR24: 9.79 m | AS24: 6.43 m | AT24: 9.07 m | AU24: 5.99 m | AV24: 8.51 m | AW24: 5.63 m | AX24: 5.48 m | AY24: 5.33 m | AZ24: 7.67 m | BA24: 5.07 m | BB24: 7.27 m | BC24: 4.85 m | BS24: 543004+70x30x3 | BT24: 7.96 m | BU24: 11.11 m | BV24: 7.33 m | BW24: 10.39 m | BX24: 6.82 m | BY24: 9.69 m | BZ24: 6.41 m | CA24: 6.24 m | CB24: 6.06 m | CC24: 8.67 m | CD24: 5.77 m | CE24: 8.37 m | CF24: 5.51 m
B25: gewählte Stützweite b | C25: = | D25: 4.00 m | M25: 543005 | N25: 4.78 m | O25: 6.13 m | P25: 4.51 m | Q25: 5.83 m | R25: 4.29 m | S25: 5.55 m | T25: 4.11 m | U25: 4.04 m | V25: 3.96 m | W25: 5.22 m | X25: 3.82 m | Y25: 4.92 m | Z25: 3.71 m | AM25: 30.00 ° | AN25: 0.96 | AP25: 543005 | AQ25: 6.10 m | AR25: =AQ25-(AQ25-AS25)*($O$1-$N$1)/($P$1-$N$1) -> 8.70 m | AS25: 5.58 m | AT25: 7.98 m | AU25: 5.18 m | AV25: 7.42 m | AW25: 4.86 m | AX25: 4.72 m | AY25: 4.58 m | AZ25: 6.65 m | BA25: 4.35 m | BB25: =BA25-(BA25-BC25)*($Y$1-$X$1)/($Z$1-$X$1) -> 6.25 m | BC25: 4.16 m | BS25: 543005 | BT25: 6.93 m | BU25: 9.83 m | BV25: 6.35 m | BW25: 9.11 m | BX25: 5.89 m | BY25: 8.48 m | BZ25: 5.52 m | CA25: 5.37 m | CB25: 5.21 m | CC25: 7.55 m | CD25: 4.95 m | CE25: =CD25-(CD25-CF25)*($Y$1-$X$1)/($Z$1-$X$1) -> 7.25 m | CF25: 4.72 m
B26: Rinne | C26: = | D26: 541516
B27: zul. Durchbiegung | C27: = | D27: l/250 | E27: Info | M27: Träger | N27: Sparren-Achsabstand | O27: l | AP27: Träger | AQ27: Sparren-Achsabstand | AR27: l | BS27: Träger | BT27: Sparren-Achsabstand | BU27: l
B28: =D25 -> 4.00 m | C28: =IF(B28<D28,"<",">") -> < | D28: =MIN(H61,AK66,BN66) -> 6.37 m | G28: 2a) Korrekturfaktoren Seitenträger | M28: =IF($D$11="","",MATCH($D$11,M2:M25)) -> 9 | N28: =IF($D$12="","",MATCH($D$12,N1:Z1,0)) -> 8 | O28: =IF(OR(D11="",D12=""),0,INDEX(N2:Z25,M28,N28)) -> 3.28 m | AP28: =IF($D$11="","",MATCH($D$11,AP2:AP25)) -> 9 | AQ28: =IF($D$12="","",MATCH($D$12,AQ1:BC1,0)) -> 8 | AR28: =IF(OR(D11="",D12=""),0,INDEX(AQ2:BC25,AP28,AQ28)) -> 4.04 m | BS28: =IF($D$11="","",MATCH($D$11,BS2:BS25)) -> 9 | BT28: =IF($D$12="","",MATCH($D$12,BT1:CF1,0)) -> 8 | BU28: =IF(OR(D11="",D12=""),0,INDEX(BT2:CF25,BS28,BT28)) -> 4.60 m
D29: =IF(B28>D28,"Bedingung nicht erfüllt!","Bedingung erfüllt!") -> Bedingung erfüllt! | G29: 2a) Verglasung | H29: =H2 -> 1.000
B30: Durchbiegung w | C30: = | D30: =(1000/VLOOKUP('Bemessungstabelle unisoliert'!D27,Daten!A22:B25,2))*D25^4/H61^3 -> 4 mm | G30: 2a) Schnee sDA | H30: =H3 -> 0.982
B31: zul. Durchbiegung wzul. | C31: = | D31: =D25*1000/VLOOKUP($D$27,Daten!$A$22:$B$25,2) -> 16 mm | G31: 2a) Wind | H31: =H4 -> 1.000 | M31: 2a) Seitenträger | N31: 0.50 m | O31: =IF(AND($D$12>0.5,$D$12<0.6),$D$12,0) -> 0.00 m | P31: 0.60 m | Q31: =IF(AND($D$12>0.6,$D$12<0.7),$D$12,0) -> 0.00 m | R31: 0.70 m | S31: =IF(AND($D$12>0.7,$D$12<0.8),$D$12,0) -> 0.00 m | T31: 0.80 m | U31: =IF(AND($D$12>0.8,$D$12<0.9),$D$12,0) -> 0.85 m | V31: 0.90 m | W31: =IF(AND($D$12>0.9,$D$12<1),$D$12,0) -> 0.00 m | X31: 1.00 m | Y31: =IF(AND($D$12>1,$D$12<1.1),$D$12,0) -> 0.00 m | Z31: 1.10 m | AJ31: Korrekturfaktoren | AP31: 2b) Seitenträger | AQ31: 0.50 m | AR31: =IF(AND($D$12>0.5,$D$12<0.6),$D$12,0) -> 0.00 m | AS31: 0.60 m | AT31: =IF(AND($D$12>0.6,$D$12<0.7),$D$12,0) -> 0.00 m | AU31: 0.70 m | AV31: =IF(AND($D$12>0.7,$D$12<0.8),$D$12,0) -> 0.00 m | AW31: 0.80 m | AX31: =IF(AND($D$12>0.8,$D$12<0.9),$D$12,0) -> 0.85 m | AY31: 0.90 m | AZ31: =IF(AND($D$12>0.9,$D$12<1),$D$12,0) -> 0.00 m | BA31: 1.00 m | BB31: =IF(AND($D$12>1,$D$12<1.1),$D$12,0) -> 0.00 m | BC31: 1.10 m | BM31: Korrekturfaktoren | BS31: 2c) Seitenträger | BT31: 0.50 m | BU31: =IF(AND($D$12>0.5,$D$12<0.6),$D$12,0) -> 0.00 m | BV31: 0.60 m | BW31: =IF(AND($D$12>0.6,$D$12<0.7),$D$12,0) -> 0.00 m | BX31: 0.70 m | BY31: =IF(AND($D$12>0.7,$D$12<0.8),$D$12,0) -> 0.00 m | BZ31: 0.80 m | CA31: =IF(AND($D$12>0.8,$D$12<0.9),$D$12,0) -> 0.85 m | CB31: 0.90 m | CC31: =IF(AND($D$12>0.9,$D$12<1),$D$12,0) -> 0.00 m | CD31: 1.00 m | CE31: =IF(AND($D$12>1,$D$12<1.1),$D$12,0) -> 0.00 m | CF31: 1.10 m
B32: 2-Feldbalken b + b | G32: 2a) Dachneigung | H32: =H5 -> 1.000 | M32: 26106 | N32: =N2*1.18 -> 4.07 m | O32: =N32-(N32-P32)*($O$31-$N$31)/($P$31-$N$31) -> 5.25 m | P32: =P2*1.18 -> 3.84 m | Q32: =P32-(P32-R32)*($Q$31-$P$31)/($R$31-$P$31) -> 4.90 m | R32: =R2*1.18 -> 3.66 m | S32: =R32-(R32-T32)*($S$31-$R$31)/($T$31-$R$31) -> 4.81 m | T32: =T2*1.18 -> 3.49 m | U32: =T32-(T32-V32)*($U$31-$T$31)/($V$31-$T$31) -> 3.43 m | V32: =V2*1.18 -> 3.36 m | W32: =V32-(V32-X32)*($W$31-$V$31)/($X$31-$V$31) -> 4.43 m | X32: =X2*1.18 -> 3.25 m | Y32: =X32-(X32-Z32)*($Y$31-$X$31)/($Z$31-$X$31) -> 4.19 m | Z32: =Z2*1.18 -> 3.15 m | AJ32: 2b) Verglasung | AK32: =AK2 -> 1.000 | AP32: 26106 | AQ32: =AQ2*1.18 -> 4.60 m | AR32: =AQ32-(AQ32-AS32)*($O$31-$N$31)/($P$31-$N$31) -> 6.49 m | AS32: =AS2*1.18 -> 4.22 m | AT32: =AS32-(AS32-AU32)*($Q$31-$P$31)/($R$31-$P$31) -> 6.07 m | AU32: =AU2*1.18 -> 3.92 m | AV32: =AU32-(AU32-AW32)*($S$31-$R$31)/($T$31-$R$31) -> 5.65 m | AW32: =AW2*1.18 -> 3.67 m | AX32: =AW32-(AW32-AY32)*($U$31-$T$31)/($V$31-$T$31) -> 3.56 m | AY32: =AY2*1.18 -> 3.46 m | AZ32: =AY32-(AY32-BA32)*($W$31-$V$31)/($X$31-$V$31) -> 5.05 m | BA32: =BA2*1.18 -> 3.28 m | BB32: =BA32-(BA32-BC32)*($Y$31-$X$31)/($Z$31-$X$31) -> 4.81 m | BC32: =BC2*1.18 -> 3.13 m | BM32: 2c) Verglasung | BN32: =BN2 -> 1.000 | BS32: 26106 | BT32: =BT2*1.18 -> 5.24 m | BU32: =BT32-(BT32-BV32)*($O$31-$N$31)/($P$31-$N$31) -> 7.42 m | BV32: =BV2*1.18 -> 4.80 m | BW32: =BV32-(BV32-BX32)*($Q$31-$P$31)/($R$31-$P$31) -> 6.93 m | BX32: =BX2*1.18 -> 4.45 m | BY32: =BX32-(BX32-BZ32)*($S$31-$R$31)/($T$31-$R$31) -> 6.43 m | BZ32: =BZ2*1.18 -> 4.17 m | CA32: =BZ32-(BZ32-CB32)*($U$31-$T$31)/($V$31-$T$31) -> 4.05 m | CB32: =CB2*1.18 -> 3.93 m | CC32: =CB32-(CB32-CD32)*($W$31-$V$31)/($X$31-$V$31) -> 5.73 m | CD32: =CD2*1.18 -> 3.73 m | CE32: =CD32-(CD32-CF32)*($Y$31-$X$31)/($Z$31-$X$31) -> 5.38 m | CF32: =CF2*1.18 -> 3.56 m
B33: Durchbiegung w | C33: = | D33: =(1000/VLOOKUP($D$27,Daten!$A$22:$B$25,2))*$D$25^4/($H$61*H58)^3 -> 2 mm | G33: zul. Durchbiegung | H33: =H6 -> 1.000 | M33: 26106+100x10 | N33: =N3*1.16 -> 5.61 m | O33: 7.12 m | P33: =P3*1.16 -> 5.31 m | Q33: 6.70 m | R33: =R3*1.16 -> 5.08 m | S33: 6.54 m | T33: =T3*1.16 -> 4.87 m | U33: 4.79 m | V33: =V3*1.16 -> 4.70 m | W33: 6.06 m | X33: =X3*1.16 -> 4.55 m | Y33: 5.82 m | Z33: =Z3*1.16 -> 4.42 m | AJ33: 2b) Schnee sDA | AK33: =AK3 -> 0.974 | AP33: 26106+100x10 | AQ33: =AQ3*1.16 -> 7.03 m | AR33: 9.81 m | AS33: =AS3*1.16 -> 6.47 m | AT33: 9.12 m | AU33: =AU3*1.16 -> 6.03 m | AV33: 8.55 m | AW33: =AW3*1.16 -> 5.67 m | AX33: 5.52 m | AY33: =AY3*1.16 -> 5.37 m | AZ33: 7.67 m | BA33: =BA3*1.16 -> 5.12 m | BB33: 7.44 m | BC33: =BC3*1.16 -> 4.88 m | BM33: 2c) außergewöhnliche Schneelast sa | BN33: =BN3 -> 10000.000 | BS33: 26106+100x10 | BT33: =BT3*1.16 -> 7.97 m | BU33: 10.93 m | BV33: =BV3*1.16 -> 7.38 m | BW33: 10.44 m | BX33: =BX3*1.16 -> 6.87 m | BY33: 9.71 m | BZ33: =BZ3*1.16 -> 6.46 m | CA33: 6.29 m | CB33: =CB3*1.16 -> 6.11 m | CC33: 8.83 m | CD33: =CD3*1.16 -> 5.81 m | CE33: 8.36 m | CF33: =CF3*1.16 -> 5.56 m
M34: 261071 | N34: =N6*1.19 -> 5.50 m | O34: 7.04 m | P34: =P6*1.19 -> 5.19 m | Q34: 6.69 m | R34: =R6*1.19 -> 4.94 m | S34: 6.44 m | T34: =T6*1.19 -> 4.72 m | U34: 4.64 m | V34: =V6*1.19 -> 4.55 m | W34: 5.94 m | X34: =X6*1.19 -> 4.39 m | Y34: 5.70 m | Z34: =Z6*1.19 -> 4.26 m | AJ34: 2b) Wind | AK34: =AK4 -> 1.000 | AP34: 261071 | AQ34: =AQ6*1.19 -> 6.45 m | AR34: 9.13 m | AS34: =AS6*1.19 -> 5.91 m | AT34: 8.48 m | AU34: =AU6*1.19 -> 5.49 m | AV34: 7.90 m | AW34: =AW6*1.19 -> 5.14 m | AX34: 5.00 m | AY34: =AY6*1.19 -> 4.86 m | AZ34: 7.10 m | BA34: =BA6*1.19 -> 4.61 m | BB34: 6.75 m | BC34: =BC6*1.19 -> 4.39 m | BM34: 2c) Wind | BN34: =BN4 -> 1.000 | BS34: 261071 | BT34: =BT6*1.19 -> 7.34 m | BU34: 10.44 m | BV34: =BV6*1.19 -> 6.72 m | BW34: 9.65 m | BX34: =BX6*1.19 -> 6.24 m | BY34: 8.98 m | BZ34: =BZ6*1.19 -> 5.84 m | CA34: 5.68 m | CB34: =CB6*1.19 -> 5.51 m | CC34: 7.97 m | CD34: =CD6*1.19 -> 5.24 m | CE34: 7.62 m | CF34: =CF6*1.19 -> 5.00 m
B35: Bemessungstabelle: Pos. 4.1 Unterzug unisoliert | M35: 261071+100x10 | N35: =N7*1.21 -> 6.63 m | O35: 8.32 m | P35: =P7*1.21 -> 6.29 m | Q35: 8.03 m | R35: =R7*1.21 -> 6.00 m | S35: 7.61 m | T35: =T7*1.21 -> 5.77 m | U35: 5.67 m | V35: =V7*1.21 -> 5.57 m | W35: 7.20 m | X35: =X7*1.21 -> 5.38 m | Y35: 6.96 m | Z35: =Z7*1.21 -> 5.23 m | AJ35: 2b) Dachneigung | AK35: =AK5 -> 1.000 | AP35: 261071+100x10 | AQ35: =AQ7*1.21 -> 8.52 m | AR35: 11.85 m | AS35: =AS7*1.21 -> 7.85 m | AT35: 10.97 m | AU35: =AU7*1.21 -> 7.33 m | AV35: 10.38 m | AW35: =AW7*1.21 -> 6.90 m | AX35: 6.71 m | AY35: =AY7*1.21 -> 6.52 m | AZ35: 9.35 m | BA35: =BA7*1.21 -> 6.21 m | BB35: 8.87 m | BC35: =BC7*1.21 -> 5.94 m | BM35: 2c) Dachneigung | BN35: =BN5 -> 1.000 | BS35: 261071+100x10 | BT35: =BT7*1.21 -> 9.70 m | BU35: 13.46 m | BV35: =BV7*1.21 -> 8.95 m | BW35: 12.66 m | BX35: =BX7*1.21 -> 8.34 m | BY35: 11.81 m | BZ35: =BZ7*1.21 -> 7.84 m | CA35: 7.64 m | CB35: =CB7*1.21 -> 7.43 m | CC35: 10.70 m | CD35: =CD7*1.21 -> 7.07 m | CE35: 10.09 m | CF35: =CF7*1.21 -> 6.76 m
B36: Trägerlänge bis Unterzung l | C36: = | D36: 5.00 m | M36: 261073 | N36: =N8*0.99 -> 5.27 m | O36: 6.75 m | P36: =P8*0.99 -> 4.97 m | Q36: 6.40 m | R36: =R8*0.99 -> 4.73 m | S36: 6.12 m | T36: =T8*0.99 -> 4.53 m | U36: 4.45 m | V36: =V8*0.99 -> 4.37 m | W36: 5.70 m | X36: =X8*0.99 -> 4.22 m | Y36: 5.50 m | Z36: =Z8*0.99 -> 4.09 m | AJ36: zul. Durchbiegung | AK36: =AK6 -> 1.000 | AP36: 261073 | AQ36: =AQ8*0.99 -> 7.24 m | AR36: 10.21 m | AS36: =AS8*0.99 -> 6.64 m | AT36: 9.49 m | AU36: =AU8*0.99 -> 6.17 m | AV36: 8.87 m | AW36: =AW8*0.99 -> 5.78 m | AX36: 5.62 m | AY36: =AY8*0.99 -> 5.45 m | AZ36: 7.86 m | BA36: =BA8*0.99 -> 5.19 m | BB36: 7.56 m | BC36: =BC8*0.99 -> 4.95 m | BM36: zul. Durchbiegung | BN36: =BN6 -> 1.000 | BS36: 261073 | BT36: =BT8*0.99 -> 8.24 m | BU36: 11.65 m | BV36: =BV8*0.99 -> 7.55 m | BW36: 10.82 m | BX36: =BX8*0.99 -> 7.01 m | BY36: 10.06 m | BZ36: =BZ8*0.99 -> 6.57 m | CA36: 6.39 m | CB36: =CB8*0.99 -> 6.21 m | CC36: 8.97 m | CD36: =CD8*0.99 -> 5.90 m | CE36: 8.57 m | CF36: =CF8*0.99 -> 5.63 m
B37: Dachüberstand lü | C37: = | D37: 0.00 m | M37: 261073+100x10 | N37: =N9*1.06 -> 6.32 m | O37: 7.96 m | P37: =P9*1.06 -> 5.99 m | Q37: 7.58 m | R37: =R9*1.06 -> 5.72 m | S37: 7.36 m | T37: =T9*1.06 -> 5.49 m | U37: 5.40 m | V37: =V9*1.06 -> 5.30 m | W37: 6.83 m | X37: =X9*1.06 -> 5.13 m | Y37: 6.61 m | Z37: =Z9*1.06 -> 4.98 m | AP37: 261073+100x10 | AQ37: =AQ9*1.06 -> 8.78 m | AR37: 12.17 m | AS37: =AS9*1.06 -> 8.10 m | AT37: 11.34 m | AU37: =AU9*1.06 -> 7.56 m | AV37: 10.67 m | AW37: =AW9*1.06 -> 7.11 m | AX37: 6.93 m | AY37: =AY9*1.06 -> 6.74 m | AZ37: 9.60 m | BA37: =BA9*1.06 -> 6.42 m | BB37: 9.29 m | BC37: =BC9*1.06 -> 6.14 m | BS37: 261073+100x10 | BT37: =BT9*1.06 -> 10.01 m | BU37: 13.88 m | BV37: =BV9*1.06 -> 9.23 m | BW37: 12.99 m | BX37: =BX9*1.06 -> 8.61 m | BY37: 12.17 m | BZ37: =BZ9*1.06 -> 8.10 m | CA37: 7.89 m | CB37: =CB9*1.06 -> 7.67 m | CC37: 11.01 m | CD37: =CD9*1.06 -> 7.30 m | CE37: 10.48 m | CF37: =CF9*1.06 -> 6.99 m
B38: lm | C38: = | D38: =IF(D37=0,D36/2+0,(D36+D37)^2/(2*D36)) -> 2.50 m | M38: 5415150 | N38: =N10*1.17 -> 4.55 m | O38: 5.84 m | P38: =P10*1.17 -> 4.29 m | Q38: 5.56 m | R38: =R10*1.17 -> 4.08 m | S38: 5.31 m | T38: =T10*1.17 -> 3.91 m | U38: 3.84 m | V38: =V10*1.17 -> 3.77 m | W38: 4.93 m | X38: =X10*1.17 -> 3.64 m | Y38: 4.81 m | Z38: =Z10*1.17 -> 3.52 m | AP38: 5415150 | AQ38: =AQ10*1.17 -> 6.12 m | AR38: 8.69 m | AS38: =AS10*1.17 -> 5.60 m | AT38: 8.06 m | AU38: =AU10*1.17 -> 5.19 m | AV38: 7.49 m | AW38: =AW10*1.17 -> 4.87 m | AX38: 4.73 m | AY38: =AY10*1.17 -> 4.59 m | AZ38: 6.59 m | BA38: =BA10*1.17 -> 4.36 m | BB38: 6.35 m | BC38: =BC10*1.17 -> 4.17 m | BS38: 5415150 | BT38: =BT10*1.17 -> 6.96 m | BU38: 9.95 m | BV38: =BV10*1.17 -> 6.36 m | BW38: 9.10 m | BX38: =BX10*1.17 -> 5.91 m | BY38: 8.53 m | BZ38: =BZ10*1.17 -> 5.53 m | CA38: 5.38 m | CB38: =CB10*1.17 -> 5.22 m | CC38: 7.53 m | CD38: =CD10*1.17 -> 4.96 m | CE38: 7.30 m | CF38: =CF10*1.17 -> 4.73 m
B39: gewählte Stützweite b | C39: = | D39: 5.01 m | M39: 5415150+70x30x3 | N39: =N11*1.18 -> 5.19 m | O39: 6.61 m | P39: =P11*1.18 -> 4.91 m | Q39: 6.32 m | R39: =R11*1.18 -> 4.67 m | S39: 5.99 m | T39: =T11*1.18 -> 4.48 m | U39: 4.40 m | V39: =V11*1.18 -> 4.32 m | W39: 5.59 m | X39: =X11*1.18 -> 4.18 m | Y39: 5.48 m | Z39: =Z11*1.18 -> 4.05 m | AP39: 5415150+70x30x3 | AQ39: =AQ11*1.18 -> 7.39 m | AR39: 10.40 m | AS39: =AS11*1.18 -> 6.79 m | AT39: 9.62 m | AU39: =AU11*1.18 -> 6.31 m | AV39: 9.04 m | AW39: =AW11*1.18 -> 5.92 m | AX39: 5.76 m | AY39: =AY11*1.18 -> 5.61 m | AZ39: 8.05 m | BA39: =BA11*1.18 -> 5.33 m | BB39: 7.81 m | BC39: =BC11*1.18 -> 5.09 m | BS39: 5415150+70x30x3 | BT39: =BT11*1.18 -> 8.41 m | BU39: 11.84 m | BV39: =BV11*1.18 -> 7.73 m | BW39: 10.99 m | BX39: =BX11*1.18 -> 7.19 m | BY39: 10.24 m | BZ39: =BZ11*1.18 -> 6.75 m | CA39: 6.56 m | CB39: =CB11*1.18 -> 6.37 m | CC39: 9.13 m | CD39: =CD11*1.18 -> 6.07 m | CE39: 8.78 m | CF39: =CF11*1.18 -> 5.79 m
B40: Unterzug | C40: = | D40: 577275+140*40*3 | M40: 5415150+Z-Profil | N40: =N12*1.19 -> 6.18 m | O40: 7.84 m | P40: =P12*1.19 -> 5.84 m | Q40: 7.49 m | R40: =R12*1.19 -> 5.57 m | S40: 7.15 m | T40: =T12*1.19 -> 5.34 m | U40: 5.25 m | V40: =V12*1.19 -> 5.15 m | W40: 6.76 m | X40: =X12*1.19 -> 4.97 m | Y40: 6.40 m | Z40: =Z12*1.19 -> 4.83 m | AP40: 5415150+Z-Profil | AQ40: =AQ12*1.19 -> 7.64 m | AR40: 10.73 m | AS40: =AS12*1.19 -> 7.02 m | AT40: 9.95 m | AU40: =AU12*1.19 -> 6.53 m | AV40: 9.37 m | AW40: =AW12*1.19 -> 6.13 m | AX40: 5.96 m | AY40: =AY12*1.19 -> 5.80 m | AZ40: 8.37 m | BA40: =BA12*1.19 -> 5.51 m | BB40: 8.01 m | BC40: =BC12*1.19 -> 5.26 m | BS40: 5415150+Z-Profil | BT40: =BT12*1.19 -> 8.70 m | BU40: 12.27 m | BV40: =BV12*1.19 -> 7.98 m | BW40: 11.34 m | BX40: =BX12*1.19 -> 7.43 m | BY40: 10.59 m | BZ40: =BZ12*1.19 -> 6.97 m | CA40: 6.78 m | CB40: =CB12*1.19 -> 6.59 m | CC40: 9.48 m | CD40: =CD12*1.19 -> 6.27 m | CE40: 9.13 m | CF40: =CF12*1.19 -> 5.99 m
B41: zul. Durchbiegung | C41: = | D41: l/250 | E41: Info | M41: 5415151 | N41: =N13*1.17 -> 4.20 m | O41: 5.43 m | P41: =P13*1.17 -> 3.95 m | Q41: 5.08 m | R41: =R13*1.17 -> 3.77 m | S41: 4.91 m | T41: =T13*1.17 -> 3.60 m | U41: 3.53 m | V41: =V13*1.17 -> 3.46 m | W41: 4.52 m | X41: =X13*1.17 -> 3.35 m | Y41: 4.40 m | Z41: =Z13*1.17 -> 3.24 m | AP41: 5415151 | AQ41: =AQ13*1.17 -> 5.12 m | AR41: 7.29 m | AS41: =AS13*1.17 -> 4.69 m | AT41: 6.73 m | AU41: =AU13*1.17 -> 4.35 m | AV41: 6.32 m | AW41: =AW13*1.17 -> 4.07 m | AX41: 3.96 m | AY41: =AY13*1.17 -> 3.85 m | AZ41: 5.64 m | BA41: =BA13*1.17 -> 3.65 m | BB41: 5.29 m | BC41: =BC13*1.17 -> 3.49 m | BS41: 5415151 | BT41: =BT13*1.17 -> 5.83 m | BU41: 8.28 m | BV41: =BV13*1.17 -> 5.34 m | BW41: 7.65 m | BX41: =BX13*1.17 -> 4.95 m | BY41: 7.16 m | BZ41: =BZ13*1.17 -> 4.63 m | CA41: 4.50 m | CB41: =CB13*1.17 -> 4.38 m | CC41: 6.38 m | CD41: =CD13*1.17 -> 4.15 m | CE41: 6.14 m | CF41: =CF13*1.17 -> 3.95 m
B42: =D39 -> 5.01 m | C42: =IF(B42<D42,"<",">") -> > | D42: =MIN(H76,AK84,BN84) -> 4.81 m | M42: 5415151+110x15 | N42: =N14*1.18 -> 6.69 m | O42: 8.34 m | P42: =P14*1.18 -> 6.36 m | Q42: 7.99 m | R42: =R14*1.18 -> 6.09 m | S42: 7.74 m | T42: =T14*1.18 -> 5.85 m | U42: 5.75 m | V42: =V14*1.18 -> 5.65 m | W42: 7.25 m | X42: =X14*1.18 -> 5.48 m | Y42: 7.13 m | Z42: =Z14*1.18 -> 5.31 m | AP42: 5415151+110x15 | AQ42: =AQ14*1.18 -> 8.66 m | AR42: 11.91 m | AS42: =AS14*1.18 -> 8.01 m | AT42: 11.13 m | AU42: =AU14*1.18 -> 7.49 m | AV42: 10.55 m | AW42: =AW14*1.18 -> 7.06 m | AX42: 6.87 m | AY42: =AY14*1.18 -> 6.69 m | AZ42: 9.45 m | BA42: =BA14*1.18 -> 6.38 m | BB42: 9.10 m | BC42: =BC14*1.18 -> 6.11 m | BS42: 5415151+110x15 | BT42: =BT14*1.18 -> 9.88 m | BU42: 13.59 m | BV42: =BV14*1.18 -> 9.13 m | BW42: 12.74 m | BX42: =BX14*1.18 -> 8.53 m | BY42: 11.92 m | BZ42: =BZ14*1.18 -> 8.05 m | CA42: 7.84 m | CB42: =CB14*1.18 -> 7.62 m | CC42: 10.81 m | CD42: =CD14*1.18 -> 7.27 m | CE42: 10.45 m | CF42: =CF14*1.18 -> 6.95 m
D43: =IF(B42>D42,"Bedingung nicht erfüllt!","Bedingung erfüllt!") -> Bedingung nicht erfüllt! | M43: 5415151+Z-Profil | N43: =N15*1.19 -> 6.01 m | O43: 7.68 m | P43: =P15*1.19 -> 5.68 m | Q43: 7.25 m | R43: =R15*1.19 -> 5.41 m | S43: 7.00 m | T43: =T15*1.19 -> 5.19 m | U43: 5.09 m | V43: =V15*1.19 -> 5.00 m | W43: 6.50 m | X43: =X15*1.19 -> 4.83 m | Y43: 6.26 m | Z43: =Z15*1.19 -> 4.69 m | AP43: 5415151+Z-Profil | AQ43: =AQ15*1.19 -> 7.31 m | AR43: 10.28 m | AS43: =AS15*1.19 -> 6.71 m | AT43: 9.50 m | AU43: =AU15*1.19 -> 6.25 m | AV43: 8.91 m | AW43: =AW15*1.19 -> 5.87 m | AX43: 5.71 m | AY43: =AY15*1.19 -> 5.55 m | AZ43: 8.01 m | BA43: =BA15*1.19 -> 5.27 m | BB43: 7.65 m | BC43: =BC15*1.19 -> 5.03 m | BS43: 5415151+Z-Profil | BT43: =BT15*1.19 -> 8.32 m | BU43: 11.71 m | BV43: =BV15*1.19 -> 7.64 m | BW43: 10.85 m | BX43: =BX15*1.19 -> 7.10 m | BY43: 10.19 m | BZ43: =BZ15*1.19 -> 6.66 m | CA43: 6.49 m | CB43: =CB15*1.19 -> 6.31 m | CC43: 9.20 m | CD43: =CD15*1.19 -> 5.99 m | CE43: 8.60 m | CF43: =CF15*1.19 -> 5.72 m
B44: Durchbiegung w | C44: = | D44: =(1000/VLOOKUP($D$41,Daten!$A$22:$B$25,2))*$D$39^4/$H$76^3 -> 23 mm | M44: 5415152 | N44: =N16*1.21 -> 6.11 m | O44: 7.80 m | P44: =P16*1.21 -> 5.77 m | Q44: 7.51 m | R44: =R16*1.21 -> 5.48 m | S44: 7.09 m | T44: =T16*1.21 -> 5.25 m | U44: 5.15 m | V44: =V16*1.21 -> 5.06 m | W44: 6.58 m | X44: =X16*1.21 -> 4.89 m | Y44: 6.34 m | Z44: =Z16*1.21 -> 4.74 m | AP44: 5415152 | AQ44: =AQ16*1.21 -> 7.87 m | AR44: 11.19 m | AS44: =AS16*1.21 -> 7.20 m | AT44: 10.32 m | AU44: =AU16*1.21 -> 6.68 m | AV44: 9.56 m | AW44: =AW16*1.21 -> 6.27 m | AX44: 6.09 m | AY44: =AY16*1.21 -> 5.92 m | AZ44: 8.64 m | BA44: =BA16*1.21 -> 5.61 m | BB44: 8.16 m | BC44: =BC16*1.21 -> 5.36 m | BS44: 5415152 | BT44: =BT16*1.21 -> 8.94 m | BU44: 12.69 m | BV44: =BV16*1.21 -> 8.19 m | BW44: 11.75 m | BX44: =BX16*1.21 -> 7.60 m | BY44: 10.90 m | BZ44: =BZ16*1.21 -> 7.13 m | CA44: 6.93 m | CB44: =CB16*1.21 -> 6.73 m | CC44: 9.78 m | CD44: =CD16*1.21 -> 6.39 m | CE44: 9.29 m | CF44: =CF16*1.21 -> 6.10 m
B45: zul. Durchbiegung wzul. | C45: = | D45: =D39*1000/VLOOKUP($D$41,Daten!$A$22:$B$25,2) -> 20 mm | M45: 5415152+140x15 | N45: =N17*1.18 -> 8.60 m | O45: 10.67 m | P45: =P17*1.18 -> 8.19 m | Q45: 10.24 m | R45: =R17*1.18 -> 7.85 m | S45: 9.91 m | T45: =T17*1.18 -> 7.55 m | U45: 7.43 m | V45: =V17*1.18 -> 7.30 m | W45: 9.32 m | X45: =X17*1.18 -> 7.08 m | Y45: 8.97 m | Z45: =Z17*1.18 -> 6.89 m | AP45: 5415152+140x15 | AQ45: =AQ17*1.18 -> 11.21 m | AR45: 15.22 m | AS45: =AS17*1.18 -> 10.41 m | AT45: 14.37 m | AU45: =AU17*1.18 -> 9.75 m | AV45: 13.55 m | AW45: =AW17*1.18 -> 9.20 m | AX45: 8.97 m | AY45: =AY17*1.18 -> 8.74 m | AZ45: 12.35 m | BA45: =BA17*1.18 -> 8.34 m | BB45: 11.76 m | BC45: =BC17*1.18 -> 8.00 m | BS45: 5415152+140x15 | BT45: =BT17*1.18 -> 12.79 m | BU45: 17.39 m | BV45: =BV17*1.18 -> 11.87 m | BW45: 16.40 m | BX45: =BX17*1.18 -> 11.12 m | BY45: 15.49 m | BZ45: =BZ17*1.18 -> 10.49 m | CA45: 10.22 m | CB45: =CB17*1.18 -> 9.96 m | CC45: 13.99 m | CD45: =CD17*1.18 -> 9.51 m | CE45: 13.52 m | CF45: =CF17*1.18 -> 9.11 m
B46: 1-Feldbalken b | G46: 2a) Tabellenwert l | H46: =O53 -> 3.53 m | M46: 5415152+70x30x3 | N46: =N18*1.2 -> 6.40 m | O46: 8.14 m | P46: =P18*1.2 -> 6.05 m | Q46: 7.78 m | R46: =R18*1.2 -> 5.76 m | S46: 7.36 m | T46: =T18*1.2 -> 5.53 m | U46: 5.43 m | V46: =V18*1.2 -> 5.33 m | W46: 6.84 m | X46: =X18*1.2 -> 5.16 m | Y46: 6.72 m | Z46: =Z18*1.2 -> 5.00 m | AP46: 5415152+70x30x3 | AQ46: =AQ18*1.2 -> 8.46 m | AR46: 11.88 m | AS46: =AS18*1.2 -> 7.78 m | AT46: 11.02 m | AU46: =AU18*1.2 -> 7.24 m | AV46: 10.34 m | AW46: =AW18*1.2 -> 6.79 m | AX46: 6.61 m | AY46: =AY18*1.2 -> 6.43 m | AZ46: 9.35 m | BA46: =BA18*1.2 -> 6.11 m | BB46: 8.75 m | BC46: =BC18*1.2 -> 5.84 m | BS46: 5415152+70x30x3 | BT46: =BT18*1.2 -> 9.64 m | BU46: 13.54 m | BV46: =BV18*1.2 -> 8.86 m | BW46: 12.60 m | BX46: =BX18*1.2 -> 8.23 m | BY46: 11.76 m | BZ46: =BZ18*1.2 -> 7.73 m | CA46: 7.52 m | CB46: =CB18*1.2 -> 7.31 m | CC46: 10.44 m | CD46: =CD18*1.2 -> 6.96 m | CE46: 10.08 m | CF46: =CF18*1.2 -> 6.65 m
B47: Durchbiegung w | C47: = | D47: =(1000/VLOOKUP($D$41,Daten!$A$22:$B$25,2))*$D$39^4/($H$76*H73)^3 -> 23 mm | G47: 2a) Korrigierter lzul1 | H47: =H46*H29*H30*H31*H32*H33 -> 3.47 m | M47: 5415152+Z-Profil | N47: =N19*1.2 -> 7.09 m | O47: 9.01 m | P47: =P19*1.2 -> 6.71 m | Q47: 8.58 m | R47: =R19*1.2 -> 6.40 m | S47: 8.24 m | T47: =T19*1.2 -> 6.13 m | U47: 6.02 m | V47: =V19*1.2 -> 5.90 m | W47: 7.63 m | X47: =X19*1.2 -> 5.71 m | Y47: 7.39 m | Z47: =Z19*1.2 -> 5.54 m | AP47: 5415152+Z-Profil | AQ47: =AQ19*1.2 -> 9.35 m | AR47: 13.13 m | AS47: =AS19*1.2 -> 8.59 m | AT47: 12.19 m | AU47: =AU19*1.2 -> 7.99 m | AV47: 11.44 m | AW47: =AW19*1.2 -> 7.50 m | AX47: 7.30 m | AY47: =AY19*1.2 -> 7.09 m | AZ47: 10.22 m | BA47: =BA19*1.2 -> 6.74 m | BB47: 9.74 m | BC47: =BC19*1.2 -> 6.44 m | BS47: 5415152+Z-Profil | BT47: =BT19*1.2 -> 10.63 m | BU47: 14.89 m | BV47: =BV19*1.2 -> 9.78 m | BW47: 13.88 m | BX47: =BX19*1.2 -> 9.10 m | BY47: 12.96 m | BZ47: =BZ19*1.2 -> 8.54 m | CA47: 8.31 m | CB47: =CB19*1.2 -> 8.08 m | CC47: 11.64 m | CD47: =CD19*1.2 -> 7.68 m | CE47: 11.16 m | CF47: =CF19*1.2 -> 7.33 m
M48: 543003 | N48: =N21*0.86 -> 4.46 m | O48: 5.71 m | P48: =P21*0.86 -> 4.21 m | Q48: 5.40 m | R48: =R21*0.86 -> 4.02 m | S48: 5.22 m | T48: =T21*0.86 -> 3.84 m | U48: 3.78 m | V48: =V21*0.86 -> 3.71 m | W48: 4.87 m | X48: =X21*0.86 -> 3.58 m | Y48: 4.61 m | Z48: =Z21*0.86 -> 3.47 m | AP48: 543003 | AQ48: =AQ21*0.86 -> 6.35 m | AR48: 8.97 m | AS48: =AS21*0.86 -> 5.82 m | AT48: 8.30 m | AU48: =AU21*0.86 -> 5.41 m | AV48: 7.76 m | AW48: =AW21*0.86 -> 5.07 m | AX48: 4.93 m | AY48: =AY21*0.86 -> 4.79 m | AZ48: 6.88 m | BA48: =BA21*0.86 -> 4.56 m | BB48: 6.62 m | BC48: =BC21*0.86 -> 4.35 m | BS48: 543003 | BT48: =BT21*0.86 -> 7.22 m | BU48: 10.18 m | BV48: =BV21*0.86 -> 6.62 m | BW48: 9.46 m | BX48: =BX21*0.86 -> 6.15 m | BY48: 8.80 m | BZ48: =BZ21*0.86 -> 5.77 m | CA48: 5.61 m | CB48: =CB21*0.86 -> 5.45 m | CC48: 7.93 m | CD48: =CD21*0.86 -> 5.18 m | CE48: 7.50 m | CF48: =CF21*0.86 -> 4.95 m
M49: 543003+70x30x3 | N49: =N22*0.98 -> 5.33 m | O49: 6.75 m | P49: =P22*0.98 -> 5.05 m | Q49: 6.46 m | R49: =R22*0.98 -> 4.81 m | S49: 6.12 m | T49: =T22*0.98 -> 4.63 m | U49: 4.54 m | V49: =V22*0.98 -> 4.46 m | W49: 5.78 m | X49: =X22*0.98 -> 4.31 m | Y49: 5.59 m | Z49: =Z22*0.98 -> 4.18 m | AP49: 543003+70x30x3 | AQ49: =AQ22*0.98 -> 7.77 m | AR49: 10.86 m | AS49: =AS22*0.98 -> 7.15 m | AT49: 10.09 m | AU49: =AU22*0.98 -> 6.66 m | AV49: 9.48 m | AW49: =AW22*0.98 -> 6.26 m | AX49: 6.10 m | AY49: =AY22*0.98 -> 5.93 m | AZ49: 8.49 m | BA49: =BA22*0.98 -> 5.64 m | BB49: 8.19 m | BC49: =BC22*0.98 -> 5.39 m | BS49: 543003+70x30x3 | BT49: =BT22*0.98 -> 8.85 m | BU49: 12.38 m | BV49: =BV22*0.98 -> 8.14 m | BW49: 11.50 m | BX49: =BX22*0.98 -> 7.59 m | BY49: 10.74 m | BZ49: =BZ22*0.98 -> 7.13 m | CA49: 6.94 m | CB49: =CB22*0.98 -> 6.75 m | CC49: 9.75 m | CD49: =CD22*0.98 -> 6.42 m | CE49: 9.26 m | CF49: =CF22*0.98 -> 6.13 m
G50: 3a) Korrekturfaktoren Rinne | J50: 3a) Dachneigung | K50: 3a) k
G51: 3a) Verglasung | H51: =H2 -> 1.000 | J51: 1.00 ° | K51: 1.000
G52: 3a) Schnee sDA | H52: =H3 -> 0.982 | J52: 10.00 ° | K52: 1.000 | M52: Seitenträger | N52: Sparren-Achsabstand | O52: l | AJ52: 2b) Tabellenwert l | AK52: =AR53 -> 3.96 m | AP52: Seitenträger | AQ52: Sparren-Achsabstand | AR52: l | BM52: 2c) Tabellenwert l | BN52: =BU53 -> 4.50 m | BS52: Seitenträger | BT52: Sparren-Achsabstand | BU52: l
G53: 3a) Wind | H53: =H4 -> 1.000 | J53: =IF(AND($D$9>J52,$D$9<J54),$D$9,"nicht interpolieren") -> nicht interpolieren | K53: =K52-(K52-K54)*(J53-J52)/(J54-J52) ->  | M53: =IF($D$19="","",MATCH($D$19,M32:M50)) -> 10 | N53: =IF($D$12="","",MATCH($D$12,N31:Z31,0)) -> 8 | O53: =IF(OR($D$19="",$D$12=""),0,INDEX(N32:Z50,M53,N53)) -> 3.53 m | AJ53: 2b) Korrigierter lzul2 | AK53: =AK52*AK32*AK33*AK34*AK35*AK36 -> 3.86 m | AP53: =IF($D$19="","",MATCH($D$19,AP32:AP50)) -> 10 | AQ53: =IF($D$12="","",MATCH($D$12,AQ31:BC31,0)) -> 8 | AR53: =IF(OR($D$19="",$D$12=""),0,INDEX(AQ32:BC50,AP53,AQ53)) -> 3.96 m | BM53: 2c) Korrigierter lzul3 | BN53: =BN52*BN32*BN33*BN34*BN35*BN36 -> 45,045.00 m | BS53: =IF($D$19="","",MATCH($D$19,BS32:BS50)) -> 10 | BT53: =IF($D$12="","",MATCH($D$12,BT31:CF31,0)) -> 8 | BU53: =IF(OR($D$19="",$D$12=""),0,INDEX(BT32:CF50,BS53,BT53)) -> 4.50 m
G54: 3a) Dachneigung | H54: =VLOOKUP($D$9,J51:K54,2) -> 1.000 | J54: 30.00 ° | K54: 0.990
G55: 3a) Faktor Trägergewicht | H55: =IF(AND($D$12<0.8,OR($D$11=$M$2,$D$11=$M$6,$D$11=$M$8,$D$11=$M$13)),0.99,IF(AND($D$12>=0.8,OR($D$11=$M$3,$D$11=$M$7,$D$11=$M$9,$D$11=$M$14,$D$11=$M$15)),0.97,IF(AND($D$12<0.8,OR($D$11=$M$3,$D$11=$M$7,$D$11=$M$9,$D$11=$M$14,$D$11=$M$15)),0.95,1))) -> 1.000
G56: 3a) zul. Durchbiegung | H56: =VLOOKUP($D$27,Daten!$A$44:$B$47,2) -> 0.930 | M56: 3a) Rinne | N56: 1.00 m | O56: =IF(AND('Ermittlung Schneelast'!$D$19>1,'Ermittlung Schneelast'!$D$19<1.5),'Ermittlung Schneelast'!$D$19,0) -> 0.00 m | P56: 1.50 m | Q56: =IF(AND('Ermittlung Schneelast'!$D$19>1.5,'Ermittlung Schneelast'!$D$19<2),'Ermittlung Schneelast'!$D$19,0) -> 0.00 m | R56: 2.00 m | S56: =IF(AND('Ermittlung Schneelast'!$D$19>2,'Ermittlung Schneelast'!$D$19<2.5),'Ermittlung Schneelast'!$D$19,0) -> 0.00 m | T56: 2.50 m | U56: =IF(AND('Ermittlung Schneelast'!$D$19>2.5,'Ermittlung Schneelast'!$D$19<3),'Ermittlung Schneelast'!$D$19,0) -> 0.00 m | V56: 3.00 m | W56: =IF(AND('Ermittlung Schneelast'!$D$19>3,'Ermittlung Schneelast'!$D$19<3.5),'Ermittlung Schneelast'!$D$19,0) -> 0.00 m | X56: 3.50 m | Y56: =IF(AND('Ermittlung Schneelast'!$D$19>3.5,'Ermittlung Schneelast'!$D$19<4),'Ermittlung Schneelast'!$D$19,0) -> 0.00 m | Z56: 4.00 m | AA56: =IF(AND('Ermittlung Schneelast'!$D$19>4,'Ermittlung Schneelast'!$D$19<4.5),'Ermittlung Schneelast'!$D$19,0) -> 0.00 m | AB56: 4.50 m | AC56: =IF(AND('Ermittlung Schneelast'!$D$19>4.5,'Ermittlung Schneelast'!$D$19<5),'Ermittlung Schneelast'!$D$19,0) -> 0.00 m | AD56: 5.00 m | AE56: =IF(AND('Ermittlung Schneelast'!$D$19>5,'Ermittlung Schneelast'!$D$19<5.5),'Ermittlung Schneelast'!$D$19,0) -> 0.00 m | AF56: 5.50 m | AG56: =IF(AND('Ermittlung Schneelast'!$D$19>5.5,'Ermittlung Schneelast'!$D$19<6),'Ermittlung Schneelast'!$D$19,0) -> 0.00 m | AH56: 6.00 m | AJ56: 3b) Korrekturfaktoren Rinne | AP56: 3b) Rinne | AQ56: 1.00 m | AR56: =IF(AND('Ermittlung Schneelast'!$D$19>1,'Ermittlung Schneelast'!$D$19<1.5),'Ermittlung Schneelast'!$D$19,0) -> 0.00 m | AS56: 1.50 m | AT56: =IF(AND('Ermittlung Schneelast'!$D$19>1.5,'Ermittlung Schneelast'!$D$19<2),'Ermittlung Schneelast'!$D$19,0) -> 0.00 m | AU56: 2.00 m | AV56: =IF(AND('Ermittlung Schneelast'!$D$19>2,'Ermittlung Schneelast'!$D$19<2.5),'Ermittlung Schneelast'!$D$19,0) -> 0.00 m | AW56: 2.50 m | AX56: =IF(AND('Ermittlung Schneelast'!$D$19>2.5,'Ermittlung Schneelast'!$D$19<3),'Ermittlung Schneelast'!$D$19,0) -> 0.00 m | AY56: 3.00 m | AZ56: =IF(AND('Ermittlung Schneelast'!$D$19>3,'Ermittlung Schneelast'!$D$19<3.5),'Ermittlung Schneelast'!$D$19,0) -> 0.00 m | BA56: 3.50 m | BB56: =IF(AND('Ermittlung Schneelast'!$D$19>3.5,'Ermittlung Schneelast'!$D$19<4),'Ermittlung Schneelast'!$D$19,0) -> 0.00 m | BC56: 4.00 m | BD56: =IF(AND('Ermittlung Schneelast'!$D$19>4,'Ermittlung Schneelast'!$D$19<4.5),'Ermittlung Schneelast'!$D$19,0) -> 0.00 m | BE56: 4.50 m | BF56: =IF(AND('Ermittlung Schneelast'!$D$19>4.5,'Ermittlung Schneelast'!$D$19<5),'Ermittlung Schneelast'!$D$19,0) -> 0.00 m | BG56: 5.00 m | BH56: =IF(AND('Ermittlung Schneelast'!$D$19>5,'Ermittlung Schneelast'!$D$19<5.5),'Ermittlung Schneelast'!$D$19,0) -> 0.00 m | BI56: 5.50 m | BJ56: =IF(AND('Ermittlung Schneelast'!$D$19>5.5,'Ermittlung Schneelast'!$D$19<6),'Ermittlung Schneelast'!$D$19,0) -> 0.00 m | BK56: 6.00 m | BM56: 3c) Korrekturfaktoren Rinne | BS56: 3c) Rinne | BT56: 1.00 m | BU56: =IF(AND('Ermittlung Schneelast'!$D$19>1,'Ermittlung Schneelast'!$D$19<1.5),'Ermittlung Schneelast'!$D$19,0) -> 0.00 m | BV56: 1.50 m | BW56: =IF(AND('Ermittlung Schneelast'!$D$19>1.5,'Ermittlung Schneelast'!$D$19<2),'Ermittlung Schneelast'!$D$19,0) -> 0.00 m | BX56: 2.00 m | BY56: =IF(AND('Ermittlung Schneelast'!$D$19>2,'Ermittlung Schneelast'!$D$19<2.5),'Ermittlung Schneelast'!$D$19,0) -> 0.00 m | BZ56: 2.50 m | CA56: =IF(AND('Ermittlung Schneelast'!$D$19>2.5,'Ermittlung Schneelast'!$D$19<3),'Ermittlung Schneelast'!$D$19,0) -> 0.00 m | CB56: 3.00 m | CC56: =IF(AND('Ermittlung Schneelast'!$D$19>3,'Ermittlung Schneelast'!$D$19<3.5),'Ermittlung Schneelast'!$D$19,0) -> 0.00 m | CD56: 3.50 m | CE56: =IF(AND('Ermittlung Schneelast'!$D$19>3.5,'Ermittlung Schneelast'!$D$19<4),'Ermittlung Schneelast'!$D$19,0) -> 0.00 m | CF56: 4.00 m | CG56: =IF(AND('Ermittlung Schneelast'!$D$19>4,'Ermittlung Schneelast'!$D$19<4.5),'Ermittlung Schneelast'!$D$19,0) -> 0.00 m | CH56: 4.50 m | CI56: =IF(AND('Ermittlung Schneelast'!$D$19>4.5,'Ermittlung Schneelast'!$D$19<5),'Ermittlung Schneelast'!$D$19,0) -> 0.00 m | CJ56: 5.00 m | CK56: =IF(AND('Ermittlung Schneelast'!$D$19>5,'Ermittlung Schneelast'!$D$19<5.5),'Ermittlung Schneelast'!$D$19,0) -> 0.00 m | CL56: 5.50 m | CM56: =IF(AND('Ermittlung Schneelast'!$D$19>5.5,'Ermittlung Schneelast'!$D$19<6),'Ermittlung Schneelast'!$D$19,0) -> 0.00 m | CN56: 6.00 m
M57: 26101 | N57: =P57+(R57-T57) -> 3.98 m | O57: =N57-(N57-P57)*(O$56-N$56)/(P$56-N$56) -> 4.48 m | P57: =R57+(R57-T57) -> 3.73 m | Q57: =P57-(P57-R57)*(Q$56-P$56)/(R$56-P$56) -> 4.48 m | R57: 3.48 m | S57: =R57-(R57-T57)*(S$56-R$56)/(T$56-R$56) -> 4.48 m | T57: 3.23 m | U57: =T57-(T57-V57)*(U$56-T$56)/(V$56-T$56) -> 4.13 m | V57: 3.05 m | W57: =V57-(V57-X57)*(W$56-V$56)/(X$56-V$56) -> 3.95 m | X57: 2.90 m | Y57: =X57-(X57-Z57)*(Y$56-X$56)/(Z$56-X$56) -> 3.81 m | Z57: 2.77 m | AA57: =Z57-(Z57-AB57)*(AA$56-Z$56)/(AB$56-Z$56) -> 3.57 m | AB57: 2.67 m | AC57: =AB57-(AB57-AD57)*(AC$56-AB$56)/(AD$56-AB$56) -> 3.48 m | AD57: 2.58 m | AE57: =AD57-(AD57-AF57)*(AE$56-AD$56)/(AF$56-AD$56) -> 3.38 m | AF57: 2.50 m | AG57: =AF57-(AF57-AH57)*(AG$56-AF$56)/(AH$56-AF$56) -> 3.27 m | AH57: 2.43 m | AJ57: 3b) Verglasung | AK57: =AK2 -> 1.000 | AP57: 26101 | AQ57: =AS57+(AU57-AW57) -> 4.84 m | AR57: =AQ57-(AQ57-AS57)*(AR$56-AQ$56)/(AS$56-AQ$56) -> 5.68 m | AS57: =AU57+(AU57-AW57) -> 4.42 m | AT57: =AS57-(AS57-AU57)*(AT$56-AS$56)/(AU$56-AS$56) -> 5.68 m | AU57: 4.00 m | AV57: =AU57-(AU57-AW57)*(AV$56-AU$56)/(AW$56-AU$56) -> 5.68 m | AW57: 3.58 m | AX57: =AW57-(AW57-AY57)*(AX$56-AW$56)/(AY$56-AW$56) -> 5.08 m | AY57: 3.28 m | AZ57: =AY57-(AY57-BA57)*(AZ$56-AY$56)/(BA$56-AY$56) -> 4.72 m | BA57: 3.04 m | BB57: =BA57-(BA57-BC57)*(BB$56-BA$56)/(BC$56-BA$56) -> 4.37 m | BC57: 2.85 m | BD57: =BC57-(BC57-BE57)*(BD$56-BC$56)/(BE$56-BC$56) -> 4.21 m | BE57: 2.68 m | BF57: =BE57-(BE57-BG57)*(BF$56-BE$56)/(BG$56-BE$56) -> 3.85 m | BG57: 2.55 m | BH57: =BG57-(BG57-BI57)*(BH$56-BG$56)/(BI$56-BG$56) -> 3.75 m | BI57: 2.43 m | BJ57: =BI57-(BI57-BK57)*(BJ$56-BI$56)/(BK$56-BI$56) -> 3.53 m | BK57: 2.33 m | BM57: 3c) Verglasung | BN57: =BN2 -> 1.000 | BS57: 26101 | BT57: =BV57+(BX57-BZ57) -> 5.45 m | BU57: =BT57-(BT57-BV57)*(BU$56-BT$56)/(BV$56-BT$56) -> 6.37 m | BV57: =BX57+(BX57-BZ57) -> 4.99 m | BW57: =BV57-(BV57-BX57)*(BW$56-BV$56)/(BX$56-BV$56) -> 6.37 m | BX57: 4.53 m | BY57: =BX57-(BX57-BZ57)*(BY$56-BX$56)/(BZ$56-BX$56) -> 6.37 m | BZ57: 4.07 m | CA57: =BZ57-(BZ57-CB57)*(CA$56-BZ$56)/(CB$56-BZ$56) -> 5.82 m | CB57: 3.72 m | CC57: =CB57-(CB57-CD57)*(CC$56-CB$56)/(CD$56-CB$56) -> 5.34 m | CD57: 3.45 m | CE57: =CD57-(CD57-CF57)*(CE$56-CD$56)/(CF$56-CD$56) -> 4.99 m | CF57: 3.23 m | CG57: =CF57-(CF57-CH57)*(CG$56-CF$56)/(CH$56-CF$56) -> 4.67 m | CH57: 3.05 m | CI57: =CH57-(CH57-CJ57)*(CI$56-CH$56)/(CJ$56-CH$56) -> 4.49 m | CJ57: 2.89 m | CK57: =CJ57-(CJ57-CL57)*(CK$56-CJ$56)/(CL$56-CJ$56) -> 4.19 m | CL57: 2.76 m | CM57: =CL57-(CL57-CN57)*(CM$56-CL$56)/(CN$56-CL$56) -> 4.08 m | CN57: 2.64 m
G58: 3a) Erhöhungsfaktor ke aufgrund x-Feldbalken | H58: =VLOOKUP($B$32,Daten!$A$104:$B$110,2) -> 1.340 | M58: 26101+100x20x3 | N58: 4.78 m | O58: 5.36 m | P58: 4.49 m | Q58: 5.36 m | R58: 4.20 m | S58: 5.36 m | T58: 3.91 m | U58: 5.01 m | V58: 3.69 m | W58: 4.71 m | X58: 3.52 m | Y58: 4.57 m | Z58: 3.37 m | AA58: 4.41 m | AB58: 3.24 m | AC58: 4.23 m | AD58: 3.13 m | AE58: 4.03 m | AF58: 3.04 m | AG58: 4.03 m | AH58: 2.95 m | AJ58: 3b) Schnee sDA | AK58: =AK3 -> 0.974 | AP58: 26101+100x20x3 | AQ58: =AS58+(AU58-AW58) -> 5.84 m | AR58: 6.82 m | AS58: =AU58+(AU58-AW58) -> 5.35 m | AT58: 6.82 m | AU58: 4.86 m | AV58: 6.82 m | AW58: 4.37 m | AX58: 6.22 m | AY58: 4.00 m | AZ58: 5.68 m | BA58: 3.72 m | BB58: 5.40 m | BC58: 3.48 m | BD58: 5.00 m | BE58: 3.29 m | BF58: 4.82 m | BG58: 3.12 m | BH58: 4.52 m | BI58: 2.98 m | BJ58: 4.30 m | BK58: 2.86 m | BM58: 3c) außergewöhnliche Schneelast sa | BN58: =BN3 -> 10000.000 | BS58: 26101+100x20x3 | BT58: 6.64 m | BU58: 7.76 m | BV58: =BX58+(BX58-BZ58) -> 6.08 m | BW58: 7.76 m | BX58: 5.52 m | BY58: 7.76 m | BZ58: 4.96 m | CA58: 7.06 m | CB58: 4.54 m | CC58: 6.46 m | CD58: 4.22 m | CE58: 6.11 m | CF58: 3.95 m | CG58: 5.71 m | CH58: 3.73 m | CI58: 5.44 m | CJ58: 3.54 m | CK58: 5.14 m | CL58: 3.38 m | CM58: 4.92 m | CN58: 3.24 m
M59: 541516 | N59: =P59+(R59-T59) -> 9.54 m | O59: 10.68 m | P59: =R59+(R59-T59) -> 8.97 m | Q59: 10.68 m | R59: 8.40 m | S59: 10.68 m | T59: 7.83 m | U59: 10.03 m | V59: 7.39 m | W59: 9.55 m | X59: 7.03 m | Y59: 9.06 m | Z59: 6.74 m | AA59: 9.06 m | AB59: 6.45 m | AC59: 8.16 m | AD59: 6.26 m | AE59: 8.16 m | AF59: 6.07 m | AG59: 8.05 m | AH59: 5.89 m | AJ59: 3b) Wind | AK59: =AK4 -> 1.000 | AP59: 541516 | AQ59: =AS59+(AU59-AW59) -> 9.54 m | AR59: 10.68 m | AS59: =AU59+(AU59-AW59) -> 8.97 m | AT59: 10.68 m | AU59: 8.40 m | AV59: 10.68 m | AW59: 7.83 m | AX59: 10.03 m | AY59: 7.39 m | AZ59: 9.55 m | BA59: 7.03 m | BB59: 9.06 m | BC59: 6.74 m | BD59: 9.06 m | BE59: 6.45 m | BF59: 8.16 m | BG59: 6.26 m | BH59: 8.16 m | BI59: 6.07 m | BJ59: 8.05 m | BK59: 5.89 m | BM59: 3c) Wind | BN59: =BN4 -> 1.000 | BS59: 541516 | BT59: =BV59+(BX59-BZ59) -> 9.54 m | BU59: 10.68 m | BV59: =BX59+(BX59-BZ59) -> 8.97 m | BW59: 10.68 m | BX59: 8.40 m | BY59: 10.68 m | BZ59: 7.83 m | CA59: 10.03 m | CB59: 7.39 m | CC59: 9.55 m | CD59: 7.03 m | CE59: 9.06 m | CF59: 6.74 m | CG59: 9.06 m | CH59: 6.45 m | CI59: 8.16 m | CJ59: 6.26 m | CK59: 8.16 m | CL59: 6.07 m | CM59: 8.05 m | CN59: 5.89 m
G60: 3a) Tabellenwert b | H60: =O69 -> 7.03 m | M60: 545445 | N60: 5.34 m | O60: 5.98 m | P60: 5.02 m | Q60: 5.98 m | R60: 4.70 m | S60: 5.98 m | T60: 4.38 m | U60: 5.63 m | V60: 4.13 m | W60: 5.33 m | X60: 3.93 m | Y60: 5.12 m | Z60: 3.76 m | AA60: 4.88 m | AB60: 3.62 m | AC60: 4.70 m | AD60: 3.50 m | AE60: 4.60 m | AF60: 3.39 m | AG60: 4.49 m | AH60: 3.29 m | AJ60: 3b) Dachneigung | AK60: =H54 -> 1.000 | AP60: 545445 | AQ60: 6.71 m | AR60: 7.85 m | AS60: 6.14 m | AT60: 7.85 m | AU60: 5.57 m | AV60: 7.85 m | AW60: 5.00 m | AX60: 7.10 m | AY60: 4.58 m | AZ60: 6.62 m | BA60: 4.24 m | BB60: 6.06 m | BC60: 3.98 m | BD60: 5.82 m | BE60: 3.75 m | BF60: 5.46 m | BG60: 3.56 m | BH60: 5.16 m | BI60: 3.40 m | BJ60: 4.94 m | BK60: 3.26 m | BM60: 3c) Dachneigung | BN60: =H54 -> 1.000 | BS60: 545445 | BT60: 7.62 m | BU60: 8.92 m | BV60: 6.97 m | BW60: 8.92 m | BX60: 6.32 m | BY60: 8.92 m | BZ60: 5.67 m | CA60: 8.07 m | CB60: 5.19 m | CC60: 7.41 m | CD60: 4.82 m | CE60: 6.99 m | CF60: 4.51 m | CG60: 6.51 m | CH60: 4.26 m | CI60: 6.24 m | CJ60: 4.04 m | CK60: 5.84 m | CL60: 3.86 m | CM60: 5.73 m | CN60: 3.69 m
G61: 3a) Korrigierter bzul | H61: =H60*H51*H52*H53*H54*H55*H56 -> 6.42 m | M61: 545445+120x50x3 | N61: 6.37 m | O61: 7.11 m | P61: 6.00 m | Q61: 7.11 m | R61: 5.63 m | S61: 7.11 m | T61: 5.26 m | U61: 6.76 m | V61: 4.96 m | W61: 6.34 m | X61: 4.73 m | Y61: 6.13 m | Z61: 4.53 m | AA61: 5.89 m | AB61: 4.36 m | AC61: 5.62 m | AD61: 4.22 m | AE61: 5.52 m | AF61: 4.09 m | AG61: 5.30 m | AH61: 3.98 m | AJ61: 3b) Faktor Trägergewicht | AK61: =IF(AND($D$12<0.8,OR($D$11=$M$2,$D$11=$M$6,$D$11=$M$8,$D$11=$M$13)),0.99,IF(AND($D$12>=0.8,OR($D$11=$M$3,$D$11=$M$7,$D$11=$M$9,$D$11=$M$14,$D$11=$M$15)),0.96,IF(AND($D$12<0.8,OR($D$11=$M$3,$D$11=$M$7,$D$11=$M$9,$D$11=$M$14,$D$11=$M$15)),0.93,1))) -> 1.000 | AP61: 545445+120x50x3 | AQ61: 8.27 m | AR61: 9.65 m | AS61: 7.58 m | AT61: 9.65 m | AU61: 6.89 m | AV61: 9.65 m | AW61: 6.20 m | AX61: 8.75 m | AY61: 5.69 m | AZ61: 8.09 m | BA61: 5.29 m | BB61: 7.60 m | BC61: 4.96 m | BD61: 7.12 m | BE61: 4.69 m | BF61: 6.76 m | BG61: 4.46 m | BH61: 6.56 m | BI61: 4.25 m | BJ61: 6.12 m | BK61: 4.08 m | BM61: 3c) Faktor Trägergewicht | BN61: =IF(AND($D$12<0.8,OR($D$26=$M$57,$D$26=$M$60)),0.99,IF(AND($D$12>=0.8,OR($D$26=$M$58,$D$26=$M$62,$D$26=$M$61,$D$26=$M$64,$D$26=$M$63)),0.96,IF(AND($D$12<0.8,OR($D$26=$M$58,$D$26=$M$62,$D$26=$M$61,$D$26=$M$63,$D$26=$M$64)),0.93,1))) -> 1.000 | BS61: 545445+120x50x3 | BT61: 9.36 m | BU61: 10.90 m | BV61: 8.59 m | BW61: 10.90 m | BX61: 7.82 m | BY61: 10.90 m | BZ61: 7.05 m | CA61: 10.00 m | CB61: 6.46 m | CC61: 9.16 m | CD61: 6.01 m | CE61: 8.67 m | CF61: 5.63 m | CG61: 8.11 m | CH61: 5.32 m | CI61: 7.66 m | CJ61: 5.06 m | CK61: 7.36 m | CL61: 4.83 m | CM61: 7.03 m | CN61: 4.63 m
M62: 545445+120x50x5 | N62: 6.71 m | O62: 7.49 m | P62: 6.32 m | Q62: 7.49 m | R62: 5.93 m | S62: 7.49 m | T62: 5.54 m | U62: 7.04 m | V62: 5.24 m | W62: 6.68 m | X62: 5.00 m | Y62: 6.47 m | Z62: 4.79 m | AA62: 6.15 m | AB62: 4.62 m | AC62: 5.97 m | AD62: 4.47 m | AE62: 5.87 m | AF62: 4.33 m | AG62: 5.65 m | AH62: 4.21 m | AJ62: 3b) zul. Durchbiegung | AK62: =VLOOKUP($D$27,Daten!$A$44:$B$47,2) -> 0.930 | AP62: 545445+120x50x5 | AQ62: 8.90 m | AR62: 10.34 m | AS62: 8.18 m | AT62: 10.34 m | AU62: 7.46 m | AV62: 10.34 m | AW62: 6.74 m | AX62: 9.49 m | AY62: 6.19 m | AZ62: 8.77 m | BA62: 5.76 m | BB62: 8.21 m | BC62: 5.41 m | BD62: 7.81 m | BE62: 5.11 m | BF62: 7.36 m | BG62: 4.86 m | BH62: 7.06 m | BI62: 4.64 m | BJ62: 6.73 m | BK62: 4.45 m | BM62: 3c) zul. Durchbiegung | BN62: =VLOOKUP($D$27,Daten!$A$44:$B$47,2) -> 0.930 | BS62: 545445+120x50x5 | BT62: 10.14 m | BU62: 11.80 m | BV62: 9.31 m | BW62: 11.80 m | BX62: 8.48 m | BY62: 11.80 m | BZ62: 7.65 m | CA62: 10.75 m | CB62: 7.03 m | CC62: 9.97 m | CD62: 6.54 m | CE62: 9.34 m | CF62: 6.14 m | CG62: 8.86 m | CH62: 5.80 m | CI62: 8.32 m | CJ62: 5.52 m | CK62: 8.02 m | CL62: 5.27 m | CM62: 7.58 m | CN62: 5.06 m
M63: 545445+I120 | N63: 7.09 m | O63: 7.91 m | P63: 6.68 m | Q63: 7.91 m | R63: 6.27 m | S63: 7.91 m | T63: 5.86 m | U63: 7.46 m | V63: 5.54 m | W63: 7.10 m | X63: 5.28 m | Y63: 6.75 m | Z63: 5.07 m | AA63: 6.59 m | AB63: 4.88 m | AC63: 6.32 m | AD63: 4.72 m | AE63: 6.12 m | AF63: 4.58 m | AG63: 6.01 m | AH63: 4.45 m | AP63: 545445+I120 | AQ63: 9.70 m | AR63: 11.28 m | AS63: 8.91 m | AT63: 11.28 m | AU63: 8.12 m | AV63: 11.28 m | AW63: 7.33 m | AX63: 10.33 m | AY63: 6.73 m | AZ63: 9.55 m | BA63: 6.26 m | BB63: 8.92 m | BC63: 5.88 m | BD63: 8.44 m | BE63: 5.56 m | BF63: 8.08 m | BG63: 5.28 m | BH63: 7.58 m | BI63: 5.05 m | BJ63: 7.36 m | BK63: 4.84 m | BS63: 545445+I120 | BT63: 11.00 m | BU63: 12.78 m | BV63: 10.11 m | BW63: 12.78 m | BX63: 9.22 m | BY63: 12.78 m | BZ63: 8.33 m | CA63: 11.73 m | CB63: 7.65 m | CC63: 10.89 m | CD63: 7.11 m | CE63: 10.19 m | CF63: 6.67 m | CG63: 9.55 m | CH63: 6.31 m | CI63: 9.10 m | CJ63: 6.00 m | CK63: 8.70 m | CL63: 5.73 m | CM63: 8.37 m | CN63: 5.49 m
M64: 545445+I120+2*100*10 | N64: 7.49 m | O64: 8.31 m | P64: 7.08 m | Q64: 8.31 m | R64: 6.67 m | S64: 8.31 m | T64: 6.26 m | U64: 7.86 m | V64: 5.94 m | W64: 7.50 m | X64: 5.68 m | Y64: 7.22 m | Z64: 5.46 m | AA64: 7.06 m | AB64: 5.26 m | AC64: 6.70 m | AD64: 5.10 m | AE64: 6.60 m | AF64: 4.95 m | AG64: 6.38 m | AH64: 4.82 m | AP64: 545445+I120+2*100*10 | AQ64: 10.87 m | AR64: 12.53 m | AS64: 10.04 m | AT64: 12.53 m | AU64: 9.21 m | AV64: 12.53 m | AW64: 8.38 m | AX64: 11.63 m | AY64: 7.73 m | AZ64: 10.79 m | BA64: 7.22 m | BB64: 10.16 m | BC64: 6.80 m | BD64: 9.68 m | BE64: 6.44 m | BF64: 9.23 m | BG64: 6.13 m | BH64: 8.73 m | BI64: 5.87 m | BJ64: 8.51 m | BK64: 5.63 m | BS64: 545445+I120+2*100*10 | BT64: 12.38 m | BU64: 14.28 m | BV64: 11.43 m | BW64: 14.28 m | BX64: 10.48 m | BY64: 14.28 m | BZ64: 9.53 m | CA64: 13.23 m | CB64: 8.79 m | CC64: 12.27 m | CD64: 8.21 m | CE64: 11.64 m | CF64: 7.72 m | CG64: 10.92 m | CH64: 7.32 m | CI64: 10.47 m | CJ64: 6.97 m | CK64: 10.07 m | CL64: 6.66 m | CM64: 9.52 m | CN64: 6.40 m
G65: 4a) Korrekturfaktoren Unterzug | M65: 545446 | N65: =P65+(R65-T65) -> 4.20 m | O65: =N65-(N65-P65)*(O$56-N$56)/(P$56-N$56) -> 4.70 m | P65: =R65+(R65-T65) -> 3.95 m | Q65: =P65-(P65-R65)*(Q$56-P$56)/(R$56-P$56) -> 4.70 m | R65: 3.70 m | S65: =R65-(R65-T65)*(S$56-R$56)/(T$56-R$56) -> 4.70 m | T65: 3.45 m | U65: =T65-(T65-V65)*(U$56-T$56)/(V$56-T$56) -> 4.45 m | V65: 3.25 m | W65: =V65-(V65-X65)*(W$56-V$56)/(X$56-V$56) -> 4.21 m | X65: 3.09 m | Y65: =X65-(X65-Z65)*(Y$56-X$56)/(Z$56-X$56) -> 4.00 m | Z65: 2.96 m | AA65: =Z65-(Z65-AB65)*(AA$56-Z$56)/(AB$56-Z$56) -> 3.92 m | AB65: 2.84 m | AC65: =AB65-(AB65-AD65)*(AC$56-AB$56)/(AD$56-AB$56) -> 3.65 m | AD65: 2.75 m | AE65: =AD65-(AD65-AF65)*(AE$56-AD$56)/(AF$56-AD$56) -> 3.65 m | AF65: 2.66 m | AG65: =AF65-(AF65-AH65)*(AG$56-AF$56)/(AH$56-AF$56) -> 3.43 m | AH65: 2.59 m | AJ65: 3b) Tabellenwert b | AK65: =AR69 -> 7.03 m | AP65: 545446 | AQ65: =AS65+(AU65-AW65) -> 5.36 m | AR65: =AQ65-(AQ65-AS65)*(AR$56-AQ$56)/(AS$56-AQ$56) -> 6.28 m | AS65: =AU65+(AU65-AW65) -> 4.90 m | AT65: =AS65-(AS65-AU65)*(AT$56-AS$56)/(AU$56-AS$56) -> 6.28 m | AU65: 4.44 m | AV65: =AU65-(AU65-AW65)*(AV$56-AU$56)/(AW$56-AU$56) -> 6.28 m | AW65: 3.98 m | AX65: =AW65-(AW65-AY65)*(AX$56-AW$56)/(AY$56-AW$56) -> 5.68 m | AY65: 3.64 m | AZ65: =AY65-(AY65-BA65)*(AZ$56-AY$56)/(BA$56-AY$56) -> 5.20 m | BA65: 3.38 m | BB65: =BA65-(BA65-BC65)*(BB$56-BA$56)/(BC$56-BA$56) -> 4.92 m | BC65: 3.16 m | BD65: =BC65-(BC65-BE65)*(BD$56-BC$56)/(BE$56-BC$56) -> 4.60 m | BE65: 2.98 m | BF65: =BE65-(BE65-BG65)*(BF$56-BE$56)/(BG$56-BE$56) -> 4.33 m | BG65: 2.83 m | BH65: =BG65-(BG65-BI65)*(BH$56-BG$56)/(BI$56-BG$56) -> 4.13 m | BI65: 2.70 m | BJ65: =BI65-(BI65-BK65)*(BJ$56-BI$56)/(BK$56-BI$56) -> 3.91 m | BK65: 2.59 m | BM65: 3c) Tabellenwert b | BN65: =BU69 -> 7.03 m | BS65: 545446 | BT65: =BV65+(BX65-BZ65) -> 6.08 m | BU65: =BT65-(BT65-BV65)*(BU$56-BT$56)/(BV$56-BT$56) -> 7.12 m | BV65: =BX65+(BX65-BZ65) -> 5.56 m | BW65: =BV65-(BV65-BX65)*(BW$56-BV$56)/(BX$56-BV$56) -> 7.12 m | BX65: 5.04 m | BY65: =BX65-(BX65-BZ65)*(BY$56-BX$56)/(BZ$56-BX$56) -> 7.12 m | BZ65: 4.52 m | CA65: =BZ65-(BZ65-CB65)*(CA$56-BZ$56)/(CB$56-BZ$56) -> 6.47 m | CB65: 4.13 m | CC65: =CB65-(CB65-CD65)*(CC$56-CB$56)/(CD$56-CB$56) -> 5.93 m | CD65: 3.83 m | CE65: =CD65-(CD65-CF65)*(CE$56-CD$56)/(CF$56-CD$56) -> 5.51 m | CF65: 3.59 m | CG65: =CF65-(CF65-CH65)*(CG$56-CF$56)/(CH$56-CF$56) -> 5.27 m | CH65: 3.38 m | CI65: =CH65-(CH65-CJ65)*(CI$56-CH$56)/(CJ$56-CH$56) -> 4.91 m | CJ65: 3.21 m | CK65: =CJ65-(CJ65-CL65)*(CK$56-CJ$56)/(CL$56-CJ$56) -> 4.61 m | CL65: 3.07 m | CM65: =CL65-(CL65-CN65)*(CM$56-CL$56)/(CN$56-CL$56) -> 4.50 m | CN65: 2.94 m
G66: 4a) Verglasung | H66: =H2 -> 1.000 | M66: 545446+90x50x4 | N66: =P66+(R66-T66) -> 5.24 m | O66: 5.86 m | P66: 4.93 m | Q66: 5.86 m | R66: 4.62 m | S66: 5.86 m | T66: 4.31 m | U66: 5.51 m | V66: 4.07 m | W66: 5.21 m | X66: 3.88 m | Y66: 5.07 m | Z66: 3.71 m | AA66: 4.75 m | AB66: 3.58 m | AC66: 4.66 m | AD66: 3.46 m | AE66: 4.56 m | AF66: 3.35 m | AG66: 4.34 m | AH66: 3.26 m | AJ66: 3b) Korrigierter bzul | AK66: =AK65*AK57*AK58*AK59*AK60*AK61*AK62 -> 6.37 m | AP66: 545446+90x50x4 | AQ66: 7.10 m | AR66: 8.28 m | AS66: 6.51 m | AT66: 8.28 m | AU66: 5.92 m | AV66: 8.28 m | AW66: 5.33 m | AX66: 7.53 m | AY66: 4.89 m | AZ66: 6.99 m | BA66: 4.54 m | BB66: 6.50 m | BC66: 4.26 m | BD66: 6.18 m | BE66: 4.02 m | BF66: 5.82 m | BG66: 3.82 m | BH66: 5.52 m | BI66: 3.65 m | BJ66: 5.30 m | BK66: 3.50 m | BM66: 3c) Korrigierter bzul | BN66: =BN65*BN57*BN58*BN59*BN60*BN61*BN62 -> 65,379.00 m | BS66: 545446+90x50x4 | BT66: 8.06 m | BU66: 9.40 m | BV66: 7.39 m | BW66: 9.40 m | BX66: 6.72 m | BY66: 9.40 m | BZ66: 6.05 m | CA66: 8.55 m | CB66: 5.55 m | CC66: 7.95 m | CD66: 5.15 m | CE66: 7.39 m | CF66: 4.83 m | CG66: 6.91 m | CH66: 4.57 m | CI66: 6.64 m | CJ66: 4.34 m | CK66: 6.34 m | CL66: 4.14 m | CM66: 6.01 m | CN66: 3.97 m
G67: 4a) Schnee sDA | H67: =H3 -> 0.982
G68: 4a) Wind | H68: =H4 -> 1.000 | M68: 3a) Rinne | N68: Tiefe | O68: b | AP68: 3b) Rinne | AQ68: Tiefe | AR68: b | BS68: 3c) Rinne | BT68: Tiefe | BU68: b
G69: 4a) Dachneigung | H69: =H54 -> 1.000 | M69: =IF(D26="","",MATCH(D26,M57:M67)) -> 3 | N69: =IF(D10="","",MATCH('Ermittlung Schneelast'!D19,N56:AH56,0)) -> 11 | O69: =IF(OR(D26="",D25=""),0,INDEX(N57:AH67,M69,N69)) -> 7.03 m | AP69: =IF($D$26="","",MATCH($D$26,AP57:AP67)) -> 3 | AQ69: =IF($D$10="","",MATCH('Ermittlung Schneelast'!$D$19,AQ56:BK56,0)) -> 11 | AR69: =IF(OR($D$25="",$D$26=""),0,INDEX(AQ57:BK67,AP69,AQ69)) -> 7.03 m | BS69: =IF($D$26="","",MATCH($D$26,BS57:BS67)) -> 3 | BT69: =IF($D$10="","",MATCH('Ermittlung Schneelast'!$D$19,BT56:CN56,0)) -> 11 | BU69: =IF(OR($D$25="",$D$26=""),0,INDEX(BT57:CN67,BS69,BT69)) -> 7.03 m
G70: 4a) Faktor Trägergewicht | H70: =H55 -> 1.000
G71: 4a) zul. Durchbiegung | H71: =VLOOKUP($D$41,Daten!$A$44:$B$47,2) -> 0.930 | M71: 4a) Unterzug | N71: 1 | O71: =IF(AND(D38>1,D38<1.5),D38,0) -> 0.00 m | P71: 1.5 | Q71: =IF(AND(D38>1.5,D38<2),D38,0) -> 0.00 m | R71: 2.00 m | S71: =IF(AND(D38>2,D38<2.5),D38,0) -> 0.00 m | T71: 2.50 m | U71: =IF(AND(D38>2.5,D38<3),D38,0) -> 0.00 m | V71: 3.00 m | W71: =IF(AND(D38>3,D38<3.5),D38,0) -> 0.00 m | X71: 3.50 m | Y71: =IF(AND(D38>3.5,D38<4),D38,0) -> 0.00 m | Z71: 4.00 m | AJ71: 4b) Korrekturfaktoren Unterzug | AP71: 4b) Unterzug | AQ71: 1.00 m | AR71: =IF(AND(D38>1,D38<1.5),D38,0) -> 0.00 m | AS71: 1.50 m | AT71: =IF(AND(D38>1.5,D38<2),D38,0) -> 0.00 m | AU71: 2.00 m | AV71: =IF(AND(D38>2,D38<2.5),D38,0) -> 0.00 m | AW71: 2.50 m | AX71: =IF(AND(D38>2.5,D38<3),D38,0) -> 0.00 m | AY71: 3.00 m | AZ71: =IF(AND(D38>3,D38<3.5),D38,0) -> 0.00 m | BA71: 3.50 m | BB71: =IF(AND(D38>3.5,D38<4),D38,0) -> 0.00 m | BC71: 4.00 m | BM71: 4c) Korrekturfaktoren Unterzug | BS71: 4c) Unterzug | BT71: 1.00 m | BU71: =IF(AND(D38>1,D38<1.5),D38,0) -> 0.00 m | BV71: 1.50 m | BW71: =IF(AND(D38>1.5,D38<2),D38,0) -> 0.00 m | BX71: 2.00 m | BY71: =IF(AND(D38>2,D38<2.5),D38,0) -> 0.00 m | BZ71: 2.50 m | CA71: =IF(AND(D38>2.5,D38<3),D38,0) -> 0.00 m | CB71: 3.00 m | CC71: =IF(AND(D38>3,D38<3.5),D38,0) -> 0.00 m | CD71: 3.50 m | CE71: =IF(AND(D38>3.5,D38<4),D38,0) -> 0.00 m | CF71: 4.00 m
M72: 541492 | N72: 5.03 m | O72: =N72-(N72-P72)*(O$71-N$71)/(P$71-N$71) -> 6.27 m | P72: 4.41 m | Q72: =P72-(P72-R72)*(Q$71-P$71)/(R$71-P$71) -> 5.55 m | R72: 4.03 m | S72: =R72-(R72-T72)*(S$71-R$71)/(T$71-R$71) -> 5.23 m | T72: 3.73 m | U72: =T72-(T72-V72)*(U$71-T$71)/(V$71-T$71) -> 4.83 m | V72: 3.51 m | W72: =V72-(V72-X72)*(W$71-V$71)/(X$71-V$71) -> 4.53 m | X72: 3.34 m | Y72: =X72-(X72-Z72)*(Y$71-X$71)/(Z$71-X$71) -> 4.39 m | Z72: 3.19 m | AJ72: 4b) Verglasung | AK72: =AK2 -> 1.000 | AP72: 541492 | AQ72: 5.96 m | AR72: =AQ72-(AQ72-AS72)*(AR$71-AQ$71)/(AS$71-AQ$71) -> 8.10 m | AS72: 4.89 m | AT72: =AS72-(AS72-AU72)*(AT$71-AS$71)/(AU$71-AS$71) -> 6.81 m | AU72: 4.25 m | AV72: =AU72-(AU72-AW72)*(AV$71-AU$71)/(AW$71-AU$71) -> 6.05 m | AW72: 3.80 m | AX72: =AW72-(AW72-AY72)*(AX$71-AW$71)/(AY$71-AW$71) -> 5.40 m | AY72: 3.48 m | AZ72: =AY72-(AY72-BA72)*(AZ$71-AY$71)/(BA$71-AY$71) -> 5.04 m | BA72: 3.22 m | BB72: =BA72-(BA72-BC72)*(BB$71-BA$71)/(BC$71-BA$71) -> 4.69 m | BC72: 3.01 m | BM72: 4c) Verglasung | BN72: =BN2 -> 1.000 | BS72: 541492 | BT72: 6.77 m | BU72: =BT72-(BT72-BV72)*(BU$71-BT$71)/(BV$71-BT$71) -> 9.21 m | BV72: 5.55 m | BW72: =BV72-(BV72-BX72)*(BW$71-BV$71)/(BX$71-BV$71) -> 7.74 m | BX72: 4.82 m | BY72: =BX72-(BX72-BZ72)*(BY$71-BX$71)/(BZ$71-BX$71) -> 6.86 m | BZ72: 4.31 m | CA72: =BZ72-(BZ72-CB72)*(CA$71-BZ$71)/(CB$71-BZ$71) -> 6.16 m | CB72: 3.94 m | CC72: =CB72-(CB72-CD72)*(CC$71-CB$71)/(CD$71-CB$71) -> 5.68 m | CD72: 3.65 m | CE72: =CD72-(CD72-CF72)*(CE$71-CD$71)/(CF$71-CD$71) -> 5.26 m | CF72: 3.42 m
G73: 4a) Erhöhungsfaktor ke aufgrund x-Feldbalken | H73: =VLOOKUP($B$46,Daten!$A$104:$B$110,2) -> 1.000 | M73: 541492+160*80*4 | N73: 7.32 m | O73: 9.00 m | P73: 6.48 m | Q73: 8.16 m | R73: 5.92 m | S73: 7.52 m | T73: 5.52 m | U73: 7.07 m | V73: 5.21 m | W73: 6.71 m | X73: 4.96 m | Y73: 6.43 m | Z73: 4.75 m | AJ73: 4b) Schnee sDA | AK73: =AK3 -> 0.974 | AP73: 541492+160*80*4 | AQ73: 8.86 m | AR73: 11.86 m | AS73: 7.36 m | AT73: 10.15 m | AU73: 6.43 m | AV73: 9.03 m | AW73: 5.78 m | AX73: 8.18 m | AY73: 5.30 m | AZ73: 7.58 m | BA73: 4.92 m | BB73: 7.09 m | BC73: 4.61 m | BM73: 4c) Schnee sDA | BN73: =BN3 -> 10000.000 | BS73: 541492+160*80*4 | BT73: 10.07 m | BU73: 13.49 m | BV73: 8.36 m | BW73: 11.54 m | BX73: 7.30 m | BY73: 10.22 m | BZ73: 6.57 m | CA73: 9.37 m | CB73: 6.01 m | CC73: 8.59 m | CD73: 5.58 m | CE73: 8.03 m | CF73: 5.23 m
M74: 541492+IPE160 | N74: 7.96 m | O74: 9.78 m | P74: 7.05 m | Q74: 8.85 m | R74: 6.45 m | S74: 8.21 m | T74: 6.01 m | U74: 7.71 m | V74: 5.67 m | W74: 7.29 m | X74: 5.40 m | Y74: 7.01 m | Z74: 5.17 m | AJ74: 4b) Wind | AK74: =AK4 -> 1.000 | AP74: 541492+IPE160 | AQ74: 10.07 m | AR74: 13.47 m | AS74: 8.37 m | AT74: 11.52 m | AU74: 7.32 m | AV74: 10.24 m | AW74: 6.59 m | AX74: 9.39 m | AY74: 6.03 m | AZ74: 8.61 m | BA74: 5.60 m | BB74: 8.05 m | BC74: 5.25 m | BM74: 4c) Wind | BN74: =BN4 -> 1.000 | BS74: 541492+IPE160 | BT74: 11.45 m | BU74: 15.33 m | BV74: 9.51 m | BW74: 13.11 m | BX74: 8.31 m | BY74: 11.63 m | BZ74: 7.48 m | CA74: 10.63 m | CB74: 6.85 m | CC74: 9.79 m | CD74: 6.36 m | CE74: 9.16 m | CF74: 5.96 m
G75: 4a) Tabellenwert b | H75: =O88 -> 5.27 m | M75: 541493 | N75: 3.36 m | O75: 4.20 m | P75: 2.94 m | Q75: 3.72 m | R75: 2.68 m | S75: 3.44 m | T75: 2.49 m | U75: 3.24 m | V75: 2.34 m | W75: 3.06 m | X75: 2.22 m | Y75: 2.85 m | Z75: 2.13 m | AJ75: 4b) Dachneigung | AK75: =AK60 -> 1.000 | AP75: 541493 | AQ75: 3.90 m | AR75: 5.32 m | AS75: 3.19 m | AT75: 4.45 m | AU75: 2.77 m | AV75: 3.93 m | AW75: 2.48 m | AX75: 3.58 m | AY75: 2.26 m | AZ75: 3.22 m | BA75: 2.10 m | BB75: 3.08 m | BC75: 1.96 m | BM75: 4c) Dachneigung | BN75: =BN60 -> 1.000 | BS75: 541493 | BT75: 4.42 m | BU75: 6.02 m | BV75: 3.62 m | BW75: 5.06 m | BX75: 3.14 m | BY75: 4.46 m | BZ75: 2.81 m | CA75: 4.01 m | CB75: 2.57 m | CC75: 3.71 m | CD75: 2.38 m | CE75: 3.50 m | CF75: 2.22 m
G76: 4a) Korrigierter bzul | H76: =H75*H66*H67*H68*H69*H70*H71 -> 4.81 m | M76: 541493+120*50*3 | N76: 4.88 m | O76: 6.04 m | P76: 4.30 m | Q76: 5.44 m | R76: 3.92 m | S76: 5.04 m | T76: 3.64 m | U76: 4.69 m | V76: 3.43 m | W76: 4.39 m | X76: 3.27 m | Y76: 4.25 m | Z76: 3.13 m | AJ76: 4b) Faktor Trägergewicht | AK76: =AK61 -> 1.000 | AP76: 541493+120*50*3 | AQ76: 5.55 m | AR76: 7.49 m | AS76: 4.58 m | AT76: 6.38 m | AU76: 3.98 m | AV76: 5.62 m | AW76: 3.57 m | AX76: 5.07 m | AY76: 3.27 m | AZ76: 4.71 m | BA76: 3.03 m | BB76: 4.36 m | BC76: 2.84 m | BM76: 4c) Faktor Trägergewicht | BN76: =BN61 -> 1.000 | BS76: 541493+120*50*3 | BT76: 6.30 m | BU76: 8.50 m | BV76: 5.20 m | BW76: 7.24 m | BX76: 4.52 m | BY76: 6.36 m | BZ76: 4.06 m | CA76: 5.81 m | CB76: 3.71 m | CC76: 5.33 m | CD76: 3.44 m | CE76: 4.98 m | CF76: 3.22 m
M77: 541493+120*50*5 | N77: 5.46 m | O77: 6.74 m | P77: 4.82 m | Q77: 6.08 m | R77: 4.40 m | S77: 5.60 m | T77: 4.10 m | U77: 5.30 m | V77: 3.86 m | W77: 4.94 m | X77: 3.68 m | Y77: 4.80 m | Z77: 3.52 m | AJ77: 4b) zul. Durchbiegung | AK77: =VLOOKUP($D$41,Daten!$A$44:$B$47,2) -> 0.930 | AP77: 541493+120*50*5 | AQ77: 6.58 m | AR77: 8.84 m | AS77: 5.45 m | AT77: 7.55 m | AU77: 4.75 m | AV77: 6.67 m | AW77: 4.27 m | AX77: 6.07 m | AY77: 3.91 m | AZ77: 5.59 m | BA77: 3.63 m | BB77: 5.24 m | BC77: 3.40 m | BM77: 4c) zul. Durchbiegung | BN77: =VLOOKUP($D$41,Daten!$A$44:$B$47,2) -> 0.930 | BS77: 541493+120*50*5 | BT77: 7.47 m | BU77: 10.03 m | BV77: 6.19 m | BW77: 8.56 m | BX77: 5.40 m | BY77: 7.60 m | BZ77: 4.85 m | CA77: 6.90 m | CB77: 4.44 m | CC77: 6.36 m | CD77: 4.12 m | CE77: 5.94 m | CF77: 3.86 m
M78: 541493+I120 | N78: 5.73 m | O78: 7.09 m | P78: 5.05 m | Q78: 6.37 m | R78: 4.61 m | S78: 5.85 m | T78: 4.30 m | U78: 5.55 m | V78: 4.05 m | W78: 5.25 m | X78: 3.85 m | Y78: 4.97 m | Z78: 3.69 m | AP78: 541493+I120 | AQ78: 7.09 m | AR78: 9.55 m | AS78: 5.86 m | AT78: 8.11 m | AU78: 5.11 m | AV78: 7.19 m | AW78: 4.59 m | AX78: 6.54 m | AY78: 4.20 m | AZ78: 6.06 m | BA78: 3.89 m | BB78: 5.57 m | BC78: 3.65 m | BS78: 541493+I120 | BT78: 8.05 m | BU78: 10.85 m | BV78: 6.65 m | BW78: 9.20 m | BX78: 5.80 m | BY78: 8.20 m | BZ78: 5.20 m | CA78: 7.40 m | CB78: 4.76 m | CC78: 6.80 m | CD78: 4.42 m | CE78: 6.38 m | CF78: 4.14 m
M79: 541493+I120+2*100*10 | N79: 6.24 m | O79: 7.60 m | P79: 5.56 m | Q79: 6.94 m | R79: 5.10 m | S79: 6.46 m | T79: 4.76 m | U79: 6.11 m | V79: 4.49 m | W79: 5.75 m | X79: 4.28 m | Y79: 5.54 m | Z79: 4.10 m | AP79: 541493+I120+2*100*10 | AQ79: 8.35 m | AR79: 11.07 m | AS79: 6.99 m | AT79: 9.57 m | AU79: 6.13 m | AV79: 8.53 m | AW79: 5.53 m | AX79: 7.78 m | AY79: 5.08 m | AZ79: 7.24 m | BA79: 4.72 m | BB79: 6.75 m | BC79: 4.43 m | BS79: 541493+I120+2*100*10 | BT79: 9.50 m | BU79: 12.60 m | BV79: 7.95 m | BW79: 10.89 m | BX79: 6.97 m | BY79: 9.73 m | BZ79: 6.28 m | CA79: 8.88 m | CB79: 5.76 m | CC79: 8.16 m | CD79: 5.36 m | CE79: 7.74 m | CF79: 5.02 m
M80: 541499 | N80: 4.09 m | O80: 5.09 m | P80: 3.59 m | Q80: 4.58 m | R80: 3.26 m | S80: 4.18 m | T80: 3.03 m | U80: 3.93 m | V80: 2.85 m | W80: 3.69 m | X80: 2.71 m | Y80: 3.55 m | Z80: 2.59 m | AP80: 541499 | AQ80: 4.83 m | AR80: 6.57 m | AS80: 3.96 m | AT80: 5.55 m | AU80: 3.43 m | AV80: 4.87 m | AW80: 3.07 m | AX80: 4.37 m | AY80: 2.81 m | AZ80: 4.07 m | BA80: 2.60 m | BB80: 3.79 m | BC80: 2.43 m | BS80: 541499 | BT80: 5.48 m | BU80: 7.46 m | BV80: 4.49 m | BW80: 6.29 m | BX80: 3.89 m | BY80: 5.49 m | BZ80: 3.49 m | CA80: 4.99 m | CB80: 3.19 m | CC80: 4.63 m | CD80: 2.95 m | CE80: 4.28 m | CF80: 2.76 m
M81: 541499+120*50*3 | N81: 5.25 m | O81: 6.49 m | P81: 4.63 m | Q81: 5.86 m | R81: 4.22 m | S81: 5.38 m | T81: 3.93 m | U81: 5.08 m | V81: 3.70 m | W81: 4.78 m | X81: 3.52 m | Y81: 4.57 m | Z81: 3.37 m | AP81: 541499+120*50*3 | AQ81: 6.20 m | AR81: 8.36 m | AS81: 5.12 m | AT81: 7.10 m | AU81: 4.46 m | AV81: 6.30 m | AW81: 4.00 m | AX81: 5.70 m | AY81: 3.66 m | AZ81: 5.22 m | BA81: 3.40 m | BB81: 4.94 m | BC81: 3.18 m | BS81: 541499+120*50*3 | BT81: 7.05 m | BU81: 9.53 m | BV81: 5.81 m | BW81: 8.06 m | BX81: 5.06 m | BY81: 7.14 m | BZ81: 4.54 m | CA81: 6.49 m | CB81: 4.15 m | CC81: 5.95 m | CD81: 3.85 m | CE81: 5.53 m | CF81: 3.61 m
M82: 541499+120*50*5 | N82: 5.75 m | O82: 7.09 m | P82: 5.08 m | Q82: 6.40 m | R82: 4.64 m | S82: 5.92 m | T82: 4.32 m | U82: 5.52 m | V82: 4.08 m | W82: 5.28 m | X82: 3.88 m | Y82: 5.07 m | Z82: 3.71 m | AP82: 541499+120*50*5 | AQ82: 7.12 m | AR82: 9.56 m | AS82: 5.90 m | AT82: 8.15 m | AU82: 5.15 m | AV82: 7.23 m | AW82: 4.63 m | AX82: 6.58 m | AY82: 4.24 m | AZ82: 6.10 m | BA82: 3.93 m | BB82: 5.68 m | BC82: 3.68 m | BS82: 541499+120*50*5 | BT82: 8.09 m | BU82: 10.87 m | BV82: 6.70 m | BW82: 9.25 m | BX82: 5.85 m | BY82: 8.25 m | BZ82: 5.25 m | CA82: 7.45 m | CB82: 4.81 m | CC82: 6.91 m | CD82: 4.46 m | CE82: 6.42 m | CF82: 4.18 m
M83: 577275 | N83: 6.21 m | O83: 7.69 m | P83: 5.47 m | Q83: 6.88 m | R83: 5.00 m | S83: 6.36 m | T83: 4.66 m | U83: 5.96 m | V83: 4.40 m | W83: 5.66 m | X83: 4.19 m | Y83: 5.38 m | Z83: 4.02 m | AJ83: 4b) Tabellenwert b | AK83: =AR88 -> 5.64 m | AP83: 577275 | AQ83: 7.26 m | AR83: 9.62 m | AS83: 6.08 m | AT83: 8.39 m | AU83: 5.31 m | AV83: 7.43 m | AW83: 4.78 m | AX83: 6.73 m | AY83: 4.39 m | AZ83: 6.25 m | BA83: 4.08 m | BB83: 5.83 m | BC83: 3.83 m | BM83: 4c) Tabellenwert b | BN83: =BU88 -> 6.38 m | BS83: 577275 | BT83: 8.33 m | BU83: 11.23 m | BV83: 6.88 m | BW83: 9.52 m | BX83: 6.00 m | BY83: 8.40 m | BZ83: 5.40 m | CA83: 7.65 m | CB83: 4.95 m | CC83: 7.05 m | CD83: 4.60 m | CE83: 6.56 m | CF83: 4.32 m
M84: 577275+140*40*3 | N84: 6.96 m | O84: 8.56 m | P84: 6.16 m | Q84: 7.72 m | R84: 5.64 m | S84: 7.12 m | T84: 5.27 m | U84: 6.72 m | V84: 4.98 m | W84: 6.36 m | X84: 4.75 m | Y84: 6.15 m | Z84: 4.55 m | AJ84: 4b) Korrigierter bzul | AK84: =AK83*AK72*AK73*AK74*AK75*AK76*AK77 -> 5.11 m | AP84: 577275+140*40*3 | AQ84: 8.59 m | AR84: 11.47 m | AS84: 7.15 m | AT84: 9.82 m | AU84: 6.26 m | AV84: 8.74 m | AW84: 5.64 m | AX84: 7.94 m | AY84: 5.18 m | AZ84: 7.34 m | BA84: 4.82 m | BB84: 6.85 m | BC84: 4.53 m | BM84: 4c) Korrigierter bzul | BN84: =BN83*BN72*BN73*BN74*BN75*BN76*BN77 -> 59,334.00 m | BS84: 577275+140*40*3 | BT84: 9.74 m | BU84: 13.04 m | BV84: 8.09 m | BW84: 11.12 m | BX84: 7.08 m | BY84: 9.88 m | BZ84: 6.38 m | CA84: 9.03 m | CB84: 5.85 m | CC84: 8.31 m | CD84: 5.44 m | CE84: 7.75 m | CF84: 5.11 m
M85: 577275+140*40*5 | N85: 7.22 m | O85: 8.84 m | P85: 6.41 m | Q85: 8.00 m | R85: 5.88 m | S85: 7.44 m | T85: 5.49 m | U85: 6.94 m | V85: 5.20 m | W85: 6.64 m | X85: 4.96 m | Y85: 6.43 m | Z85: 4.75 m | AP85: 577275+140*40*5 | AQ85: 9.10 m | AR85: 12.12 m | AS85: 7.59 m | AT85: 10.38 m | AU85: 6.66 m | AV85: 9.26 m | AW85: 6.01 m | AX85: 8.46 m | AY85: 5.52 m | AZ85: 7.80 m | BA85: 5.14 m | BB85: 7.31 m | BC85: 4.83 m | BS85: 577275+140*40*5 | BT85: 10.31 m | BU85: 13.73 m | BV85: 8.60 m | BW85: 11.78 m | BX85: 7.54 m | BY85: 10.50 m | BZ85: 6.80 m | CA85: 9.60 m | CB85: 6.24 m | CC85: 8.82 m | CD85: 5.81 m | CE85: 8.26 m | CF85: 5.46 m
M87: 4a) Unterzug | N87: lm | O87: b | AP87: 4b) Unterzug | AQ87: lm | AR87: b | BS87: 4c) Unterzug | BT87: lm | BU87: b
M88: =IF($D$40="","",MATCH($D$40,M72:M85)) -> 13 | N88: =IF($D$39="","",MATCH($D$38,$N$71:$Z$71,0)) -> 7 | O88: =IF(OR($D$40="",$D$39=""),0,INDEX(N72:Z85,M88,N88)) -> 5.27 m | AP88: =IF($D$40="","",MATCH($D$40,AP72:AP85)) -> 13 | AQ88: =IF($D$39="","",MATCH($D$38,AQ71:BC71,0)) -> 7 | AR88: =IF(OR($D$40="",$D$39=""),0,INDEX(AQ72:BC85,AP88,AQ88)) -> 5.64 m | BS88: =IF($D$40="","",MATCH($D$40,BS72:BS85)) -> 13 | BT88: =IF($D$39="","",MATCH($D$38,BT71:CF71,0)) -> 7 | BU88: =IF(OR($D$40="",$D$39=""),0,INDEX(BT72:CF85,BS88,BT88)) -> 6.38 m

Sheet Satteldach unisoliert
B1: Kunde: | D1: ='Ermittlung Schneelast'!D6 -> 0.00
B2: BV: | D2: ='Ermittlung Schneelast'!D7 -> 0.00
A4: Satteldach unisoliert, ohne Firstpfette, ohne Zuganker
A6: Nachweis Träger: vereinfachte, überschlägliche Bemessung
A7: lvorh | B7: = | C7: ='Ermittlung Schneelast'!_b2 -> 3.50 m
A8: l1, zul | B8: = | C8: ='Bemessungstabelle unisoliert'!H15 -> 3.22 m
A9: l2, zul | B9: = | C9: ='Bemessungstabelle unisoliert'!AK22 -> 3.93 m
A10: l3, zul | B10: = | C10: ='Bemessungstabelle unisoliert'!BN22 -> 45,950.00 m
A11: Durchbiegung w | B11: = | C11: ='Bemessungstabelle unisoliert'!D16 -> 22.8 mm
A12: Dachneigung WG | B12: = | C12: ='Ermittlung Schneelast'!D18 -> 10.0°
A14: Nachweis der vertikalen Durchbiegung
A15: lvorh | B15: <= | C15: l1, zul
A16: =C7 -> 3.50 m | B16: =IF(A16<=C16,"<=",">") -> > | C16: =C8 -> 3.22 m | D16: =IF(A16<=C16,"Bedingung erfüllt","Bedingung nicht erfüllt!!") -> Bedingung nicht erfüllt!!
A18: Nachweis der Spannung im Firstpunkt
A19: Profil und Stahleinschub im Firstbereich | B19: = | C19: 543004+70*30*3 auf ganzer Länge + 62*22 im First
A20: Korrekturfaktor k | B20: = | C20: =VLOOKUP(C19,Daten!A79:B101,2) -> 0.73
A22: lvorh | B22: <= | C22: l2, zul * k
A23: =C7 -> 3.50 m | B23: =IF(A23<=C23,"<=",">") -> > | C23: =C9*C20 -> 2.87 m | D23: =IF(A23<=C23,"Bedingung erfüllt","Bedingung nicht erfüllt!!") -> Bedingung nicht erfüllt!!
A25: lvorh | B25: <= | C25: l3, zul * k
A26: =C7 -> 3.50 m | B26: =IF(A26<=C26,"<=",">") -> <= | C26: =C10*C20 -> 33,543.50 m | D26: =IF(A26<=C26,"Bedingung erfüllt","Bedingung nicht erfüllt!!") -> Bedingung erfüllt
A28: Nachweis der horizontalen Rinnenverschiebung u
A29: Rinnenlänge b | B29: = | C29: 5.20 m
A30: Anzahl Rinnen, die verschiebbar sind | B30: = | C30: 2 Rinne(n)
A32: u | B32: <= | C32: 8 mm oder b/500
A33: =IF(C30=2,C11*TAN(C12*PI()/180)*1,IF(C30=1,C11*TAN(C12*PI()/180)*2,"nicht möglich")) -> 4.0 mm | B33: =IF(A33<=C33,"<=",">") -> <= | C33: =IF(8<C29*1000/500,8,C29*1000/500) -> 8.0 mm | D33: =IF(A33<=C33,"Bedingung erfüllt","Bedingung nicht erfüllt!!") -> Bedingung erfüllt
A35: Nachweis Rinne: vereinfachte, überschlägliche Bemessung der Durchbiegung
A37: ='Bemessungstabelle unisoliert'!B28 -> 4.00 m | B37: =IF(A37<=C37,"<=",">") -> <= | C37: ='Bemessungstabelle unisoliert'!D28*0.9 -> 5.73 m | D37: =IF(A37<=C37,"Bedingung erfüllt","Bedingung nicht erfüllt!!") -> Bedingung erfüllt
A39: Berechnungsgrundlage: Skribt "Schulung am 28.11.2012 bei TS-Aluminium in Großefehn", Autor Herr Meier-Hedde

Sheet Daten
A1: 1 | C1: 1, Binnenland | D1: ja
A2: 1a | C2: 2, Binnenland | D2: nein | M2: Dachneigungen
A3: 2 | C3: 2, Küste und Inseln der Ostsee | M3: für Statiktabellen
A4: 2a | C4: 3, Binnenland | M4: 15°
A5: 3 | C5: 3, Küste und Inseln der Ostsee | M5: 15°
C6: 4, Binnenland | M6: 15°
A7: Dach an der Giebelseite | C7: 4, Küste der Nord- und Ostsee und Inseln der Ostsee
A8: Dach an der Traufseite | C8: 4, Inseln der Nordsee | M8: 15°
A9: Dach an ein Flachdach | M9: 15°
M10: 15°
A13: Korrekturfaktor k für Rinnenermittlung | D13: Korrekturfaktor k für Rinnenermittlung
A14: Serie Veranda | D14: Serie T
A15: sDa | B15: k - Serie Veranda | D15: sDa | E15: k - Serie T
A16: 1.500 kN/qm | B16: =1-('Ermittlung Schneelast'!$D$19-5)*0.04+(1.5-'Ermittlung Schneelast'!#REF!)*0.04 ->  | D16: 1.500 kN/qm | E16: =1-('Ermittlung Schneelast'!$D$19-3.5)*0.025+(1.5-'Ermittlung Schneelast'!#REF!)*0.1 -> 
A17: 2.000 kN/qm | B17: =1-('Ermittlung Schneelast'!$D$19-4.25)*0.04+(2-'Ermittlung Schneelast'!#REF!)*0.06 ->  | D17: 2.000 kN/qm | E17: =1-('Ermittlung Schneelast'!$D$19-3)*0.03+(2-'Ermittlung Schneelast'!#REF!)*0.05 -> 
A18: 2.500 kN/qm | B18: =1-('Ermittlung Schneelast'!$D$19-3.5)*0.04+(2.5-'Ermittlung Schneelast'!#REF!)*0.06 ->  | D18: 2.500 kN/qm | E18: =1-('Ermittlung Schneelast'!$D$19-2.5)*0.035+(2.5-'Ermittlung Schneelast'!#REF!)*0.06 -> 
A19: 3.000 kN/qm | B19: =1-('Ermittlung Schneelast'!$D$19-3)*0.04+(3-'Ermittlung Schneelast'!#REF!)*0.04 ->  | D19: 3.000 kN/qm | E19: =1-('Ermittlung Schneelast'!$D$19-2)*0.04+(3-'Ermittlung Schneelast'!#REF!)*0.07 -> 
A22: l/200 | B22: 200
A23: l/250 | B23: 250
A24: l/300 | B24: 300
A25: l/500 | B25: 500
A26: vorhanden
A27: nicht vorhanden
A29: 1 | B29: 1, Binnenland | C29: ja | D29: vorhanden
A30: 1a | B30: 2, Binnenland | C30: nein | D30: nicht vorhanden
A31: 2 | B31: 2, Küste und Inseln der Ostsee
A32: 2a | B32: 3, Binnenland
A33: 3 | B33: 3, Küste und Inseln der Ostsee
A34: 3a | B34: 4, Binnenland
B35: 4, Küste der Nord- und Ostsee und Inseln der Ostsee
B36: 4, Inseln der Nordsee
A37: für isoliert! | B37: Bemessungstabelle a isoliert | C37: Bemessungstabelle b isoliert | D37: Bemessungstabelle c isoliert | F37: für unisoliert! | G37: Bemessungstabelle unisoliert (gilt für alle)
A38: 10mm VSG | B38: 1.02 | C38: 1.03 | D38: 1.02 | F38: 10mm VSG | G38: 1
A39: 8mm VSG | B39: 1.01 | C39: 1.01 | D39: 1.01 | F39: 8mm VSG | G39: 1.01
A40: ISO-VSG (6+8), 14mm Glasdicke | B40: 1 | C40: 1 | D40: 1 | F40: ISO-VSG (6+8) | G40: 0.98
A41: ISO-VSG (8+4+6), 18mm Glasdicke | B41: 0.98 | C41: 0.97 | D41: 0.97 | F41: ISO-VSG (8+4+6) | G41: 0.98
A42: ISO-VSG (8+6+8), 22mm Glasdicke | B42: 0.96 | C42: 0.94 | D42: 0.95 | F42: ISO-VSG (8+4+8) | G42: 0.98
A43: Stegplatte | B43: 1.07 | C43: 1.1 | D43: 1.08 | F43: Stegplatte | G43: 1.04
A44: l/200 | B44: 1
A45: l/250 | B45: 0.93
A46: l/300 | B46: 0.873
A47: l/500 | B47: 0.74
B49: Bemessungstabelle 1-4a unisoliert | C49: Bemessungstabelle 1-4b unisoliert | D49: Bemessungstabelle isoliert (gilt für alle Träger) | E49: Bemessungstabelle isoliert 2a: Rinne 2.1 | F49: Bemessungstabelle isoliert 2b: Rinne 2.1
A50: 1, Binnenland | B50: 1 | C50: 1 | D50: 1 | E50: 1 | F50: 1
A51: 2, Binnenland | B51: 1 | C51: 1 | D51: 1 | E51: 1 | F51: 1
A52: 2, Küste und Inseln der Ostsee | B52: 0.96 | C52: 0.95 | D52: 0.98 | E52: 0.98 | F52: 0.97
A53: 3, Binnenland | B53: 0.98 | C53: 0.98 | D53: 0.99 | E53: 0.99 | F53: 0.99
A54: 3, Küste und Inseln der Ostsee | B54: 0.96 | C54: 0.95 | D54: 0.98 | E54: 0.98 | F54: 0.97
A55: 4, Binnenland | B55: 0.96 | C55: 0.95 | D55: 0.98 | E55: 0.98 | F55: 0.97
A56: 4, Inseln der Nordsee | B56: 0.94 | C56: 0.91 | D56: 0.97 | E56: 0.96 | F56: 0.94
A57: 4, Küste der Nord- und Ostsee und Inseln der Ostsee | B57: 0.94 | C57: 0.91 | D57: 0.97 | E57: 0.96 | F57: 0.94
A62: Träger | B62: k
A63: 577335+70*30*3 auf ganzer Länge + 62*22 im First | B63: 1.00
A64: 577335+70*30*3 auf ganzer Länge, kein Stahl im Stahl | B64: 0.63
A65: 577335+70*30*3 im Firstbereich | B65: 0.80
A66: 577339+80*60*3 auf ganzer Länge +70*50*5 im First | B66: 0.91
A67: 577339+80*60*3 auf ganzer Länge, kein Stahl im Stahl | B67: 0.63
A68: 577339+80*60*5 auf ganzer Länge +70*50*5 im First | B68: 0.93
A69: 577339+80*60*5 auf ganzer Länge, kein Stahl im Stahl | B69: 0.71
A70: 577339+80*60*5 im Firstbereich | B70: 0.94
A71: 579500+100*50*4 auf ganzer Länge +90*40*5 im First | B71: 0.90
A72: 579500+100*50*4 auf ganzer Länge, kein Stahl in Stahl | B72: 0.66
A73: 579500+100*50*4 im Firstbereich | B73: 0.75
A78: Träger | B78: k
A79: 261051+100*10 auf ganzer Länge | B79: 0.81
A80: 261051+100*10 im Firstbereich | B80: 1.00
A81: 261052+80*10 auf ganzer Länge | B81: 0.62
A82: 261052+80*10 im Firstbereich | B82: 0.77
A83: 261071+100*10 auf ganzer Länge | B83: 0.70
A84: 261071+100*10 im Firstbereich | B84: 0.95
A85: 261072+100*10 auf ganzer Länge | B85: 0.59
A86: 261072+100*10 im Firstbereich | B86: 0.70
A87: 5415142+140*15 auf ganzer Länge | B87: 0.85
A88: 5415142+140*15 im Firstbereich | B88: 1.00
A89: 543002+70*30*3 auf ganzer Länge | B89: 0.45
A90: 543002+70*30*3 auf ganzer Länge + 62*22 im First | B90: 0.73
A91: 543002+70*30*3 im Firstbereich | B91: 0.50
A92: 543002+70*30*3 im Firstbereich + 62*22 im First | B92: 0.81
A93: 543002+80*10 auf ganzer Länge | B93: 0.48
A94: 543002+80*10 im Firstbereich | B94: 0.55
A95: 543004+70*30*3 auf ganzer Länge | B95: 0.45
A96: 543004+70*30*3 auf ganzer Länge + 62*22 im First | B96: 0.73
A97: 543004+70*30*3 im Firstbereich | B97: 0.50
A98: 543004+70*30*3 im Firstbereich + 62*22 im First | B98: 0.81
A99: 543004+80*10 auf ganzer Länge | B99: 0.48
A100: 543004+80*10 im Firstbereich | B100: 0.55
A101: 543005+70*30*3 im Firstbereich | B101: 0.61
A104: 1-Feldbalken b | B104: 1.00
A105: 2-Feldbalken b + 0,5*b | B105: 1.22
A106: 2-Feldbalken b + 0,75*b | B106: 1.23
A107: 2-Feldbalken b + b | B107: 1.34
A108: 3-Feldbalken 0,5*b + b + 0,5*b | B108: 1.45
A109: 3-Feldbalken 0,75*b + b + 0,75*b | B109: 1.50
A110: 3-Feldbalken b + b + b | B110: 1.24

Sheet Info
A1: Grenzwerte der Gebrauchstauglichkeit
A3: Träger | B3: isoliert | C3: l/200
B4: unisoiert | C4: l/200
A6: Rinne/Unterzug/Traverse | B6: isoliert | C6: l/300
B7: unisoiert | C7: l/200, jedoch nicht > 26mm

Sheet Statiktabellen (hidden)
B1: Träger isoliert | S1: Rinnen isoliert | AE1: Unterzug 541493 unisoliert
B3: Randbedingungen | S3: Randbedingungen | AE3: Randbedingungen
B4: Schneelast: | C4: ='Bemessungstabelle isoliert'!D6 -> 1.10 kN/qm | S4: Schneelast: | T4: ='Bemessungstabelle isoliert'!#REF! ->  | AE4: Schneelast: | AF4: ='Bemessungstabelle unisoliert'!D50 -> 0.00 kN/qm
B5: Windzone: | C5: ='Bemessungstabelle isoliert'!D8 -> 1, Binnenland | S5: Windzone: | T5: ='Bemessungstabelle isoliert'!#REF! ->  | AE5: Windzone: | AF5: ='Bemessungstabelle unisoliert'!D51 -> 0.00 kN/qm
B6: Verglasung: | C6: ='Bemessungstabelle isoliert'!D5 -> ISO-VSG (6+8), 14mm Glasdicke | S6: Verglasung: | T6: ='Bemessungstabelle isoliert'!#REF! ->  | AE6: Verglasung: | AF6: ='Bemessungstabelle unisoliert'!#REF! -> 
B7: Dachneigung: | C7: ='Bemessungstabelle isoliert'!D9 -> 10.0° | S7: Dachneigung: | T7: ='Bemessungstabelle isoliert'!#REF! ->  | AE7: Dachneigung: | AF7: ='Bemessungstabelle unisoliert'!D52 -> 0.0°
B8: Achsabstand: | C8: ='Bemessungstabelle isoliert'!D12 -> 0.73 m | S8: Achsabstand: | T8: ='Bemessungstabelle isoliert'!D12 -> 0.73 m | AE8: Achsabstand: | AF8: ='Bemessungstabelle unisoliert'!D12 -> 0.85 m
B9: zul. Durchbiegung: | C9: ='Bemessungstabelle isoliert'!D13 -> l/200 | S9: zul. Durchbiegung: | T9: ='Bemessungstabelle isoliert'!D27 -> l/300 | AE9: zul. Durchbiegung: | AF9: ='Bemessungstabelle unisoliert'!D41 -> l/250
B11: Sparrenabstand | C11: 577100 | D11: 577100+120*50*3 | E11: 577100+120*50*5 | F11: 577100+I120 | G11: 577233 | H11: 577233+30*30*2 | I11: 577235 | J11: 577235+70*30*3 | K11: 577239 | L11: 577239+80*60*3 | M11: 577239+80*60*5 | N11: 577240 | O11: 577240+50*10 | P11: 579275 | Q11: 579275+100*50*4 | S11: Tiefe | T11: 5772033 | U11: 5772033+100*20*3 | V11: 5772033+120*10+100*20*3 | W11: 577207 | X11: 577207+110*15 | Y11: 5772424 | Z11: 5772424+I120 | AA11: 5772424+U120 | AB11: 579225 | AC11: 579225+100*50*4 | AE11: Tiefe | AF11: 541493 | AG11: 541493+120*50*3 | AH11: 541493+120*50*5 | AI11: 541493+I120 | AJ11: 541493+U120
B12: 0.50 m | C12: ='Bemessungstabelle isoliert'!$N2*'Bemessungstabelle isoliert'!$H$2*'Bemessungstabelle isoliert'!$H$3*'Bemessungstabelle isoliert'!$H$4*'Bemessungstabelle isoliert'!$H$5*'Bemessungstabelle isoliert'!$H$6 -> 5.85 m | D12: ='Bemessungstabelle isoliert'!$N3*'Bemessungstabelle isoliert'!$H$2*'Bemessungstabelle isoliert'!$H$3*'Bemessungstabelle isoliert'!$H$4*'Bemessungstabelle isoliert'!$H$5*'Bemessungstabelle isoliert'!$H$6 -> 6.90 m | E12: ='Bemessungstabelle isoliert'!$N4*'Bemessungstabelle isoliert'!$H$2*'Bemessungstabelle isoliert'!$H$3*'Bemessungstabelle isoliert'!$H$4*'Bemessungstabelle isoliert'!$H$5*'Bemessungstabelle isoliert'!$H$6 -> 7.37 m | F12: ='Bemessungstabelle isoliert'!$N5*'Bemessungstabelle isoliert'!$H$2*'Bemessungstabelle isoliert'!$H$3*'Bemessungstabelle isoliert'!$H$4*'Bemessungstabelle isoliert'!$H$5*'Bemessungstabelle isoliert'!$H$6 -> 7.68 m | G12: ='Bemessungstabelle isoliert'!$N6*'Bemessungstabelle isoliert'!$H$2*'Bemessungstabelle isoliert'!$H$3*'Bemessungstabelle isoliert'!$H$4*'Bemessungstabelle isoliert'!$H$5*'Bemessungstabelle isoliert'!$H$6 -> 2.49 m | H12: ='Bemessungstabelle isoliert'!$N7*'Bemessungstabelle isoliert'!$H$2*'Bemessungstabelle isoliert'!$H$3*'Bemessungstabelle isoliert'!$H$4*'Bemessungstabelle isoliert'!$H$5*'Bemessungstabelle isoliert'!$H$6 -> 2.55 m | I12: ='Bemessungstabelle isoliert'!$N8*'Bemessungstabelle isoliert'!$H$2*'Bemessungstabelle isoliert'!$H$3*'Bemessungstabelle isoliert'!$H$4*'Bemessungstabelle isoliert'!$H$5*'Bemessungstabelle isoliert'!$H$6 -> 3.62 m | J12: ='Bemessungstabelle isoliert'!$N9*'Bemessungstabelle isoliert'!$H$2*'Bemessungstabelle isoliert'!$H$3*'Bemessungstabelle isoliert'!$H$4*'Bemessungstabelle isoliert'!$H$5*'Bemessungstabelle isoliert'!$H$6 -> 4.19 m | K12: ='Bemessungstabelle isoliert'!$N10*'Bemessungstabelle isoliert'!$H$2*'Bemessungstabelle isoliert'!$H$3*'Bemessungstabelle isoliert'!$H$4*'Bemessungstabelle isoliert'!$H$5*'Bemessungstabelle isoliert'!$H$6 -> 4.61 m | L12: ='Bemessungstabelle isoliert'!$N11*'Bemessungstabelle isoliert'!$H$2*'Bemessungstabelle isoliert'!$H$3*'Bemessungstabelle isoliert'!$H$4*'Bemessungstabelle isoliert'!$H$5*'Bemessungstabelle isoliert'!$H$6 -> 5.33 m | M12: ='Bemessungstabelle isoliert'!$N12*'Bemessungstabelle isoliert'!$H$2*'Bemessungstabelle isoliert'!$H$3*'Bemessungstabelle isoliert'!$H$4*'Bemessungstabelle isoliert'!$H$5*'Bemessungstabelle isoliert'!$H$6 -> 5.64 m | N12: ='Bemessungstabelle isoliert'!#REF!*'Bemessungstabelle isoliert'!$H$2*'Bemessungstabelle isoliert'!$H$3*'Bemessungstabelle isoliert'!$H$4*'Bemessungstabelle isoliert'!$H$5*'Bemessungstabelle isoliert'!$H$6 ->  | O12: ='Bemessungstabelle isoliert'!#REF!*'Bemessungstabelle isoliert'!$H$2*'Bemessungstabelle isoliert'!$H$3*'Bemessungstabelle isoliert'!$H$4*'Bemessungstabelle isoliert'!$H$5*'Bemessungstabelle isoliert'!$H$6 ->  | P12: ='Bemessungstabelle isoliert'!#REF!*'Bemessungstabelle isoliert'!$H$2*'Bemessungstabelle isoliert'!$H$3*'Bemessungstabelle isoliert'!$H$4*'Bemessungstabelle isoliert'!$H$5*'Bemessungstabelle isoliert'!$H$6 ->  | Q12: ='Bemessungstabelle isoliert'!#REF!*'Bemessungstabelle isoliert'!$H$2*'Bemessungstabelle isoliert'!$H$3*'Bemessungstabelle isoliert'!$H$4*'Bemessungstabelle isoliert'!$H$5*'Bemessungstabelle isoliert'!$H$6 ->  | S12: 2.00 m | T12: ='Bemessungstabelle isoliert'!$R42*'Bemessungstabelle isoliert'!$H$42*'Bemessungstabelle isoliert'!$H$43*'Bemessungstabelle isoliert'!$H$44*'Bemessungstabelle isoliert'!$H$45*'Bemessungstabelle isoliert'!$H$46*'Bemessungstabelle isoliert'!#REF!*'Bemessungstabelle isoliert'!$H$47 ->  | U12: ='Bemessungstabelle isoliert'!$R43*'Bemessungstabelle isoliert'!$H$42*'Bemessungstabelle isoliert'!$H$43*'Bemessungstabelle isoliert'!$H$44*'Bemessungstabelle isoliert'!$H$45*'Bemessungstabelle isoliert'!$H$46*'Bemessungstabelle isoliert'!#REF!*'Bemessungstabelle isoliert'!$H$47 ->  | V12: ='Bemessungstabelle isoliert'!$R44*'Bemessungstabelle isoliert'!$H$42*'Bemessungstabelle isoliert'!$H$43*'Bemessungstabelle isoliert'!$H$44*'Bemessungstabelle isoliert'!$H$45*'Bemessungstabelle isoliert'!$H$46*'Bemessungstabelle isoliert'!#REF!*'Bemessungstabelle isoliert'!$H$47 ->  | W12: ='Bemessungstabelle isoliert'!$R45*'Bemessungstabelle isoliert'!$H$42*'Bemessungstabelle isoliert'!$H$43*'Bemessungstabelle isoliert'!$H$44*'Bemessungstabelle isoliert'!$H$45*'Bemessungstabelle isoliert'!$H$46*'Bemessungstabelle isoliert'!#REF!*'Bemessungstabelle isoliert'!$H$47 ->  | X12: ='Bemessungstabelle isoliert'!$R46*'Bemessungstabelle isoliert'!$H$42*'Bemessungstabelle isoliert'!$H$43*'Bemessungstabelle isoliert'!$H$44*'Bemessungstabelle isoliert'!$H$45*'Bemessungstabelle isoliert'!$H$46*'Bemessungstabelle isoliert'!#REF!*'Bemessungstabelle isoliert'!$H$47 ->  | Y12: ='Bemessungstabelle isoliert'!$R47*'Bemessungstabelle isoliert'!$H$42*'Bemessungstabelle isoliert'!$H$43*'Bemessungstabelle isoliert'!$H$44*'Bemessungstabelle isoliert'!$H$45*'Bemessungstabelle isoliert'!$H$46*'Bemessungstabelle isoliert'!#REF!*'Bemessungstabelle isoliert'!$H$47 ->  | Z12: ='Bemessungstabelle isoliert'!$R48*'Bemessungstabelle isoliert'!$H$42*'Bemessungstabelle isoliert'!$H$43*'Bemessungstabelle isoliert'!$H$44*'Bemessungstabelle isoliert'!$H$45*'Bemessungstabelle isoliert'!$H$46*'Bemessungstabelle isoliert'!#REF!*'Bemessungstabelle isoliert'!$H$47 ->  | AA12: ='Bemessungstabelle isoliert'!$R49*'Bemessungstabelle isoliert'!$H$42*'Bemessungstabelle isoliert'!$H$43*'Bemessungstabelle isoliert'!$H$44*'Bemessungstabelle isoliert'!$H$45*'Bemessungstabelle isoliert'!$H$46*'Bemessungstabelle isoliert'!#REF!*'Bemessungstabelle isoliert'!$H$47 ->  | AB12: ='Bemessungstabelle isoliert'!$R50*'Bemessungstabelle isoliert'!$H$42*'Bemessungstabelle isoliert'!$H$43*'Bemessungstabelle isoliert'!$H$44*'Bemessungstabelle isoliert'!$H$45*'Bemessungstabelle isoliert'!$H$46*'Bemessungstabelle isoliert'!#REF!*'Bemessungstabelle isoliert'!$H$47 ->  | AC12: ='Bemessungstabelle isoliert'!$R51*'Bemessungstabelle isoliert'!$H$42*'Bemessungstabelle isoliert'!$H$43*'Bemessungstabelle isoliert'!$H$44*'Bemessungstabelle isoliert'!$H$45*'Bemessungstabelle isoliert'!$H$46*'Bemessungstabelle isoliert'!#REF!*'Bemessungstabelle isoliert'!$H$47 ->  | AE12: 3.00 m | AF12: ='Bemessungstabelle unisoliert'!$P75*'Bemessungstabelle unisoliert'!$H$66*'Bemessungstabelle unisoliert'!$H$67*'Bemessungstabelle unisoliert'!$H$68*'Bemessungstabelle unisoliert'!$H$69*'Bemessungstabelle unisoliert'!$H$70*'Bemessungstabelle unisoliert'!$H$71 -> 2.68 m | AG12: ='Bemessungstabelle unisoliert'!#REF!*'Bemessungstabelle unisoliert'!$H$66*'Bemessungstabelle unisoliert'!$H$67*'Bemessungstabelle unisoliert'!$H$68*'Bemessungstabelle unisoliert'!$H$69*'Bemessungstabelle unisoliert'!$H$70*'Bemessungstabelle unisoliert'!$H$71 ->  | AH12: ='Bemessungstabelle unisoliert'!$P74*'Bemessungstabelle unisoliert'!$H$66*'Bemessungstabelle unisoliert'!$H$67*'Bemessungstabelle unisoliert'!$H$68*'Bemessungstabelle unisoliert'!$H$69*'Bemessungstabelle unisoliert'!$H$70*'Bemessungstabelle unisoliert'!$H$71 -> 6.44 m | AI12: ='Bemessungstabelle unisoliert'!#REF!*'Bemessungstabelle unisoliert'!$H$66*'Bemessungstabelle unisoliert'!$H$67*'Bemessungstabelle unisoliert'!$H$68*'Bemessungstabelle unisoliert'!$H$69*'Bemessungstabelle unisoliert'!$H$70*'Bemessungstabelle unisoliert'!$H$71 ->  | AJ12: ='Bemessungstabelle unisoliert'!$P76*'Bemessungstabelle unisoliert'!$H$66*'Bemessungstabelle unisoliert'!$H$67*'Bemessungstabelle unisoliert'!$H$68*'Bemessungstabelle unisoliert'!$H$69*'Bemessungstabelle unisoliert'!$H$70*'Bemessungstabelle unisoliert'!$H$71 -> 3.93 m
B13: 0.60 m | C13: ='Bemessungstabelle isoliert'!$P2*'Bemessungstabelle isoliert'!$H$2*'Bemessungstabelle isoliert'!$H$3*'Bemessungstabelle isoliert'!$H$4*'Bemessungstabelle isoliert'!$H$5*'Bemessungstabelle isoliert'!$H$6 -> 5.53 m | D13: ='Bemessungstabelle isoliert'!$P3*'Bemessungstabelle isoliert'!$H$2*'Bemessungstabelle isoliert'!$H$3*'Bemessungstabelle isoliert'!$H$4*'Bemessungstabelle isoliert'!$H$5*'Bemessungstabelle isoliert'!$H$6 -> 6.55 m | E13: ='Bemessungstabelle isoliert'!$P4*'Bemessungstabelle isoliert'!$H$2*'Bemessungstabelle isoliert'!$H$3*'Bemessungstabelle isoliert'!$H$4*'Bemessungstabelle isoliert'!$H$5*'Bemessungstabelle isoliert'!$H$6 -> 7.02 m | F13: ='Bemessungstabelle isoliert'!$P5*'Bemessungstabelle isoliert'!$H$2*'Bemessungstabelle isoliert'!$H$3*'Bemessungstabelle isoliert'!$H$4*'Bemessungstabelle isoliert'!$H$5*'Bemessungstabelle isoliert'!$H$6 -> 7.30 m | G13: ='Bemessungstabelle isoliert'!$P6*'Bemessungstabelle isoliert'!$H$2*'Bemessungstabelle isoliert'!$H$3*'Bemessungstabelle isoliert'!$H$4*'Bemessungstabelle isoliert'!$H$5*'Bemessungstabelle isoliert'!$H$6 -> 2.33 m | H13: ='Bemessungstabelle isoliert'!$P7*'Bemessungstabelle isoliert'!$H$2*'Bemessungstabelle isoliert'!$H$3*'Bemessungstabelle isoliert'!$H$4*'Bemessungstabelle isoliert'!$H$5*'Bemessungstabelle isoliert'!$H$6 -> 2.41 m | I13: ='Bemessungstabelle isoliert'!$P8*'Bemessungstabelle isoliert'!$H$2*'Bemessungstabelle isoliert'!$H$3*'Bemessungstabelle isoliert'!$H$4*'Bemessungstabelle isoliert'!$H$5*'Bemessungstabelle isoliert'!$H$6 -> 3.41 m | J13: ='Bemessungstabelle isoliert'!$P9*'Bemessungstabelle isoliert'!$H$2*'Bemessungstabelle isoliert'!$H$3*'Bemessungstabelle isoliert'!$H$4*'Bemessungstabelle isoliert'!$H$5*'Bemessungstabelle isoliert'!$H$6 -> 3.97 m | K13: ='Bemessungstabelle isoliert'!$P10*'Bemessungstabelle isoliert'!$H$2*'Bemessungstabelle isoliert'!$H$3*'Bemessungstabelle isoliert'!$H$4*'Bemessungstabelle isoliert'!$H$5*'Bemessungstabelle isoliert'!$H$6 -> 4.34 m | L13: ='Bemessungstabelle isoliert'!$P11*'Bemessungstabelle isoliert'!$H$2*'Bemessungstabelle isoliert'!$H$3*'Bemessungstabelle isoliert'!$H$4*'Bemessungstabelle isoliert'!$H$5*'Bemessungstabelle isoliert'!$H$6 -> 5.06 m | M13: ='Bemessungstabelle isoliert'!$P12*'Bemessungstabelle isoliert'!$H$2*'Bemessungstabelle isoliert'!$H$3*'Bemessungstabelle isoliert'!$H$4*'Bemessungstabelle isoliert'!$H$5*'Bemessungstabelle isoliert'!$H$6 -> 5.35 m | N13: ='Bemessungstabelle isoliert'!#REF!*'Bemessungstabelle isoliert'!$H$2*'Bemessungstabelle isoliert'!$H$3*'Bemessungstabelle isoliert'!$H$4*'Bemessungstabelle isoliert'!$H$5*'Bemessungstabelle isoliert'!$H$6 ->  | O13: ='Bemessungstabelle isoliert'!#REF!*'Bemessungstabelle isoliert'!$H$2*'Bemessungstabelle isoliert'!$H$3*'Bemessungstabelle isoliert'!$H$4*'Bemessungstabelle isoliert'!$H$5*'Bemessungstabelle isoliert'!$H$6 ->  | P13: ='Bemessungstabelle isoliert'!#REF!*'Bemessungstabelle isoliert'!$H$2*'Bemessungstabelle isoliert'!$H$3*'Bemessungstabelle isoliert'!$H$4*'Bemessungstabelle isoliert'!$H$5*'Bemessungstabelle isoliert'!$H$6 ->  | Q13: ='Bemessungstabelle isoliert'!#REF!*'Bemessungstabelle isoliert'!$H$2*'Bemessungstabelle isoliert'!$H$3*'Bemessungstabelle isoliert'!$H$4*'Bemessungstabelle isoliert'!$H$5*'Bemessungstabelle isoliert'!$H$6 ->  | S13: 2.50 m | T13: ='Bemessungstabelle isoliert'!$T42*'Bemessungstabelle isoliert'!$H$42*'Bemessungstabelle isoliert'!$H$43*'Bemessungstabelle isoliert'!$H$44*'Bemessungstabelle isoliert'!$H$45*'Bemessungstabelle isoliert'!$H$46*'Bemessungstabelle isoliert'!#REF!*'Bemessungstabelle isoliert'!$H$47 ->  | U13: ='Bemessungstabelle isoliert'!$T43*'Bemessungstabelle isoliert'!$H$42*'Bemessungstabelle isoliert'!$H$43*'Bemessungstabelle isoliert'!$H$44*'Bemessungstabelle isoliert'!$H$45*'Bemessungstabelle isoliert'!$H$46*'Bemessungstabelle isoliert'!#REF!*'Bemessungstabelle isoliert'!$H$47 ->  | V13: ='Bemessungstabelle isoliert'!$T44*'Bemessungstabelle isoliert'!$H$42*'Bemessungstabelle isoliert'!$H$43*'Bemessungstabelle isoliert'!$H$44*'Bemessungstabelle isoliert'!$H$45*'Bemessungstabelle isoliert'!$H$46*'Bemessungstabelle isoliert'!#REF!*'Bemessungstabelle isoliert'!$H$47 ->  | W13: ='Bemessungstabelle isoliert'!$T45*'Bemessungstabelle isoliert'!$H$42*'Bemessungstabelle isoliert'!$H$43*'Bemessungstabelle isoliert'!$H$44*'Bemessungstabelle isoliert'!$H$45*'Bemessungstabelle isoliert'!$H$46*'Bemessungstabelle isoliert'!#REF!*'Bemessungstabelle isoliert'!$H$47 ->  | X13: ='Bemessungstabelle isoliert'!$T46*'Bemessungstabelle isoliert'!$H$42*'Bemessungstabelle isoliert'!$H$43*'Bemessungstabelle isoliert'!$H$44*'Bemessungstabelle isoliert'!$H$45*'Bemessungstabelle isoliert'!$H$46*'Bemessungstabelle isoliert'!#REF!*'Bemessungstabelle isoliert'!$H$47 ->  | Y13: ='Bemessungstabelle isoliert'!$T47*'Bemessungstabelle isoliert'!$H$42*'Bemessungstabelle isoliert'!$H$43*'Bemessungstabelle isoliert'!$H$44*'Bemessungstabelle isoliert'!$H$45*'Bemessungstabelle isoliert'!$H$46*'Bemessungstabelle isoliert'!#REF!*'Bemessungstabelle isoliert'!$H$47 ->  | Z13: ='Bemessungstabelle isoliert'!$T48*'Bemessungstabelle isoliert'!$H$42*'Bemessungstabelle isoliert'!$H$43*'Bemessungstabelle isoliert'!$H$44*'Bemessungstabelle isoliert'!$H$45*'Bemessungstabelle isoliert'!$H$46*'Bemessungstabelle isoliert'!#REF!*'Bemessungstabelle isoliert'!$H$47 ->  | AA13: ='Bemessungstabelle isoliert'!$T49*'Bemessungstabelle isoliert'!$H$42*'Bemessungstabelle isoliert'!$H$43*'Bemessungstabelle isoliert'!$H$44*'Bemessungstabelle isoliert'!$H$45*'Bemessungstabelle isoliert'!$H$46*'Bemessungstabelle isoliert'!#REF!*'Bemessungstabelle isoliert'!$H$47 ->  | AB13: ='Bemessungstabelle isoliert'!$T50*'Bemessungstabelle isoliert'!$H$42*'Bemessungstabelle isoliert'!$H$43*'Bemessungstabelle isoliert'!$H$44*'Bemessungstabelle isoliert'!$H$45*'Bemessungstabelle isoliert'!$H$46*'Bemessungstabelle isoliert'!#REF!*'Bemessungstabelle isoliert'!$H$47 ->  | AC13: ='Bemessungstabelle isoliert'!$T51*'Bemessungstabelle isoliert'!$H$42*'Bemessungstabelle isoliert'!$H$43*'Bemessungstabelle isoliert'!$H$44*'Bemessungstabelle isoliert'!$H$45*'Bemessungstabelle isoliert'!$H$46*'Bemessungstabelle isoliert'!#REF!*'Bemessungstabelle isoliert'!$H$47 ->  | AE13: 3.50 m | AF13: =('Bemessungstabelle unisoliert'!$P75+'Bemessungstabelle unisoliert'!R75)/2*'Bemessungstabelle unisoliert'!$H$66*'Bemessungstabelle unisoliert'!$H$67*'Bemessungstabelle unisoliert'!$H$68*'Bemessungstabelle unisoliert'!$H$69*'Bemessungstabelle unisoliert'!$H$70*'Bemessungstabelle unisoliert'!$H$71 -> 2.57 m | AG13: =('Bemessungstabelle unisoliert'!#REF!+'Bemessungstabelle unisoliert'!#REF!)/2*'Bemessungstabelle unisoliert'!$H$66*'Bemessungstabelle unisoliert'!$H$67*'Bemessungstabelle unisoliert'!$H$68*'Bemessungstabelle unisoliert'!$H$69*'Bemessungstabelle unisoliert'!$H$70*'Bemessungstabelle unisoliert'!$H$71 ->  | AH13: =('Bemessungstabelle unisoliert'!$P74+'Bemessungstabelle unisoliert'!R74)/2*'Bemessungstabelle unisoliert'!$H$66*'Bemessungstabelle unisoliert'!$H$67*'Bemessungstabelle unisoliert'!$H$68*'Bemessungstabelle unisoliert'!$H$69*'Bemessungstabelle unisoliert'!$H$70*'Bemessungstabelle unisoliert'!$H$71 -> 6.16 m | AI13: =('Bemessungstabelle unisoliert'!#REF!+'Bemessungstabelle unisoliert'!#REF!)/2*'Bemessungstabelle unisoliert'!$H$66*'Bemessungstabelle unisoliert'!$H$67*'Bemessungstabelle unisoliert'!$H$68*'Bemessungstabelle unisoliert'!$H$69*'Bemessungstabelle unisoliert'!$H$70*'Bemessungstabelle unisoliert'!$H$71 ->  | AJ13: =('Bemessungstabelle unisoliert'!$P76+'Bemessungstabelle unisoliert'!R76)/2*'Bemessungstabelle unisoliert'!$H$66*'Bemessungstabelle unisoliert'!$H$67*'Bemessungstabelle unisoliert'!$H$68*'Bemessungstabelle unisoliert'!$H$69*'Bemessungstabelle unisoliert'!$H$70*'Bemessungstabelle unisoliert'!$H$71 -> 3.75 m
B14: 0.70 m | C14: ='Bemessungstabelle isoliert'!$R2*'Bemessungstabelle isoliert'!$H$2*'Bemessungstabelle isoliert'!$H$3*'Bemessungstabelle isoliert'!$H$4*'Bemessungstabelle isoliert'!$H$5*'Bemessungstabelle isoliert'!$H$6 -> 5.25 m | D14: ='Bemessungstabelle isoliert'!$R3*'Bemessungstabelle isoliert'!$H$2*'Bemessungstabelle isoliert'!$H$3*'Bemessungstabelle isoliert'!$H$4*'Bemessungstabelle isoliert'!$H$5*'Bemessungstabelle isoliert'!$H$6 -> 6.27 m | E14: ='Bemessungstabelle isoliert'!$R4*'Bemessungstabelle isoliert'!$H$2*'Bemessungstabelle isoliert'!$H$3*'Bemessungstabelle isoliert'!$H$4*'Bemessungstabelle isoliert'!$H$5*'Bemessungstabelle isoliert'!$H$6 -> 6.72 m | F14: ='Bemessungstabelle isoliert'!$R5*'Bemessungstabelle isoliert'!$H$2*'Bemessungstabelle isoliert'!$H$3*'Bemessungstabelle isoliert'!$H$4*'Bemessungstabelle isoliert'!$H$5*'Bemessungstabelle isoliert'!$H$6 -> 6.98 m | G14: ='Bemessungstabelle isoliert'!$R6*'Bemessungstabelle isoliert'!$H$2*'Bemessungstabelle isoliert'!$H$3*'Bemessungstabelle isoliert'!$H$4*'Bemessungstabelle isoliert'!$H$5*'Bemessungstabelle isoliert'!$H$6 -> 2.19 m | H14: ='Bemessungstabelle isoliert'!$R7*'Bemessungstabelle isoliert'!$H$2*'Bemessungstabelle isoliert'!$H$3*'Bemessungstabelle isoliert'!$H$4*'Bemessungstabelle isoliert'!$H$5*'Bemessungstabelle isoliert'!$H$6 -> 2.29 m | I14: ='Bemessungstabelle isoliert'!$R8*'Bemessungstabelle isoliert'!$H$2*'Bemessungstabelle isoliert'!$H$3*'Bemessungstabelle isoliert'!$H$4*'Bemessungstabelle isoliert'!$H$5*'Bemessungstabelle isoliert'!$H$6 -> 3.23 m | J14: ='Bemessungstabelle isoliert'!$R9*'Bemessungstabelle isoliert'!$H$2*'Bemessungstabelle isoliert'!$H$3*'Bemessungstabelle isoliert'!$H$4*'Bemessungstabelle isoliert'!$H$5*'Bemessungstabelle isoliert'!$H$6 -> 3.78 m | K14: ='Bemessungstabelle isoliert'!$R10*'Bemessungstabelle isoliert'!$H$2*'Bemessungstabelle isoliert'!$H$3*'Bemessungstabelle isoliert'!$H$4*'Bemessungstabelle isoliert'!$H$5*'Bemessungstabelle isoliert'!$H$6 -> 4.12 m | L14: ='Bemessungstabelle isoliert'!$R11*'Bemessungstabelle isoliert'!$H$2*'Bemessungstabelle isoliert'!$H$3*'Bemessungstabelle isoliert'!$H$4*'Bemessungstabelle isoliert'!$H$5*'Bemessungstabelle isoliert'!$H$6 -> 4.83 m | M14: ='Bemessungstabelle isoliert'!$R12*'Bemessungstabelle isoliert'!$H$2*'Bemessungstabelle isoliert'!$H$3*'Bemessungstabelle isoliert'!$H$4*'Bemessungstabelle isoliert'!$H$5*'Bemessungstabelle isoliert'!$H$6 -> 5.13 m | N14: ='Bemessungstabelle isoliert'!#REF!*'Bemessungstabelle isoliert'!$H$2*'Bemessungstabelle isoliert'!$H$3*'Bemessungstabelle isoliert'!$H$4*'Bemessungstabelle isoliert'!$H$5*'Bemessungstabelle isoliert'!$H$6 ->  | O14: ='Bemessungstabelle isoliert'!#REF!*'Bemessungstabelle isoliert'!$H$2*'Bemessungstabelle isoliert'!$H$3*'Bemessungstabelle isoliert'!$H$4*'Bemessungstabelle isoliert'!$H$5*'Bemessungstabelle isoliert'!$H$6 ->  | P14: ='Bemessungstabelle isoliert'!#REF!*'Bemessungstabelle isoliert'!$H$2*'Bemessungstabelle isoliert'!$H$3*'Bemessungstabelle isoliert'!$H$4*'Bemessungstabelle isoliert'!$H$5*'Bemessungstabelle isoliert'!$H$6 ->  | Q14: ='Bemessungstabelle isoliert'!#REF!*'Bemessungstabelle isoliert'!$H$2*'Bemessungstabelle isoliert'!$H$3*'Bemessungstabelle isoliert'!$H$4*'Bemessungstabelle isoliert'!$H$5*'Bemessungstabelle isoliert'!$H$6 ->  | S14: 3.00 m | T14: ='Bemessungstabelle isoliert'!$V42*'Bemessungstabelle isoliert'!$H$42*'Bemessungstabelle isoliert'!$H$43*'Bemessungstabelle isoliert'!$H$44*'Bemessungstabelle isoliert'!$H$45*'Bemessungstabelle isoliert'!$H$46*'Bemessungstabelle isoliert'!#REF!*'Bemessungstabelle isoliert'!$H$47 ->  | U14: ='Bemessungstabelle isoliert'!$V43*'Bemessungstabelle isoliert'!$H$42*'Bemessungstabelle isoliert'!$H$43*'Bemessungstabelle isoliert'!$H$44*'Bemessungstabelle isoliert'!$H$45*'Bemessungstabelle isoliert'!$H$46*'Bemessungstabelle isoliert'!#REF!*'Bemessungstabelle isoliert'!$H$47 ->  | V14: ='Bemessungstabelle isoliert'!$V44*'Bemessungstabelle isoliert'!$H$42*'Bemessungstabelle isoliert'!$H$43*'Bemessungstabelle isoliert'!$H$44*'Bemessungstabelle isoliert'!$H$45*'Bemessungstabelle isoliert'!$H$46*'Bemessungstabelle isoliert'!#REF!*'Bemessungstabelle isoliert'!$H$47 ->  | W14: ='Bemessungstabelle isoliert'!$V45*'Bemessungstabelle isoliert'!$H$42*'Bemessungstabelle isoliert'!$H$43*'Bemessungstabelle isoliert'!$H$44*'Bemessungstabelle isoliert'!$H$45*'Bemessungstabelle isoliert'!$H$46*'Bemessungstabelle isoliert'!#REF!*'Bemessungstabelle isoliert'!$H$47 ->  | X14: ='Bemessungstabelle isoliert'!$V46*'Bemessungstabelle isoliert'!$H$42*'Bemessungstabelle isoliert'!$H$43*'Bemessungstabelle isoliert'!$H$44*'Bemessungstabelle isoliert'!$H$45*'Bemessungstabelle isoliert'!$H$46*'Bemessungstabelle isoliert'!#REF!*'Bemessungstabelle isoliert'!$H$47 ->  | Y14: ='Bemessungstabelle isoliert'!$V47*'Bemessungstabelle isoliert'!$H$42*'Bemessungstabelle isoliert'!$H$43*'Bemessungstabelle isoliert'!$H$44*'Bemessungstabelle isoliert'!$H$45*'Bemessungstabelle isoliert'!$H$46*'Bemessungstabelle isoliert'!#REF!*'Bemessungstabelle isoliert'!$H$47 ->  | Z14: ='Bemessungstabelle isoliert'!$V48*'Bemessungstabelle isoliert'!$H$42*'Bemessungstabelle isoliert'!$H$43*'Bemessungstabelle isoliert'!$H$44*'Bemessungstabelle isoliert'!$H$45*'Bemessungstabelle isoliert'!$H$46*'Bemessungstabelle isoliert'!#REF!*'Bemessungstabelle isoliert'!$H$47 ->  | AA14: ='Bemessungstabelle isoliert'!$V49*'Bemessungstabelle isoliert'!$H$42*'Bemessungstabelle isoliert'!$H$43*'Bemessungstabelle isoliert'!$H$44*'Bemessungstabelle isoliert'!$H$45*'Bemessungstabelle isoliert'!$H$46*'Bemessungstabelle isoliert'!#REF!*'Bemessungstabelle isoliert'!$H$47 ->  | AB14: ='Bemessungstabelle isoliert'!$V50*'Bemessungstabelle isoliert'!$H$42*'Bemessungstabelle isoliert'!$H$43*'Bemessungstabelle isoliert'!$H$44*'Bemessungstabelle isoliert'!$H$45*'Bemessungstabelle isoliert'!$H$46*'Bemessungstabelle isoliert'!#REF!*'Bemessungstabelle isoliert'!$H$47 ->  | AC14: ='Bemessungstabelle isoliert'!$V51*'Bemessungstabelle isoliert'!$H$42*'Bemessungstabelle isoliert'!$H$43*'Bemessungstabelle isoliert'!$H$44*'Bemessungstabelle isoliert'!$H$45*'Bemessungstabelle isoliert'!$H$46*'Bemessungstabelle isoliert'!#REF!*'Bemessungstabelle isoliert'!$H$47 ->  | AE14: 4.00 m | AF14: ='Bemessungstabelle unisoliert'!$R75*'Bemessungstabelle unisoliert'!$H$66*'Bemessungstabelle unisoliert'!$H$67*'Bemessungstabelle unisoliert'!$H$68*'Bemessungstabelle unisoliert'!$H$69*'Bemessungstabelle unisoliert'!$H$70*'Bemessungstabelle unisoliert'!$H$71 -> 2.45 m | AG14: ='Bemessungstabelle unisoliert'!#REF!*'Bemessungstabelle unisoliert'!$H$66*'Bemessungstabelle unisoliert'!$H$67*'Bemessungstabelle unisoliert'!$H$68*'Bemessungstabelle unisoliert'!$H$69*'Bemessungstabelle unisoliert'!$H$70*'Bemessungstabelle unisoliert'!$H$71 ->  | AH14: ='Bemessungstabelle unisoliert'!$R74*'Bemessungstabelle unisoliert'!$H$66*'Bemessungstabelle unisoliert'!$H$67*'Bemessungstabelle unisoliert'!$H$68*'Bemessungstabelle unisoliert'!$H$69*'Bemessungstabelle unisoliert'!$H$70*'Bemessungstabelle unisoliert'!$H$71 -> 5.89 m | AI14: ='Bemessungstabelle unisoliert'!#REF!*'Bemessungstabelle unisoliert'!$H$66*'Bemessungstabelle unisoliert'!$H$67*'Bemessungstabelle unisoliert'!$H$68*'Bemessungstabelle unisoliert'!$H$69*'Bemessungstabelle unisoliert'!$H$70*'Bemessungstabelle unisoliert'!$H$71 ->  | AJ14: ='Bemessungstabelle unisoliert'!$R76*'Bemessungstabelle unisoliert'!$H$66*'Bemessungstabelle unisoliert'!$H$67*'Bemessungstabelle unisoliert'!$H$68*'Bemessungstabelle unisoliert'!$H$69*'Bemessungstabelle unisoliert'!$H$70*'Bemessungstabelle unisoliert'!$H$71 -> 3.58 m
B15: 0.80 m | C15: ='Bemessungstabelle isoliert'!$T2*'Bemessungstabelle isoliert'!$H$2*'Bemessungstabelle isoliert'!$H$3*'Bemessungstabelle isoliert'!$H$4*'Bemessungstabelle isoliert'!$H$5*'Bemessungstabelle isoliert'!$H$6 -> 5.03 m | D15: ='Bemessungstabelle isoliert'!$T3*'Bemessungstabelle isoliert'!$H$2*'Bemessungstabelle isoliert'!$H$3*'Bemessungstabelle isoliert'!$H$4*'Bemessungstabelle isoliert'!$H$5*'Bemessungstabelle isoliert'!$H$6 -> 6.02 m | E15: ='Bemessungstabelle isoliert'!$T4*'Bemessungstabelle isoliert'!$H$2*'Bemessungstabelle isoliert'!$H$3*'Bemessungstabelle isoliert'!$H$4*'Bemessungstabelle isoliert'!$H$5*'Bemessungstabelle isoliert'!$H$6 -> 6.47 m | F15: ='Bemessungstabelle isoliert'!$T5*'Bemessungstabelle isoliert'!$H$2*'Bemessungstabelle isoliert'!$H$3*'Bemessungstabelle isoliert'!$H$4*'Bemessungstabelle isoliert'!$H$5*'Bemessungstabelle isoliert'!$H$6 -> 6.72 m | G15: ='Bemessungstabelle isoliert'!$T6*'Bemessungstabelle isoliert'!$H$2*'Bemessungstabelle isoliert'!$H$3*'Bemessungstabelle isoliert'!$H$4*'Bemessungstabelle isoliert'!$H$5*'Bemessungstabelle isoliert'!$H$6 -> 2.09 m | H15: ='Bemessungstabelle isoliert'!$T7*'Bemessungstabelle isoliert'!$H$2*'Bemessungstabelle isoliert'!$H$3*'Bemessungstabelle isoliert'!$H$4*'Bemessungstabelle isoliert'!$H$5*'Bemessungstabelle isoliert'!$H$6 -> 2.19 m | I15: ='Bemessungstabelle isoliert'!$T8*'Bemessungstabelle isoliert'!$H$2*'Bemessungstabelle isoliert'!$H$3*'Bemessungstabelle isoliert'!$H$4*'Bemessungstabelle isoliert'!$H$5*'Bemessungstabelle isoliert'!$H$6 -> 3.08 m | J15: ='Bemessungstabelle isoliert'!$T9*'Bemessungstabelle isoliert'!$H$2*'Bemessungstabelle isoliert'!$H$3*'Bemessungstabelle isoliert'!$H$4*'Bemessungstabelle isoliert'!$H$5*'Bemessungstabelle isoliert'!$H$6 -> 3.63 m | K15: ='Bemessungstabelle isoliert'!$T10*'Bemessungstabelle isoliert'!$H$2*'Bemessungstabelle isoliert'!$H$3*'Bemessungstabelle isoliert'!$H$4*'Bemessungstabelle isoliert'!$H$5*'Bemessungstabelle isoliert'!$H$6 -> 3.94 m | L15: ='Bemessungstabelle isoliert'!$T11*'Bemessungstabelle isoliert'!$H$2*'Bemessungstabelle isoliert'!$H$3*'Bemessungstabelle isoliert'!$H$4*'Bemessungstabelle isoliert'!$H$5*'Bemessungstabelle isoliert'!$H$6 -> 4.64 m | M15: ='Bemessungstabelle isoliert'!$T12*'Bemessungstabelle isoliert'!$H$2*'Bemessungstabelle isoliert'!$H$3*'Bemessungstabelle isoliert'!$H$4*'Bemessungstabelle isoliert'!$H$5*'Bemessungstabelle isoliert'!$H$6 -> 4.93 m | N15: ='Bemessungstabelle isoliert'!#REF!*'Bemessungstabelle isoliert'!$H$2*'Bemessungstabelle isoliert'!$H$3*'Bemessungstabelle isoliert'!$H$4*'Bemessungstabelle isoliert'!$H$5*'Bemessungstabelle isoliert'!$H$6 ->  | O15: ='Bemessungstabelle isoliert'!#REF!*'Bemessungstabelle isoliert'!$H$2*'Bemessungstabelle isoliert'!$H$3*'Bemessungstabelle isoliert'!$H$4*'Bemessungstabelle isoliert'!$H$5*'Bemessungstabelle isoliert'!$H$6 ->  | P15: ='Bemessungstabelle isoliert'!#REF!*'Bemessungstabelle isoliert'!$H$2*'Bemessungstabelle isoliert'!$H$3*'Bemessungstabelle isoliert'!$H$4*'Bemessungstabelle isoliert'!$H$5*'Bemessungstabelle isoliert'!$H$6 ->  | Q15: ='Bemessungstabelle isoliert'!#REF!*'Bemessungstabelle isoliert'!$H$2*'Bemessungstabelle isoliert'!$H$3*'Bemessungstabelle isoliert'!$H$4*'Bemessungstabelle isoliert'!$H$5*'Bemessungstabelle isoliert'!$H$6 ->  | S15: 3.50 m | T15: ='Bemessungstabelle isoliert'!$X42*'Bemessungstabelle isoliert'!$H$42*'Bemessungstabelle isoliert'!$H$43*'Bemessungstabelle isoliert'!$H$44*'Bemessungstabelle isoliert'!$H$45*'Bemessungstabelle isoliert'!$H$46*'Bemessungstabelle isoliert'!#REF!*'Bemessungstabelle isoliert'!$H$47 ->  | U15: ='Bemessungstabelle isoliert'!$X43*'Bemessungstabelle isoliert'!$H$42*'Bemessungstabelle isoliert'!$H$43*'Bemessungstabelle isoliert'!$H$44*'Bemessungstabelle isoliert'!$H$45*'Bemessungstabelle isoliert'!$H$46*'Bemessungstabelle isoliert'!#REF!*'Bemessungstabelle isoliert'!$H$47 ->  | V15: ='Bemessungstabelle isoliert'!$X44*'Bemessungstabelle isoliert'!$H$42*'Bemessungstabelle isoliert'!$H$43*'Bemessungstabelle isoliert'!$H$44*'Bemessungstabelle isoliert'!$H$45*'Bemessungstabelle isoliert'!$H$46*'Bemessungstabelle isoliert'!#REF!*'Bemessungstabelle isoliert'!$H$47 ->  | W15: ='Bemessungstabelle isoliert'!$X45*'Bemessungstabelle isoliert'!$H$42*'Bemessungstabelle isoliert'!$H$43*'Bemessungstabelle isoliert'!$H$44*'Bemessungstabelle isoliert'!$H$45*'Bemessungstabelle isoliert'!$H$46*'Bemessungstabelle isoliert'!#REF!*'Bemessungstabelle isoliert'!$H$47 ->  | X15: ='Bemessungstabelle isoliert'!$X46*'Bemessungstabelle isoliert'!$H$42*'Bemessungstabelle isoliert'!$H$43*'Bemessungstabelle isoliert'!$H$44*'Bemessungstabelle isoliert'!$H$45*'Bemessungstabelle isoliert'!$H$46*'Bemessungstabelle isoliert'!#REF!*'Bemessungstabelle isoliert'!$H$47 ->  | Y15: ='Bemessungstabelle isoliert'!$X47*'Bemessungstabelle isoliert'!$H$42*'Bemessungstabelle isoliert'!$H$43*'Bemessungstabelle isoliert'!$H$44*'Bemessungstabelle isoliert'!$H$45*'Bemessungstabelle isoliert'!$H$46*'Bemessungstabelle isoliert'!#REF!*'Bemessungstabelle isoliert'!$H$47 ->  | Z15: ='Bemessungstabelle isoliert'!$X48*'Bemessungstabelle isoliert'!$H$42*'Bemessungstabelle isoliert'!$H$43*'Bemessungstabelle isoliert'!$H$44*'Bemessungstabelle isoliert'!$H$45*'Bemessungstabelle isoliert'!$H$46*'Bemessungstabelle isoliert'!#REF!*'Bemessungstabelle isoliert'!$H$47 ->  | AA15: ='Bemessungstabelle isoliert'!$X49*'Bemessungstabelle isoliert'!$H$42*'Bemessungstabelle isoliert'!$H$43*'Bemessungstabelle isoliert'!$H$44*'Bemessungstabelle isoliert'!$H$45*'Bemessungstabelle isoliert'!$H$46*'Bemessungstabelle isoliert'!#REF!*'Bemessungstabelle isoliert'!$H$47 ->  | AB15: ='Bemessungstabelle isoliert'!$X50*'Bemessungstabelle isoliert'!$H$42*'Bemessungstabelle isoliert'!$H$43*'Bemessungstabelle isoliert'!$H$44*'Bemessungstabelle isoliert'!$H$45*'Bemessungstabelle isoliert'!$H$46*'Bemessungstabelle isoliert'!#REF!*'Bemessungstabelle isoliert'!$H$47 ->  | AC15: ='Bemessungstabelle isoliert'!$X51*'Bemessungstabelle isoliert'!$H$42*'Bemessungstabelle isoliert'!$H$43*'Bemessungstabelle isoliert'!$H$44*'Bemessungstabelle isoliert'!$H$45*'Bemessungstabelle isoliert'!$H$46*'Bemessungstabelle isoliert'!#REF!*'Bemessungstabelle isoliert'!$H$47 ->  | AE15: 4.50 m | AF15: =('Bemessungstabelle unisoliert'!$R75+'Bemessungstabelle unisoliert'!T75)/2*'Bemessungstabelle unisoliert'!$H$66*'Bemessungstabelle unisoliert'!$H$67*'Bemessungstabelle unisoliert'!$H$68*'Bemessungstabelle unisoliert'!$H$69*'Bemessungstabelle unisoliert'!$H$70*'Bemessungstabelle unisoliert'!$H$71 -> 2.36 m | AG15: =('Bemessungstabelle unisoliert'!#REF!+'Bemessungstabelle unisoliert'!#REF!)/2*'Bemessungstabelle unisoliert'!$H$66*'Bemessungstabelle unisoliert'!$H$67*'Bemessungstabelle unisoliert'!$H$68*'Bemessungstabelle unisoliert'!$H$69*'Bemessungstabelle unisoliert'!$H$70*'Bemessungstabelle unisoliert'!$H$71 ->  | AH15: =('Bemessungstabelle unisoliert'!$R74+'Bemessungstabelle unisoliert'!T74)/2*'Bemessungstabelle unisoliert'!$H$66*'Bemessungstabelle unisoliert'!$H$67*'Bemessungstabelle unisoliert'!$H$68*'Bemessungstabelle unisoliert'!$H$69*'Bemessungstabelle unisoliert'!$H$70*'Bemessungstabelle unisoliert'!$H$71 -> 5.69 m | AI15: =('Bemessungstabelle unisoliert'!#REF!+'Bemessungstabelle unisoliert'!#REF!)/2*'Bemessungstabelle unisoliert'!$H$66*'Bemessungstabelle unisoliert'!$H$67*'Bemessungstabelle unisoliert'!$H$68*'Bemessungstabelle unisoliert'!$H$69*'Bemessungstabelle unisoliert'!$H$70*'Bemessungstabelle unisoliert'!$H$71 ->  | AJ15: =('Bemessungstabelle unisoliert'!$R76+'Bemessungstabelle unisoliert'!T76)/2*'Bemessungstabelle unisoliert'!$H$66*'Bemessungstabelle unisoliert'!$H$67*'Bemessungstabelle unisoliert'!$H$68*'Bemessungstabelle unisoliert'!$H$69*'Bemessungstabelle unisoliert'!$H$70*'Bemessungstabelle unisoliert'!$H$71 -> 3.45 m
B16: 0.90 m | C16: ='Bemessungstabelle isoliert'!$V2*'Bemessungstabelle isoliert'!$H$2*'Bemessungstabelle isoliert'!$H$3*'Bemessungstabelle isoliert'!$H$4*'Bemessungstabelle isoliert'!$H$5*'Bemessungstabelle isoliert'!$H$6 -> 4.84 m | D16: ='Bemessungstabelle isoliert'!$V3*'Bemessungstabelle isoliert'!$H$2*'Bemessungstabelle isoliert'!$H$3*'Bemessungstabelle isoliert'!$H$4*'Bemessungstabelle isoliert'!$H$5*'Bemessungstabelle isoliert'!$H$6 -> 5.80 m | E16: ='Bemessungstabelle isoliert'!$V4*'Bemessungstabelle isoliert'!$H$2*'Bemessungstabelle isoliert'!$H$3*'Bemessungstabelle isoliert'!$H$4*'Bemessungstabelle isoliert'!$H$5*'Bemessungstabelle isoliert'!$H$6 -> 6.25 m | F16: ='Bemessungstabelle isoliert'!$V5*'Bemessungstabelle isoliert'!$H$2*'Bemessungstabelle isoliert'!$H$3*'Bemessungstabelle isoliert'!$H$4*'Bemessungstabelle isoliert'!$H$5*'Bemessungstabelle isoliert'!$H$6 -> 6.49 m | G16: ='Bemessungstabelle isoliert'!$V6*'Bemessungstabelle isoliert'!$H$2*'Bemessungstabelle isoliert'!$H$3*'Bemessungstabelle isoliert'!$H$4*'Bemessungstabelle isoliert'!$H$5*'Bemessungstabelle isoliert'!$H$6 -> 2.00 m | H16: ='Bemessungstabelle isoliert'!$V7*'Bemessungstabelle isoliert'!$H$2*'Bemessungstabelle isoliert'!$H$3*'Bemessungstabelle isoliert'!$H$4*'Bemessungstabelle isoliert'!$H$5*'Bemessungstabelle isoliert'!$H$6 -> 2.11 m | I16: ='Bemessungstabelle isoliert'!$V8*'Bemessungstabelle isoliert'!$H$2*'Bemessungstabelle isoliert'!$H$3*'Bemessungstabelle isoliert'!$H$4*'Bemessungstabelle isoliert'!$H$5*'Bemessungstabelle isoliert'!$H$6 -> 2.96 m | J16: ='Bemessungstabelle isoliert'!$V9*'Bemessungstabelle isoliert'!$H$2*'Bemessungstabelle isoliert'!$H$3*'Bemessungstabelle isoliert'!$H$4*'Bemessungstabelle isoliert'!$H$5*'Bemessungstabelle isoliert'!$H$6 -> 3.50 m | K16: ='Bemessungstabelle isoliert'!$V10*'Bemessungstabelle isoliert'!$H$2*'Bemessungstabelle isoliert'!$H$3*'Bemessungstabelle isoliert'!$H$4*'Bemessungstabelle isoliert'!$H$5*'Bemessungstabelle isoliert'!$H$6 -> 3.78 m | L16: ='Bemessungstabelle isoliert'!$V11*'Bemessungstabelle isoliert'!$H$2*'Bemessungstabelle isoliert'!$H$3*'Bemessungstabelle isoliert'!$H$4*'Bemessungstabelle isoliert'!$H$5*'Bemessungstabelle isoliert'!$H$6 -> 4.47 m | M16: ='Bemessungstabelle isoliert'!$V12*'Bemessungstabelle isoliert'!$H$2*'Bemessungstabelle isoliert'!$H$3*'Bemessungstabelle isoliert'!$H$4*'Bemessungstabelle isoliert'!$H$5*'Bemessungstabelle isoliert'!$H$6 -> 4.75 m | N16: ='Bemessungstabelle isoliert'!#REF!*'Bemessungstabelle isoliert'!$H$2*'Bemessungstabelle isoliert'!$H$3*'Bemessungstabelle isoliert'!$H$4*'Bemessungstabelle isoliert'!$H$5*'Bemessungstabelle isoliert'!$H$6 ->  | O16: ='Bemessungstabelle isoliert'!#REF!*'Bemessungstabelle isoliert'!$H$2*'Bemessungstabelle isoliert'!$H$3*'Bemessungstabelle isoliert'!$H$4*'Bemessungstabelle isoliert'!$H$5*'Bemessungstabelle isoliert'!$H$6 ->  | P16: ='Bemessungstabelle isoliert'!#REF!*'Bemessungstabelle isoliert'!$H$2*'Bemessungstabelle isoliert'!$H$3*'Bemessungstabelle isoliert'!$H$4*'Bemessungstabelle isoliert'!$H$5*'Bemessungstabelle isoliert'!$H$6 ->  | Q16: ='Bemessungstabelle isoliert'!#REF!*'Bemessungstabelle isoliert'!$H$2*'Bemessungstabelle isoliert'!$H$3*'Bemessungstabelle isoliert'!$H$4*'Bemessungstabelle isoliert'!$H$5*'Bemessungstabelle isoliert'!$H$6 ->  | S16: 4.00 m | T16: ='Bemessungstabelle isoliert'!$Z42*'Bemessungstabelle isoliert'!$H$42*'Bemessungstabelle isoliert'!$H$43*'Bemessungstabelle isoliert'!$H$44*'Bemessungstabelle isoliert'!$H$45*'Bemessungstabelle isoliert'!$H$46*'Bemessungstabelle isoliert'!#REF!*'Bemessungstabelle isoliert'!$H$47 ->  | U16: ='Bemessungstabelle isoliert'!$Z43*'Bemessungstabelle isoliert'!$H$42*'Bemessungstabelle isoliert'!$H$43*'Bemessungstabelle isoliert'!$H$44*'Bemessungstabelle isoliert'!$H$45*'Bemessungstabelle isoliert'!$H$46*'Bemessungstabelle isoliert'!#REF!*'Bemessungstabelle isoliert'!$H$47 ->  | V16: ='Bemessungstabelle isoliert'!$Z44*'Bemessungstabelle isoliert'!$H$42*'Bemessungstabelle isoliert'!$H$43*'Bemessungstabelle isoliert'!$H$44*'Bemessungstabelle isoliert'!$H$45*'Bemessungstabelle isoliert'!$H$46*'Bemessungstabelle isoliert'!#REF!*'Bemessungstabelle isoliert'!$H$47 ->  | W16: ='Bemessungstabelle isoliert'!$Z45*'Bemessungstabelle isoliert'!$H$42*'Bemessungstabelle isoliert'!$H$43*'Bemessungstabelle isoliert'!$H$44*'Bemessungstabelle isoliert'!$H$45*'Bemessungstabelle isoliert'!$H$46*'Bemessungstabelle isoliert'!#REF!*'Bemessungstabelle isoliert'!$H$47 ->  | X16: ='Bemessungstabelle isoliert'!$Z46*'Bemessungstabelle isoliert'!$H$42*'Bemessungstabelle isoliert'!$H$43*'Bemessungstabelle isoliert'!$H$44*'Bemessungstabelle isoliert'!$H$45*'Bemessungstabelle isoliert'!$H$46*'Bemessungstabelle isoliert'!#REF!*'Bemessungstabelle isoliert'!$H$47 ->  | Y16: ='Bemessungstabelle isoliert'!$Z47*'Bemessungstabelle isoliert'!$H$42*'Bemessungstabelle isoliert'!$H$43*'Bemessungstabelle isoliert'!$H$44*'Bemessungstabelle isoliert'!$H$45*'Bemessungstabelle isoliert'!$H$46*'Bemessungstabelle isoliert'!#REF!*'Bemessungstabelle isoliert'!$H$47 ->  | Z16: ='Bemessungstabelle isoliert'!$Z48*'Bemessungstabelle isoliert'!$H$42*'Bemessungstabelle isoliert'!$H$43*'Bemessungstabelle isoliert'!$H$44*'Bemessungstabelle isoliert'!$H$45*'Bemessungstabelle isoliert'!$H$46*'Bemessungstabelle isoliert'!#REF!*'Bemessungstabelle isoliert'!$H$47 ->  | AA16: ='Bemessungstabelle isoliert'!$Z49*'Bemessungstabelle isoliert'!$H$42*'Bemessungstabelle isoliert'!$H$43*'Bemessungstabelle isoliert'!$H$44*'Bemessungstabelle isoliert'!$H$45*'Bemessungstabelle isoliert'!$H$46*'Bemessungstabelle isoliert'!#REF!*'Bemessungstabelle isoliert'!$H$47 ->  | AB16: ='Bemessungstabelle isoliert'!$Z50*'Bemessungstabelle isoliert'!$H$42*'Bemessungstabelle isoliert'!$H$43*'Bemessungstabelle isoliert'!$H$44*'Bemessungstabelle isoliert'!$H$45*'Bemessungstabelle isoliert'!$H$46*'Bemessungstabelle isoliert'!#REF!*'Bemessungstabelle isoliert'!$H$47 ->  | AC16: ='Bemessungstabelle isoliert'!$Z51*'Bemessungstabelle isoliert'!$H$42*'Bemessungstabelle isoliert'!$H$43*'Bemessungstabelle isoliert'!$H$44*'Bemessungstabelle isoliert'!$H$45*'Bemessungstabelle isoliert'!$H$46*'Bemessungstabelle isoliert'!#REF!*'Bemessungstabelle isoliert'!$H$47 ->  | AE16: 5.00 m | AF16: ='Bemessungstabelle unisoliert'!$T75*'Bemessungstabelle unisoliert'!$H$66*'Bemessungstabelle unisoliert'!$H$67*'Bemessungstabelle unisoliert'!$H$68*'Bemessungstabelle unisoliert'!$H$69*'Bemessungstabelle unisoliert'!$H$70*'Bemessungstabelle unisoliert'!$H$71 -> 2.27 m | AG16: ='Bemessungstabelle unisoliert'!#REF!*'Bemessungstabelle unisoliert'!$H$66*'Bemessungstabelle unisoliert'!$H$67*'Bemessungstabelle unisoliert'!$H$68*'Bemessungstabelle unisoliert'!$H$69*'Bemessungstabelle unisoliert'!$H$70*'Bemessungstabelle unisoliert'!$H$71 ->  | AH16: ='Bemessungstabelle unisoliert'!$T74*'Bemessungstabelle unisoliert'!$H$66*'Bemessungstabelle unisoliert'!$H$67*'Bemessungstabelle unisoliert'!$H$68*'Bemessungstabelle unisoliert'!$H$69*'Bemessungstabelle unisoliert'!$H$70*'Bemessungstabelle unisoliert'!$H$71 -> 5.49 m | AI16: ='Bemessungstabelle unisoliert'!#REF!*'Bemessungstabelle unisoliert'!$H$66*'Bemessungstabelle unisoliert'!$H$67*'Bemessungstabelle unisoliert'!$H$68*'Bemessungstabelle unisoliert'!$H$69*'Bemessungstabelle unisoliert'!$H$70*'Bemessungstabelle unisoliert'!$H$71 ->  | AJ16: ='Bemessungstabelle unisoliert'!$T76*'Bemessungstabelle unisoliert'!$H$66*'Bemessungstabelle unisoliert'!$H$67*'Bemessungstabelle unisoliert'!$H$68*'Bemessungstabelle unisoliert'!$H$69*'Bemessungstabelle unisoliert'!$H$70*'Bemessungstabelle unisoliert'!$H$71 -> 3.32 m
B17: 1.00 m | C17: ='Bemessungstabelle isoliert'!$X2*'Bemessungstabelle isoliert'!$H$2*'Bemessungstabelle isoliert'!$H$3*'Bemessungstabelle isoliert'!$H$4*'Bemessungstabelle isoliert'!$H$5*'Bemessungstabelle isoliert'!$H$6 -> 4.67 m | D17: ='Bemessungstabelle isoliert'!$X3*'Bemessungstabelle isoliert'!$H$2*'Bemessungstabelle isoliert'!$H$3*'Bemessungstabelle isoliert'!$H$4*'Bemessungstabelle isoliert'!$H$5*'Bemessungstabelle isoliert'!$H$6 -> 5.62 m | E17: ='Bemessungstabelle isoliert'!$X4*'Bemessungstabelle isoliert'!$H$2*'Bemessungstabelle isoliert'!$H$3*'Bemessungstabelle isoliert'!$H$4*'Bemessungstabelle isoliert'!$H$5*'Bemessungstabelle isoliert'!$H$6 -> 6.06 m | F17: ='Bemessungstabelle isoliert'!$X5*'Bemessungstabelle isoliert'!$H$2*'Bemessungstabelle isoliert'!$H$3*'Bemessungstabelle isoliert'!$H$4*'Bemessungstabelle isoliert'!$H$5*'Bemessungstabelle isoliert'!$H$6 -> 6.28 m | G17: ='Bemessungstabelle isoliert'!$X6*'Bemessungstabelle isoliert'!$H$2*'Bemessungstabelle isoliert'!$H$3*'Bemessungstabelle isoliert'!$H$4*'Bemessungstabelle isoliert'!$H$5*'Bemessungstabelle isoliert'!$H$6 -> 1.92 m | H17: ='Bemessungstabelle isoliert'!$X7*'Bemessungstabelle isoliert'!$H$2*'Bemessungstabelle isoliert'!$H$3*'Bemessungstabelle isoliert'!$H$4*'Bemessungstabelle isoliert'!$H$5*'Bemessungstabelle isoliert'!$H$6 -> 2.04 m | I17: ='Bemessungstabelle isoliert'!$X8*'Bemessungstabelle isoliert'!$H$2*'Bemessungstabelle isoliert'!$H$3*'Bemessungstabelle isoliert'!$H$4*'Bemessungstabelle isoliert'!$H$5*'Bemessungstabelle isoliert'!$H$6 -> 2.85 m | J17: ='Bemessungstabelle isoliert'!$X9*'Bemessungstabelle isoliert'!$H$2*'Bemessungstabelle isoliert'!$H$3*'Bemessungstabelle isoliert'!$H$4*'Bemessungstabelle isoliert'!$H$5*'Bemessungstabelle isoliert'!$H$6 -> 3.38 m | K17: ='Bemessungstabelle isoliert'!$X10*'Bemessungstabelle isoliert'!$H$2*'Bemessungstabelle isoliert'!$H$3*'Bemessungstabelle isoliert'!$H$4*'Bemessungstabelle isoliert'!$H$5*'Bemessungstabelle isoliert'!$H$6 -> 3.65 m | L17: ='Bemessungstabelle isoliert'!$X11*'Bemessungstabelle isoliert'!$H$2*'Bemessungstabelle isoliert'!$H$3*'Bemessungstabelle isoliert'!$H$4*'Bemessungstabelle isoliert'!$H$5*'Bemessungstabelle isoliert'!$H$6 -> 4.33 m | M17: ='Bemessungstabelle isoliert'!$X12*'Bemessungstabelle isoliert'!$H$2*'Bemessungstabelle isoliert'!$H$3*'Bemessungstabelle isoliert'!$H$4*'Bemessungstabelle isoliert'!$H$5*'Bemessungstabelle isoliert'!$H$6 -> 4.61 m | N17: ='Bemessungstabelle isoliert'!#REF!*'Bemessungstabelle isoliert'!$H$2*'Bemessungstabelle isoliert'!$H$3*'Bemessungstabelle isoliert'!$H$4*'Bemessungstabelle isoliert'!$H$5*'Bemessungstabelle isoliert'!$H$6 ->  | O17: ='Bemessungstabelle isoliert'!#REF!*'Bemessungstabelle isoliert'!$H$2*'Bemessungstabelle isoliert'!$H$3*'Bemessungstabelle isoliert'!$H$4*'Bemessungstabelle isoliert'!$H$5*'Bemessungstabelle isoliert'!$H$6 ->  | P17: ='Bemessungstabelle isoliert'!#REF!*'Bemessungstabelle isoliert'!$H$2*'Bemessungstabelle isoliert'!$H$3*'Bemessungstabelle isoliert'!$H$4*'Bemessungstabelle isoliert'!$H$5*'Bemessungstabelle isoliert'!$H$6 ->  | Q17: ='Bemessungstabelle isoliert'!#REF!*'Bemessungstabelle isoliert'!$H$2*'Bemessungstabelle isoliert'!$H$3*'Bemessungstabelle isoliert'!$H$4*'Bemessungstabelle isoliert'!$H$5*'Bemessungstabelle isoliert'!$H$6 ->  | S17: 4.50 m | T17: ='Bemessungstabelle isoliert'!$AB42*'Bemessungstabelle isoliert'!$H$42*'Bemessungstabelle isoliert'!$H$43*'Bemessungstabelle isoliert'!$H$44*'Bemessungstabelle isoliert'!$H$45*'Bemessungstabelle isoliert'!$H$46*'Bemessungstabelle isoliert'!#REF!*'Bemessungstabelle isoliert'!$H$47 ->  | U17: ='Bemessungstabelle isoliert'!$AB43*'Bemessungstabelle isoliert'!$H$42*'Bemessungstabelle isoliert'!$H$43*'Bemessungstabelle isoliert'!$H$44*'Bemessungstabelle isoliert'!$H$45*'Bemessungstabelle isoliert'!$H$46*'Bemessungstabelle isoliert'!#REF!*'Bemessungstabelle isoliert'!$H$47 ->  | V17: ='Bemessungstabelle isoliert'!$AB44*'Bemessungstabelle isoliert'!$H$42*'Bemessungstabelle isoliert'!$H$43*'Bemessungstabelle isoliert'!$H$44*'Bemessungstabelle isoliert'!$H$45*'Bemessungstabelle isoliert'!$H$46*'Bemessungstabelle isoliert'!#REF!*'Bemessungstabelle isoliert'!$H$47 ->  | W17: ='Bemessungstabelle isoliert'!$AB45*'Bemessungstabelle isoliert'!$H$42*'Bemessungstabelle isoliert'!$H$43*'Bemessungstabelle isoliert'!$H$44*'Bemessungstabelle isoliert'!$H$45*'Bemessungstabelle isoliert'!$H$46*'Bemessungstabelle isoliert'!#REF!*'Bemessungstabelle isoliert'!$H$47 ->  | X17: ='Bemessungstabelle isoliert'!$AB46*'Bemessungstabelle isoliert'!$H$42*'Bemessungstabelle isoliert'!$H$43*'Bemessungstabelle isoliert'!$H$44*'Bemessungstabelle isoliert'!$H$45*'Bemessungstabelle isoliert'!$H$46*'Bemessungstabelle isoliert'!#REF!*'Bemessungstabelle isoliert'!$H$47 ->  | Y17: ='Bemessungstabelle isoliert'!$AB47*'Bemessungstabelle isoliert'!$H$42*'Bemessungstabelle isoliert'!$H$43*'Bemessungstabelle isoliert'!$H$44*'Bemessungstabelle isoliert'!$H$45*'Bemessungstabelle isoliert'!$H$46*'Bemessungstabelle isoliert'!#REF!*'Bemessungstabelle isoliert'!$H$47 ->  | Z17: ='Bemessungstabelle isoliert'!$AB48*'Bemessungstabelle isoliert'!$H$42*'Bemessungstabelle isoliert'!$H$43*'Bemessungstabelle isoliert'!$H$44*'Bemessungstabelle isoliert'!$H$45*'Bemessungstabelle isoliert'!$H$46*'Bemessungstabelle isoliert'!#REF!*'Bemessungstabelle isoliert'!$H$47 ->  | AA17: ='Bemessungstabelle isoliert'!$AB49*'Bemessungstabelle isoliert'!$H$42*'Bemessungstabelle isoliert'!$H$43*'Bemessungstabelle isoliert'!$H$44*'Bemessungstabelle isoliert'!$H$45*'Bemessungstabelle isoliert'!$H$46*'Bemessungstabelle isoliert'!#REF!*'Bemessungstabelle isoliert'!$H$47 ->  | AB17: ='Bemessungstabelle isoliert'!$AB50*'Bemessungstabelle isoliert'!$H$42*'Bemessungstabelle isoliert'!$H$43*'Bemessungstabelle isoliert'!$H$44*'Bemessungstabelle isoliert'!$H$45*'Bemessungstabelle isoliert'!$H$46*'Bemessungstabelle isoliert'!#REF!*'Bemessungstabelle isoliert'!$H$47 ->  | AC17: ='Bemessungstabelle isoliert'!$AB51*'Bemessungstabelle isoliert'!$H$42*'Bemessungstabelle isoliert'!$H$43*'Bemessungstabelle isoliert'!$H$44*'Bemessungstabelle isoliert'!$H$45*'Bemessungstabelle isoliert'!$H$46*'Bemessungstabelle isoliert'!#REF!*'Bemessungstabelle isoliert'!$H$47 ->  | AE17: 5.50 m | AF17: =('Bemessungstabelle unisoliert'!$T75+'Bemessungstabelle unisoliert'!V75)/2*'Bemessungstabelle unisoliert'!$H$66*'Bemessungstabelle unisoliert'!$H$67*'Bemessungstabelle unisoliert'!$H$68*'Bemessungstabelle unisoliert'!$H$69*'Bemessungstabelle unisoliert'!$H$70*'Bemessungstabelle unisoliert'!$H$71 -> 2.21 m | AG17: =('Bemessungstabelle unisoliert'!#REF!+'Bemessungstabelle unisoliert'!#REF!)/2*'Bemessungstabelle unisoliert'!$H$66*'Bemessungstabelle unisoliert'!$H$67*'Bemessungstabelle unisoliert'!$H$68*'Bemessungstabelle unisoliert'!$H$69*'Bemessungstabelle unisoliert'!$H$70*'Bemessungstabelle unisoliert'!$H$71 ->  | AH17: =('Bemessungstabelle unisoliert'!$T74+'Bemessungstabelle unisoliert'!V74)/2*'Bemessungstabelle unisoliert'!$H$66*'Bemessungstabelle unisoliert'!$H$67*'Bemessungstabelle unisoliert'!$H$68*'Bemessungstabelle unisoliert'!$H$69*'Bemessungstabelle unisoliert'!$H$70*'Bemessungstabelle unisoliert'!$H$71 -> 5.33 m | AI17: =('Bemessungstabelle unisoliert'!#REF!+'Bemessungstabelle unisoliert'!#REF!)/2*'Bemessungstabelle unisoliert'!$H$66*'Bemessungstabelle unisoliert'!$H$67*'Bemessungstabelle unisoliert'!$H$68*'Bemessungstabelle unisoliert'!$H$69*'Bemessungstabelle unisoliert'!$H$70*'Bemessungstabelle unisoliert'!$H$71 ->  | AJ17: =('Bemessungstabelle unisoliert'!$T76+'Bemessungstabelle unisoliert'!V76)/2*'Bemessungstabelle unisoliert'!$H$66*'Bemessungstabelle unisoliert'!$H$67*'Bemessungstabelle unisoliert'!$H$68*'Bemessungstabelle unisoliert'!$H$69*'Bemessungstabelle unisoliert'!$H$70*'Bemessungstabelle unisoliert'!$H$71 -> 3.23 m
B18: 1.10 m | C18: ='Bemessungstabelle isoliert'!$Z2*'Bemessungstabelle isoliert'!$H$2*'Bemessungstabelle isoliert'!$H$3*'Bemessungstabelle isoliert'!$H$4*'Bemessungstabelle isoliert'!$H$5*'Bemessungstabelle isoliert'!$H$6 -> 4.53 m | D18: ='Bemessungstabelle isoliert'!$Z3*'Bemessungstabelle isoliert'!$H$2*'Bemessungstabelle isoliert'!$H$3*'Bemessungstabelle isoliert'!$H$4*'Bemessungstabelle isoliert'!$H$5*'Bemessungstabelle isoliert'!$H$6 -> 5.46 m | E18: ='Bemessungstabelle isoliert'!$Z4*'Bemessungstabelle isoliert'!$H$2*'Bemessungstabelle isoliert'!$H$3*'Bemessungstabelle isoliert'!$H$4*'Bemessungstabelle isoliert'!$H$5*'Bemessungstabelle isoliert'!$H$6 -> 5.88 m | F18: ='Bemessungstabelle isoliert'!$Z5*'Bemessungstabelle isoliert'!$H$2*'Bemessungstabelle isoliert'!$H$3*'Bemessungstabelle isoliert'!$H$4*'Bemessungstabelle isoliert'!$H$5*'Bemessungstabelle isoliert'!$H$6 -> 6.11 m | G18: ='Bemessungstabelle isoliert'!$Z6*'Bemessungstabelle isoliert'!$H$2*'Bemessungstabelle isoliert'!$H$3*'Bemessungstabelle isoliert'!$H$4*'Bemessungstabelle isoliert'!$H$5*'Bemessungstabelle isoliert'!$H$6 -> 1.85 m | H18: ='Bemessungstabelle isoliert'!$Z7*'Bemessungstabelle isoliert'!$H$2*'Bemessungstabelle isoliert'!$H$3*'Bemessungstabelle isoliert'!$H$4*'Bemessungstabelle isoliert'!$H$5*'Bemessungstabelle isoliert'!$H$6 -> 1.97 m | I18: ='Bemessungstabelle isoliert'!$Z8*'Bemessungstabelle isoliert'!$H$2*'Bemessungstabelle isoliert'!$H$3*'Bemessungstabelle isoliert'!$H$4*'Bemessungstabelle isoliert'!$H$5*'Bemessungstabelle isoliert'!$H$6 -> 2.75 m | J18: ='Bemessungstabelle isoliert'!$Z9*'Bemessungstabelle isoliert'!$H$2*'Bemessungstabelle isoliert'!$H$3*'Bemessungstabelle isoliert'!$H$4*'Bemessungstabelle isoliert'!$H$5*'Bemessungstabelle isoliert'!$H$6 -> 3.28 m | K18: ='Bemessungstabelle isoliert'!$Z10*'Bemessungstabelle isoliert'!$H$2*'Bemessungstabelle isoliert'!$H$3*'Bemessungstabelle isoliert'!$H$4*'Bemessungstabelle isoliert'!$H$5*'Bemessungstabelle isoliert'!$H$6 -> 3.54 m | L18: ='Bemessungstabelle isoliert'!$Z11*'Bemessungstabelle isoliert'!$H$2*'Bemessungstabelle isoliert'!$H$3*'Bemessungstabelle isoliert'!$H$4*'Bemessungstabelle isoliert'!$H$5*'Bemessungstabelle isoliert'!$H$6 -> 4.20 m | M18: ='Bemessungstabelle isoliert'!$Z12*'Bemessungstabelle isoliert'!$H$2*'Bemessungstabelle isoliert'!$H$3*'Bemessungstabelle isoliert'!$H$4*'Bemessungstabelle isoliert'!$H$5*'Bemessungstabelle isoliert'!$H$6 -> 4.48 m | N18: ='Bemessungstabelle isoliert'!#REF!*'Bemessungstabelle isoliert'!$H$2*'Bemessungstabelle isoliert'!$H$3*'Bemessungstabelle isoliert'!$H$4*'Bemessungstabelle isoliert'!$H$5*'Bemessungstabelle isoliert'!$H$6 ->  | O18: ='Bemessungstabelle isoliert'!#REF!*'Bemessungstabelle isoliert'!$H$2*'Bemessungstabelle isoliert'!$H$3*'Bemessungstabelle isoliert'!$H$4*'Bemessungstabelle isoliert'!$H$5*'Bemessungstabelle isoliert'!$H$6 ->  | P18: ='Bemessungstabelle isoliert'!#REF!*'Bemessungstabelle isoliert'!$H$2*'Bemessungstabelle isoliert'!$H$3*'Bemessungstabelle isoliert'!$H$4*'Bemessungstabelle isoliert'!$H$5*'Bemessungstabelle isoliert'!$H$6 ->  | Q18: ='Bemessungstabelle isoliert'!#REF!*'Bemessungstabelle isoliert'!$H$2*'Bemessungstabelle isoliert'!$H$3*'Bemessungstabelle isoliert'!$H$4*'Bemessungstabelle isoliert'!$H$5*'Bemessungstabelle isoliert'!$H$6 ->  | S18: 5.00 m | T18: ='Bemessungstabelle isoliert'!$AD42*'Bemessungstabelle isoliert'!$H$42*'Bemessungstabelle isoliert'!$H$43*'Bemessungstabelle isoliert'!$H$44*'Bemessungstabelle isoliert'!$H$45*'Bemessungstabelle isoliert'!$H$46*'Bemessungstabelle isoliert'!#REF!*'Bemessungstabelle isoliert'!$H$47 ->  | U18: ='Bemessungstabelle isoliert'!$AD43*'Bemessungstabelle isoliert'!$H$42*'Bemessungstabelle isoliert'!$H$43*'Bemessungstabelle isoliert'!$H$44*'Bemessungstabelle isoliert'!$H$45*'Bemessungstabelle isoliert'!$H$46*'Bemessungstabelle isoliert'!#REF!*'Bemessungstabelle isoliert'!$H$47 ->  | V18: ='Bemessungstabelle isoliert'!$AD44*'Bemessungstabelle isoliert'!$H$42*'Bemessungstabelle isoliert'!$H$43*'Bemessungstabelle isoliert'!$H$44*'Bemessungstabelle isoliert'!$H$45*'Bemessungstabelle isoliert'!$H$46*'Bemessungstabelle isoliert'!#REF!*'Bemessungstabelle isoliert'!$H$47 ->  | W18: ='Bemessungstabelle isoliert'!$AD45*'Bemessungstabelle isoliert'!$H$42*'Bemessungstabelle isoliert'!$H$43*'Bemessungstabelle isoliert'!$H$44*'Bemessungstabelle isoliert'!$H$45*'Bemessungstabelle isoliert'!$H$46*'Bemessungstabelle isoliert'!#REF!*'Bemessungstabelle isoliert'!$H$47 ->  | X18: ='Bemessungstabelle isoliert'!$AD46*'Bemessungstabelle isoliert'!$H$42*'Bemessungstabelle isoliert'!$H$43*'Bemessungstabelle isoliert'!$H$44*'Bemessungstabelle isoliert'!$H$45*'Bemessungstabelle isoliert'!$H$46*'Bemessungstabelle isoliert'!#REF!*'Bemessungstabelle isoliert'!$H$47 ->  | Y18: ='Bemessungstabelle isoliert'!$AD47*'Bemessungstabelle isoliert'!$H$42*'Bemessungstabelle isoliert'!$H$43*'Bemessungstabelle isoliert'!$H$44*'Bemessungstabelle isoliert'!$H$45*'Bemessungstabelle isoliert'!$H$46*'Bemessungstabelle isoliert'!#REF!*'Bemessungstabelle isoliert'!$H$47 ->  | Z18: ='Bemessungstabelle isoliert'!$AD48*'Bemessungstabelle isoliert'!$H$42*'Bemessungstabelle isoliert'!$H$43*'Bemessungstabelle isoliert'!$H$44*'Bemessungstabelle isoliert'!$H$45*'Bemessungstabelle isoliert'!$H$46*'Bemessungstabelle isoliert'!#REF!*'Bemessungstabelle isoliert'!$H$47 ->  | AA18: ='Bemessungstabelle isoliert'!$AD49*'Bemessungstabelle isoliert'!$H$42*'Bemessungstabelle isoliert'!$H$43*'Bemessungstabelle isoliert'!$H$44*'Bemessungstabelle isoliert'!$H$45*'Bemessungstabelle isoliert'!$H$46*'Bemessungstabelle isoliert'!#REF!*'Bemessungstabelle isoliert'!$H$47 ->  | AB18: ='Bemessungstabelle isoliert'!$AD50*'Bemessungstabelle isoliert'!$H$42*'Bemessungstabelle isoliert'!$H$43*'Bemessungstabelle isoliert'!$H$44*'Bemessungstabelle isoliert'!$H$45*'Bemessungstabelle isoliert'!$H$46*'Bemessungstabelle isoliert'!#REF!*'Bemessungstabelle isoliert'!$H$47 ->  | AC18: ='Bemessungstabelle isoliert'!$AD51*'Bemessungstabelle isoliert'!$H$42*'Bemessungstabelle isoliert'!$H$43*'Bemessungstabelle isoliert'!$H$44*'Bemessungstabelle isoliert'!$H$45*'Bemessungstabelle isoliert'!$H$46*'Bemessungstabelle isoliert'!#REF!*'Bemessungstabelle isoliert'!$H$47 -> 
S19: 5.50 m | T19: ='Bemessungstabelle isoliert'!$AF42*'Bemessungstabelle isoliert'!$H$42*'Bemessungstabelle isoliert'!$H$43*'Bemessungstabelle isoliert'!$H$44*'Bemessungstabelle isoliert'!$H$45*'Bemessungstabelle isoliert'!$H$46*'Bemessungstabelle isoliert'!#REF!*'Bemessungstabelle isoliert'!$H$47 ->  | U19: ='Bemessungstabelle isoliert'!$AF43*'Bemessungstabelle isoliert'!$H$42*'Bemessungstabelle isoliert'!$H$43*'Bemessungstabelle isoliert'!$H$44*'Bemessungstabelle isoliert'!$H$45*'Bemessungstabelle isoliert'!$H$46*'Bemessungstabelle isoliert'!#REF!*'Bemessungstabelle isoliert'!$H$47 ->  | V19: ='Bemessungstabelle isoliert'!$AF44*'Bemessungstabelle isoliert'!$H$42*'Bemessungstabelle isoliert'!$H$43*'Bemessungstabelle isoliert'!$H$44*'Bemessungstabelle isoliert'!$H$45*'Bemessungstabelle isoliert'!$H$46*'Bemessungstabelle isoliert'!#REF!*'Bemessungstabelle isoliert'!$H$47 ->  | W19: ='Bemessungstabelle isoliert'!$AF45*'Bemessungstabelle isoliert'!$H$42*'Bemessungstabelle isoliert'!$H$43*'Bemessungstabelle isoliert'!$H$44*'Bemessungstabelle isoliert'!$H$45*'Bemessungstabelle isoliert'!$H$46*'Bemessungstabelle isoliert'!#REF!*'Bemessungstabelle isoliert'!$H$47 ->  | X19: ='Bemessungstabelle isoliert'!$AF46*'Bemessungstabelle isoliert'!$H$42*'Bemessungstabelle isoliert'!$H$43*'Bemessungstabelle isoliert'!$H$44*'Bemessungstabelle isoliert'!$H$45*'Bemessungstabelle isoliert'!$H$46*'Bemessungstabelle isoliert'!#REF!*'Bemessungstabelle isoliert'!$H$47 ->  | Y19: ='Bemessungstabelle isoliert'!$AF47*'Bemessungstabelle isoliert'!$H$42*'Bemessungstabelle isoliert'!$H$43*'Bemessungstabelle isoliert'!$H$44*'Bemessungstabelle isoliert'!$H$45*'Bemessungstabelle isoliert'!$H$46*'Bemessungstabelle isoliert'!#REF!*'Bemessungstabelle isoliert'!$H$47 ->  | Z19: ='Bemessungstabelle isoliert'!$AF48*'Bemessungstabelle isoliert'!$H$42*'Bemessungstabelle isoliert'!$H$43*'Bemessungstabelle isoliert'!$H$44*'Bemessungstabelle isoliert'!$H$45*'Bemessungstabelle isoliert'!$H$46*'Bemessungstabelle isoliert'!#REF!*'Bemessungstabelle isoliert'!$H$47 ->  | AA19: ='Bemessungstabelle isoliert'!$AF49*'Bemessungstabelle isoliert'!$H$42*'Bemessungstabelle isoliert'!$H$43*'Bemessungstabelle isoliert'!$H$44*'Bemessungstabelle isoliert'!$H$45*'Bemessungstabelle isoliert'!$H$46*'Bemessungstabelle isoliert'!#REF!*'Bemessungstabelle isoliert'!$H$47 ->  | AB19: ='Bemessungstabelle isoliert'!$AF50*'Bemessungstabelle isoliert'!$H$42*'Bemessungstabelle isoliert'!$H$43*'Bemessungstabelle isoliert'!$H$44*'Bemessungstabelle isoliert'!$H$45*'Bemessungstabelle isoliert'!$H$46*'Bemessungstabelle isoliert'!#REF!*'Bemessungstabelle isoliert'!$H$47 ->  | AC19: ='Bemessungstabelle isoliert'!$AF51*'Bemessungstabelle isoliert'!$H$42*'Bemessungstabelle isoliert'!$H$43*'Bemessungstabelle isoliert'!$H$44*'Bemessungstabelle isoliert'!$H$45*'Bemessungstabelle isoliert'!$H$46*'Bemessungstabelle isoliert'!#REF!*'Bemessungstabelle isoliert'!$H$47 -> 
B21: Träger unisoliert | S21: Rinnen unisoliert
B23: Randbedingungen | S23: Randbedingungen
B24: Schneelast: | C24: ='Bemessungstabelle unisoliert'!D6 -> 1.10 kN/qm | S24: Schneelast: | T24: ='Bemessungstabelle unisoliert'!#REF! -> 
B25: Windzone: | C25: ='Bemessungstabelle unisoliert'!D8 -> 1, Binnenland | S25: Windzone: | T25: ='Bemessungstabelle unisoliert'!#REF! -> 
B26: Verglasung: | C26: ='Bemessungstabelle unisoliert'!D5 -> 10mm VSG | S26: Verglasung: | T26: ='Bemessungstabelle unisoliert'!#REF! -> 
B27: Dachneigung: | C27: ='Bemessungstabelle unisoliert'!D9 -> 10.0° | S27: Dachneigung: | T27: ='Bemessungstabelle unisoliert'!#REF! -> 
B28: Achsabstand: | C28: ='Bemessungstabelle unisoliert'!D12 -> 0.85 m | S28: Achsabstand: | T28: ='Bemessungstabelle unisoliert'!D12 -> 0.85 m
B29: zul. Durchbiegung: | C29: ='Bemessungstabelle unisoliert'!D13 -> l/200 | S29: zul. Durchbiegung: | T29: ='Bemessungstabelle unisoliert'!D27 -> l/250
B31: Sparrenabstand | C31: 26105 | D31: 26105+100x10 | E31: 26107 | F31: 26107+100x10 | G31: 541514 | H31: 541514+110x15 | I31: 541514+Z-Profil | S31: Tiefe | T31: 26101 | U31: 26101+100x20x3 | V31: 545444 | W31: 545444+120x50x3 | X31: 545444+120x50x5 | Y31: 545444+I120 | Z31: 545444+U120
B32: 0.50 m | C32: ='Bemessungstabelle unisoliert'!$N2*'Bemessungstabelle unisoliert'!$H$2*'Bemessungstabelle unisoliert'!$H$3*'Bemessungstabelle unisoliert'!$H$4*'Bemessungstabelle unisoliert'!$H$5*'Bemessungstabelle unisoliert'!$H$6 -> 3.39 m | D32: ='Bemessungstabelle unisoliert'!$N3*'Bemessungstabelle unisoliert'!$H$2*'Bemessungstabelle unisoliert'!$H$3*'Bemessungstabelle unisoliert'!$H$4*'Bemessungstabelle unisoliert'!$H$5*'Bemessungstabelle unisoliert'!$H$6 -> 4.75 m | E32: ='Bemessungstabelle unisoliert'!$N6*'Bemessungstabelle unisoliert'!$H$2*'Bemessungstabelle unisoliert'!$H$3*'Bemessungstabelle unisoliert'!$H$4*'Bemessungstabelle unisoliert'!$H$5*'Bemessungstabelle unisoliert'!$H$6 -> 4.54 m | F32: ='Bemessungstabelle unisoliert'!$N7*'Bemessungstabelle unisoliert'!$H$2*'Bemessungstabelle unisoliert'!$H$3*'Bemessungstabelle unisoliert'!$H$4*'Bemessungstabelle unisoliert'!$H$5*'Bemessungstabelle unisoliert'!$H$6 -> 5.38 m | G32: ='Bemessungstabelle unisoliert'!$N8*'Bemessungstabelle unisoliert'!$H$2*'Bemessungstabelle unisoliert'!$H$3*'Bemessungstabelle unisoliert'!$H$4*'Bemessungstabelle unisoliert'!$H$5*'Bemessungstabelle unisoliert'!$H$6 -> 5.22 m | H32: ='Bemessungstabelle unisoliert'!$N9*'Bemessungstabelle unisoliert'!$H$2*'Bemessungstabelle unisoliert'!$H$3*'Bemessungstabelle unisoliert'!$H$4*'Bemessungstabelle unisoliert'!$H$5*'Bemessungstabelle unisoliert'!$H$6 -> 5.85 m | I32: ='Bemessungstabelle unisoliert'!$N13*'Bemessungstabelle unisoliert'!$H$2*'Bemessungstabelle unisoliert'!$H$3*'Bemessungstabelle unisoliert'!$H$4*'Bemessungstabelle unisoliert'!$H$5*'Bemessungstabelle unisoliert'!$H$6 -> 3.53 m | S32: 2.00 m | T32: ='Bemessungstabelle unisoliert'!$R57*'Bemessungstabelle unisoliert'!$H$51*'Bemessungstabelle unisoliert'!$H$52*'Bemessungstabelle unisoliert'!$H$53*'Bemessungstabelle unisoliert'!$H$54*'Bemessungstabelle unisoliert'!#REF!*'Bemessungstabelle unisoliert'!$H$55*'Bemessungstabelle unisoliert'!$H$56 ->  | U32: ='Bemessungstabelle unisoliert'!$R58*'Bemessungstabelle unisoliert'!$H$51*'Bemessungstabelle unisoliert'!$H$52*'Bemessungstabelle unisoliert'!$H$53*'Bemessungstabelle unisoliert'!$H$54*'Bemessungstabelle unisoliert'!#REF!*'Bemessungstabelle unisoliert'!$H$55*'Bemessungstabelle unisoliert'!$H$56 ->  | V32: ='Bemessungstabelle unisoliert'!$R60*'Bemessungstabelle unisoliert'!$H$51*'Bemessungstabelle unisoliert'!$H$52*'Bemessungstabelle unisoliert'!$H$53*'Bemessungstabelle unisoliert'!$H$54*'Bemessungstabelle unisoliert'!#REF!*'Bemessungstabelle unisoliert'!$H$55*'Bemessungstabelle unisoliert'!$H$56 ->  | W32: ='Bemessungstabelle unisoliert'!$R61*'Bemessungstabelle unisoliert'!$H$51*'Bemessungstabelle unisoliert'!$H$52*'Bemessungstabelle unisoliert'!$H$53*'Bemessungstabelle unisoliert'!$H$54*'Bemessungstabelle unisoliert'!#REF!*'Bemessungstabelle unisoliert'!$H$55*'Bemessungstabelle unisoliert'!$H$56 ->  | X32: ='Bemessungstabelle unisoliert'!$R62*'Bemessungstabelle unisoliert'!$H$51*'Bemessungstabelle unisoliert'!$H$52*'Bemessungstabelle unisoliert'!$H$53*'Bemessungstabelle unisoliert'!$H$54*'Bemessungstabelle unisoliert'!#REF!*'Bemessungstabelle unisoliert'!$H$55*'Bemessungstabelle unisoliert'!$H$56 ->  | Y32: ='Bemessungstabelle unisoliert'!$R63*'Bemessungstabelle unisoliert'!$H$51*'Bemessungstabelle unisoliert'!$H$52*'Bemessungstabelle unisoliert'!$H$53*'Bemessungstabelle unisoliert'!$H$54*'Bemessungstabelle unisoliert'!#REF!*'Bemessungstabelle unisoliert'!$H$55*'Bemessungstabelle unisoliert'!$H$56 ->  | Z32: ='Bemessungstabelle unisoliert'!$R64*'Bemessungstabelle unisoliert'!$H$51*'Bemessungstabelle unisoliert'!$H$52*'Bemessungstabelle unisoliert'!$H$53*'Bemessungstabelle unisoliert'!$H$54*'Bemessungstabelle unisoliert'!#REF!*'Bemessungstabelle unisoliert'!$H$55*'Bemessungstabelle unisoliert'!$H$56 -> 
B33: 0.60 m | C33: ='Bemessungstabelle unisoliert'!$P2*'Bemessungstabelle unisoliert'!$H$2*'Bemessungstabelle unisoliert'!$H$3*'Bemessungstabelle unisoliert'!$H$4*'Bemessungstabelle unisoliert'!$H$5*'Bemessungstabelle unisoliert'!$H$6 -> 3.19 m | D33: ='Bemessungstabelle unisoliert'!$P3*'Bemessungstabelle unisoliert'!$H$2*'Bemessungstabelle unisoliert'!$H$3*'Bemessungstabelle unisoliert'!$H$4*'Bemessungstabelle unisoliert'!$H$5*'Bemessungstabelle unisoliert'!$H$6 -> 4.50 m | E33: ='Bemessungstabelle unisoliert'!$P6*'Bemessungstabelle unisoliert'!$H$2*'Bemessungstabelle unisoliert'!$H$3*'Bemessungstabelle unisoliert'!$H$4*'Bemessungstabelle unisoliert'!$H$5*'Bemessungstabelle unisoliert'!$H$6 -> 4.28 m | F33: ='Bemessungstabelle unisoliert'!$P7*'Bemessungstabelle unisoliert'!$H$2*'Bemessungstabelle unisoliert'!$H$3*'Bemessungstabelle unisoliert'!$H$4*'Bemessungstabelle unisoliert'!$H$5*'Bemessungstabelle unisoliert'!$H$6 -> 5.11 m | G33: ='Bemessungstabelle unisoliert'!$P8*'Bemessungstabelle unisoliert'!$H$2*'Bemessungstabelle unisoliert'!$H$3*'Bemessungstabelle unisoliert'!$H$4*'Bemessungstabelle unisoliert'!$H$5*'Bemessungstabelle unisoliert'!$H$6 -> 4.93 m | H33: ='Bemessungstabelle unisoliert'!$P9*'Bemessungstabelle unisoliert'!$H$2*'Bemessungstabelle unisoliert'!$H$3*'Bemessungstabelle unisoliert'!$H$4*'Bemessungstabelle unisoliert'!$H$5*'Bemessungstabelle unisoliert'!$H$6 -> 5.55 m | I33: ='Bemessungstabelle unisoliert'!$P13*'Bemessungstabelle unisoliert'!$H$2*'Bemessungstabelle unisoliert'!$H$3*'Bemessungstabelle unisoliert'!$H$4*'Bemessungstabelle unisoliert'!$H$5*'Bemessungstabelle unisoliert'!$H$6 -> 3.32 m | S33: 2.50 m | T33: ='Bemessungstabelle unisoliert'!$T57*'Bemessungstabelle unisoliert'!$H$51*'Bemessungstabelle unisoliert'!$H$52*'Bemessungstabelle unisoliert'!$H$53*'Bemessungstabelle unisoliert'!$H$54*'Bemessungstabelle unisoliert'!#REF!*'Bemessungstabelle unisoliert'!$H$55*'Bemessungstabelle unisoliert'!$H$56 ->  | U33: ='Bemessungstabelle unisoliert'!$T58*'Bemessungstabelle unisoliert'!$H$51*'Bemessungstabelle unisoliert'!$H$52*'Bemessungstabelle unisoliert'!$H$53*'Bemessungstabelle unisoliert'!$H$54*'Bemessungstabelle unisoliert'!#REF!*'Bemessungstabelle unisoliert'!$H$55*'Bemessungstabelle unisoliert'!$H$56 ->  | V33: ='Bemessungstabelle unisoliert'!$T60*'Bemessungstabelle unisoliert'!$H$51*'Bemessungstabelle unisoliert'!$H$52*'Bemessungstabelle unisoliert'!$H$53*'Bemessungstabelle unisoliert'!$H$54*'Bemessungstabelle unisoliert'!#REF!*'Bemessungstabelle unisoliert'!$H$55*'Bemessungstabelle unisoliert'!$H$56 ->  | W33: ='Bemessungstabelle unisoliert'!$T61*'Bemessungstabelle unisoliert'!$H$51*'Bemessungstabelle unisoliert'!$H$52*'Bemessungstabelle unisoliert'!$H$53*'Bemessungstabelle unisoliert'!$H$54*'Bemessungstabelle unisoliert'!#REF!*'Bemessungstabelle unisoliert'!$H$55*'Bemessungstabelle unisoliert'!$H$56 ->  | X33: ='Bemessungstabelle unisoliert'!$T62*'Bemessungstabelle unisoliert'!$H$51*'Bemessungstabelle unisoliert'!$H$52*'Bemessungstabelle unisoliert'!$H$53*'Bemessungstabelle unisoliert'!$H$54*'Bemessungstabelle unisoliert'!#REF!*'Bemessungstabelle unisoliert'!$H$55*'Bemessungstabelle unisoliert'!$H$56 ->  | Y33: ='Bemessungstabelle unisoliert'!$T63*'Bemessungstabelle unisoliert'!$H$51*'Bemessungstabelle unisoliert'!$H$52*'Bemessungstabelle unisoliert'!$H$53*'Bemessungstabelle unisoliert'!$H$54*'Bemessungstabelle unisoliert'!#REF!*'Bemessungstabelle unisoliert'!$H$55*'Bemessungstabelle unisoliert'!$H$56 ->  | Z33: ='Bemessungstabelle unisoliert'!$T64*'Bemessungstabelle unisoliert'!$H$51*'Bemessungstabelle unisoliert'!$H$52*'Bemessungstabelle unisoliert'!$H$53*'Bemessungstabelle unisoliert'!$H$54*'Bemessungstabelle unisoliert'!#REF!*'Bemessungstabelle unisoliert'!$H$55*'Bemessungstabelle unisoliert'!$H$56 -> 
B34: 0.70 m | C34: ='Bemessungstabelle unisoliert'!$R2*'Bemessungstabelle unisoliert'!$H$2*'Bemessungstabelle unisoliert'!$H$3*'Bemessungstabelle unisoliert'!$H$4*'Bemessungstabelle unisoliert'!$H$5*'Bemessungstabelle unisoliert'!$H$6 -> 3.04 m | D34: ='Bemessungstabelle unisoliert'!$R3*'Bemessungstabelle unisoliert'!$H$2*'Bemessungstabelle unisoliert'!$H$3*'Bemessungstabelle unisoliert'!$H$4*'Bemessungstabelle unisoliert'!$H$5*'Bemessungstabelle unisoliert'!$H$6 -> 4.30 m | E34: ='Bemessungstabelle unisoliert'!$R6*'Bemessungstabelle unisoliert'!$H$2*'Bemessungstabelle unisoliert'!$H$3*'Bemessungstabelle unisoliert'!$H$4*'Bemessungstabelle unisoliert'!$H$5*'Bemessungstabelle unisoliert'!$H$6 -> 4.08 m | F34: ='Bemessungstabelle unisoliert'!$R7*'Bemessungstabelle unisoliert'!$H$2*'Bemessungstabelle unisoliert'!$H$3*'Bemessungstabelle unisoliert'!$H$4*'Bemessungstabelle unisoliert'!$H$5*'Bemessungstabelle unisoliert'!$H$6 -> 4.87 m | G34: ='Bemessungstabelle unisoliert'!$R8*'Bemessungstabelle unisoliert'!$H$2*'Bemessungstabelle unisoliert'!$H$3*'Bemessungstabelle unisoliert'!$H$4*'Bemessungstabelle unisoliert'!$H$5*'Bemessungstabelle unisoliert'!$H$6 -> 4.69 m | H34: ='Bemessungstabelle unisoliert'!$R9*'Bemessungstabelle unisoliert'!$H$2*'Bemessungstabelle unisoliert'!$H$3*'Bemessungstabelle unisoliert'!$H$4*'Bemessungstabelle unisoliert'!$H$5*'Bemessungstabelle unisoliert'!$H$6 -> 5.30 m | I34: ='Bemessungstabelle unisoliert'!$R13*'Bemessungstabelle unisoliert'!$H$2*'Bemessungstabelle unisoliert'!$H$3*'Bemessungstabelle unisoliert'!$H$4*'Bemessungstabelle unisoliert'!$H$5*'Bemessungstabelle unisoliert'!$H$6 -> 3.16 m | S34: 3.00 m | T34: ='Bemessungstabelle unisoliert'!$V57*'Bemessungstabelle unisoliert'!$H$51*'Bemessungstabelle unisoliert'!$H$52*'Bemessungstabelle unisoliert'!$H$53*'Bemessungstabelle unisoliert'!$H$54*'Bemessungstabelle unisoliert'!#REF!*'Bemessungstabelle unisoliert'!$H$55*'Bemessungstabelle unisoliert'!$H$56 ->  | U34: ='Bemessungstabelle unisoliert'!$V58*'Bemessungstabelle unisoliert'!$H$51*'Bemessungstabelle unisoliert'!$H$52*'Bemessungstabelle unisoliert'!$H$53*'Bemessungstabelle unisoliert'!$H$54*'Bemessungstabelle unisoliert'!#REF!*'Bemessungstabelle unisoliert'!$H$55*'Bemessungstabelle unisoliert'!$H$56 ->  | V34: ='Bemessungstabelle unisoliert'!$V60*'Bemessungstabelle unisoliert'!$H$51*'Bemessungstabelle unisoliert'!$H$52*'Bemessungstabelle unisoliert'!$H$53*'Bemessungstabelle unisoliert'!$H$54*'Bemessungstabelle unisoliert'!#REF!*'Bemessungstabelle unisoliert'!$H$55*'Bemessungstabelle unisoliert'!$H$56 ->  | W34: ='Bemessungstabelle unisoliert'!$V61*'Bemessungstabelle unisoliert'!$H$51*'Bemessungstabelle unisoliert'!$H$52*'Bemessungstabelle unisoliert'!$H$53*'Bemessungstabelle unisoliert'!$H$54*'Bemessungstabelle unisoliert'!#REF!*'Bemessungstabelle unisoliert'!$H$55*'Bemessungstabelle unisoliert'!$H$56 ->  | X34: ='Bemessungstabelle unisoliert'!$V62*'Bemessungstabelle unisoliert'!$H$51*'Bemessungstabelle unisoliert'!$H$52*'Bemessungstabelle unisoliert'!$H$53*'Bemessungstabelle unisoliert'!$H$54*'Bemessungstabelle unisoliert'!#REF!*'Bemessungstabelle unisoliert'!$H$55*'Bemessungstabelle unisoliert'!$H$56 ->  | Y34: ='Bemessungstabelle unisoliert'!$V63*'Bemessungstabelle unisoliert'!$H$51*'Bemessungstabelle unisoliert'!$H$52*'Bemessungstabelle unisoliert'!$H$53*'Bemessungstabelle unisoliert'!$H$54*'Bemessungstabelle unisoliert'!#REF!*'Bemessungstabelle unisoliert'!$H$55*'Bemessungstabelle unisoliert'!$H$56 ->  | Z34: ='Bemessungstabelle unisoliert'!$V64*'Bemessungstabelle unisoliert'!$H$51*'Bemessungstabelle unisoliert'!$H$52*'Bemessungstabelle unisoliert'!$H$53*'Bemessungstabelle unisoliert'!$H$54*'Bemessungstabelle unisoliert'!#REF!*'Bemessungstabelle unisoliert'!$H$55*'Bemessungstabelle unisoliert'!$H$56 -> 
B35: 0.80 m | C35: ='Bemessungstabelle unisoliert'!$T2*'Bemessungstabelle unisoliert'!$H$2*'Bemessungstabelle unisoliert'!$H$3*'Bemessungstabelle unisoliert'!$H$4*'Bemessungstabelle unisoliert'!$H$5*'Bemessungstabelle unisoliert'!$H$6 -> 2.91 m | D35: ='Bemessungstabelle unisoliert'!$T3*'Bemessungstabelle unisoliert'!$H$2*'Bemessungstabelle unisoliert'!$H$3*'Bemessungstabelle unisoliert'!$H$4*'Bemessungstabelle unisoliert'!$H$5*'Bemessungstabelle unisoliert'!$H$6 -> 4.12 m | E35: ='Bemessungstabelle unisoliert'!$T6*'Bemessungstabelle unisoliert'!$H$2*'Bemessungstabelle unisoliert'!$H$3*'Bemessungstabelle unisoliert'!$H$4*'Bemessungstabelle unisoliert'!$H$5*'Bemessungstabelle unisoliert'!$H$6 -> 3.90 m | F35: ='Bemessungstabelle unisoliert'!$T7*'Bemessungstabelle unisoliert'!$H$2*'Bemessungstabelle unisoliert'!$H$3*'Bemessungstabelle unisoliert'!$H$4*'Bemessungstabelle unisoliert'!$H$5*'Bemessungstabelle unisoliert'!$H$6 -> 4.68 m | G35: ='Bemessungstabelle unisoliert'!$T8*'Bemessungstabelle unisoliert'!$H$2*'Bemessungstabelle unisoliert'!$H$3*'Bemessungstabelle unisoliert'!$H$4*'Bemessungstabelle unisoliert'!$H$5*'Bemessungstabelle unisoliert'!$H$6 -> 4.50 m | H35: ='Bemessungstabelle unisoliert'!$T9*'Bemessungstabelle unisoliert'!$H$2*'Bemessungstabelle unisoliert'!$H$3*'Bemessungstabelle unisoliert'!$H$4*'Bemessungstabelle unisoliert'!$H$5*'Bemessungstabelle unisoliert'!$H$6 -> 5.09 m | I35: ='Bemessungstabelle unisoliert'!$T13*'Bemessungstabelle unisoliert'!$H$2*'Bemessungstabelle unisoliert'!$H$3*'Bemessungstabelle unisoliert'!$H$4*'Bemessungstabelle unisoliert'!$H$5*'Bemessungstabelle unisoliert'!$H$6 -> 3.02 m | S35: 3.50 m | T35: ='Bemessungstabelle unisoliert'!$X57*'Bemessungstabelle unisoliert'!$H$51*'Bemessungstabelle unisoliert'!$H$52*'Bemessungstabelle unisoliert'!$H$53*'Bemessungstabelle unisoliert'!$H$54*'Bemessungstabelle unisoliert'!#REF!*'Bemessungstabelle unisoliert'!$H$55*'Bemessungstabelle unisoliert'!$H$56 ->  | U35: ='Bemessungstabelle unisoliert'!$X58*'Bemessungstabelle unisoliert'!$H$51*'Bemessungstabelle unisoliert'!$H$52*'Bemessungstabelle unisoliert'!$H$53*'Bemessungstabelle unisoliert'!$H$54*'Bemessungstabelle unisoliert'!#REF!*'Bemessungstabelle unisoliert'!$H$55*'Bemessungstabelle unisoliert'!$H$56 ->  | V35: ='Bemessungstabelle unisoliert'!$X60*'Bemessungstabelle unisoliert'!$H$51*'Bemessungstabelle unisoliert'!$H$52*'Bemessungstabelle unisoliert'!$H$53*'Bemessungstabelle unisoliert'!$H$54*'Bemessungstabelle unisoliert'!#REF!*'Bemessungstabelle unisoliert'!$H$55*'Bemessungstabelle unisoliert'!$H$56 ->  | W35: ='Bemessungstabelle unisoliert'!$X61*'Bemessungstabelle unisoliert'!$H$51*'Bemessungstabelle unisoliert'!$H$52*'Bemessungstabelle unisoliert'!$H$53*'Bemessungstabelle unisoliert'!$H$54*'Bemessungstabelle unisoliert'!#REF!*'Bemessungstabelle unisoliert'!$H$55*'Bemessungstabelle unisoliert'!$H$56 ->  | X35: ='Bemessungstabelle unisoliert'!$X62*'Bemessungstabelle unisoliert'!$H$51*'Bemessungstabelle unisoliert'!$H$52*'Bemessungstabelle unisoliert'!$H$53*'Bemessungstabelle unisoliert'!$H$54*'Bemessungstabelle unisoliert'!#REF!*'Bemessungstabelle unisoliert'!$H$55*'Bemessungstabelle unisoliert'!$H$56 ->  | Y35: ='Bemessungstabelle unisoliert'!$X63*'Bemessungstabelle unisoliert'!$H$51*'Bemessungstabelle unisoliert'!$H$52*'Bemessungstabelle unisoliert'!$H$53*'Bemessungstabelle unisoliert'!$H$54*'Bemessungstabelle unisoliert'!#REF!*'Bemessungstabelle unisoliert'!$H$55*'Bemessungstabelle unisoliert'!$H$56 ->  | Z35: ='Bemessungstabelle unisoliert'!$X64*'Bemessungstabelle unisoliert'!$H$51*'Bemessungstabelle unisoliert'!$H$52*'Bemessungstabelle unisoliert'!$H$53*'Bemessungstabelle unisoliert'!$H$54*'Bemessungstabelle unisoliert'!#REF!*'Bemessungstabelle unisoliert'!$H$55*'Bemessungstabelle unisoliert'!$H$56 -> 
B36: 0.90 m | C36: ='Bemessungstabelle unisoliert'!$V2*'Bemessungstabelle unisoliert'!$H$2*'Bemessungstabelle unisoliert'!$H$3*'Bemessungstabelle unisoliert'!$H$4*'Bemessungstabelle unisoliert'!$H$5*'Bemessungstabelle unisoliert'!$H$6 -> 2.80 m | D36: ='Bemessungstabelle unisoliert'!$V3*'Bemessungstabelle unisoliert'!$H$2*'Bemessungstabelle unisoliert'!$H$3*'Bemessungstabelle unisoliert'!$H$4*'Bemessungstabelle unisoliert'!$H$5*'Bemessungstabelle unisoliert'!$H$6 -> 3.98 m | E36: ='Bemessungstabelle unisoliert'!$V6*'Bemessungstabelle unisoliert'!$H$2*'Bemessungstabelle unisoliert'!$H$3*'Bemessungstabelle unisoliert'!$H$4*'Bemessungstabelle unisoliert'!$H$5*'Bemessungstabelle unisoliert'!$H$6 -> 3.75 m | F36: ='Bemessungstabelle unisoliert'!$V7*'Bemessungstabelle unisoliert'!$H$2*'Bemessungstabelle unisoliert'!$H$3*'Bemessungstabelle unisoliert'!$H$4*'Bemessungstabelle unisoliert'!$H$5*'Bemessungstabelle unisoliert'!$H$6 -> 4.52 m | G36: ='Bemessungstabelle unisoliert'!$V8*'Bemessungstabelle unisoliert'!$H$2*'Bemessungstabelle unisoliert'!$H$3*'Bemessungstabelle unisoliert'!$H$4*'Bemessungstabelle unisoliert'!$H$5*'Bemessungstabelle unisoliert'!$H$6 -> 4.33 m | H36: ='Bemessungstabelle unisoliert'!$V9*'Bemessungstabelle unisoliert'!$H$2*'Bemessungstabelle unisoliert'!$H$3*'Bemessungstabelle unisoliert'!$H$4*'Bemessungstabelle unisoliert'!$H$5*'Bemessungstabelle unisoliert'!$H$6 -> 4.91 m | I36: ='Bemessungstabelle unisoliert'!$V13*'Bemessungstabelle unisoliert'!$H$2*'Bemessungstabelle unisoliert'!$H$3*'Bemessungstabelle unisoliert'!$H$4*'Bemessungstabelle unisoliert'!$H$5*'Bemessungstabelle unisoliert'!$H$6 -> 2.91 m | S36: 4.00 m | T36: ='Bemessungstabelle unisoliert'!$Z57*'Bemessungstabelle unisoliert'!$H$51*'Bemessungstabelle unisoliert'!$H$52*'Bemessungstabelle unisoliert'!$H$53*'Bemessungstabelle unisoliert'!$H$54*'Bemessungstabelle unisoliert'!#REF!*'Bemessungstabelle unisoliert'!$H$55*'Bemessungstabelle unisoliert'!$H$56 ->  | U36: ='Bemessungstabelle unisoliert'!$Z58*'Bemessungstabelle unisoliert'!$H$51*'Bemessungstabelle unisoliert'!$H$52*'Bemessungstabelle unisoliert'!$H$53*'Bemessungstabelle unisoliert'!$H$54*'Bemessungstabelle unisoliert'!#REF!*'Bemessungstabelle unisoliert'!$H$55*'Bemessungstabelle unisoliert'!$H$56 ->  | V36: ='Bemessungstabelle unisoliert'!$Z60*'Bemessungstabelle unisoliert'!$H$51*'Bemessungstabelle unisoliert'!$H$52*'Bemessungstabelle unisoliert'!$H$53*'Bemessungstabelle unisoliert'!$H$54*'Bemessungstabelle unisoliert'!#REF!*'Bemessungstabelle unisoliert'!$H$55*'Bemessungstabelle unisoliert'!$H$56 ->  | W36: ='Bemessungstabelle unisoliert'!$Z61*'Bemessungstabelle unisoliert'!$H$51*'Bemessungstabelle unisoliert'!$H$52*'Bemessungstabelle unisoliert'!$H$53*'Bemessungstabelle unisoliert'!$H$54*'Bemessungstabelle unisoliert'!#REF!*'Bemessungstabelle unisoliert'!$H$55*'Bemessungstabelle unisoliert'!$H$56 ->  | X36: ='Bemessungstabelle unisoliert'!$Z62*'Bemessungstabelle unisoliert'!$H$51*'Bemessungstabelle unisoliert'!$H$52*'Bemessungstabelle unisoliert'!$H$53*'Bemessungstabelle unisoliert'!$H$54*'Bemessungstabelle unisoliert'!#REF!*'Bemessungstabelle unisoliert'!$H$55*'Bemessungstabelle unisoliert'!$H$56 ->  | Y36: ='Bemessungstabelle unisoliert'!$Z63*'Bemessungstabelle unisoliert'!$H$51*'Bemessungstabelle unisoliert'!$H$52*'Bemessungstabelle unisoliert'!$H$53*'Bemessungstabelle unisoliert'!$H$54*'Bemessungstabelle unisoliert'!#REF!*'Bemessungstabelle unisoliert'!$H$55*'Bemessungstabelle unisoliert'!$H$56 ->  | Z36: ='Bemessungstabelle unisoliert'!$Z64*'Bemessungstabelle unisoliert'!$H$51*'Bemessungstabelle unisoliert'!$H$52*'Bemessungstabelle unisoliert'!$H$53*'Bemessungstabelle unisoliert'!$H$54*'Bemessungstabelle unisoliert'!#REF!*'Bemessungstabelle unisoliert'!$H$55*'Bemessungstabelle unisoliert'!$H$56 -> 
B37: 1.00 m | C37: ='Bemessungstabelle unisoliert'!$X2*'Bemessungstabelle unisoliert'!$H$2*'Bemessungstabelle unisoliert'!$H$3*'Bemessungstabelle unisoliert'!$H$4*'Bemessungstabelle unisoliert'!$H$5*'Bemessungstabelle unisoliert'!$H$6 -> 2.70 m | D37: ='Bemessungstabelle unisoliert'!$X3*'Bemessungstabelle unisoliert'!$H$2*'Bemessungstabelle unisoliert'!$H$3*'Bemessungstabelle unisoliert'!$H$4*'Bemessungstabelle unisoliert'!$H$5*'Bemessungstabelle unisoliert'!$H$6 -> 3.85 m | E37: ='Bemessungstabelle unisoliert'!$X6*'Bemessungstabelle unisoliert'!$H$2*'Bemessungstabelle unisoliert'!$H$3*'Bemessungstabelle unisoliert'!$H$4*'Bemessungstabelle unisoliert'!$H$5*'Bemessungstabelle unisoliert'!$H$6 -> 3.62 m | F37: ='Bemessungstabelle unisoliert'!$X7*'Bemessungstabelle unisoliert'!$H$2*'Bemessungstabelle unisoliert'!$H$3*'Bemessungstabelle unisoliert'!$H$4*'Bemessungstabelle unisoliert'!$H$5*'Bemessungstabelle unisoliert'!$H$6 -> 4.37 m | G37: ='Bemessungstabelle unisoliert'!$X8*'Bemessungstabelle unisoliert'!$H$2*'Bemessungstabelle unisoliert'!$H$3*'Bemessungstabelle unisoliert'!$H$4*'Bemessungstabelle unisoliert'!$H$5*'Bemessungstabelle unisoliert'!$H$6 -> 4.18 m | H37: ='Bemessungstabelle unisoliert'!$X9*'Bemessungstabelle unisoliert'!$H$2*'Bemessungstabelle unisoliert'!$H$3*'Bemessungstabelle unisoliert'!$H$4*'Bemessungstabelle unisoliert'!$H$5*'Bemessungstabelle unisoliert'!$H$6 -> 4.75 m | I37: ='Bemessungstabelle unisoliert'!$X13*'Bemessungstabelle unisoliert'!$H$2*'Bemessungstabelle unisoliert'!$H$3*'Bemessungstabelle unisoliert'!$H$4*'Bemessungstabelle unisoliert'!$H$5*'Bemessungstabelle unisoliert'!$H$6 -> 2.81 m | S37: 4.50 m | T37: ='Bemessungstabelle unisoliert'!$AB57*'Bemessungstabelle unisoliert'!$H$51*'Bemessungstabelle unisoliert'!$H$52*'Bemessungstabelle unisoliert'!$H$53*'Bemessungstabelle unisoliert'!$H$54*'Bemessungstabelle unisoliert'!#REF!*'Bemessungstabelle unisoliert'!$H$55*'Bemessungstabelle unisoliert'!$H$56 ->  | U37: ='Bemessungstabelle unisoliert'!$AB58*'Bemessungstabelle unisoliert'!$H$51*'Bemessungstabelle unisoliert'!$H$52*'Bemessungstabelle unisoliert'!$H$53*'Bemessungstabelle unisoliert'!$H$54*'Bemessungstabelle unisoliert'!#REF!*'Bemessungstabelle unisoliert'!$H$55*'Bemessungstabelle unisoliert'!$H$56 ->  | V37: ='Bemessungstabelle unisoliert'!$AB60*'Bemessungstabelle unisoliert'!$H$51*'Bemessungstabelle unisoliert'!$H$52*'Bemessungstabelle unisoliert'!$H$53*'Bemessungstabelle unisoliert'!$H$54*'Bemessungstabelle unisoliert'!#REF!*'Bemessungstabelle unisoliert'!$H$55*'Bemessungstabelle unisoliert'!$H$56 ->  | W37: ='Bemessungstabelle unisoliert'!$AB61*'Bemessungstabelle unisoliert'!$H$51*'Bemessungstabelle unisoliert'!$H$52*'Bemessungstabelle unisoliert'!$H$53*'Bemessungstabelle unisoliert'!$H$54*'Bemessungstabelle unisoliert'!#REF!*'Bemessungstabelle unisoliert'!$H$55*'Bemessungstabelle unisoliert'!$H$56 ->  | X37: ='Bemessungstabelle unisoliert'!$AB62*'Bemessungstabelle unisoliert'!$H$51*'Bemessungstabelle unisoliert'!$H$52*'Bemessungstabelle unisoliert'!$H$53*'Bemessungstabelle unisoliert'!$H$54*'Bemessungstabelle unisoliert'!#REF!*'Bemessungstabelle unisoliert'!$H$55*'Bemessungstabelle unisoliert'!$H$56 ->  | Y37: ='Bemessungstabelle unisoliert'!$AB63*'Bemessungstabelle unisoliert'!$H$51*'Bemessungstabelle unisoliert'!$H$52*'Bemessungstabelle unisoliert'!$H$53*'Bemessungstabelle unisoliert'!$H$54*'Bemessungstabelle unisoliert'!#REF!*'Bemessungstabelle unisoliert'!$H$55*'Bemessungstabelle unisoliert'!$H$56 ->  | Z37: ='Bemessungstabelle unisoliert'!$AB64*'Bemessungstabelle unisoliert'!$H$51*'Bemessungstabelle unisoliert'!$H$52*'Bemessungstabelle unisoliert'!$H$53*'Bemessungstabelle unisoliert'!$H$54*'Bemessungstabelle unisoliert'!#REF!*'Bemessungstabelle unisoliert'!$H$55*'Bemessungstabelle unisoliert'!$H$56 -> 
B38: 1.10 m | C38: ='Bemessungstabelle unisoliert'!$Z2*'Bemessungstabelle unisoliert'!$H$2*'Bemessungstabelle unisoliert'!$H$3*'Bemessungstabelle unisoliert'!$H$4*'Bemessungstabelle unisoliert'!$H$5*'Bemessungstabelle unisoliert'!$H$6 -> 2.62 m | D38: ='Bemessungstabelle unisoliert'!$Z3*'Bemessungstabelle unisoliert'!$H$2*'Bemessungstabelle unisoliert'!$H$3*'Bemessungstabelle unisoliert'!$H$4*'Bemessungstabelle unisoliert'!$H$5*'Bemessungstabelle unisoliert'!$H$6 -> 3.74 m | E38: ='Bemessungstabelle unisoliert'!$Z6*'Bemessungstabelle unisoliert'!$H$2*'Bemessungstabelle unisoliert'!$H$3*'Bemessungstabelle unisoliert'!$H$4*'Bemessungstabelle unisoliert'!$H$5*'Bemessungstabelle unisoliert'!$H$6 -> 3.52 m | F38: ='Bemessungstabelle unisoliert'!$Z7*'Bemessungstabelle unisoliert'!$H$2*'Bemessungstabelle unisoliert'!$H$3*'Bemessungstabelle unisoliert'!$H$4*'Bemessungstabelle unisoliert'!$H$5*'Bemessungstabelle unisoliert'!$H$6 -> 4.24 m | G38: ='Bemessungstabelle unisoliert'!$Z8*'Bemessungstabelle unisoliert'!$H$2*'Bemessungstabelle unisoliert'!$H$3*'Bemessungstabelle unisoliert'!$H$4*'Bemessungstabelle unisoliert'!$H$5*'Bemessungstabelle unisoliert'!$H$6 -> 4.06 m | H38: ='Bemessungstabelle unisoliert'!$Z9*'Bemessungstabelle unisoliert'!$H$2*'Bemessungstabelle unisoliert'!$H$3*'Bemessungstabelle unisoliert'!$H$4*'Bemessungstabelle unisoliert'!$H$5*'Bemessungstabelle unisoliert'!$H$6 -> 4.62 m | I38: ='Bemessungstabelle unisoliert'!$Z13*'Bemessungstabelle unisoliert'!$H$2*'Bemessungstabelle unisoliert'!$H$3*'Bemessungstabelle unisoliert'!$H$4*'Bemessungstabelle unisoliert'!$H$5*'Bemessungstabelle unisoliert'!$H$6 -> 2.72 m | S38: 5.00 m | T38: ='Bemessungstabelle unisoliert'!$AD57*'Bemessungstabelle unisoliert'!$H$51*'Bemessungstabelle unisoliert'!$H$52*'Bemessungstabelle unisoliert'!$H$53*'Bemessungstabelle unisoliert'!$H$54*'Bemessungstabelle unisoliert'!#REF!*'Bemessungstabelle unisoliert'!$H$55*'Bemessungstabelle unisoliert'!$H$56 ->  | U38: ='Bemessungstabelle unisoliert'!$AD58*'Bemessungstabelle unisoliert'!$H$51*'Bemessungstabelle unisoliert'!$H$52*'Bemessungstabelle unisoliert'!$H$53*'Bemessungstabelle unisoliert'!$H$54*'Bemessungstabelle unisoliert'!#REF!*'Bemessungstabelle unisoliert'!$H$55*'Bemessungstabelle unisoliert'!$H$56 ->  | V38: ='Bemessungstabelle unisoliert'!$AD60*'Bemessungstabelle unisoliert'!$H$51*'Bemessungstabelle unisoliert'!$H$52*'Bemessungstabelle unisoliert'!$H$53*'Bemessungstabelle unisoliert'!$H$54*'Bemessungstabelle unisoliert'!#REF!*'Bemessungstabelle unisoliert'!$H$55*'Bemessungstabelle unisoliert'!$H$56 ->  | W38: ='Bemessungstabelle unisoliert'!$AD61*'Bemessungstabelle unisoliert'!$H$51*'Bemessungstabelle unisoliert'!$H$52*'Bemessungstabelle unisoliert'!$H$53*'Bemessungstabelle unisoliert'!$H$54*'Bemessungstabelle unisoliert'!#REF!*'Bemessungstabelle unisoliert'!$H$55*'Bemessungstabelle unisoliert'!$H$56 ->  | X38: ='Bemessungstabelle unisoliert'!$AD62*'Bemessungstabelle unisoliert'!$H$51*'Bemessungstabelle unisoliert'!$H$52*'Bemessungstabelle unisoliert'!$H$53*'Bemessungstabelle unisoliert'!$H$54*'Bemessungstabelle unisoliert'!#REF!*'Bemessungstabelle unisoliert'!$H$55*'Bemessungstabelle unisoliert'!$H$56 ->  | Y38: ='Bemessungstabelle unisoliert'!$AD63*'Bemessungstabelle unisoliert'!$H$51*'Bemessungstabelle unisoliert'!$H$52*'Bemessungstabelle unisoliert'!$H$53*'Bemessungstabelle unisoliert'!$H$54*'Bemessungstabelle unisoliert'!#REF!*'Bemessungstabelle unisoliert'!$H$55*'Bemessungstabelle unisoliert'!$H$56 ->  | Z38: ='Bemessungstabelle unisoliert'!$AD64*'Bemessungstabelle unisoliert'!$H$51*'Bemessungstabelle unisoliert'!$H$52*'Bemessungstabelle unisoliert'!$H$53*'Bemessungstabelle unisoliert'!$H$54*'Bemessungstabelle unisoliert'!#REF!*'Bemessungstabelle unisoliert'!$H$55*'Bemessungstabelle unisoliert'!$H$56 -> 
